Workbook

Sheet Menu
D2: INSTITUTO COLOMBIANO DE BIENESTAR FAMILIAR SEGUIMIENTO METAS ICBF ANÁLISIS GENERAL
B3: Regionales
C7: Analisis regional
C8: Menu | J8: =+"Información general regional "&D16 -> Información general regional Amazonas
G10: Corte actual | O10: Información general
G12: Diciembre | P12: Resultado | Q12: =+resumen!F14 -> 0.8314273705 | W12: =+NOW() -> 2014-11-21T15:56:05.760 | X12: =+DAY(W12) -> 21 | Y12: =+MONTH(W12) -> 11
D14: 1. Seleccione regional | G14: =+VLOOKUP(G12,K160:L171,2,FALSE) -> 12 | X14: =+DAY(18) -> 18 | Y14: =+Y12-1 -> 10
P15: Categoria | X15: =IF(X14<=X12,Y14,Y14-1) -> 10
D16: Amazonas | O16: Valoración | P16: 1er nivel | Q16: 2do nivel | R16: 3er nivel | S16: Total
O17: Optimo | P17: =IFERROR(IF($G$14=1,VLOOKUP($O17,'td regional'!$A$122:$D$125,2,FALSE),IF($G$14=2,VLOOKUP($O17,'td regional'!$A$131:$D$134,2,FALSE),IF($G$14=3,VLOOKUP($O17,'td regional'!$A$140:$D$144,2,FALSE),IF($G$14=4,VLOOKUP($O17,'td regional'!$A$150:$D$154,2,FALSE),IF($G$14=5,VLOOKUP($O17,'td regional'!$A$160:$D$164,2,FALSE),IF($G$14=6,VLOOKUP($O17,'td regional'!$A$170:$D$174,2,FALSE),IF($G$14=7,VLOOKUP($O17,'td regional'!$A$180:$D$184,2,FALSE),IF($G$14=8,VLOOKUP($O17,'td regional'!$A$190:$D$194,2,FALSE),IF($G$14=9,VLOOKUP($O17,'td regional'!$A$200:$D$204,2,FALSE),IF($G$14=10,VLOOKUP($O17,'td regional'!$A$210:$D$214,2,FALSE),IF($G$14=11,VLOOKUP($O17,'td regional'!$A$220:$D$224,2,FALSE),IF($G$14=12,VLOOKUP($O17,'td regional'!$A$230:$D$234,2,FALSE))))))))))))),"") -> 9 | Q17: =IFERROR(IF($G$14=1,VLOOKUP($O17,'td regional'!$A$122:$D$125,3,FALSE),IF($G$14=2,VLOOKUP($O17,'td regional'!$A$131:$D$134,3,FALSE),IF($G$14=3,VLOOKUP($O17,'td regional'!$A$140:$D$144,3,FALSE),IF($G$14=4,VLOOKUP($O17,'td regional'!$A$150:$D$154,3,FALSE),IF($G$14=5,VLOOKUP($O17,'td regional'!$A$160:$D$164,3,FALSE),IF($G$14=6,VLOOKUP($O17,'td regional'!$A$170:$D$174,3,FALSE),IF($G$14=7,VLOOKUP($O17,'td regional'!$A$180:$D$184,3,FALSE),IF($G$14=8,VLOOKUP($O17,'td regional'!$A$190:$D$194,3,FALSE),IF($G$14=9,VLOOKUP($O17,'td regional'!$A$200:$D$204,3,FALSE),IF($G$14=10,VLOOKUP($O17,'td regional'!$A$210:$D$214,3,FALSE),IF($G$14=11,VLOOKUP($O17,'td regional'!$A$220:$D$224,3,FALSE),IF($G$14=12,VLOOKUP($O17,'td regional'!$A$230:$D$234,3,FALSE))))))))))))),"") -> 5 | R17: =IFERROR(IF($G$14=1,VLOOKUP($O17,'td regional'!$A$122:$D$125,4,FALSE),IF($G$14=2,VLOOKUP($O17,'td regional'!$A$131:$D$134,4,FALSE),IF($G$14=3,VLOOKUP($O17,'td regional'!$A$140:$D$144,4,FALSE),IF($G$14=4,VLOOKUP($O17,'td regional'!$A$150:$D$154,4,FALSE),IF($G$14=5,VLOOKUP($O17,'td regional'!$A$160:$D$164,4,FALSE),IF($G$14=6,VLOOKUP($O17,'td regional'!$A$170:$D$174,4,FALSE),IF($G$14=7,VLOOKUP($O17,'td regional'!$A$180:$D$184,4,FALSE),IF($G$14=8,VLOOKUP($O17,'td regional'!$A$190:$D$194,4,FALSE),IF($G$14=9,VLOOKUP($O17,'td regional'!$A$200:$D$204,4,FALSE),IF($G$14=10,VLOOKUP($O17,'td regional'!$A$210:$D$214,4,FALSE),IF($G$14=11,VLOOKUP($O17,'td regional'!$A$220:$D$224,4,FALSE),IF($G$14=12,VLOOKUP($O17,'td regional'!$A$230:$D$234,4,FALSE))))))))))))),"") -> 27 | S17: =SUM(P17:R17) -> 41
D18: 2. Seleccione la opción que desea revisar | O18: Adecuado | P18: =IFERROR(IF($G$14=1,VLOOKUP($O18,'td regional'!$A$122:$D$125,2,FALSE),IF($G$14=2,VLOOKUP($O18,'td regional'!$A$131:$D$134,2,FALSE),IF($G$14=3,VLOOKUP($O18,'td regional'!$A$140:$D$144,2,FALSE),IF($G$14=4,VLOOKUP($O18,'td regional'!$A$150:$D$154,2,FALSE),IF($G$14=5,VLOOKUP($O18,'td regional'!$A$160:$D$164,2,FALSE),IF($G$14=6,VLOOKUP($O18,'td regional'!$A$170:$D$174,2,FALSE),IF($G$14=7,VLOOKUP($O18,'td regional'!$A$180:$D$184,2,FALSE),IF($G$14=8,VLOOKUP($O18,'td regional'!$A$190:$D$194,2,FALSE),IF($G$14=9,VLOOKUP($O18,'td regional'!$A$200:$D$204,2,FALSE),IF($G$14=10,VLOOKUP($O18,'td regional'!$A$210:$D$214,2,FALSE),IF($G$14=11,VLOOKUP($O18,'td regional'!$A$220:$D$224,2,FALSE),IF($G$14=12,VLOOKUP($O18,'td regional'!$A$230:$D$234,2,FALSE))))))))))))),"") -> 5 | Q18: =IFERROR(IF($G$14=1,VLOOKUP($O18,'td regional'!$A$122:$D$125,3,FALSE),IF($G$14=2,VLOOKUP($O18,'td regional'!$A$131:$D$134,3,FALSE),IF($G$14=3,VLOOKUP($O18,'td regional'!$A$140:$D$144,3,FALSE),IF($G$14=4,VLOOKUP($O18,'td regional'!$A$150:$D$154,3,FALSE),IF($G$14=5,VLOOKUP($O18,'td regional'!$A$160:$D$164,3,FALSE),IF($G$14=6,VLOOKUP($O18,'td regional'!$A$170:$D$174,3,FALSE),IF($G$14=7,VLOOKUP($O18,'td regional'!$A$180:$D$184,3,FALSE),IF($G$14=8,VLOOKUP($O18,'td regional'!$A$190:$D$194,3,FALSE),IF($G$14=9,VLOOKUP($O18,'td regional'!$A$200:$D$204,3,FALSE),IF($G$14=10,VLOOKUP($O18,'td regional'!$A$210:$D$214,3,FALSE),IF($G$14=11,VLOOKUP($O18,'td regional'!$A$220:$D$224,3,FALSE),IF($G$14=12,VLOOKUP($O18,'td regional'!$A$230:$D$234,3,FALSE))))))))))))),"") -> 1 | R18: =IFERROR(IF($G$14=1,VLOOKUP($O18,'td regional'!$A$122:$D$125,4,FALSE),IF($G$14=2,VLOOKUP($O18,'td regional'!$A$131:$D$134,4,FALSE),IF($G$14=3,VLOOKUP($O18,'td regional'!$A$140:$D$144,4,FALSE),IF($G$14=4,VLOOKUP($O18,'td regional'!$A$150:$D$154,4,FALSE),IF($G$14=5,VLOOKUP($O18,'td regional'!$A$160:$D$164,4,FALSE),IF($G$14=6,VLOOKUP($O18,'td regional'!$A$170:$D$174,4,FALSE),IF($G$14=7,VLOOKUP($O18,'td regional'!$A$180:$D$184,4,FALSE),IF($G$14=8,VLOOKUP($O18,'td regional'!$A$190:$D$194,4,FALSE),IF($G$14=9,VLOOKUP($O18,'td regional'!$A$200:$D$204,4,FALSE),IF($G$14=10,VLOOKUP($O18,'td regional'!$A$210:$D$214,4,FALSE),IF($G$14=11,VLOOKUP($O18,'td regional'!$A$220:$D$224,4,FALSE),IF($G$14=12,VLOOKUP($O18,'td regional'!$A$230:$D$234,4,FALSE))))))))))))),"") -> 9 | S18: 15
O19: En riesgo | P19: =IFERROR(IF($G$14=1,VLOOKUP($O19,'td regional'!$A$122:$D$125,2,FALSE),IF($G$14=2,VLOOKUP($O19,'td regional'!$A$131:$D$134,2,FALSE),IF($G$14=3,VLOOKUP($O19,'td regional'!$A$140:$D$144,2,FALSE),IF($G$14=4,VLOOKUP($O19,'td regional'!$A$150:$D$154,2,FALSE),IF($G$14=5,VLOOKUP($O19,'td regional'!$A$160:$D$164,2,FALSE),IF($G$14=6,VLOOKUP($O19,'td regional'!$A$170:$D$174,2,FALSE),IF($G$14=7,VLOOKUP($O19,'td regional'!$A$180:$D$184,2,FALSE),IF($G$14=8,VLOOKUP($O19,'td regional'!$A$190:$D$194,2,FALSE),IF($G$14=9,VLOOKUP($O19,'td regional'!$A$200:$D$204,2,FALSE),IF($G$14=10,VLOOKUP($O19,'td regional'!$A$210:$D$214,2,FALSE),IF($G$14=11,VLOOKUP($O19,'td regional'!$A$220:$D$224,2,FALSE),IF($G$14=12,VLOOKUP($O19,'td regional'!$A$230:$D$234,2,FALSE))))))))))))),"") -> 0 | Q19: =IFERROR(IF($G$14=1,VLOOKUP($O19,'td regional'!$A$122:$D$125,3,FALSE),IF($G$14=2,VLOOKUP($O19,'td regional'!$A$131:$D$134,3,FALSE),IF($G$14=3,VLOOKUP($O19,'td regional'!$A$140:$D$144,3,FALSE),IF($G$14=4,VLOOKUP($O19,'td regional'!$A$150:$D$154,3,FALSE),IF($G$14=5,VLOOKUP($O19,'td regional'!$A$160:$D$164,3,FALSE),IF($G$14=6,VLOOKUP($O19,'td regional'!$A$170:$D$174,3,FALSE),IF($G$14=7,VLOOKUP($O19,'td regional'!$A$180:$D$184,3,FALSE),IF($G$14=8,VLOOKUP($O19,'td regional'!$A$190:$D$194,3,FALSE),IF($G$14=9,VLOOKUP($O19,'td regional'!$A$200:$D$204,3,FALSE),IF($G$14=10,VLOOKUP($O19,'td regional'!$A$210:$D$214,3,FALSE),IF($G$14=11,VLOOKUP($O19,'td regional'!$A$220:$D$224,3,FALSE),IF($G$14=12,VLOOKUP($O19,'td regional'!$A$230:$D$234,3,FALSE))))))))))))),"") -> 2 | R19: =IFERROR(IF($G$14=1,VLOOKUP($O19,'td regional'!$A$122:$D$125,4,FALSE),IF($G$14=2,VLOOKUP($O19,'td regional'!$A$131:$D$134,4,FALSE),IF($G$14=3,VLOOKUP($O19,'td regional'!$A$140:$D$144,4,FALSE),IF($G$14=4,VLOOKUP($O19,'td regional'!$A$150:$D$154,4,FALSE),IF($G$14=5,VLOOKUP($O19,'td regional'!$A$160:$D$164,4,FALSE),IF($G$14=6,VLOOKUP($O19,'td regional'!$A$170:$D$174,4,FALSE),IF($G$14=7,VLOOKUP($O19,'td regional'!$A$180:$D$184,4,FALSE),IF($G$14=8,VLOOKUP($O19,'td regional'!$A$190:$D$194,4,FALSE),IF($G$14=9,VLOOKUP($O19,'td regional'!$A$200:$D$204,4,FALSE),IF($G$14=10,VLOOKUP($O19,'td regional'!$A$210:$D$214,4,FALSE),IF($G$14=11,VLOOKUP($O19,'td regional'!$A$220:$D$224,4,FALSE),IF($G$14=12,VLOOKUP($O19,'td regional'!$A$230:$D$234,4,FALSE))))))))))))),"") -> 11 | S19: 13
D20: a. resumen resultados tablero de control | O20: Critico | P20: =IFERROR(IF($G$14=1,VLOOKUP($O20,'td regional'!$A$122:$D$125,2,FALSE),IF($G$14=2,VLOOKUP($O20,'td regional'!$A$131:$D$134,2,FALSE),IF($G$14=3,VLOOKUP($O20,'td regional'!$A$140:$D$144,2,FALSE),IF($G$14=4,VLOOKUP($O20,'td regional'!$A$150:$D$154,2,FALSE),IF($G$14=5,VLOOKUP($O20,'td regional'!$A$160:$D$164,2,FALSE),IF($G$14=6,VLOOKUP($O20,'td regional'!$A$170:$D$174,2,FALSE),IF($G$14=7,VLOOKUP($O20,'td regional'!$A$180:$D$184,2,FALSE),IF($G$14=8,VLOOKUP($O20,'td regional'!$A$190:$D$194,2,FALSE),IF($G$14=9,VLOOKUP($O20,'td regional'!$A$200:$D$204,2,FALSE),IF($G$14=10,VLOOKUP($O20,'td regional'!$A$210:$D$214,2,FALSE),IF($G$14=11,VLOOKUP($O20,'td regional'!$A$220:$D$224,2,FALSE),IF($G$14=12,VLOOKUP($O20,'td regional'!$A$230:$D$234,2,FALSE))))))))))))),"") -> 1 | Q20: =IFERROR(IF($G$14=1,VLOOKUP($O20,'td regional'!$A$122:$D$125,3,FALSE),IF($G$14=2,VLOOKUP($O20,'td regional'!$A$131:$D$134,3,FALSE),IF($G$14=3,VLOOKUP($O20,'td regional'!$A$140:$D$144,3,FALSE),IF($G$14=4,VLOOKUP($O20,'td regional'!$A$150:$D$154,3,FALSE),IF($G$14=5,VLOOKUP($O20,'td regional'!$A$160:$D$164,3,FALSE),IF($G$14=6,VLOOKUP($O20,'td regional'!$A$170:$D$174,3,FALSE),IF($G$14=7,VLOOKUP($O20,'td regional'!$A$180:$D$184,3,FALSE),IF($G$14=8,VLOOKUP($O20,'td regional'!$A$190:$D$194,3,FALSE),IF($G$14=9,VLOOKUP($O20,'td regional'!$A$200:$D$204,3,FALSE),IF($G$14=10,VLOOKUP($O20,'td regional'!$A$210:$D$214,3,FALSE),IF($G$14=11,VLOOKUP($O20,'td regional'!$A$220:$D$224,3,FALSE),IF($G$14=12,VLOOKUP($O20,'td regional'!$A$230:$D$234,3,FALSE))))))))))))),"") -> 3 | R20: =IFERROR(IF($G$14=1,VLOOKUP($O20,'td regional'!$A$122:$D$125,4,FALSE),IF($G$14=2,VLOOKUP($O20,'td regional'!$A$131:$D$134,4,FALSE),IF($G$14=3,VLOOKUP($O20,'td regional'!$A$140:$D$144,4,FALSE),IF($G$14=4,VLOOKUP($O20,'td regional'!$A$150:$D$154,4,FALSE),IF($G$14=5,VLOOKUP($O20,'td regional'!$A$160:$D$164,4,FALSE),IF($G$14=6,VLOOKUP($O20,'td regional'!$A$170:$D$174,4,FALSE),IF($G$14=7,VLOOKUP($O20,'td regional'!$A$180:$D$184,4,FALSE),IF($G$14=8,VLOOKUP($O20,'td regional'!$A$190:$D$194,4,FALSE),IF($G$14=9,VLOOKUP($O20,'td regional'!$A$200:$D$204,4,FALSE),IF($G$14=10,VLOOKUP($O20,'td regional'!$A$210:$D$214,4,FALSE),IF($G$14=11,VLOOKUP($O20,'td regional'!$A$220:$D$224,4,FALSE),IF($G$14=12,VLOOKUP($O20,'td regional'!$A$230:$D$234,4,FALSE))))))))))))),"") -> 6 | S20: 10
D21: b. Revisión cumplimiento por macroprocesos | N21: NA | O21: No aplican | P21: =IFERROR(IF($G$14=1,VLOOKUP($N21,'td regional'!$A$122:$D$125,2,FALSE),IF($G$14=2,VLOOKUP($N21,'td regional'!$A$131:$D$134,2,FALSE),IF($G$14=3,VLOOKUP($N21,'td regional'!$A$140:$D$144,2,FALSE),IF($G$14=4,VLOOKUP($N21,'td regional'!$A$150:$D$154,2,FALSE),IF($G$14=5,VLOOKUP($N21,'td regional'!$A$160:$D$164,2,FALSE),IF($G$14=6,VLOOKUP($N21,'td regional'!$A$170:$D$174,2,FALSE),IF($G$14=7,VLOOKUP($N21,'td regional'!$A$180:$D$184,2,FALSE),IF($G$14=8,VLOOKUP($N21,'td regional'!$A$190:$D$194,2,FALSE),IF($G$14=9,VLOOKUP($N21,'td regional'!$A$200:$D$204,2,FALSE),IF($G$14=10,VLOOKUP($N21,'td regional'!$A$210:$D$214,2,FALSE),IF($G$14=11,VLOOKUP($N21,'td regional'!$A$220:$D$224,2,FALSE),IF($G$14=12,VLOOKUP($N21,'td regional'!$A$230:$D$234,2,FALSE))))))))))))),"") -> 4 | Q21: =IFERROR(IF($G$14=1,VLOOKUP($N21,'td regional'!$A$122:$D$125,3,FALSE),IF($G$14=2,VLOOKUP($N21,'td regional'!$A$131:$D$134,3,FALSE),IF($G$14=3,VLOOKUP($N21,'td regional'!$A$140:$D$144,3,FALSE),IF($G$14=4,VLOOKUP($N21,'td regional'!$A$150:$D$154,3,FALSE),IF($G$14=5,VLOOKUP($N21,'td regional'!$A$160:$D$164,3,FALSE),IF($G$14=6,VLOOKUP($N21,'td regional'!$A$170:$D$174,3,FALSE),IF($G$14=7,VLOOKUP($N21,'td regional'!$A$180:$D$184,3,FALSE),IF($G$14=8,VLOOKUP($N21,'td regional'!$A$190:$D$194,3,FALSE),IF($G$14=9,VLOOKUP($N21,'td regional'!$A$200:$D$204,3,FALSE),IF($G$14=10,VLOOKUP($N21,'td regional'!$A$210:$D$214,3,FALSE),IF($G$14=11,VLOOKUP($N21,'td regional'!$A$220:$D$224,3,FALSE),IF($G$14=12,VLOOKUP($N21,'td regional'!$A$230:$D$234,3,FALSE))))))))))))),"") -> 0 | R21: =IFERROR(IF($G$14=1,VLOOKUP($N21,'td regional'!$A$122:$D$125,4,FALSE),IF($G$14=2,VLOOKUP($N21,'td regional'!$A$131:$D$134,4,FALSE),IF($G$14=3,VLOOKUP($N21,'td regional'!$A$140:$D$144,4,FALSE),IF($G$14=4,VLOOKUP($N21,'td regional'!$A$150:$D$154,4,FALSE),IF($G$14=5,VLOOKUP($N21,'td regional'!$A$160:$D$164,4,FALSE),IF($G$14=6,VLOOKUP($N21,'td regional'!$A$170:$D$174,4,FALSE),IF($G$14=7,VLOOKUP($N21,'td regional'!$A$180:$D$184,4,FALSE),IF($G$14=8,VLOOKUP($N21,'td regional'!$A$190:$D$194,4,FALSE),IF($G$14=9,VLOOKUP($N21,'td regional'!$A$200:$D$204,4,FALSE),IF($G$14=10,VLOOKUP($N21,'td regional'!$A$210:$D$214,4,FALSE),IF($G$14=11,VLOOKUP($N21,'td regional'!$A$220:$D$224,4,FALSE),IF($G$14=12,VLOOKUP($N21,'td regional'!$A$230:$D$234,4,FALSE))))))))))))),"") -> 25 | S21: 29
D22: c. Revisión cumplimiento Plan de Gestión Integral | O22: Total | P22: =+SUM(P17:P21) -> 19 | Q22: =+SUM(Q17:Q21) -> 11 | R22: =+SUM(R17:R21) -> 78 | S22: 108
D23: d. Revisión cumplimiento objetivos SIGE
D24: e. hoja de analisis de indicadores | O24: name | P24: %
D25: Soporte analisis información zonal ¡NUEVO! | O25: =+IFERROR(VLOOKUP(D16,'resumen reg'!$A$116:$G$148,7,FALSE),"") -> amazonas1 | P25: =+IF(G14=1,'TC regional'!BB120,IF(G14=2,'TC regional'!BJ120,IF(G14=3,'TC regional'!BR120,IF(G14=4,'TC regional'!BZ120,IF(G14=5,'TC regional'!CH120,IF(G14=6,'TC regional'!CP120,IF(G14=7,'TC regional'!CX120,IF(G14=8,'TC regional'!DF120,IF(G14=9,'TC regional'!DN120,IF(G14=10,'TC regional'!DV120,IF(G14=11,'TC regional'!ED120,IF(G14=12,'TC regional'!EL120,"")))))))))))) -> 0.8314273705
D26: Resumen analisis zonal ¡NUEVO!
D27: f. TC regional (versión completa)
C39: Ranking regional
C40: Información general 33 regionales | L40: =+"Comportamiento - "&D16 -> Comportamiento - Amazonas
D42: Corte ranking | E42: Diciembre | I42: 2 | L42: Puesto 2012 | M42: =+IFERROR(VLOOKUP($D$16,'ranking regional'!$A$5:$N$37,I42,FALSE),"") -> 9°
D43: =+VLOOKUP(E42,$E$160:$J$180,2,FALSE) -> 0 | E43: Seleccione el mes de analisis
L44: 2013
I45: 4 | L45: Febrero | M45: =IFERROR(VLOOKUP($D$16,'ranking regional'!$A$5:$N$37,I45,FALSE),"") -> 32°
I46: 5 | L46: Marzo | M46: =IFERROR(VLOOKUP($D$16,'ranking regional'!$A$5:$N$37,I46,FALSE),"") -> 20°
I47: 6 | L47: Abril | M47: =IFERROR(VLOOKUP($D$16,'ranking regional'!$A$5:$N$37,I47,FALSE),"") -> 24°
I48: 7 | L48: Mayo | M48: =IFERROR(VLOOKUP($D$16,'ranking regional'!$A$5:$N$37,I48,FALSE),"") -> 29°
I49: 8 | L49: Junio | M49: =IFERROR(VLOOKUP($D$16,'ranking regional'!$A$5:$N$37,I49,FALSE),"") -> 26°
I50: 9 | L50: Julio | M50: =IFERROR(VLOOKUP($D$16,'ranking regional'!$A$5:$N$37,I50,FALSE),"") -> 31°
I51: 10 | L51: Agosto | M51: =IFERROR(VLOOKUP($D$16,'ranking regional'!$A$5:$N$37,I51,FALSE),"") -> 28°
I52: 11 | L52: Septiembre | M52: =IFERROR(VLOOKUP($D$16,'ranking regional'!$A$5:$N$37,I52,FALSE),"") -> 21°
I53: 12 | L53: Octubre | M53: =IFERROR(VLOOKUP($D$16,'ranking regional'!$A$5:$N$37,I53,FALSE),"") -> 22°
I54: 13 | L54: Noviembre | M54: =IFERROR(VLOOKUP($D$16,'ranking regional'!$A$5:$N$37,I54,FALSE),"") -> 19°
I55: 14 | L55: Diciembre | M55: =IFERROR(VLOOKUP($D$16,'ranking regional'!$A$5:$N$37,I55,FALSE),"") -> 30°
J160: 1 | K160: Enero | L160: 1
J161: 2 | K161: Febrero | L161: 2
J162: 3 | K162: Marzo | L162: 3
J163: 4 | K163: Abril | L163: 4
D164: Amazonas | E164: Enero | J164: 5 | K164: Mayo | L164: 5
D165: Antioquia | E165: Febrero | J165: 6 | K165: Junio | L165: 6
D166: Arauca | E166: Marzo | J166: 7 | K166: Julio | L166: 7
D167: Atlantico | E167: Abril | J167: 8 | K167: Agosto | L167: 8
D168: Bogotá | E168: Mayo | J168: 9 | K168: Septiembre | L168: 9
D169: Bolivar | E169: Junio | J169: 10 | K169: Octubre | L169: 10
D170: Boyacá | E170: Julio | J170: 11 | K170: Noviembre | L170: 11
D171: Caldas | E171: Agosto | J171: 12 | K171: Diciembre | L171: 12
D172: Caqueta | E172: Septiembre
D173: Casanare | E173: Octubre
D174: Cauca | E174: Noviembre
D175: Cesar | E175: Diciembre
D176: Choco
D177: Cordoba
D178: Cundinamarca
D179: Guainia
D180: Guaviare
D181: Huila
D182: La Guajira
D183: Magdalena
D184: Meta
D185: Nariño
D186: Norte Santander
D187: Putumayo
D188: Quindio
D189: Risaralda
D190: San Andres
D191: Santander
D192: Sucre
D193: Tolima
D194: Valle
D195: Vaupes
D196: Vichada
D197: Sede Nal

Sheet generalidades TC 2013
D2: INSTITUTO COLOMBIANO DE BIENESTAR FAMILIAR SEGUIMIENTO METAS ICBF GENERALIDADES TABLERO DE CONTROL
D5: Generalidades
D6: Temáticas
D7: Metodología de calculo
D8: Metodología de análisis
C11: Generalidades
D12: El tablero de control 2013 se estructuró con la siguientes temáticas:
D14: Mapa Estratégico 2011-2014
D15: Mapa de Procesos ICBF
D16: Plan de Gestión Integral / Decreto 2482 de 2012 - DAFP (lineas de política y componentes)
D17: Objetivos SIGE
D19: Esta compuesto por un total de 192 indicadores, de los cuales 104 aplican a nivel regional y 27 a nivel de centro zonal.
D21: Cada uno de los indicadores presentan la siguiente categorización (además del código del indicador definido en la hoja de vida):
D23: 1er nivel - Corresponde a los indicadores relacionados en el Mapa Estratégico 2011-2014 y codificados con la letra "E"
D24: 2do nivel - Corresponde a los indicadores que se relacionan en el Plan de Gestión Integral adicionales a los que se trabajaron en el Plan de Acción 2012 a través de la herramienta SISPA
D25: 3er nivel - Corresponde al resto de indicadores que se encuentran en el tablero de control 2013
C28: Tematicas
D30: Mapa Estrategico ICBF 2011-2014 - Objetivos institucionales
D32: 1. Lograr la atención integral de alta calidad a la Primera Infancia
D33: 2. Prevenir vulnerabilidades o amenazas y proteger a los niños, niñas y adolescentes
D34: 3. Lograr el bienestar de las familias colombianas
D35: 4. Lograr la máxima eficiencia y efectividad en la ejecución de los recursos (no aplica a nivel regional)
D36: 5. Incrementar la consecución de recursos (no aplica a nivel regional)
D37: 6. Lograr una organización apreciada por los colombianos que aprende orientada a resultados
D41: Mapa de Procesos ICBF
D43: Misionales | L43: Apoyo
D44: MPM1 Gestión para la atención integral a la primera infancia | L44: MPA1 Gestión Soporte
D45: MPM2 Gestión para la promoción y Prevención para la protección de la niñez y la adolescencia | L45: MPA1-P1 Gestión Humana
D46: MPM3 Gestión para la atención de las familias y comunidades | L46: MPA1-P2 Gestión Financiera
D47: MPM4 Gestión para la nutrición | L47: MPA1-P3 Gestión Control Interno Disciplinario (no aplica a nivel regional)
D48: MPM5 Gestión para la Protección | L48: MPA1-P4 Gestión Contratación
D49: MPM5-P1 Gestión Adopciones | L49: MPA1-P5 Gestión Administrativa
D50: MPM5-P2 Gestión Responsabilidad Penal | L50: MPA1-P6 Gestión Logistica y Abastecimiento
D51: MPM5-P3 Gestión Restablecimiento de Derechos | L51: MPA2 Gestión Jurídica
L52: MPA3 Gestión Regional (no aplica a nivel regional)
D53: Evaluación | L53: MPA4 Gestión Cooperación (no aplica a nivel regional)
D54: MPEV1 Evaluación, Monitoreo y Control de la Gestión | L54: MPA5 Gestión Servicio y Atención
D55: MPEV1-P1 Evaluación y Monitoreo de la Gestión | L55: MPA5-P1 Gestión Servicio a Beneficiarios (no aplica a nivel regional)
D56: MPEV1-P2 Evaluación Independiente | L56: MPA5-P2 Gestión Atención PQR y sugerencias
D57: MPEV2 Aseguramiento a Estándares | L57: MPA6 Gestión Tecnologica
D58: MPEV2-P1 Verificación Inspección y Control a Instituciones del SPBF | L58: MPA7 Gestión Comunicaciones (no aplica a nivel regional)
D59: MPEV2-P2 Fortalecimiento de organizaciones prestadoras del SPBF (no aplica a nivel regional)
D61: Estratégicos
D62: MPE1 Direccionamiento estrategico
D63: MPE2 Mejoramiento Continuo
D64: MPE3 Coordinación y Ariculación del SNBF
D68: Plan de Gestión Integral / Decreto 2482 DAFP - Líneas de Politica y sus componentes
D70: Gestión misional y de gobierno | L70: Eficiencia administrativa
D71: Indicadores y metas de Gobierno | L71: Eficiencia Administrativa y Cero Papel (no aplica a nivel regional)
L72: Gestión de la Calidad
D73: Transparencia, participación y servicio al ciudadano | L73: Gestión de Tecnologías de información (no aplica a nivel regional)
D74: Participación Ciudadana en la Gestión (no aplica a nivel regional) | L74: Gestión Documental
D75: Plan Anticorrupción y de Atención al Ciudadano | L75: Modernización Institucional (no aplica a nivel regional)
D76: Rendición de Cuentas | L76: Racionalización de Trámites (no aplica a nivel regional)
D77: Servicio al Ciudadano
D78: Transparencia y Acceso a la Información Pública (no aplica a nivel regional) | L78: Gestión financiera
L79: Formulación y seguimiento a Proyectos de Inversión (no aplica a nivel regional)
D80: Gestión del talento humano | L80: Plan Anual de Adquisiciones (PAA) (no aplica a nivel regional)
D81: Bienestar e Incentivos | L81: Programa Anual Mensualizado de Caja – PAC
D82: Capacitación | L82: Programación y Ejecución Presupuestal
D83: Plan Anual de vacantes (no aplica a nivel regional)
D84: Plan Estratégico de Recursos Humanos (no aplica a nivel regional)
D86: Adicional a las lineas de politica se incluye:
D87: A nivel nacional: Compromisos institucionales (Acuerdos para la prosperidad, Compromisos PND y CONPES
D88: A nivel regional: Indicadores que se median en el monitoreo integral 2012 (liquidación de contratos, plan de mejoramiento de la contraloria, entre otros)
D92: Objetivos SIGE
D94: 1. Lograr el Bienestar de las familias Colombianas
D95: 2. Lograr la Atención Integral de Alta Calidad a la Primera Infancia
D96: 3. Prevenir vulnerabilidades o amenazas y proteger a los niños, niñas y adolescentes
D97: 4. Lograr una organización apreciada por los colombianos que aprende orientada a resultados
D98: 5. Incrementar el nivel de satisfacción de los niños, niñas, adolescentes, sus familias y ciudadanía beneficiaria del servicio
D99: 6. Prevenir la materialización de los riesgos mediante el fortalecimiento de la gestión de los riesgos, su monitoreo y evaluación
D100: 7. Asegurar el cumplimiento de la confidencialidad, integridad, disponibilidad, legalidad y confiabilidad de la información del ICBF.
D101: 8. Promover y adoptar mejores prácticas ambientales por parte de los colaboradores
D102: 9. Optimizar el consumo de agua y energía en las instalaciones del instituto para mitigar el impacto ambiental asociado al uso indirecto de recursos naturales
D103: 10. Disminuir los impactos ambientales producidos por los residuos sólidos en la Dirección General, las 33 Regionales, los 201 Centros Zonales y en los programas DIA y PAE del instituto.
D104: 12. Reducir los casos de ausentismo en los colaboradores del ICBF, fomentando programas de estilo de vida y trabajo saludables.
D105: 13. Generar hábitos de auto-cuidado en los colaboradores del ICBF, mediante el desarrollo de jornadas de sensibilización en temas de Seguridad y Salud en el trabajo.
D106: 14. Prevenir la ocurrencia de accidentes de trabajo, identificando, valorando y determinando los controles de los riesgos de Seguridad y Salud en el trabajo a que están expuestos los colaboradores del ICBF
C109: Metodología de calculo
D111: Para calcular cada una de las temáticas relacionadas se tiene en cuenta:
D112: 1. El rango de valoración de cada indicador definido en la hoja de vida, que permite la estandarización de resultados de los indicadores para evitar que indicadores con porcentajes altos oculten resultados negativos:
F114: Optimo
F115: Adecuado
F116: En riesgo
F117: Crítico
D121: 2. La ponderación de cada indicador, por su relevancia y pertinencia dentro del grupo de indicadores que conforman cada macroproceso, se establece a nivel nacional para el total de 192 indicadores. Los indicadores del nivel regional pesan un 56% y los del orden nacional pesan un 44%, para un total del 100%
D125: 3. El calculo a través de los rangos y la ponderación se realiza de la siguiente manera:
F127: Rango | G127: Puntos | H127: valor calculo | I127: calculo
F128: Optimo | G128: 4 | H128: 1 | I128: (pond. Indicador*valor de calculo rango)
F129: Adecuado | G129: 3 | H129: 0.85
F130: En riesgo | G130: 2 | H130: 0.6
F131: Crítico | G131: 1 | H131: 0.3
D133: Para la ponderación de los indicadores a nivel regional se toma el ponderado nacional y sobre el total que arroja, se realizan los calculos de las diferentes temáticas. En el caso que el indicador tenga una valoración de "NA" (no aplica), no se tiene en cuenta ese peso porcentual en los diferentes cálculos
D137: 4. La sumatoria de los resultados finales se agrupan para cada temática y se comparan con la sumatoria de la ponderación inicial de cada temática, esto da los porcentajes de avance mostrado en el resumen de resultados del tablero de control con los siguientes rangos de valoración (solo aplica para las temáticas)
F139: Sobresaliente | G139: x=100%
F140: Satisfactorio | G140: 90%≤x<100%
F141: Requiere mejora | G141: 70%≤x<90%
F142: Atención prioritaria | G142: 60%≤x<70%
F143: Atención inmediata | G143: 0%≤x<60%
C146: Metodología de análisis
D148: Para realizar el análisis respectivo a los indicadores relacionados en la presente herramienta, es necesario mantener el mismo límite establecido en el SISPA. Esta herramienta no restringe el numero de palabras pero si se solicita hacer un resumen ejecutivo del comportamiento de cada indicador.
D150: El análisis debe estar estructurado en dos vías:
D151: Comportamiento del dato: Allí se debe explicar brevemente cuales fueron las acciones que se realizaron para obtener el avance reportado
D152: Problematicas: Se debe señalar inconvenientes con el avance del indicador (reporte, incumplimiento, entre otros)
D154: Esta herramienta permitirá hacer consulta con los diferentes análisis realizados en SISPA en conjunto con los enviados por uds. según la instrucción de la guia que se encuentra en este archivo.

Sheet guia
D2: INSTITUTO COLOMBIANO DE BIENESTAR FAMILIAR SEGUIMIENTO METAS ICBF GUIA HERRAMIENTA
C7: Generalidades
C8: Resumen resultados tablero de control
C9: Revisión cumplimiento por macroprocesos
C10: Revisión cumplimiento Plan de Gestión Integral
C11: Hoja de analisis de indicadores
C12: TC regional (versión completa)

Sheet resumen
C2: INSTITUTO COLOMBIANO DE BIENESTAR FAMILIAR SEGUIMIENTO METAS ICBF ANÁLISIS GENERAL
B3: =+Menu!D16 -> Amazonas
C7: Mes de corte
A9: Mes | C9: Diciembre | O9: En | P9: Fe | Q9: Ma | R9: Ab | S9: Ma | T9: Jn | U9: Jl | V9: Ag | W9: Se | X9: Oc | Y9: No | Z9: Di
C11: Cumplimiento país | O11: =+IFERROR('td regional'!D4/'td regional'!C4,"") -> 0.7094594595 | P11: =+IFERROR('td regional'!F4/'td regional'!E4,"") -> 0.4958055664 | Q11: =+IFERROR('td regional'!H4/'td regional'!G4,"") -> 0.732398498 | R11: =+IFERROR('td regional'!J4/'td regional'!I4,"") -> 0.7220132264 | S11: =+IFERROR('td regional'!L4/'td regional'!K4,"") -> 0.7268522267 | T11: =+IFERROR('td regional'!N4/'td regional'!M4,"") -> 0.7283127156 | U11: =+IFERROR('td regional'!P4/'td regional'!O4,"") -> 0.727483966 | V11: =+IFERROR('td regional'!R4/'td regional'!Q4,"") -> 0.728643828 | W11: =+IFERROR('td regional'!T4/'td regional'!S4,"") -> 0.7930229554 | X11: =+IFERROR('td regional'!V4/'td regional'!U4,"") -> 0.8337228578 | Y11: =+IFERROR('td regional'!X4/'td regional'!W4,"") -> 0.8827142283 | Z11: =+IFERROR('td regional'!Z4/'td regional'!Y4,"") -> 0.8314273705
C12: =+VLOOKUP($C$9,$E$211:$M$222,2,FALSE) -> 38
C13: Total | F13: 1
C14: % obtenido | F14: =+VLOOKUP($C$14,'td regional'!$A$4:$AL$4,C12,FALSE) -> 0.8314273705
C17: Objetivos institucionales (1er nivel)
C18: =+VLOOKUP($C$9,$E$211:$M$222,6,FALSE) -> 39
A19: Lograr la atención integral de alta calidad a la Primera Infancia | C19: Atención integral de alta calidad a la Primera Infancia | F19: =+VLOOKUP($A19,'td regional'!$A$60:$AM$65,$C$18,FALSE) -> 0.8167647059
A20: Prevenir vulnerabilidades o amenazas y proteger a los niños, niñas y adolescentes | C20: Prevenir vulnerabilidades o amenazas a NNA | F20: =+VLOOKUP($A20,'td regional'!$A$60:$AM$65,$C$18,FALSE) -> 0.9605263158
A21: Lograr el bienestar de las familias colombianas | C21: Bienestar de las familias colombianas | F21: =+VLOOKUP($A21,'td regional'!$A$60:$AM$65,$C$18,FALSE) -> 1
A22: Lograr una organización apreciada por los colombianos que aprende orientada a resultados | C22: Organización que aprende orientada a resultados | F22: =+VLOOKUP($A22,'td regional'!$A$60:$AM$65,$C$18,FALSE) -> 1
A24: total general | C24: Cumplimiento Objetivos Institucionales | F24: =+VLOOKUP($A24,'td regional'!$A$60:$AM$66,$C$18,FALSE) -> 0.9057106599
C31: Plan de Gestión Integral
C32: =+VLOOKUP($C$9,$E$211:$M$222,2,FALSE) -> 38
A33: PG-1 | C33: PGI - estratégicos | F33: =+VLOOKUP($A33,'td regional'!$A$71:$AL$72,$C$32,FALSE) -> 0.8532546267
A34: PG-2 | C34: PGI - funcionales | F34: =+VLOOKUP($A34,'td regional'!$A$71:$AL$72,$C$32,FALSE) -> 0.8008473313
C36: Total | F36: =+$F$14 -> 0.8314273705
C39: Objetivos SIGE
C40: =+VLOOKUP($C$9,$E$211:$M$222,2,FALSE) -> 38
A41: SIG-1 | C41: Bienestar de las familias Colombianas | F41: =+VLOOKUP($A41,'td regional'!$A$78:$AL$91,$C$40,FALSE) -> 1
A42: SIG-2 | C42: Atención Integral a la Primera Infancia | F42: =+VLOOKUP($A42,'td regional'!$A$78:$AL$91,$C$40,FALSE) -> 0.8494642857
A43: SIG-3 | C43: Prevenir vulnerabilidades o amenazas NNA | F43: =+VLOOKUP($A43,'td regional'!$A$78:$AL$91,$C$40,FALSE) -> 0.8987068966
A44: SIG-4 | C44: Lograr una organización apreciada por los colombianos | F44: =+VLOOKUP($A44,'td regional'!$A$78:$AL$91,$C$40,FALSE) -> 0.7088820434
A45: SIG-5 | C45: Incrementar el nivel de satisfacción NNA | F45: =+VLOOKUP($A45,'td regional'!$A$78:$AL$91,$C$40,FALSE) -> 0.823125
A46: SIG-6 | C46: Prevenir la materialización de los riesgos | F46: =+VLOOKUP($A46,'td regional'!$A$78:$AL$91,$C$40,FALSE) -> 0.3
A47: SIG-7 | C47: Asegurar el cumplimiento de la C.I.D | F47: =+VLOOKUP($A47,'td regional'!$A$78:$AL$91,$C$40,FALSE) -> 
A48: SIG-8 | C48: Promover y adoptar mejores prácticas ambientales | F48: =+VLOOKUP($A48,'td regional'!$A$78:$AL$91,$C$40,FALSE) -> 0.9714285714
A49: SIG-9 | C49: Optimizar el consumo de agua y energía | F49: =+VLOOKUP($A49,'td regional'!$A$78:$AL$91,$C$40,FALSE) -> 0.6
A50: SIG-13 | C50: Generar hábitos de auto-cuidado en los colaboradores | F50: =+VLOOKUP($A50,'td regional'!$A$78:$AL$91,$C$40,FALSE) -> 1
A51: SIG-14 | C51: Prevenir la ocurrencia de accidentes de trabajo | F51: =+VLOOKUP($A51,'td regional'!$A$78:$AL$91,$C$40,FALSE) -> 
C53: Total | F53: =+$F$14 -> 0.8314273705
C56: Cumplimiento por macroprocesos
C57: =+VLOOKUP($C$9,$E$211:$M$222,3,FALSE) -> 38
C58: Apoyo | F58: =+VLOOKUP($C58,'td regional'!$A$9:$AL$12,$C$57,FALSE) -> 0.7048215511
C59: Estrategicos | F59: =+VLOOKUP($C59,'td regional'!$A$9:$AL$12,$C$57,FALSE) -> 0.7617021277
C60: Evaluacion | F60: =+VLOOKUP($C60,'td regional'!$A$9:$AL$12,$C$57,FALSE) -> 0.855
C61: Misionales | F61: =+VLOOKUP($C61,'td regional'!$A$9:$AL$12,$C$57,FALSE) -> 0.8756826742
C63: Total | F63: =+$F$14 -> 0.8314273705
C66: Detalle por macroprocesos
C67: =+VLOOKUP($C$9,$E$211:$M$222,4,FALSE) -> 38
C68: Misionales
A69: Gestión para la atención integral a la primera infancia | C69: Atención integral a la Primera Infancia | F69: =+VLOOKUP($A69,'td regional'!$B$18:$AM$34,$C$67,FALSE) -> 0.9189473684 | H69: Atención integral a la Primera Infancia
A70: Gestión para la promoción y Prevención para la protección integral de las niñez y la adolescencia | C70: Niñez y Adolescencia | F70: =+VLOOKUP($A70,'td regional'!$B$18:$AM$34,$C$67,FALSE) -> 0.8625 | H70: Niñez y Adolescencia
A71: Gestión para la Protección | C71: Protección | F71: =+VLOOKUP($A71,'td regional'!$B$18:$AM$34,$C$67,FALSE) -> 0.9375 | H71: Protección
A72: Gestión para la nutrición | C72: Nutrición | F72: =+VLOOKUP($A72,'td regional'!$B$18:$AM$34,$C$67,FALSE) -> 0.7027777778 | H72: Nutrición
A73: Gestión para la atención de las familias y comunidades | C73: Familias y comunidades | F73: =+VLOOKUP($A73,'td regional'!$B$18:$AM$34,$C$67,FALSE) -> 0.9054054054 | H73: Familias y comunidades
C74: Estratégicos
A75: Coordinación y Ariculación del SNBF | C75: Coordinación y Ariculación del SNBF | F75: =+VLOOKUP($A75,'td regional'!$B$18:$AM$34,$C$67,FALSE) -> 1 | H75: Coordinación y Ariculación del SNBF
A76: Direccionamiento estrategico | C76: Direccionamiento estrategico | F76: =+VLOOKUP($A76,'td regional'!$B$18:$AM$34,$C$67,FALSE) -> 0.8 | H76: Direccionamiento estrategico
A77: Mejoramiento Continuo | C77: Mejoramiento Continuo | F77: =+VLOOKUP($A77,'td regional'!$B$18:$AM$34,$C$67,FALSE) -> 0.55 | H77: Mejoramiento Continuo
C78: Apoyo
A79: Gestión Jurídica | C79: Gestión Jurídica | F79: =+VLOOKUP($A79,'td regional'!$B$18:$AM$34,$C$67,FALSE) ->  | H79: Gestión Jurídica
A80: Gestión Servicio y Atención | C80: Gestión Servicio y Atención | F80: =+VLOOKUP($A80,'td regional'!$B$18:$AM$34,$C$67,FALSE) -> 0.8625 | H80: Gestión Servicio y Atención
A81: Gestión Soporte | C81: Gestión Soporte | F81: =+VLOOKUP($A81,'td regional'!$B$18:$AM$34,$C$67,FALSE) -> 0.6840393343 | H81: Gestión Soporte
A82: Gestión Tecnologica | C82: Gestión Tecnologica | F82: =+VLOOKUP($A82,'td regional'!$B$18:$AM$34,$C$67,FALSE) -> 1 | H82: Gestión Tecnologica
C83: Evaluación
A84: Aseguramiento a Estándares | C84: Aseguramiento a Estándares | F84: =+VLOOKUP($A84,'td regional'!$B$18:$AM$34,$C$67,FALSE) -> 0.81 | H84: Aseguramiento a Estándares
A85: Evaluación, Monitoreo y Control de la Gestión | C85: Evaluación, Monitoreo y Control de la Gestión | F85: =+VLOOKUP($A85,'td regional'!$B$18:$AM$34,$C$67,FALSE) -> 0.9 | H85: Evaluación, Monitoreo y Control de la Gestión
C87: Total | F87: =+$F$14 -> 0.8314273705
C90: Detalle por procesos
C91: =+VLOOKUP($C$9,$E$211:$M$222,5,FALSE) -> 38
C92: Gestión para la Protección
A93: Gestión Adopciones | C93: Gestión Adopciones | F93: =+VLOOKUP($A93,'td regional'!$C$40:$AN$54,$C$91,FALSE) -> 1 | H93: Gestión Adopciones
A94: Gestión Restablecimiento de Derechos | C94: Gestión Restablecimiento de Derechos | F94: =+VLOOKUP($A94,'td regional'!$C$40:$AN$54,$C$91,FALSE) -> 0.9357142857 | H94: Gestión Restablecimiento de Derechos
A95: Gestión Responsabilidad Penal | C95: Gestión Responsabilidad Penal | F95: =+VLOOKUP($A95,'td regional'!$C$40:$AN$54,$C$91,FALSE) -> 0.85 | H95: Gestión Responsabilidad Penal
C96: Gestión Servicio y Atención
A97: Gestión Atención PQR y sugerencias | C97: Gestión Atención PQR y sugerencias | F97: =+VLOOKUP($A97,'td regional'!$C$40:$AN$54,$C$91,FALSE) -> 0.8625 | H97: Gestión Atención PQR y sugerencias
C98: Gestión Soporte
A99: Gestión Administrativa | C99: Gestión Administrativa | F99: =+VLOOKUP($A99,'td regional'!$C$40:$AN$54,$C$91,FALSE) -> 0.6757575758 | H99: Gestión Administrativa
A100: Gestión Contratación | C100: Gestión Contratación | F100: =+VLOOKUP($A100,'td regional'!$C$40:$AN$54,$C$91,FALSE) -> 0.3 | H100: Gestión Contratación
A101: Gestión Financiera | C101: Gestión Financiera | F101: =+VLOOKUP($A101,'td regional'!$C$40:$AN$54,$C$91,FALSE) -> 0.525 | H101: Gestión Financiera
A102: Gestión Humana | C102: Gestión Humana | F102: =+VLOOKUP($A102,'td regional'!$C$40:$AN$54,$C$91,FALSE) -> 0.98125 | H102: Gestión Humana
A103: Gestión Logistica y Abastecimiento | C103: Gestión Logistica y Abastecimiento | F103: =+VLOOKUP($A103,'td regional'!$C$40:$AN$54,$C$91,FALSE) -> 0.8821428571 | H103: Gestión Logistica y Abastecimiento
C104: Aseguramiento a Estándares
A105: Verificación Inspección y Control a Instituciones del SPBF | C105: Verificación Inspección y Control a Instituciones del SPBF | F105: =+VLOOKUP($A105,'td regional'!$C$40:$AN$54,$C$91,FALSE) -> 0.81 | H105: Verificación Inspección y Control - SPBF
C106: Evaluación, Monitoreo y Control de la Gestión
A107: Evaluación Independiente | C107: Evaluación Independiente | F107: =+VLOOKUP($A107,'td regional'!$C$40:$AN$54,$C$91,FALSE) -> 0.85 | H107: Evaluación Independiente
A108: Evaluación y Monitoreo de la Gestión | C108: Evaluación y Monitoreo de la Gestión | F108: =+VLOOKUP($A108,'td regional'!$C$40:$AN$54,$C$91,FALSE) -> 1 | H108: Evaluación y Monitoreo de la Gestión
F110: =+VLOOKUP($C$9,$E$211:$S$222,12,FALSE) -> 115 | I110: =+VLOOKUP($C$9,$E$211:$S$222,13,FALSE) -> 113 | J110: =+VLOOKUP($C$9,$E$211:$S$222,14,FALSE) -> 114 | K110: =+VLOOKUP($C$9,$E$211:$S$222,15,FALSE) -> 116
C111: Macroprocesos | D111: Cod | E111: Indicadores en estado "CRITICO" | F111: Avance | G111: =+VLOOKUP(C9,$E$225:$F$236,2,FALSE) -> 62 | I111: Numerador | J111: Denominador | K111: % avance
A112: 1 | B112: =IFERROR(IF($C$9="Enero",VLOOKUP(A112,'TC regional'!$EN$11:$FA$122,14,FALSE),IF($C$9="Febrero",VLOOKUP(A112,'TC regional'!$EO$11:$FB$122,14,FALSE),IF($C$9="marzo",VLOOKUP(A112,'TC regional'!$EP$11:$FC$122,14,FALSE),IF($C$9="Abril",VLOOKUP(A112,'TC regional'!$EQ$11:$FD$122,14,FALSE),IF($C$9="mayo",VLOOKUP(A112,'TC regional'!$ER$11:$FE$122,14,FALSE),IF($C$9="junio",VLOOKUP(A112,'TC regional'!$ES$11:$FF$122,14,FALSE),IF($C$9="julio",VLOOKUP(A112,'TC regional'!$ET$11:$FG$122,14,FALSE),IF($C$9="agosto",VLOOKUP(A112,'TC regional'!$EU$11:$FH$122,14,FALSE),IF($C$9="septiembre",VLOOKUP(A112,'TC regional'!$EV$11:$FI$122,14,FALSE),IF($C$9="octubre",VLOOKUP(A112,'TC regional'!$EW$11:$FJ$122,14,FALSE),IF($C$9="noviembre",VLOOKUP(A112,'TC regional'!$EX$11:$FK$122,14,FALSE),IF($C$9="diciembre",VLOOKUP(A112,'TC regional'!$EY$11:$FL$122,14,FALSE),"")))))))))))),"") -> MPM2-01 | C112: =+IFERROR(VLOOKUP($D112,'TC regional'!$H$11:$M$118,4,FALSE),"") -> Gestión para la promoción y Prevención para la protección integral de las niñez y la adolescencia | D112: =+B112 -> MPM2-01 | E112: =+IFERROR(VLOOKUP(B112,'TC regional'!$W$11:$X$122,2,FALSE),"") -> Niños, niñas y adolescentes en situación de desplazamiento atendidos por el Programa de Alimentacion Escolar | F112: =+VLOOKUP($D112,'TC regional (2)'!$V$4:$EK$111,F$110,FALSE) -> 0 | I112: =+VLOOKUP($D112,'TC regional (2)'!$V$4:$EK$111,I$110,FALSE) -> 0 | J112: =+VLOOKUP($D112,'TC regional (2)'!$V$4:$EK$111,J$110,FALSE) -> 231 | K112: =+VLOOKUP($D112,'TC regional (2)'!$V$4:$EK$111,K$110,FALSE) -> 0%
A113: 2 | B113: =IFERROR(IF($C$9="Enero",VLOOKUP(A113,'TC regional'!$EN$11:$FA$122,14,FALSE),IF($C$9="Febrero",VLOOKUP(A113,'TC regional'!$EO$11:$FB$122,14,FALSE),IF($C$9="marzo",VLOOKUP(A113,'TC regional'!$EP$11:$FC$122,14,FALSE),IF($C$9="Abril",VLOOKUP(A113,'TC regional'!$EQ$11:$FD$122,14,FALSE),IF($C$9="mayo",VLOOKUP(A113,'TC regional'!$ER$11:$FE$122,14,FALSE),IF($C$9="junio",VLOOKUP(A113,'TC regional'!$ES$11:$FF$122,14,FALSE),IF($C$9="julio",VLOOKUP(A113,'TC regional'!$ET$11:$FG$122,14,FALSE),IF($C$9="agosto",VLOOKUP(A113,'TC regional'!$EU$11:$FH$122,14,FALSE),IF($C$9="septiembre",VLOOKUP(A113,'TC regional'!$EV$11:$FI$122,14,FALSE),IF($C$9="octubre",VLOOKUP(A113,'TC regional'!$EW$11:$FJ$122,14,FALSE),IF($C$9="noviembre",VLOOKUP(A113,'TC regional'!$EX$11:$FK$122,14,FALSE),IF($C$9="diciembre",VLOOKUP(A113,'TC regional'!$EY$11:$FL$122,14,FALSE),"")))))))))))),"") -> MPM3-09 | C113: =+IFERROR(VLOOKUP($D113,'TC regional'!$H$11:$M$118,4,FALSE),"") -> Gestión para la atención de las familias y comunidades | D113: MPM3-09 | E113: =+IFERROR(VLOOKUP(B113,'TC regional'!$W$11:$X$122,2,FALSE),"") -> Porcentaje de cumplimiento en el registro de Familias para la Dirección de Familia y Comunidades en el Sistema Cuentame | F113: =+VLOOKUP($D113,'TC regional (2)'!$V$4:$EK$111,F$110,FALSE) -> 75% | I113: =+VLOOKUP($D113,'TC regional (2)'!$V$4:$EK$111,I$110,FALSE) -> 557 | J113: =+VLOOKUP($D113,'TC regional (2)'!$V$4:$EK$111,J$110,FALSE) -> 741 | K113: =+VLOOKUP($D113,'TC regional (2)'!$V$4:$EK$111,K$110,FALSE) -> 75%
A114: 3 | B114: =IFERROR(IF($C$9="Enero",VLOOKUP(A114,'TC regional'!$EN$11:$FA$122,14,FALSE),IF($C$9="Febrero",VLOOKUP(A114,'TC regional'!$EO$11:$FB$122,14,FALSE),IF($C$9="marzo",VLOOKUP(A114,'TC regional'!$EP$11:$FC$122,14,FALSE),IF($C$9="Abril",VLOOKUP(A114,'TC regional'!$EQ$11:$FD$122,14,FALSE),IF($C$9="mayo",VLOOKUP(A114,'TC regional'!$ER$11:$FE$122,14,FALSE),IF($C$9="junio",VLOOKUP(A114,'TC regional'!$ES$11:$FF$122,14,FALSE),IF($C$9="julio",VLOOKUP(A114,'TC regional'!$ET$11:$FG$122,14,FALSE),IF($C$9="agosto",VLOOKUP(A114,'TC regional'!$EU$11:$FH$122,14,FALSE),IF($C$9="septiembre",VLOOKUP(A114,'TC regional'!$EV$11:$FI$122,14,FALSE),IF($C$9="octubre",VLOOKUP(A114,'TC regional'!$EW$11:$FJ$122,14,FALSE),IF($C$9="noviembre",VLOOKUP(A114,'TC regional'!$EX$11:$FK$122,14,FALSE),IF($C$9="diciembre",VLOOKUP(A114,'TC regional'!$EY$11:$FL$122,14,FALSE),"")))))))))))),"") -> E-23 | C114: =+IFERROR(VLOOKUP($D114,'TC regional'!$H$11:$M$118,4,FALSE),"") -> Gestión para la nutrición | D114: E-23 | E114: =+IFERROR(VLOOKUP(B114,'TC regional'!$W$11:$X$122,2,FALSE),"") -> Niños y niñas que mejoraron su estado Nutricional que se encuentran en la modalidad Recuperación Nutricional con Enfoque Comunitario - RNEC | F114: =+VLOOKUP($D114,'TC regional (2)'!$V$4:$EK$111,F$110,FALSE) -> 58% | I114: =+VLOOKUP($D114,'TC regional (2)'!$V$4:$EK$111,I$110,FALSE) -> 28 | J114: =+VLOOKUP($D114,'TC regional (2)'!$V$4:$EK$111,J$110,FALSE) -> 48 | K114: =+VLOOKUP($D114,'TC regional (2)'!$V$4:$EK$111,K$110,FALSE) -> 73%
A115: 4 | B115: =IFERROR(IF($C$9="Enero",VLOOKUP(A115,'TC regional'!$EN$11:$FA$122,14,FALSE),IF($C$9="Febrero",VLOOKUP(A115,'TC regional'!$EO$11:$FB$122,14,FALSE),IF($C$9="marzo",VLOOKUP(A115,'TC regional'!$EP$11:$FC$122,14,FALSE),IF($C$9="Abril",VLOOKUP(A115,'TC regional'!$EQ$11:$FD$122,14,FALSE),IF($C$9="mayo",VLOOKUP(A115,'TC regional'!$ER$11:$FE$122,14,FALSE),IF($C$9="junio",VLOOKUP(A115,'TC regional'!$ES$11:$FF$122,14,FALSE),IF($C$9="julio",VLOOKUP(A115,'TC regional'!$ET$11:$FG$122,14,FALSE),IF($C$9="agosto",VLOOKUP(A115,'TC regional'!$EU$11:$FH$122,14,FALSE),IF($C$9="septiembre",VLOOKUP(A115,'TC regional'!$EV$11:$FI$122,14,FALSE),IF($C$9="octubre",VLOOKUP(A115,'TC regional'!$EW$11:$FJ$122,14,FALSE),IF($C$9="noviembre",VLOOKUP(A115,'TC regional'!$EX$11:$FK$122,14,FALSE),IF($C$9="diciembre",VLOOKUP(A115,'TC regional'!$EY$11:$FL$122,14,FALSE),"")))))))))))),"") -> MPE1-07 | C115: =+IFERROR(VLOOKUP($D115,'TC regional'!$H$11:$M$118,4,FALSE),"") -> Direccionamiento estrategico | D115: MPE1-07 | E115: =+IFERROR(VLOOKUP(B115,'TC regional'!$W$11:$X$122,2,FALSE),"") -> Beneficiarios Focalizados | F115: =+VLOOKUP($D115,'TC regional (2)'!$V$4:$EK$111,F$110,FALSE) -> 36% | I115: =+VLOOKUP($D115,'TC regional (2)'!$V$4:$EK$111,I$110,FALSE) -> 603 | J115: =+VLOOKUP($D115,'TC regional (2)'!$V$4:$EK$111,J$110,FALSE) -> 1680 | K115: =+VLOOKUP($D115,'TC regional (2)'!$V$4:$EK$111,K$110,FALSE) -> 36%
A116: 5 | B116: =IFERROR(IF($C$9="Enero",VLOOKUP(A116,'TC regional'!$EN$11:$FA$122,14,FALSE),IF($C$9="Febrero",VLOOKUP(A116,'TC regional'!$EO$11:$FB$122,14,FALSE),IF($C$9="marzo",VLOOKUP(A116,'TC regional'!$EP$11:$FC$122,14,FALSE),IF($C$9="Abril",VLOOKUP(A116,'TC regional'!$EQ$11:$FD$122,14,FALSE),IF($C$9="mayo",VLOOKUP(A116,'TC regional'!$ER$11:$FE$122,14,FALSE),IF($C$9="junio",VLOOKUP(A116,'TC regional'!$ES$11:$FF$122,14,FALSE),IF($C$9="julio",VLOOKUP(A116,'TC regional'!$ET$11:$FG$122,14,FALSE),IF($C$9="agosto",VLOOKUP(A116,'TC regional'!$EU$11:$FH$122,14,FALSE),IF($C$9="septiembre",VLOOKUP(A116,'TC regional'!$EV$11:$FI$122,14,FALSE),IF($C$9="octubre",VLOOKUP(A116,'TC regional'!$EW$11:$FJ$122,14,FALSE),IF($C$9="noviembre",VLOOKUP(A116,'TC regional'!$EX$11:$FK$122,14,FALSE),IF($C$9="diciembre",VLOOKUP(A116,'TC regional'!$EY$11:$FL$122,14,FALSE),"")))))))))))),"") -> MPE2-01 | C116: =+IFERROR(VLOOKUP($D116,'TC regional'!$H$11:$M$118,4,FALSE),"") -> Mejoramiento Continuo | D116: MPE2-01 | E116: =+IFERROR(VLOOKUP(B116,'TC regional'!$W$11:$X$122,2,FALSE),"") -> % de Acciones correctivas y preventivas eficaces | F116: =+VLOOKUP($D116,'TC regional (2)'!$V$4:$EK$111,F$110,FALSE) -> 0% | I116: =+VLOOKUP($D116,'TC regional (2)'!$V$4:$EK$111,I$110,FALSE) -> 0 | J116: =+VLOOKUP($D116,'TC regional (2)'!$V$4:$EK$111,J$110,FALSE) -> 8 | K116: =+VLOOKUP($D116,'TC regional (2)'!$V$4:$EK$111,K$110,FALSE) -> 0%
A117: 6 | B117: =IFERROR(IF($C$9="Enero",VLOOKUP(A117,'TC regional'!$EN$11:$FA$122,14,FALSE),IF($C$9="Febrero",VLOOKUP(A117,'TC regional'!$EO$11:$FB$122,14,FALSE),IF($C$9="marzo",VLOOKUP(A117,'TC regional'!$EP$11:$FC$122,14,FALSE),IF($C$9="Abril",VLOOKUP(A117,'TC regional'!$EQ$11:$FD$122,14,FALSE),IF($C$9="mayo",VLOOKUP(A117,'TC regional'!$ER$11:$FE$122,14,FALSE),IF($C$9="junio",VLOOKUP(A117,'TC regional'!$ES$11:$FF$122,14,FALSE),IF($C$9="julio",VLOOKUP(A117,'TC regional'!$ET$11:$FG$122,14,FALSE),IF($C$9="agosto",VLOOKUP(A117,'TC regional'!$EU$11:$FH$122,14,FALSE),IF($C$9="septiembre",VLOOKUP(A117,'TC regional'!$EV$11:$FI$122,14,FALSE),IF($C$9="octubre",VLOOKUP(A117,'TC regional'!$EW$11:$FJ$122,14,FALSE),IF($C$9="noviembre",VLOOKUP(A117,'TC regional'!$EX$11:$FK$122,14,FALSE),IF($C$9="diciembre",VLOOKUP(A117,'TC regional'!$EY$11:$FL$122,14,FALSE),"")))))))))))),"") -> MPE2-03 | C117: =+IFERROR(VLOOKUP($D117,'TC regional'!$H$11:$M$118,4,FALSE),"") -> Mejoramiento Continuo | D117: MPE2-03 | E117: =+IFERROR(VLOOKUP(B117,'TC regional'!$W$11:$X$122,2,FALSE),"") -> % de riesgos controlados | F117: =+VLOOKUP($D117,'TC regional (2)'!$V$4:$EK$111,F$110,FALSE) -> NR | I117: =+VLOOKUP($D117,'TC regional (2)'!$V$4:$EK$111,I$110,FALSE) -> 0 | J117: =+VLOOKUP($D117,'TC regional (2)'!$V$4:$EK$111,J$110,FALSE) -> 0 | K117: =+VLOOKUP($D117,'TC regional (2)'!$V$4:$EK$111,K$110,FALSE) -> 0%
A118: 7 | B118: =IFERROR(IF($C$9="Enero",VLOOKUP(A118,'TC regional'!$EN$11:$FA$122,14,FALSE),IF($C$9="Febrero",VLOOKUP(A118,'TC regional'!$EO$11:$FB$122,14,FALSE),IF($C$9="marzo",VLOOKUP(A118,'TC regional'!$EP$11:$FC$122,14,FALSE),IF($C$9="Abril",VLOOKUP(A118,'TC regional'!$EQ$11:$FD$122,14,FALSE),IF($C$9="mayo",VLOOKUP(A118,'TC regional'!$ER$11:$FE$122,14,FALSE),IF($C$9="junio",VLOOKUP(A118,'TC regional'!$ES$11:$FF$122,14,FALSE),IF($C$9="julio",VLOOKUP(A118,'TC regional'!$ET$11:$FG$122,14,FALSE),IF($C$9="agosto",VLOOKUP(A118,'TC regional'!$EU$11:$FH$122,14,FALSE),IF($C$9="septiembre",VLOOKUP(A118,'TC regional'!$EV$11:$FI$122,14,FALSE),IF($C$9="octubre",VLOOKUP(A118,'TC regional'!$EW$11:$FJ$122,14,FALSE),IF($C$9="noviembre",VLOOKUP(A118,'TC regional'!$EX$11:$FK$122,14,FALSE),IF($C$9="diciembre",VLOOKUP(A118,'TC regional'!$EY$11:$FL$122,14,FALSE),"")))))))))))),"") -> MPA1-P4-02 | C118: =+IFERROR(VLOOKUP($D118,'TC regional'!$H$11:$M$118,4,FALSE),"") -> Gestión Soporte | D118: MPA1-P4-02 | E118: =+IFERROR(VLOOKUP(B118,'TC regional'!$W$11:$X$122,2,FALSE),"") -> Liquidación de Contratos | F118: =+VLOOKUP($D118,'TC regional (2)'!$V$4:$EK$111,F$110,FALSE) -> 5% | I118: =+VLOOKUP($D118,'TC regional (2)'!$V$4:$EK$111,I$110,FALSE) -> 1 | J118: =+VLOOKUP($D118,'TC regional (2)'!$V$4:$EK$111,J$110,FALSE) -> 22 | K118: =+VLOOKUP($D118,'TC regional (2)'!$V$4:$EK$111,K$110,FALSE) -> 5%
A119: 8 | B119: =IFERROR(IF($C$9="Enero",VLOOKUP(A119,'TC regional'!$EN$11:$FA$122,14,FALSE),IF($C$9="Febrero",VLOOKUP(A119,'TC regional'!$EO$11:$FB$122,14,FALSE),IF($C$9="marzo",VLOOKUP(A119,'TC regional'!$EP$11:$FC$122,14,FALSE),IF($C$9="Abril",VLOOKUP(A119,'TC regional'!$EQ$11:$FD$122,14,FALSE),IF($C$9="mayo",VLOOKUP(A119,'TC regional'!$ER$11:$FE$122,14,FALSE),IF($C$9="junio",VLOOKUP(A119,'TC regional'!$ES$11:$FF$122,14,FALSE),IF($C$9="julio",VLOOKUP(A119,'TC regional'!$ET$11:$FG$122,14,FALSE),IF($C$9="agosto",VLOOKUP(A119,'TC regional'!$EU$11:$FH$122,14,FALSE),IF($C$9="septiembre",VLOOKUP(A119,'TC regional'!$EV$11:$FI$122,14,FALSE),IF($C$9="octubre",VLOOKUP(A119,'TC regional'!$EW$11:$FJ$122,14,FALSE),IF($C$9="noviembre",VLOOKUP(A119,'TC regional'!$EX$11:$FK$122,14,FALSE),IF($C$9="diciembre",VLOOKUP(A119,'TC regional'!$EY$11:$FL$122,14,FALSE),"")))))))))))),"") -> MPA1-P5-07 | C119: =+IFERROR(VLOOKUP($D119,'TC regional'!$H$11:$M$118,4,FALSE),"") -> Gestión Soporte | D119: MPA1-P5-07 | E119: =+IFERROR(VLOOKUP(B119,'TC regional'!$W$11:$X$122,2,FALSE),"") -> Organización de Archivos de Gestión | F119: =+VLOOKUP($D119,'TC regional (2)'!$V$4:$EK$111,F$110,FALSE) -> 66% | I119: =+VLOOKUP($D119,'TC regional (2)'!$V$4:$EK$111,I$110,FALSE) -> 48.28 | J119: =+VLOOKUP($D119,'TC regional (2)'!$V$4:$EK$111,J$110,FALSE) -> 73.38 | K119: =+VLOOKUP($D119,'TC regional (2)'!$V$4:$EK$111,K$110,FALSE) -> 66%
A120: 9 | B120: =IFERROR(IF($C$9="Enero",VLOOKUP(A120,'TC regional'!$EN$11:$FA$122,14,FALSE),IF($C$9="Febrero",VLOOKUP(A120,'TC regional'!$EO$11:$FB$122,14,FALSE),IF($C$9="marzo",VLOOKUP(A120,'TC regional'!$EP$11:$FC$122,14,FALSE),IF($C$9="Abril",VLOOKUP(A120,'TC regional'!$EQ$11:$FD$122,14,FALSE),IF($C$9="mayo",VLOOKUP(A120,'TC regional'!$ER$11:$FE$122,14,FALSE),IF($C$9="junio",VLOOKUP(A120,'TC regional'!$ES$11:$FF$122,14,FALSE),IF($C$9="julio",VLOOKUP(A120,'TC regional'!$ET$11:$FG$122,14,FALSE),IF($C$9="agosto",VLOOKUP(A120,'TC regional'!$EU$11:$FH$122,14,FALSE),IF($C$9="septiembre",VLOOKUP(A120,'TC regional'!$EV$11:$FI$122,14,FALSE),IF($C$9="octubre",VLOOKUP(A120,'TC regional'!$EW$11:$FJ$122,14,FALSE),IF($C$9="noviembre",VLOOKUP(A120,'TC regional'!$EX$11:$FK$122,14,FALSE),IF($C$9="diciembre",VLOOKUP(A120,'TC regional'!$EY$11:$FL$122,14,FALSE),"")))))))))))),"") -> MPA1-P2-01 | C120: =+IFERROR(VLOOKUP($D120,'TC regional'!$H$11:$M$118,4,FALSE),"") -> Gestión Soporte | D120: MPA1-P2-01 | E120: =+IFERROR(VLOOKUP(B120,'TC regional'!$W$11:$X$122,2,FALSE),"") -> Rezago Presupuestal | F120: =+VLOOKUP($D120,'TC regional (2)'!$V$4:$EK$111,F$110,FALSE) -> 96% | I120: =+VLOOKUP($D120,'TC regional (2)'!$V$4:$EK$111,I$110,FALSE) -> 404.685796 | J120: =+VLOOKUP($D120,'TC regional (2)'!$V$4:$EK$111,J$110,FALSE) -> 419.487789 | K120: =+VLOOKUP($D120,'TC regional (2)'!$V$4:$EK$111,K$110,FALSE) -> 96%
A121: 10 | B121: =IFERROR(IF($C$9="Enero",VLOOKUP(A121,'TC regional'!$EN$11:$FA$122,14,FALSE),IF($C$9="Febrero",VLOOKUP(A121,'TC regional'!$EO$11:$FB$122,14,FALSE),IF($C$9="marzo",VLOOKUP(A121,'TC regional'!$EP$11:$FC$122,14,FALSE),IF($C$9="Abril",VLOOKUP(A121,'TC regional'!$EQ$11:$FD$122,14,FALSE),IF($C$9="mayo",VLOOKUP(A121,'TC regional'!$ER$11:$FE$122,14,FALSE),IF($C$9="junio",VLOOKUP(A121,'TC regional'!$ES$11:$FF$122,14,FALSE),IF($C$9="julio",VLOOKUP(A121,'TC regional'!$ET$11:$FG$122,14,FALSE),IF($C$9="agosto",VLOOKUP(A121,'TC regional'!$EU$11:$FH$122,14,FALSE),IF($C$9="septiembre",VLOOKUP(A121,'TC regional'!$EV$11:$FI$122,14,FALSE),IF($C$9="octubre",VLOOKUP(A121,'TC regional'!$EW$11:$FJ$122,14,FALSE),IF($C$9="noviembre",VLOOKUP(A121,'TC regional'!$EX$11:$FK$122,14,FALSE),IF($C$9="diciembre",VLOOKUP(A121,'TC regional'!$EY$11:$FL$122,14,FALSE),"")))))))))))),"") -> MPA1-P4-03 | C121: =+IFERROR(VLOOKUP($D121,'TC regional'!$H$11:$M$118,4,FALSE),"") -> Gestión Soporte | D121: MPA1-P4-03 | E121: =+IFERROR(VLOOKUP(B121,'TC regional'!$W$11:$X$122,2,FALSE),"") -> Solicitud de liquidación de Contratos | F121: =+VLOOKUP($D121,'TC regional (2)'!$V$4:$EK$111,F$110,FALSE) -> 8% | I121: =+VLOOKUP($D121,'TC regional (2)'!$V$4:$EK$111,I$110,FALSE) -> 1 | J121: =+VLOOKUP($D121,'TC regional (2)'!$V$4:$EK$111,J$110,FALSE) -> 13 | K121: =+VLOOKUP($D121,'TC regional (2)'!$V$4:$EK$111,K$110,FALSE) -> 8%
A122: 11 | B122: =IFERROR(IF($C$9="Enero",VLOOKUP(A122,'TC regional'!$EN$11:$FA$122,14,FALSE),IF($C$9="Febrero",VLOOKUP(A122,'TC regional'!$EO$11:$FB$122,14,FALSE),IF($C$9="marzo",VLOOKUP(A122,'TC regional'!$EP$11:$FC$122,14,FALSE),IF($C$9="Abril",VLOOKUP(A122,'TC regional'!$EQ$11:$FD$122,14,FALSE),IF($C$9="mayo",VLOOKUP(A122,'TC regional'!$ER$11:$FE$122,14,FALSE),IF($C$9="junio",VLOOKUP(A122,'TC regional'!$ES$11:$FF$122,14,FALSE),IF($C$9="julio",VLOOKUP(A122,'TC regional'!$ET$11:$FG$122,14,FALSE),IF($C$9="agosto",VLOOKUP(A122,'TC regional'!$EU$11:$FH$122,14,FALSE),IF($C$9="septiembre",VLOOKUP(A122,'TC regional'!$EV$11:$FI$122,14,FALSE),IF($C$9="octubre",VLOOKUP(A122,'TC regional'!$EW$11:$FJ$122,14,FALSE),IF($C$9="noviembre",VLOOKUP(A122,'TC regional'!$EX$11:$FK$122,14,FALSE),IF($C$9="diciembre",VLOOKUP(A122,'TC regional'!$EY$11:$FL$122,14,FALSE),"")))))))))))),"") ->  | C122: =+IFERROR(VLOOKUP($D122,'TC regional'!$H$11:$M$118,4,FALSE),"") ->  | E122: =+IFERROR(VLOOKUP(B122,'TC regional'!$W$11:$X$122,2,FALSE),"") ->  | F122: =+VLOOKUP($D122,'TC regional (2)'!$V$4:$EK$111,F$110,FALSE) ->  | I122: =+VLOOKUP($D122,'TC regional (2)'!$V$4:$EK$111,I$110,FALSE) ->  | J122: =+VLOOKUP($D122,'TC regional (2)'!$V$4:$EK$111,J$110,FALSE) ->  | K122: =+VLOOKUP($D122,'TC regional (2)'!$V$4:$EK$111,K$110,FALSE) -> 
A123: 12 | B123: =IFERROR(IF($C$9="Enero",VLOOKUP(A123,'TC regional'!$EN$11:$FA$122,14,FALSE),IF($C$9="Febrero",VLOOKUP(A123,'TC regional'!$EO$11:$FB$122,14,FALSE),IF($C$9="marzo",VLOOKUP(A123,'TC regional'!$EP$11:$FC$122,14,FALSE),IF($C$9="Abril",VLOOKUP(A123,'TC regional'!$EQ$11:$FD$122,14,FALSE),IF($C$9="mayo",VLOOKUP(A123,'TC regional'!$ER$11:$FE$122,14,FALSE),IF($C$9="junio",VLOOKUP(A123,'TC regional'!$ES$11:$FF$122,14,FALSE),IF($C$9="julio",VLOOKUP(A123,'TC regional'!$ET$11:$FG$122,14,FALSE),IF($C$9="agosto",VLOOKUP(A123,'TC regional'!$EU$11:$FH$122,14,FALSE),IF($C$9="septiembre",VLOOKUP(A123,'TC regional'!$EV$11:$FI$122,14,FALSE),IF($C$9="octubre",VLOOKUP(A123,'TC regional'!$EW$11:$FJ$122,14,FALSE),IF($C$9="noviembre",VLOOKUP(A123,'TC regional'!$EX$11:$FK$122,14,FALSE),IF($C$9="diciembre",VLOOKUP(A123,'TC regional'!$EY$11:$FL$122,14,FALSE),"")))))))))))),"") ->  | C123: =+IFERROR(VLOOKUP($D123,'TC regional'!$H$11:$M$118,4,FALSE),"") ->  | E123: =+IFERROR(VLOOKUP(B123,'TC regional'!$W$11:$X$122,2,FALSE),"") ->  | F123: =+VLOOKUP($D123,'TC regional (2)'!$V$4:$EK$111,F$110,FALSE) ->  | I123: =+VLOOKUP($D123,'TC regional (2)'!$V$4:$EK$111,I$110,FALSE) ->  | J123: =+VLOOKUP($D123,'TC regional (2)'!$V$4:$EK$111,J$110,FALSE) ->  | K123: =+VLOOKUP($D123,'TC regional (2)'!$V$4:$EK$111,K$110,FALSE) -> 
A124: 13 | B124: =IFERROR(IF($C$9="Enero",VLOOKUP(A124,'TC regional'!$EN$11:$FA$122,14,FALSE),IF($C$9="Febrero",VLOOKUP(A124,'TC regional'!$EO$11:$FB$122,14,FALSE),IF($C$9="marzo",VLOOKUP(A124,'TC regional'!$EP$11:$FC$122,14,FALSE),IF($C$9="Abril",VLOOKUP(A124,'TC regional'!$EQ$11:$FD$122,14,FALSE),IF($C$9="mayo",VLOOKUP(A124,'TC regional'!$ER$11:$FE$122,14,FALSE),IF($C$9="junio",VLOOKUP(A124,'TC regional'!$ES$11:$FF$122,14,FALSE),IF($C$9="julio",VLOOKUP(A124,'TC regional'!$ET$11:$FG$122,14,FALSE),IF($C$9="agosto",VLOOKUP(A124,'TC regional'!$EU$11:$FH$122,14,FALSE),IF($C$9="septiembre",VLOOKUP(A124,'TC regional'!$EV$11:$FI$122,14,FALSE),IF($C$9="octubre",VLOOKUP(A124,'TC regional'!$EW$11:$FJ$122,14,FALSE),IF($C$9="noviembre",VLOOKUP(A124,'TC regional'!$EX$11:$FK$122,14,FALSE),IF($C$9="diciembre",VLOOKUP(A124,'TC regional'!$EY$11:$FL$122,14,FALSE),"")))))))))))),"") ->  | C124: =+IFERROR(VLOOKUP($D124,'TC regional'!$H$11:$M$118,4,FALSE),"") ->  | E124: =+IFERROR(VLOOKUP(B124,'TC regional'!$W$11:$X$122,2,FALSE),"") ->  | F124: =+VLOOKUP($D124,'TC regional (2)'!$V$4:$EK$111,F$110,FALSE) ->  | I124: =+VLOOKUP($D124,'TC regional (2)'!$V$4:$EK$111,I$110,FALSE) ->  | J124: =+VLOOKUP($D124,'TC regional (2)'!$V$4:$EK$111,J$110,FALSE) ->  | K124: =+VLOOKUP($D124,'TC regional (2)'!$V$4:$EK$111,K$110,FALSE) -> 
A125: 14 | B125: =IFERROR(IF($C$9="Enero",VLOOKUP(A125,'TC regional'!$EN$11:$FA$122,14,FALSE),IF($C$9="Febrero",VLOOKUP(A125,'TC regional'!$EO$11:$FB$122,14,FALSE),IF($C$9="marzo",VLOOKUP(A125,'TC regional'!$EP$11:$FC$122,14,FALSE),IF($C$9="Abril",VLOOKUP(A125,'TC regional'!$EQ$11:$FD$122,14,FALSE),IF($C$9="mayo",VLOOKUP(A125,'TC regional'!$ER$11:$FE$122,14,FALSE),IF($C$9="junio",VLOOKUP(A125,'TC regional'!$ES$11:$FF$122,14,FALSE),IF($C$9="julio",VLOOKUP(A125,'TC regional'!$ET$11:$FG$122,14,FALSE),IF($C$9="agosto",VLOOKUP(A125,'TC regional'!$EU$11:$FH$122,14,FALSE),IF($C$9="septiembre",VLOOKUP(A125,'TC regional'!$EV$11:$FI$122,14,FALSE),IF($C$9="octubre",VLOOKUP(A125,'TC regional'!$EW$11:$FJ$122,14,FALSE),IF($C$9="noviembre",VLOOKUP(A125,'TC regional'!$EX$11:$FK$122,14,FALSE),IF($C$9="diciembre",VLOOKUP(A125,'TC regional'!$EY$11:$FL$122,14,FALSE),"")))))))))))),"") ->  | C125: =+IFERROR(VLOOKUP($D125,'TC regional'!$H$11:$M$118,4,FALSE),"") ->  | E125: =+IFERROR(VLOOKUP(B125,'TC regional'!$W$11:$X$122,2,FALSE),"") ->  | F125: =+VLOOKUP($D125,'TC regional (2)'!$V$4:$EK$111,F$110,FALSE) ->  | I125: =+VLOOKUP($D125,'TC regional (2)'!$V$4:$EK$111,I$110,FALSE) ->  | J125: =+VLOOKUP($D125,'TC regional (2)'!$V$4:$EK$111,J$110,FALSE) ->  | K125: =+VLOOKUP($D125,'TC regional (2)'!$V$4:$EK$111,K$110,FALSE) -> 
A126: 15 | B126: =IFERROR(IF($C$9="Enero",VLOOKUP(A126,'TC regional'!$EN$11:$FA$122,14,FALSE),IF($C$9="Febrero",VLOOKUP(A126,'TC regional'!$EO$11:$FB$122,14,FALSE),IF($C$9="marzo",VLOOKUP(A126,'TC regional'!$EP$11:$FC$122,14,FALSE),IF($C$9="Abril",VLOOKUP(A126,'TC regional'!$EQ$11:$FD$122,14,FALSE),IF($C$9="mayo",VLOOKUP(A126,'TC regional'!$ER$11:$FE$122,14,FALSE),IF($C$9="junio",VLOOKUP(A126,'TC regional'!$ES$11:$FF$122,14,FALSE),IF($C$9="julio",VLOOKUP(A126,'TC regional'!$ET$11:$FG$122,14,FALSE),IF($C$9="agosto",VLOOKUP(A126,'TC regional'!$EU$11:$FH$122,14,FALSE),IF($C$9="septiembre",VLOOKUP(A126,'TC regional'!$EV$11:$FI$122,14,FALSE),IF($C$9="octubre",VLOOKUP(A126,'TC regional'!$EW$11:$FJ$122,14,FALSE),IF($C$9="noviembre",VLOOKUP(A126,'TC regional'!$EX$11:$FK$122,14,FALSE),IF($C$9="diciembre",VLOOKUP(A126,'TC regional'!$EY$11:$FL$122,14,FALSE),"")))))))))))),"") ->  | C126: =+IFERROR(VLOOKUP($D126,'TC regional'!$H$11:$M$118,4,FALSE),"") ->  | E126: =+IFERROR(VLOOKUP(B126,'TC regional'!$W$11:$X$122,2,FALSE),"") ->  | F126: =+VLOOKUP($D126,'TC regional (2)'!$V$4:$EK$111,F$110,FALSE) ->  | I126: =+VLOOKUP($D126,'TC regional (2)'!$V$4:$EK$111,I$110,FALSE) ->  | J126: =+VLOOKUP($D126,'TC regional (2)'!$V$4:$EK$111,J$110,FALSE) ->  | K126: =+VLOOKUP($D126,'TC regional (2)'!$V$4:$EK$111,K$110,FALSE) -> 
A127: 16 | B127: =IFERROR(IF($C$9="Enero",VLOOKUP(A127,'TC regional'!$EN$11:$FA$122,14,FALSE),IF($C$9="Febrero",VLOOKUP(A127,'TC regional'!$EO$11:$FB$122,14,FALSE),IF($C$9="marzo",VLOOKUP(A127,'TC regional'!$EP$11:$FC$122,14,FALSE),IF($C$9="Abril",VLOOKUP(A127,'TC regional'!$EQ$11:$FD$122,14,FALSE),IF($C$9="mayo",VLOOKUP(A127,'TC regional'!$ER$11:$FE$122,14,FALSE),IF($C$9="junio",VLOOKUP(A127,'TC regional'!$ES$11:$FF$122,14,FALSE),IF($C$9="julio",VLOOKUP(A127,'TC regional'!$ET$11:$FG$122,14,FALSE),IF($C$9="agosto",VLOOKUP(A127,'TC regional'!$EU$11:$FH$122,14,FALSE),IF($C$9="septiembre",VLOOKUP(A127,'TC regional'!$EV$11:$FI$122,14,FALSE),IF($C$9="octubre",VLOOKUP(A127,'TC regional'!$EW$11:$FJ$122,14,FALSE),IF($C$9="noviembre",VLOOKUP(A127,'TC regional'!$EX$11:$FK$122,14,FALSE),IF($C$9="diciembre",VLOOKUP(A127,'TC regional'!$EY$11:$FL$122,14,FALSE),"")))))))))))),"") ->  | C127: =+IFERROR(VLOOKUP($D127,'TC regional'!$H$11:$M$118,4,FALSE),"") ->  | E127: =+IFERROR(VLOOKUP(B127,'TC regional'!$W$11:$X$122,2,FALSE),"") ->  | F127: =+VLOOKUP($D127,'TC regional (2)'!$V$4:$EK$111,F$110,FALSE) ->  | I127: =+VLOOKUP($D127,'TC regional (2)'!$V$4:$EK$111,I$110,FALSE) ->  | J127: =+VLOOKUP($D127,'TC regional (2)'!$V$4:$EK$111,J$110,FALSE) ->  | K127: =+VLOOKUP($D127,'TC regional (2)'!$V$4:$EK$111,K$110,FALSE) -> 
A128: 17 | B128: =IFERROR(IF($C$9="Enero",VLOOKUP(A128,'TC regional'!$EN$11:$FA$122,14,FALSE),IF($C$9="Febrero",VLOOKUP(A128,'TC regional'!$EO$11:$FB$122,14,FALSE),IF($C$9="marzo",VLOOKUP(A128,'TC regional'!$EP$11:$FC$122,14,FALSE),IF($C$9="Abril",VLOOKUP(A128,'TC regional'!$EQ$11:$FD$122,14,FALSE),IF($C$9="mayo",VLOOKUP(A128,'TC regional'!$ER$11:$FE$122,14,FALSE),IF($C$9="junio",VLOOKUP(A128,'TC regional'!$ES$11:$FF$122,14,FALSE),IF($C$9="julio",VLOOKUP(A128,'TC regional'!$ET$11:$FG$122,14,FALSE),IF($C$9="agosto",VLOOKUP(A128,'TC regional'!$EU$11:$FH$122,14,FALSE),IF($C$9="septiembre",VLOOKUP(A128,'TC regional'!$EV$11:$FI$122,14,FALSE),IF($C$9="octubre",VLOOKUP(A128,'TC regional'!$EW$11:$FJ$122,14,FALSE),IF($C$9="noviembre",VLOOKUP(A128,'TC regional'!$EX$11:$FK$122,14,FALSE),IF($C$9="diciembre",VLOOKUP(A128,'TC regional'!$EY$11:$FL$122,14,FALSE),"")))))))))))),"") ->  | C128: =+IFERROR(VLOOKUP($D128,'TC regional'!$H$11:$M$118,4,FALSE),"") ->  | E128: =+IFERROR(VLOOKUP(B128,'TC regional'!$W$11:$X$122,2,FALSE),"") ->  | F128: =+VLOOKUP($D128,'TC regional (2)'!$V$4:$EK$111,F$110,FALSE) ->  | I128: =+VLOOKUP($D128,'TC regional (2)'!$V$4:$EK$111,I$110,FALSE) ->  | J128: =+VLOOKUP($D128,'TC regional (2)'!$V$4:$EK$111,J$110,FALSE) ->  | K128: =+VLOOKUP($D128,'TC regional (2)'!$V$4:$EK$111,K$110,FALSE) -> 
A129: 18 | B129: =IFERROR(IF($C$9="Enero",VLOOKUP(A129,'TC regional'!$EN$11:$FA$122,14,FALSE),IF($C$9="Febrero",VLOOKUP(A129,'TC regional'!$EO$11:$FB$122,14,FALSE),IF($C$9="marzo",VLOOKUP(A129,'TC regional'!$EP$11:$FC$122,14,FALSE),IF($C$9="Abril",VLOOKUP(A129,'TC regional'!$EQ$11:$FD$122,14,FALSE),IF($C$9="mayo",VLOOKUP(A129,'TC regional'!$ER$11:$FE$122,14,FALSE),IF($C$9="junio",VLOOKUP(A129,'TC regional'!$ES$11:$FF$122,14,FALSE),IF($C$9="julio",VLOOKUP(A129,'TC regional'!$ET$11:$FG$122,14,FALSE),IF($C$9="agosto",VLOOKUP(A129,'TC regional'!$EU$11:$FH$122,14,FALSE),IF($C$9="septiembre",VLOOKUP(A129,'TC regional'!$EV$11:$FI$122,14,FALSE),IF($C$9="octubre",VLOOKUP(A129,'TC regional'!$EW$11:$FJ$122,14,FALSE),IF($C$9="noviembre",VLOOKUP(A129,'TC regional'!$EX$11:$FK$122,14,FALSE),IF($C$9="diciembre",VLOOKUP(A129,'TC regional'!$EY$11:$FL$122,14,FALSE),"")))))))))))),"") ->  | C129: =+IFERROR(VLOOKUP($D129,'TC regional'!$H$11:$M$118,4,FALSE),"") ->  | E129: =+IFERROR(VLOOKUP(B129,'TC regional'!$W$11:$X$122,2,FALSE),"") ->  | F129: =+VLOOKUP($D129,'TC regional (2)'!$V$4:$EK$111,F$110,FALSE) ->  | I129: =+VLOOKUP($D129,'TC regional (2)'!$V$4:$EK$111,I$110,FALSE) ->  | J129: =+VLOOKUP($D129,'TC regional (2)'!$V$4:$EK$111,J$110,FALSE) ->  | K129: =+VLOOKUP($D129,'TC regional (2)'!$V$4:$EK$111,K$110,FALSE) -> 
A130: 19 | B130: =IFERROR(IF($C$9="Enero",VLOOKUP(A130,'TC regional'!$EN$11:$FA$122,14,FALSE),IF($C$9="Febrero",VLOOKUP(A130,'TC regional'!$EO$11:$FB$122,14,FALSE),IF($C$9="marzo",VLOOKUP(A130,'TC regional'!$EP$11:$FC$122,14,FALSE),IF($C$9="Abril",VLOOKUP(A130,'TC regional'!$EQ$11:$FD$122,14,FALSE),IF($C$9="mayo",VLOOKUP(A130,'TC regional'!$ER$11:$FE$122,14,FALSE),IF($C$9="junio",VLOOKUP(A130,'TC regional'!$ES$11:$FF$122,14,FALSE),IF($C$9="julio",VLOOKUP(A130,'TC regional'!$ET$11:$FG$122,14,FALSE),IF($C$9="agosto",VLOOKUP(A130,'TC regional'!$EU$11:$FH$122,14,FALSE),IF($C$9="septiembre",VLOOKUP(A130,'TC regional'!$EV$11:$FI$122,14,FALSE),IF($C$9="octubre",VLOOKUP(A130,'TC regional'!$EW$11:$FJ$122,14,FALSE),IF($C$9="noviembre",VLOOKUP(A130,'TC regional'!$EX$11:$FK$122,14,FALSE),IF($C$9="diciembre",VLOOKUP(A130,'TC regional'!$EY$11:$FL$122,14,FALSE),"")))))))))))),"") ->  | C130: =+IFERROR(VLOOKUP($D130,'TC regional'!$H$11:$M$118,4,FALSE),"") ->  | E130: =+IFERROR(VLOOKUP(B130,'TC regional'!$W$11:$X$122,2,FALSE),"") ->  | F130: =+VLOOKUP($D130,'TC regional (2)'!$V$4:$EK$111,F$110,FALSE) ->  | I130: =+VLOOKUP($D130,'TC regional (2)'!$V$4:$EK$111,I$110,FALSE) ->  | J130: =+VLOOKUP($D130,'TC regional (2)'!$V$4:$EK$111,J$110,FALSE) ->  | K130: =+VLOOKUP($D130,'TC regional (2)'!$V$4:$EK$111,K$110,FALSE) -> 
A131: 20 | B131: =IFERROR(IF($C$9="Enero",VLOOKUP(A131,'TC regional'!$EN$11:$FA$122,14,FALSE),IF($C$9="Febrero",VLOOKUP(A131,'TC regional'!$EO$11:$FB$122,14,FALSE),IF($C$9="marzo",VLOOKUP(A131,'TC regional'!$EP$11:$FC$122,14,FALSE),IF($C$9="Abril",VLOOKUP(A131,'TC regional'!$EQ$11:$FD$122,14,FALSE),IF($C$9="mayo",VLOOKUP(A131,'TC regional'!$ER$11:$FE$122,14,FALSE),IF($C$9="junio",VLOOKUP(A131,'TC regional'!$ES$11:$FF$122,14,FALSE),IF($C$9="julio",VLOOKUP(A131,'TC regional'!$ET$11:$FG$122,14,FALSE),IF($C$9="agosto",VLOOKUP(A131,'TC regional'!$EU$11:$FH$122,14,FALSE),IF($C$9="septiembre",VLOOKUP(A131,'TC regional'!$EV$11:$FI$122,14,FALSE),IF($C$9="octubre",VLOOKUP(A131,'TC regional'!$EW$11:$FJ$122,14,FALSE),IF($C$9="noviembre",VLOOKUP(A131,'TC regional'!$EX$11:$FK$122,14,FALSE),IF($C$9="diciembre",VLOOKUP(A131,'TC regional'!$EY$11:$FL$122,14,FALSE),"")))))))))))),"") ->  | C131: =+IFERROR(VLOOKUP($D131,'TC regional'!$H$11:$M$118,4,FALSE),"") ->  | E131: =+IFERROR(VLOOKUP(B131,'TC regional'!$W$11:$X$122,2,FALSE),"") ->  | F131: =+VLOOKUP($D131,'TC regional (2)'!$V$4:$EK$111,F$110,FALSE) ->  | I131: =+VLOOKUP($D131,'TC regional (2)'!$V$4:$EK$111,I$110,FALSE) ->  | J131: =+VLOOKUP($D131,'TC regional (2)'!$V$4:$EK$111,J$110,FALSE) ->  | K131: =+VLOOKUP($D131,'TC regional (2)'!$V$4:$EK$111,K$110,FALSE) -> 
A132: 21 | B132: =IFERROR(IF($C$9="Enero",VLOOKUP(A132,'TC regional'!$EN$11:$FA$122,14,FALSE),IF($C$9="Febrero",VLOOKUP(A132,'TC regional'!$EO$11:$FB$122,14,FALSE),IF($C$9="marzo",VLOOKUP(A132,'TC regional'!$EP$11:$FC$122,14,FALSE),IF($C$9="Abril",VLOOKUP(A132,'TC regional'!$EQ$11:$FD$122,14,FALSE),IF($C$9="mayo",VLOOKUP(A132,'TC regional'!$ER$11:$FE$122,14,FALSE),IF($C$9="junio",VLOOKUP(A132,'TC regional'!$ES$11:$FF$122,14,FALSE),IF($C$9="julio",VLOOKUP(A132,'TC regional'!$ET$11:$FG$122,14,FALSE),IF($C$9="agosto",VLOOKUP(A132,'TC regional'!$EU$11:$FH$122,14,FALSE),IF($C$9="septiembre",VLOOKUP(A132,'TC regional'!$EV$11:$FI$122,14,FALSE),IF($C$9="octubre",VLOOKUP(A132,'TC regional'!$EW$11:$FJ$122,14,FALSE),IF($C$9="noviembre",VLOOKUP(A132,'TC regional'!$EX$11:$FK$122,14,FALSE),IF($C$9="diciembre",VLOOKUP(A132,'TC regional'!$EY$11:$FL$122,14,FALSE),"")))))))))))),"") ->  | C132: =+IFERROR(VLOOKUP($D132,'TC regional'!$H$11:$M$118,4,FALSE),"") ->  | E132: =+IFERROR(VLOOKUP(B132,'TC regional'!$W$11:$X$122,2,FALSE),"") ->  | F132: =+VLOOKUP($D132,'TC regional (2)'!$V$4:$EK$111,F$110,FALSE) ->  | I132: =+VLOOKUP($D132,'TC regional (2)'!$V$4:$EK$111,I$110,FALSE) ->  | J132: =+VLOOKUP($D132,'TC regional (2)'!$V$4:$EK$111,J$110,FALSE) ->  | K132: =+VLOOKUP($D132,'TC regional (2)'!$V$4:$EK$111,K$110,FALSE) -> 
A133: 22 | B133: =IFERROR(IF($C$9="Enero",VLOOKUP(A133,'TC regional'!$EN$11:$FA$122,14,FALSE),IF($C$9="Febrero",VLOOKUP(A133,'TC regional'!$EO$11:$FB$122,14,FALSE),IF($C$9="marzo",VLOOKUP(A133,'TC regional'!$EP$11:$FC$122,14,FALSE),IF($C$9="Abril",VLOOKUP(A133,'TC regional'!$EQ$11:$FD$122,14,FALSE),IF($C$9="mayo",VLOOKUP(A133,'TC regional'!$ER$11:$FE$122,14,FALSE),IF($C$9="junio",VLOOKUP(A133,'TC regional'!$ES$11:$FF$122,14,FALSE),IF($C$9="julio",VLOOKUP(A133,'TC regional'!$ET$11:$FG$122,14,FALSE),IF($C$9="agosto",VLOOKUP(A133,'TC regional'!$EU$11:$FH$122,14,FALSE),IF($C$9="septiembre",VLOOKUP(A133,'TC regional'!$EV$11:$FI$122,14,FALSE),IF($C$9="octubre",VLOOKUP(A133,'TC regional'!$EW$11:$FJ$122,14,FALSE),IF($C$9="noviembre",VLOOKUP(A133,'TC regional'!$EX$11:$FK$122,14,FALSE),IF($C$9="diciembre",VLOOKUP(A133,'TC regional'!$EY$11:$FL$122,14,FALSE),"")))))))))))),"") ->  | C133: =+IFERROR(VLOOKUP($D133,'TC regional'!$H$11:$M$118,4,FALSE),"") ->  | E133: =+IFERROR(VLOOKUP(B133,'TC regional'!$W$11:$X$122,2,FALSE),"") ->  | F133: =+VLOOKUP($D133,'TC regional (2)'!$V$4:$EK$111,F$110,FALSE) ->  | I133: =+VLOOKUP($D133,'TC regional (2)'!$V$4:$EK$111,I$110,FALSE) ->  | J133: =+VLOOKUP($D133,'TC regional (2)'!$V$4:$EK$111,J$110,FALSE) ->  | K133: =+VLOOKUP($D133,'TC regional (2)'!$V$4:$EK$111,K$110,FALSE) -> 
A134: 23 | B134: =IFERROR(IF($C$9="Enero",VLOOKUP(A134,'TC regional'!$EN$11:$FA$122,14,FALSE),IF($C$9="Febrero",VLOOKUP(A134,'TC regional'!$EO$11:$FB$122,14,FALSE),IF($C$9="marzo",VLOOKUP(A134,'TC regional'!$EP$11:$FC$122,14,FALSE),IF($C$9="Abril",VLOOKUP(A134,'TC regional'!$EQ$11:$FD$122,14,FALSE),IF($C$9="mayo",VLOOKUP(A134,'TC regional'!$ER$11:$FE$122,14,FALSE),IF($C$9="junio",VLOOKUP(A134,'TC regional'!$ES$11:$FF$122,14,FALSE),IF($C$9="julio",VLOOKUP(A134,'TC regional'!$ET$11:$FG$122,14,FALSE),IF($C$9="agosto",VLOOKUP(A134,'TC regional'!$EU$11:$FH$122,14,FALSE),IF($C$9="septiembre",VLOOKUP(A134,'TC regional'!$EV$11:$FI$122,14,FALSE),IF($C$9="octubre",VLOOKUP(A134,'TC regional'!$EW$11:$FJ$122,14,FALSE),IF($C$9="noviembre",VLOOKUP(A134,'TC regional'!$EX$11:$FK$122,14,FALSE),IF($C$9="diciembre",VLOOKUP(A134,'TC regional'!$EY$11:$FL$122,14,FALSE),"")))))))))))),"") ->  | C134: =+IFERROR(VLOOKUP($D134,'TC regional'!$H$11:$M$118,4,FALSE),"") ->  | E134: =+IFERROR(VLOOKUP(B134,'TC regional'!$W$11:$X$122,2,FALSE),"") ->  | F134: =+VLOOKUP($D134,'TC regional (2)'!$V$4:$EK$111,F$110,FALSE) ->  | I134: =+VLOOKUP($D134,'TC regional (2)'!$V$4:$EK$111,I$110,FALSE) ->  | J134: =+VLOOKUP($D134,'TC regional (2)'!$V$4:$EK$111,J$110,FALSE) ->  | K134: =+VLOOKUP($D134,'TC regional (2)'!$V$4:$EK$111,K$110,FALSE) -> 
A135: 24 | B135: =IFERROR(IF($C$9="Enero",VLOOKUP(A135,'TC regional'!$EN$11:$FA$122,14,FALSE),IF($C$9="Febrero",VLOOKUP(A135,'TC regional'!$EO$11:$FB$122,14,FALSE),IF($C$9="marzo",VLOOKUP(A135,'TC regional'!$EP$11:$FC$122,14,FALSE),IF($C$9="Abril",VLOOKUP(A135,'TC regional'!$EQ$11:$FD$122,14,FALSE),IF($C$9="mayo",VLOOKUP(A135,'TC regional'!$ER$11:$FE$122,14,FALSE),IF($C$9="junio",VLOOKUP(A135,'TC regional'!$ES$11:$FF$122,14,FALSE),IF($C$9="julio",VLOOKUP(A135,'TC regional'!$ET$11:$FG$122,14,FALSE),IF($C$9="agosto",VLOOKUP(A135,'TC regional'!$EU$11:$FH$122,14,FALSE),IF($C$9="septiembre",VLOOKUP(A135,'TC regional'!$EV$11:$FI$122,14,FALSE),IF($C$9="octubre",VLOOKUP(A135,'TC regional'!$EW$11:$FJ$122,14,FALSE),IF($C$9="noviembre",VLOOKUP(A135,'TC regional'!$EX$11:$FK$122,14,FALSE),IF($C$9="diciembre",VLOOKUP(A135,'TC regional'!$EY$11:$FL$122,14,FALSE),"")))))))))))),"") ->  | C135: =+IFERROR(VLOOKUP($D135,'TC regional'!$H$11:$M$118,4,FALSE),"") ->  | E135: =+IFERROR(VLOOKUP(B135,'TC regional'!$W$11:$X$122,2,FALSE),"") ->  | F135: =+VLOOKUP($D135,'TC regional (2)'!$V$4:$EK$111,F$110,FALSE) ->  | I135: =+VLOOKUP($D135,'TC regional (2)'!$V$4:$EK$111,I$110,FALSE) ->  | J135: =+VLOOKUP($D135,'TC regional (2)'!$V$4:$EK$111,J$110,FALSE) ->  | K135: =+VLOOKUP($D135,'TC regional (2)'!$V$4:$EK$111,K$110,FALSE) -> 
A136: 25 | B136: =IFERROR(IF($C$9="Enero",VLOOKUP(A136,'TC regional'!$EN$11:$FA$122,14,FALSE),IF($C$9="Febrero",VLOOKUP(A136,'TC regional'!$EO$11:$FB$122,14,FALSE),IF($C$9="marzo",VLOOKUP(A136,'TC regional'!$EP$11:$FC$122,14,FALSE),IF($C$9="Abril",VLOOKUP(A136,'TC regional'!$EQ$11:$FD$122,14,FALSE),IF($C$9="mayo",VLOOKUP(A136,'TC regional'!$ER$11:$FE$122,14,FALSE),IF($C$9="junio",VLOOKUP(A136,'TC regional'!$ES$11:$FF$122,14,FALSE),IF($C$9="julio",VLOOKUP(A136,'TC regional'!$ET$11:$FG$122,14,FALSE),IF($C$9="agosto",VLOOKUP(A136,'TC regional'!$EU$11:$FH$122,14,FALSE),IF($C$9="septiembre",VLOOKUP(A136,'TC regional'!$EV$11:$FI$122,14,FALSE),IF($C$9="octubre",VLOOKUP(A136,'TC regional'!$EW$11:$FJ$122,14,FALSE),IF($C$9="noviembre",VLOOKUP(A136,'TC regional'!$EX$11:$FK$122,14,FALSE),IF($C$9="diciembre",VLOOKUP(A136,'TC regional'!$EY$11:$FL$122,14,FALSE),"")))))))))))),"") ->  | C136: =+IFERROR(VLOOKUP($D136,'TC regional'!$H$11:$M$118,4,FALSE),"") ->  | E136: =+IFERROR(VLOOKUP(B136,'TC regional'!$W$11:$X$122,2,FALSE),"") ->  | F136: =+VLOOKUP($D136,'TC regional (2)'!$V$4:$EK$111,F$110,FALSE) ->  | I136: =+VLOOKUP($D136,'TC regional (2)'!$V$4:$EK$111,I$110,FALSE) ->  | J136: =+VLOOKUP($D136,'TC regional (2)'!$V$4:$EK$111,J$110,FALSE) ->  | K136: =+VLOOKUP($D136,'TC regional (2)'!$V$4:$EK$111,K$110,FALSE) -> 
A137: 26 | B137: =IFERROR(IF($C$9="Enero",VLOOKUP(A137,'TC regional'!$EN$11:$FA$122,14,FALSE),IF($C$9="Febrero",VLOOKUP(A137,'TC regional'!$EO$11:$FB$122,14,FALSE),IF($C$9="marzo",VLOOKUP(A137,'TC regional'!$EP$11:$FC$122,14,FALSE),IF($C$9="Abril",VLOOKUP(A137,'TC regional'!$EQ$11:$FD$122,14,FALSE),IF($C$9="mayo",VLOOKUP(A137,'TC regional'!$ER$11:$FE$122,14,FALSE),IF($C$9="junio",VLOOKUP(A137,'TC regional'!$ES$11:$FF$122,14,FALSE),IF($C$9="julio",VLOOKUP(A137,'TC regional'!$ET$11:$FG$122,14,FALSE),IF($C$9="agosto",VLOOKUP(A137,'TC regional'!$EU$11:$FH$122,14,FALSE),IF($C$9="septiembre",VLOOKUP(A137,'TC regional'!$EV$11:$FI$122,14,FALSE),IF($C$9="octubre",VLOOKUP(A137,'TC regional'!$EW$11:$FJ$122,14,FALSE),IF($C$9="noviembre",VLOOKUP(A137,'TC regional'!$EX$11:$FK$122,14,FALSE),IF($C$9="diciembre",VLOOKUP(A137,'TC regional'!$EY$11:$FL$122,14,FALSE),"")))))))))))),"") ->  | C137: =+IFERROR(VLOOKUP($D137,'TC regional'!$H$11:$M$118,4,FALSE),"") ->  | E137: =+IFERROR(VLOOKUP(B137,'TC regional'!$W$11:$X$122,2,FALSE),"") ->  | F137: =+VLOOKUP($D137,'TC regional (2)'!$V$4:$EK$111,F$110,FALSE) ->  | I137: =+VLOOKUP($D137,'TC regional (2)'!$V$4:$EK$111,I$110,FALSE) ->  | J137: =+VLOOKUP($D137,'TC regional (2)'!$V$4:$EK$111,J$110,FALSE) ->  | K137: =+VLOOKUP($D137,'TC regional (2)'!$V$4:$EK$111,K$110,FALSE) -> 
A138: 27 | B138: =IFERROR(IF($C$9="Enero",VLOOKUP(A138,'TC regional'!$EN$11:$FA$122,14,FALSE),IF($C$9="Febrero",VLOOKUP(A138,'TC regional'!$EO$11:$FB$122,14,FALSE),IF($C$9="marzo",VLOOKUP(A138,'TC regional'!$EP$11:$FC$122,14,FALSE),IF($C$9="Abril",VLOOKUP(A138,'TC regional'!$EQ$11:$FD$122,14,FALSE),IF($C$9="mayo",VLOOKUP(A138,'TC regional'!$ER$11:$FE$122,14,FALSE),IF($C$9="junio",VLOOKUP(A138,'TC regional'!$ES$11:$FF$122,14,FALSE),IF($C$9="julio",VLOOKUP(A138,'TC regional'!$ET$11:$FG$122,14,FALSE),IF($C$9="agosto",VLOOKUP(A138,'TC regional'!$EU$11:$FH$122,14,FALSE),IF($C$9="septiembre",VLOOKUP(A138,'TC regional'!$EV$11:$FI$122,14,FALSE),IF($C$9="octubre",VLOOKUP(A138,'TC regional'!$EW$11:$FJ$122,14,FALSE),IF($C$9="noviembre",VLOOKUP(A138,'TC regional'!$EX$11:$FK$122,14,FALSE),IF($C$9="diciembre",VLOOKUP(A138,'TC regional'!$EY$11:$FL$122,14,FALSE),"")))))))))))),"") ->  | C138: =+IFERROR(VLOOKUP($D138,'TC regional'!$H$11:$M$118,4,FALSE),"") ->  | E138: =+IFERROR(VLOOKUP(B138,'TC regional'!$W$11:$X$122,2,FALSE),"") ->  | F138: =+VLOOKUP($D138,'TC regional (2)'!$V$4:$EK$111,F$110,FALSE) ->  | I138: =+VLOOKUP($D138,'TC regional (2)'!$V$4:$EK$111,I$110,FALSE) ->  | J138: =+VLOOKUP($D138,'TC regional (2)'!$V$4:$EK$111,J$110,FALSE) ->  | K138: =+VLOOKUP($D138,'TC regional (2)'!$V$4:$EK$111,K$110,FALSE) -> 
A139: 28 | B139: =IFERROR(IF($C$9="Enero",VLOOKUP(A139,'TC regional'!$EN$11:$FA$122,14,FALSE),IF($C$9="Febrero",VLOOKUP(A139,'TC regional'!$EO$11:$FB$122,14,FALSE),IF($C$9="marzo",VLOOKUP(A139,'TC regional'!$EP$11:$FC$122,14,FALSE),IF($C$9="Abril",VLOOKUP(A139,'TC regional'!$EQ$11:$FD$122,14,FALSE),IF($C$9="mayo",VLOOKUP(A139,'TC regional'!$ER$11:$FE$122,14,FALSE),IF($C$9="junio",VLOOKUP(A139,'TC regional'!$ES$11:$FF$122,14,FALSE),IF($C$9="julio",VLOOKUP(A139,'TC regional'!$ET$11:$FG$122,14,FALSE),IF($C$9="agosto",VLOOKUP(A139,'TC regional'!$EU$11:$FH$122,14,FALSE),IF($C$9="septiembre",VLOOKUP(A139,'TC regional'!$EV$11:$FI$122,14,FALSE),IF($C$9="octubre",VLOOKUP(A139,'TC regional'!$EW$11:$FJ$122,14,FALSE),IF($C$9="noviembre",VLOOKUP(A139,'TC regional'!$EX$11:$FK$122,14,FALSE),IF($C$9="diciembre",VLOOKUP(A139,'TC regional'!$EY$11:$FL$122,14,FALSE),"")))))))))))),"") ->  | C139: =+IFERROR(VLOOKUP($D139,'TC regional'!$H$11:$M$118,4,FALSE),"") ->  | E139: =+IFERROR(VLOOKUP(B139,'TC regional'!$W$11:$X$122,2,FALSE),"") ->  | F139: =+VLOOKUP($D139,'TC regional (2)'!$V$4:$EK$111,F$110,FALSE) ->  | I139: =+VLOOKUP($D139,'TC regional (2)'!$V$4:$EK$111,I$110,FALSE) ->  | J139: =+VLOOKUP($D139,'TC regional (2)'!$V$4:$EK$111,J$110,FALSE) ->  | K139: =+VLOOKUP($D139,'TC regional (2)'!$V$4:$EK$111,K$110,FALSE) -> 
A140: 29 | B140: =IFERROR(IF($C$9="Enero",VLOOKUP(A140,'TC regional'!$EN$11:$FA$122,14,FALSE),IF($C$9="Febrero",VLOOKUP(A140,'TC regional'!$EO$11:$FB$122,14,FALSE),IF($C$9="marzo",VLOOKUP(A140,'TC regional'!$EP$11:$FC$122,14,FALSE),IF($C$9="Abril",VLOOKUP(A140,'TC regional'!$EQ$11:$FD$122,14,FALSE),IF($C$9="mayo",VLOOKUP(A140,'TC regional'!$ER$11:$FE$122,14,FALSE),IF($C$9="junio",VLOOKUP(A140,'TC regional'!$ES$11:$FF$122,14,FALSE),IF($C$9="julio",VLOOKUP(A140,'TC regional'!$ET$11:$FG$122,14,FALSE),IF($C$9="agosto",VLOOKUP(A140,'TC regional'!$EU$11:$FH$122,14,FALSE),IF($C$9="septiembre",VLOOKUP(A140,'TC regional'!$EV$11:$FI$122,14,FALSE),IF($C$9="octubre",VLOOKUP(A140,'TC regional'!$EW$11:$FJ$122,14,FALSE),IF($C$9="noviembre",VLOOKUP(A140,'TC regional'!$EX$11:$FK$122,14,FALSE),IF($C$9="diciembre",VLOOKUP(A140,'TC regional'!$EY$11:$FL$122,14,FALSE),"")))))))))))),"") ->  | C140: =+IFERROR(VLOOKUP($D140,'TC regional'!$H$11:$M$118,4,FALSE),"") ->  | E140: =+IFERROR(VLOOKUP(B140,'TC regional'!$W$11:$X$122,2,FALSE),"") ->  | F140: =+VLOOKUP($D140,'TC regional (2)'!$V$4:$EK$111,F$110,FALSE) ->  | I140: =+VLOOKUP($D140,'TC regional (2)'!$V$4:$EK$111,I$110,FALSE) ->  | J140: =+VLOOKUP($D140,'TC regional (2)'!$V$4:$EK$111,J$110,FALSE) ->  | K140: =+VLOOKUP($D140,'TC regional (2)'!$V$4:$EK$111,K$110,FALSE) -> 
A141: 30 | B141: =IFERROR(IF($C$9="Enero",VLOOKUP(A141,'TC regional'!$EN$11:$FA$122,14,FALSE),IF($C$9="Febrero",VLOOKUP(A141,'TC regional'!$EO$11:$FB$122,14,FALSE),IF($C$9="marzo",VLOOKUP(A141,'TC regional'!$EP$11:$FC$122,14,FALSE),IF($C$9="Abril",VLOOKUP(A141,'TC regional'!$EQ$11:$FD$122,14,FALSE),IF($C$9="mayo",VLOOKUP(A141,'TC regional'!$ER$11:$FE$122,14,FALSE),IF($C$9="junio",VLOOKUP(A141,'TC regional'!$ES$11:$FF$122,14,FALSE),IF($C$9="julio",VLOOKUP(A141,'TC regional'!$ET$11:$FG$122,14,FALSE),IF($C$9="agosto",VLOOKUP(A141,'TC regional'!$EU$11:$FH$122,14,FALSE),IF($C$9="septiembre",VLOOKUP(A141,'TC regional'!$EV$11:$FI$122,14,FALSE),IF($C$9="octubre",VLOOKUP(A141,'TC regional'!$EW$11:$FJ$122,14,FALSE),IF($C$9="noviembre",VLOOKUP(A141,'TC regional'!$EX$11:$FK$122,14,FALSE),IF($C$9="diciembre",VLOOKUP(A141,'TC regional'!$EY$11:$FL$122,14,FALSE),"")))))))))))),"") ->  | C141: =+IFERROR(VLOOKUP($D141,'TC regional'!$H$11:$M$118,4,FALSE),"") ->  | E141: =+IFERROR(VLOOKUP(B141,'TC regional'!$W$11:$X$122,2,FALSE),"") ->  | F141: =+VLOOKUP($D141,'TC regional (2)'!$V$4:$EK$111,F$110,FALSE) ->  | I141: =+VLOOKUP($D141,'TC regional (2)'!$V$4:$EK$111,I$110,FALSE) ->  | J141: =+VLOOKUP($D141,'TC regional (2)'!$V$4:$EK$111,J$110,FALSE) ->  | K141: =+VLOOKUP($D141,'TC regional (2)'!$V$4:$EK$111,K$110,FALSE) -> 
A142: 31 | B142: =IFERROR(IF($C$9="Enero",VLOOKUP(A142,'TC regional'!$EN$11:$FA$122,14,FALSE),IF($C$9="Febrero",VLOOKUP(A142,'TC regional'!$EO$11:$FB$122,14,FALSE),IF($C$9="marzo",VLOOKUP(A142,'TC regional'!$EP$11:$FC$122,14,FALSE),IF($C$9="Abril",VLOOKUP(A142,'TC regional'!$EQ$11:$FD$122,14,FALSE),IF($C$9="mayo",VLOOKUP(A142,'TC regional'!$ER$11:$FE$122,14,FALSE),IF($C$9="junio",VLOOKUP(A142,'TC regional'!$ES$11:$FF$122,14,FALSE),IF($C$9="julio",VLOOKUP(A142,'TC regional'!$ET$11:$FG$122,14,FALSE),IF($C$9="agosto",VLOOKUP(A142,'TC regional'!$EU$11:$FH$122,14,FALSE),IF($C$9="septiembre",VLOOKUP(A142,'TC regional'!$EV$11:$FI$122,14,FALSE),IF($C$9="octubre",VLOOKUP(A142,'TC regional'!$EW$11:$FJ$122,14,FALSE),IF($C$9="noviembre",VLOOKUP(A142,'TC regional'!$EX$11:$FK$122,14,FALSE),IF($C$9="diciembre",VLOOKUP(A142,'TC regional'!$EY$11:$FL$122,14,FALSE),"")))))))))))),"") ->  | C142: =+IFERROR(VLOOKUP($D142,'TC regional'!$H$11:$M$118,4,FALSE),"") ->  | E142: =+IFERROR(VLOOKUP(B142,'TC regional'!$W$11:$X$122,2,FALSE),"") ->  | F142: =+VLOOKUP($D142,'TC regional (2)'!$V$4:$EK$111,F$110,FALSE) ->  | I142: =+VLOOKUP($D142,'TC regional (2)'!$V$4:$EK$111,I$110,FALSE) ->  | J142: =+VLOOKUP($D142,'TC regional (2)'!$V$4:$EK$111,J$110,FALSE) ->  | K142: =+VLOOKUP($D142,'TC regional (2)'!$V$4:$EK$111,K$110,FALSE) -> 
A143: 32 | B143: =IFERROR(IF($C$9="Enero",VLOOKUP(A143,'TC regional'!$EN$11:$FA$122,14,FALSE),IF($C$9="Febrero",VLOOKUP(A143,'TC regional'!$EO$11:$FB$122,14,FALSE),IF($C$9="marzo",VLOOKUP(A143,'TC regional'!$EP$11:$FC$122,14,FALSE),IF($C$9="Abril",VLOOKUP(A143,'TC regional'!$EQ$11:$FD$122,14,FALSE),IF($C$9="mayo",VLOOKUP(A143,'TC regional'!$ER$11:$FE$122,14,FALSE),IF($C$9="junio",VLOOKUP(A143,'TC regional'!$ES$11:$FF$122,14,FALSE),IF($C$9="julio",VLOOKUP(A143,'TC regional'!$ET$11:$FG$122,14,FALSE),IF($C$9="agosto",VLOOKUP(A143,'TC regional'!$EU$11:$FH$122,14,FALSE),IF($C$9="septiembre",VLOOKUP(A143,'TC regional'!$EV$11:$FI$122,14,FALSE),IF($C$9="octubre",VLOOKUP(A143,'TC regional'!$EW$11:$FJ$122,14,FALSE),IF($C$9="noviembre",VLOOKUP(A143,'TC regional'!$EX$11:$FK$122,14,FALSE),IF($C$9="diciembre",VLOOKUP(A143,'TC regional'!$EY$11:$FL$122,14,FALSE),"")))))))))))),"") ->  | C143: =+IFERROR(VLOOKUP($D143,'TC regional'!$H$11:$M$118,4,FALSE),"") ->  | E143: =+IFERROR(VLOOKUP(B143,'TC regional'!$W$11:$X$122,2,FALSE),"") ->  | F143: =+VLOOKUP($D143,'TC regional (2)'!$V$4:$EK$111,F$110,FALSE) ->  | I143: =+VLOOKUP($D143,'TC regional (2)'!$V$4:$EK$111,I$110,FALSE) ->  | J143: =+VLOOKUP($D143,'TC regional (2)'!$V$4:$EK$111,J$110,FALSE) ->  | K143: =+VLOOKUP($D143,'TC regional (2)'!$V$4:$EK$111,K$110,FALSE) -> 
A144: 33 | B144: =IFERROR(IF($C$9="Enero",VLOOKUP(A144,'TC regional'!$EN$11:$FA$122,14,FALSE),IF($C$9="Febrero",VLOOKUP(A144,'TC regional'!$EO$11:$FB$122,14,FALSE),IF($C$9="marzo",VLOOKUP(A144,'TC regional'!$EP$11:$FC$122,14,FALSE),IF($C$9="Abril",VLOOKUP(A144,'TC regional'!$EQ$11:$FD$122,14,FALSE),IF($C$9="mayo",VLOOKUP(A144,'TC regional'!$ER$11:$FE$122,14,FALSE),IF($C$9="junio",VLOOKUP(A144,'TC regional'!$ES$11:$FF$122,14,FALSE),IF($C$9="julio",VLOOKUP(A144,'TC regional'!$ET$11:$FG$122,14,FALSE),IF($C$9="agosto",VLOOKUP(A144,'TC regional'!$EU$11:$FH$122,14,FALSE),IF($C$9="septiembre",VLOOKUP(A144,'TC regional'!$EV$11:$FI$122,14,FALSE),IF($C$9="octubre",VLOOKUP(A144,'TC regional'!$EW$11:$FJ$122,14,FALSE),IF($C$9="noviembre",VLOOKUP(A144,'TC regional'!$EX$11:$FK$122,14,FALSE),IF($C$9="diciembre",VLOOKUP(A144,'TC regional'!$EY$11:$FL$122,14,FALSE),"")))))))))))),"") ->  | C144: =+IFERROR(VLOOKUP($D144,'TC regional'!$H$11:$M$118,4,FALSE),"") ->  | D144: =+B144 ->  | E144: =+IFERROR(VLOOKUP(B144,'TC regional'!$W$11:$X$122,2,FALSE),"") ->  | F144: =+VLOOKUP($D144,'TC regional (2)'!$V$4:$EK$111,F$110,FALSE) ->  | I144: =+VLOOKUP($D144,'TC regional (2)'!$V$4:$EK$111,I$110,FALSE) ->  | J144: =+VLOOKUP($D144,'TC regional (2)'!$V$4:$EK$111,J$110,FALSE) ->  | K144: =+VLOOKUP($D144,'TC regional (2)'!$V$4:$EK$111,K$110,FALSE) -> 
A145: 34 | B145: =IFERROR(IF($C$9="Enero",VLOOKUP(A145,'TC regional'!$EN$11:$FA$122,14,FALSE),IF($C$9="Febrero",VLOOKUP(A145,'TC regional'!$EO$11:$FB$122,14,FALSE),IF($C$9="marzo",VLOOKUP(A145,'TC regional'!$EP$11:$FC$122,14,FALSE),IF($C$9="Abril",VLOOKUP(A145,'TC regional'!$EQ$11:$FD$122,14,FALSE),IF($C$9="mayo",VLOOKUP(A145,'TC regional'!$ER$11:$FE$122,14,FALSE),IF($C$9="junio",VLOOKUP(A145,'TC regional'!$ES$11:$FF$122,14,FALSE),IF($C$9="julio",VLOOKUP(A145,'TC regional'!$ET$11:$FG$122,14,FALSE),IF($C$9="agosto",VLOOKUP(A145,'TC regional'!$EU$11:$FH$122,14,FALSE),IF($C$9="septiembre",VLOOKUP(A145,'TC regional'!$EV$11:$FI$122,14,FALSE),IF($C$9="octubre",VLOOKUP(A145,'TC regional'!$EW$11:$FJ$122,14,FALSE),IF($C$9="noviembre",VLOOKUP(A145,'TC regional'!$EX$11:$FK$122,14,FALSE),IF($C$9="diciembre",VLOOKUP(A145,'TC regional'!$EY$11:$FL$122,14,FALSE),"")))))))))))),"") ->  | C145: =+IFERROR(VLOOKUP($D145,'TC regional'!$H$11:$M$118,4,FALSE),"") ->  | E145: =+IFERROR(VLOOKUP(B145,'TC regional'!$W$11:$X$122,2,FALSE),"") ->  | F145: =+VLOOKUP($D145,'TC regional (2)'!$V$4:$EK$111,F$110,FALSE) ->  | I145: =+VLOOKUP($D145,'TC regional (2)'!$V$4:$EK$111,I$110,FALSE) ->  | J145: =+VLOOKUP($D145,'TC regional (2)'!$V$4:$EK$111,J$110,FALSE) ->  | K145: =+VLOOKUP($D145,'TC regional (2)'!$V$4:$EK$111,K$110,FALSE) -> 
A146: 35 | B146: =IFERROR(IF($C$9="Enero",VLOOKUP(A146,'TC regional'!$EN$11:$FA$122,14,FALSE),IF($C$9="Febrero",VLOOKUP(A146,'TC regional'!$EO$11:$FB$122,14,FALSE),IF($C$9="marzo",VLOOKUP(A146,'TC regional'!$EP$11:$FC$122,14,FALSE),IF($C$9="Abril",VLOOKUP(A146,'TC regional'!$EQ$11:$FD$122,14,FALSE),IF($C$9="mayo",VLOOKUP(A146,'TC regional'!$ER$11:$FE$122,14,FALSE),IF($C$9="junio",VLOOKUP(A146,'TC regional'!$ES$11:$FF$122,14,FALSE),IF($C$9="julio",VLOOKUP(A146,'TC regional'!$ET$11:$FG$122,14,FALSE),IF($C$9="agosto",VLOOKUP(A146,'TC regional'!$EU$11:$FH$122,14,FALSE),IF($C$9="septiembre",VLOOKUP(A146,'TC regional'!$EV$11:$FI$122,14,FALSE),IF($C$9="octubre",VLOOKUP(A146,'TC regional'!$EW$11:$FJ$122,14,FALSE),IF($C$9="noviembre",VLOOKUP(A146,'TC regional'!$EX$11:$FK$122,14,FALSE),IF($C$9="diciembre",VLOOKUP(A146,'TC regional'!$EY$11:$FL$122,14,FALSE),"")))))))))))),"") ->  | C146: =+IFERROR(VLOOKUP($D146,'TC regional'!$H$11:$M$118,4,FALSE),"") ->  | E146: =+IFERROR(VLOOKUP(B146,'TC regional'!$W$11:$X$122,2,FALSE),"") ->  | F146: =+VLOOKUP($D146,'TC regional (2)'!$V$4:$EK$111,F$110,FALSE) ->  | I146: =+VLOOKUP($D146,'TC regional (2)'!$V$4:$EK$111,I$110,FALSE) ->  | J146: =+VLOOKUP($D146,'TC regional (2)'!$V$4:$EK$111,J$110,FALSE) ->  | K146: =+VLOOKUP($D146,'TC regional (2)'!$V$4:$EK$111,K$110,FALSE) -> 
A147: 36 | B147: =IFERROR(IF($C$9="Enero",VLOOKUP(A147,'TC regional'!$EN$11:$FA$122,14,FALSE),IF($C$9="Febrero",VLOOKUP(A147,'TC regional'!$EO$11:$FB$122,14,FALSE),IF($C$9="marzo",VLOOKUP(A147,'TC regional'!$EP$11:$FC$122,14,FALSE),IF($C$9="Abril",VLOOKUP(A147,'TC regional'!$EQ$11:$FD$122,14,FALSE),IF($C$9="mayo",VLOOKUP(A147,'TC regional'!$ER$11:$FE$122,14,FALSE),IF($C$9="junio",VLOOKUP(A147,'TC regional'!$ES$11:$FF$122,14,FALSE),IF($C$9="julio",VLOOKUP(A147,'TC regional'!$ET$11:$FG$122,14,FALSE),IF($C$9="agosto",VLOOKUP(A147,'TC regional'!$EU$11:$FH$122,14,FALSE),IF($C$9="septiembre",VLOOKUP(A147,'TC regional'!$EV$11:$FI$122,14,FALSE),IF($C$9="octubre",VLOOKUP(A147,'TC regional'!$EW$11:$FJ$122,14,FALSE),IF($C$9="noviembre",VLOOKUP(A147,'TC regional'!$EX$11:$FK$122,14,FALSE),IF($C$9="diciembre",VLOOKUP(A147,'TC regional'!$EY$11:$FL$122,14,FALSE),"")))))))))))),"") ->  | C147: =+IFERROR(VLOOKUP($D147,'TC regional'!$H$11:$M$118,4,FALSE),"") ->  | E147: =+IFERROR(VLOOKUP(B147,'TC regional'!$W$11:$X$122,2,FALSE),"") ->  | F147: =+VLOOKUP($D147,'TC regional (2)'!$V$4:$EK$111,F$110,FALSE) ->  | I147: =+VLOOKUP($D147,'TC regional (2)'!$V$4:$EK$111,I$110,FALSE) ->  | J147: =+VLOOKUP($D147,'TC regional (2)'!$V$4:$EK$111,J$110,FALSE) ->  | K147: =+VLOOKUP($D147,'TC regional (2)'!$V$4:$EK$111,K$110,FALSE) -> 
A148: 37 | B148: =IFERROR(IF($C$9="Enero",VLOOKUP(A148,'TC regional'!$EN$11:$FA$122,14,FALSE),IF($C$9="Febrero",VLOOKUP(A148,'TC regional'!$EO$11:$FB$122,14,FALSE),IF($C$9="marzo",VLOOKUP(A148,'TC regional'!$EP$11:$FC$122,14,FALSE),IF($C$9="Abril",VLOOKUP(A148,'TC regional'!$EQ$11:$FD$122,14,FALSE),IF($C$9="mayo",VLOOKUP(A148,'TC regional'!$ER$11:$FE$122,14,FALSE),IF($C$9="junio",VLOOKUP(A148,'TC regional'!$ES$11:$FF$122,14,FALSE),IF($C$9="julio",VLOOKUP(A148,'TC regional'!$ET$11:$FG$122,14,FALSE),IF($C$9="agosto",VLOOKUP(A148,'TC regional'!$EU$11:$FH$122,14,FALSE),IF($C$9="septiembre",VLOOKUP(A148,'TC regional'!$EV$11:$FI$122,14,FALSE),IF($C$9="octubre",VLOOKUP(A148,'TC regional'!$EW$11:$FJ$122,14,FALSE),IF($C$9="noviembre",VLOOKUP(A148,'TC regional'!$EX$11:$FK$122,14,FALSE),IF($C$9="diciembre",VLOOKUP(A148,'TC regional'!$EY$11:$FL$122,14,FALSE),"")))))))))))),"") ->  | C148: =+IFERROR(VLOOKUP($D148,'TC regional'!$H$11:$M$118,4,FALSE),"") ->  | E148: =+IFERROR(VLOOKUP(B148,'TC regional'!$W$11:$X$122,2,FALSE),"") ->  | F148: =+VLOOKUP($D148,'TC regional (2)'!$V$4:$EK$111,F$110,FALSE) ->  | I148: =+VLOOKUP($D148,'TC regional (2)'!$V$4:$EK$111,I$110,FALSE) ->  | J148: =+VLOOKUP($D148,'TC regional (2)'!$V$4:$EK$111,J$110,FALSE) ->  | K148: =+VLOOKUP($D148,'TC regional (2)'!$V$4:$EK$111,K$110,FALSE) -> 
A149: 38 | B149: =IFERROR(IF($C$9="Enero",VLOOKUP(A149,'TC regional'!$EN$11:$FA$122,14,FALSE),IF($C$9="Febrero",VLOOKUP(A149,'TC regional'!$EO$11:$FB$122,14,FALSE),IF($C$9="marzo",VLOOKUP(A149,'TC regional'!$EP$11:$FC$122,14,FALSE),IF($C$9="Abril",VLOOKUP(A149,'TC regional'!$EQ$11:$FD$122,14,FALSE),IF($C$9="mayo",VLOOKUP(A149,'TC regional'!$ER$11:$FE$122,14,FALSE),IF($C$9="junio",VLOOKUP(A149,'TC regional'!$ES$11:$FF$122,14,FALSE),IF($C$9="julio",VLOOKUP(A149,'TC regional'!$ET$11:$FG$122,14,FALSE),IF($C$9="agosto",VLOOKUP(A149,'TC regional'!$EU$11:$FH$122,14,FALSE),IF($C$9="septiembre",VLOOKUP(A149,'TC regional'!$EV$11:$FI$122,14,FALSE),IF($C$9="octubre",VLOOKUP(A149,'TC regional'!$EW$11:$FJ$122,14,FALSE),IF($C$9="noviembre",VLOOKUP(A149,'TC regional'!$EX$11:$FK$122,14,FALSE),IF($C$9="diciembre",VLOOKUP(A149,'TC regional'!$EY$11:$FL$122,14,FALSE),"")))))))))))),"") ->  | C149: =+IFERROR(VLOOKUP($D149,'TC regional'!$H$11:$M$118,4,FALSE),"") ->  | E149: =+IFERROR(VLOOKUP(B149,'TC regional'!$W$11:$X$122,2,FALSE),"") ->  | F149: =+VLOOKUP($D149,'TC regional (2)'!$V$4:$EK$111,F$110,FALSE) ->  | I149: =+VLOOKUP($D149,'TC regional (2)'!$V$4:$EK$111,I$110,FALSE) ->  | J149: =+VLOOKUP($D149,'TC regional (2)'!$V$4:$EK$111,J$110,FALSE) ->  | K149: =+VLOOKUP($D149,'TC regional (2)'!$V$4:$EK$111,K$110,FALSE) -> 
A150: 39 | B150: =IFERROR(IF($C$9="Enero",VLOOKUP(A150,'TC regional'!$EN$11:$FA$122,14,FALSE),IF($C$9="Febrero",VLOOKUP(A150,'TC regional'!$EO$11:$FB$122,14,FALSE),IF($C$9="marzo",VLOOKUP(A150,'TC regional'!$EP$11:$FC$122,14,FALSE),IF($C$9="Abril",VLOOKUP(A150,'TC regional'!$EQ$11:$FD$122,14,FALSE),IF($C$9="mayo",VLOOKUP(A150,'TC regional'!$ER$11:$FE$122,14,FALSE),IF($C$9="junio",VLOOKUP(A150,'TC regional'!$ES$11:$FF$122,14,FALSE),IF($C$9="julio",VLOOKUP(A150,'TC regional'!$ET$11:$FG$122,14,FALSE),IF($C$9="agosto",VLOOKUP(A150,'TC regional'!$EU$11:$FH$122,14,FALSE),IF($C$9="septiembre",VLOOKUP(A150,'TC regional'!$EV$11:$FI$122,14,FALSE),IF($C$9="octubre",VLOOKUP(A150,'TC regional'!$EW$11:$FJ$122,14,FALSE),IF($C$9="noviembre",VLOOKUP(A150,'TC regional'!$EX$11:$FK$122,14,FALSE),IF($C$9="diciembre",VLOOKUP(A150,'TC regional'!$EY$11:$FL$122,14,FALSE),"")))))))))))),"") ->  | C150: =+IFERROR(VLOOKUP($D150,'TC regional'!$H$11:$M$118,4,FALSE),"") ->  | E150: =+IFERROR(VLOOKUP(B150,'TC regional'!$W$11:$X$122,2,FALSE),"") ->  | F150: =+VLOOKUP($D150,'TC regional (2)'!$V$4:$EK$111,F$110,FALSE) ->  | I150: =+VLOOKUP($D150,'TC regional (2)'!$V$4:$EK$111,I$110,FALSE) ->  | J150: =+VLOOKUP($D150,'TC regional (2)'!$V$4:$EK$111,J$110,FALSE) ->  | K150: =+VLOOKUP($D150,'TC regional (2)'!$V$4:$EK$111,K$110,FALSE) -> 
A151: 40 | B151: =IFERROR(IF($C$9="Enero",VLOOKUP(A151,'TC regional'!$EN$11:$FA$122,14,FALSE),IF($C$9="Febrero",VLOOKUP(A151,'TC regional'!$EO$11:$FB$122,14,FALSE),IF($C$9="marzo",VLOOKUP(A151,'TC regional'!$EP$11:$FC$122,14,FALSE),IF($C$9="Abril",VLOOKUP(A151,'TC regional'!$EQ$11:$FD$122,14,FALSE),IF($C$9="mayo",VLOOKUP(A151,'TC regional'!$ER$11:$FE$122,14,FALSE),IF($C$9="junio",VLOOKUP(A151,'TC regional'!$ES$11:$FF$122,14,FALSE),IF($C$9="julio",VLOOKUP(A151,'TC regional'!$ET$11:$FG$122,14,FALSE),IF($C$9="agosto",VLOOKUP(A151,'TC regional'!$EU$11:$FH$122,14,FALSE),IF($C$9="septiembre",VLOOKUP(A151,'TC regional'!$EV$11:$FI$122,14,FALSE),IF($C$9="octubre",VLOOKUP(A151,'TC regional'!$EW$11:$FJ$122,14,FALSE),IF($C$9="noviembre",VLOOKUP(A151,'TC regional'!$EX$11:$FK$122,14,FALSE),IF($C$9="diciembre",VLOOKUP(A151,'TC regional'!$EY$11:$FL$122,14,FALSE),"")))))))))))),"") ->  | C151: =+IFERROR(VLOOKUP($D151,'TC regional'!$H$11:$M$118,4,FALSE),"") ->  | E151: =+IFERROR(VLOOKUP(B151,'TC regional'!$W$11:$X$122,2,FALSE),"") ->  | F151: =+VLOOKUP($D151,'TC regional (2)'!$V$4:$EK$111,F$110,FALSE) ->  | I151: =+VLOOKUP($D151,'TC regional (2)'!$V$4:$EK$111,I$110,FALSE) ->  | J151: =+VLOOKUP($D151,'TC regional (2)'!$V$4:$EK$111,J$110,FALSE) ->  | K151: =+VLOOKUP($D151,'TC regional (2)'!$V$4:$EK$111,K$110,FALSE) -> 
A152: 41 | B152: =IFERROR(IF($C$9="Enero",VLOOKUP(A152,'TC regional'!$EN$11:$FA$122,14,FALSE),IF($C$9="Febrero",VLOOKUP(A152,'TC regional'!$EO$11:$FB$122,14,FALSE),IF($C$9="marzo",VLOOKUP(A152,'TC regional'!$EP$11:$FC$122,14,FALSE),IF($C$9="Abril",VLOOKUP(A152,'TC regional'!$EQ$11:$FD$122,14,FALSE),IF($C$9="mayo",VLOOKUP(A152,'TC regional'!$ER$11:$FE$122,14,FALSE),IF($C$9="junio",VLOOKUP(A152,'TC regional'!$ES$11:$FF$122,14,FALSE),IF($C$9="julio",VLOOKUP(A152,'TC regional'!$ET$11:$FG$122,14,FALSE),IF($C$9="agosto",VLOOKUP(A152,'TC regional'!$EU$11:$FH$122,14,FALSE),IF($C$9="septiembre",VLOOKUP(A152,'TC regional'!$EV$11:$FI$122,14,FALSE),IF($C$9="octubre",VLOOKUP(A152,'TC regional'!$EW$11:$FJ$122,14,FALSE),IF($C$9="noviembre",VLOOKUP(A152,'TC regional'!$EX$11:$FK$122,14,FALSE),IF($C$9="diciembre",VLOOKUP(A152,'TC regional'!$EY$11:$FL$122,14,FALSE),"")))))))))))),"") ->  | C152: =+IFERROR(VLOOKUP($D152,'TC regional'!$H$11:$M$118,4,FALSE),"") ->  | E152: =+IFERROR(VLOOKUP(B152,'TC regional'!$W$11:$X$122,2,FALSE),"") ->  | F152: =+VLOOKUP($D152,'TC regional (2)'!$V$4:$EK$111,F$110,FALSE) ->  | I152: =+VLOOKUP($D152,'TC regional (2)'!$V$4:$EK$111,I$110,FALSE) ->  | J152: =+VLOOKUP($D152,'TC regional (2)'!$V$4:$EK$111,J$110,FALSE) ->  | K152: =+VLOOKUP($D152,'TC regional (2)'!$V$4:$EK$111,K$110,FALSE) -> 
A153: 42 | B153: =IFERROR(IF($C$9="Enero",VLOOKUP(A153,'TC regional'!$EN$11:$FA$122,14,FALSE),IF($C$9="Febrero",VLOOKUP(A153,'TC regional'!$EO$11:$FB$122,14,FALSE),IF($C$9="marzo",VLOOKUP(A153,'TC regional'!$EP$11:$FC$122,14,FALSE),IF($C$9="Abril",VLOOKUP(A153,'TC regional'!$EQ$11:$FD$122,14,FALSE),IF($C$9="mayo",VLOOKUP(A153,'TC regional'!$ER$11:$FE$122,14,FALSE),IF($C$9="junio",VLOOKUP(A153,'TC regional'!$ES$11:$FF$122,14,FALSE),IF($C$9="julio",VLOOKUP(A153,'TC regional'!$ET$11:$FG$122,14,FALSE),IF($C$9="agosto",VLOOKUP(A153,'TC regional'!$EU$11:$FH$122,14,FALSE),IF($C$9="septiembre",VLOOKUP(A153,'TC regional'!$EV$11:$FI$122,14,FALSE),IF($C$9="octubre",VLOOKUP(A153,'TC regional'!$EW$11:$FJ$122,14,FALSE),IF($C$9="noviembre",VLOOKUP(A153,'TC regional'!$EX$11:$FK$122,14,FALSE),IF($C$9="diciembre",VLOOKUP(A153,'TC regional'!$EY$11:$FL$122,14,FALSE),"")))))))))))),"") ->  | C153: =+IFERROR(VLOOKUP($D153,'TC regional'!$H$11:$M$118,4,FALSE),"") ->  | E153: =+IFERROR(VLOOKUP(B153,'TC regional'!$W$11:$X$122,2,FALSE),"") ->  | F153: =+VLOOKUP($D153,'TC regional (2)'!$V$4:$EK$111,F$110,FALSE) ->  | I153: =+VLOOKUP($D153,'TC regional (2)'!$V$4:$EK$111,I$110,FALSE) ->  | J153: =+VLOOKUP($D153,'TC regional (2)'!$V$4:$EK$111,J$110,FALSE) ->  | K153: =+VLOOKUP($D153,'TC regional (2)'!$V$4:$EK$111,K$110,FALSE) -> 
A154: 43 | B154: =IFERROR(IF($C$9="Enero",VLOOKUP(A154,'TC regional'!$EN$11:$FA$122,14,FALSE),IF($C$9="Febrero",VLOOKUP(A154,'TC regional'!$EO$11:$FB$122,14,FALSE),IF($C$9="marzo",VLOOKUP(A154,'TC regional'!$EP$11:$FC$122,14,FALSE),IF($C$9="Abril",VLOOKUP(A154,'TC regional'!$EQ$11:$FD$122,14,FALSE),IF($C$9="mayo",VLOOKUP(A154,'TC regional'!$ER$11:$FE$122,14,FALSE),IF($C$9="junio",VLOOKUP(A154,'TC regional'!$ES$11:$FF$122,14,FALSE),IF($C$9="julio",VLOOKUP(A154,'TC regional'!$ET$11:$FG$122,14,FALSE),IF($C$9="agosto",VLOOKUP(A154,'TC regional'!$EU$11:$FH$122,14,FALSE),IF($C$9="septiembre",VLOOKUP(A154,'TC regional'!$EV$11:$FI$122,14,FALSE),IF($C$9="octubre",VLOOKUP(A154,'TC regional'!$EW$11:$FJ$122,14,FALSE),IF($C$9="noviembre",VLOOKUP(A154,'TC regional'!$EX$11:$FK$122,14,FALSE),IF($C$9="diciembre",VLOOKUP(A154,'TC regional'!$EY$11:$FL$122,14,FALSE),"")))))))))))),"") ->  | C154: =+IFERROR(VLOOKUP($D154,'TC regional'!$H$11:$M$118,4,FALSE),"") ->  | E154: =+IFERROR(VLOOKUP(B154,'TC regional'!$W$11:$X$122,2,FALSE),"") ->  | F154: =+VLOOKUP($D154,'TC regional (2)'!$V$4:$EK$111,F$110,FALSE) ->  | I154: =+VLOOKUP($D154,'TC regional (2)'!$V$4:$EK$111,I$110,FALSE) ->  | J154: =+VLOOKUP($D154,'TC regional (2)'!$V$4:$EK$111,J$110,FALSE) ->  | K154: =+VLOOKUP($D154,'TC regional (2)'!$V$4:$EK$111,K$110,FALSE) -> 
A155: 44 | B155: =IFERROR(IF($C$9="Enero",VLOOKUP(A155,'TC regional'!$EN$11:$FA$122,14,FALSE),IF($C$9="Febrero",VLOOKUP(A155,'TC regional'!$EO$11:$FB$122,14,FALSE),IF($C$9="marzo",VLOOKUP(A155,'TC regional'!$EP$11:$FC$122,14,FALSE),IF($C$9="Abril",VLOOKUP(A155,'TC regional'!$EQ$11:$FD$122,14,FALSE),IF($C$9="mayo",VLOOKUP(A155,'TC regional'!$ER$11:$FE$122,14,FALSE),IF($C$9="junio",VLOOKUP(A155,'TC regional'!$ES$11:$FF$122,14,FALSE),IF($C$9="julio",VLOOKUP(A155,'TC regional'!$ET$11:$FG$122,14,FALSE),IF($C$9="agosto",VLOOKUP(A155,'TC regional'!$EU$11:$FH$122,14,FALSE),IF($C$9="septiembre",VLOOKUP(A155,'TC regional'!$EV$11:$FI$122,14,FALSE),IF($C$9="octubre",VLOOKUP(A155,'TC regional'!$EW$11:$FJ$122,14,FALSE),IF($C$9="noviembre",VLOOKUP(A155,'TC regional'!$EX$11:$FK$122,14,FALSE),IF($C$9="diciembre",VLOOKUP(A155,'TC regional'!$EY$11:$FL$122,14,FALSE),"")))))))))))),"") ->  | C155: =+IFERROR(VLOOKUP($D155,'TC regional'!$H$11:$M$118,4,FALSE),"") ->  | E155: =+IFERROR(VLOOKUP(B155,'TC regional'!$W$11:$X$122,2,FALSE),"") ->  | F155: =+VLOOKUP($D155,'TC regional (2)'!$V$4:$EK$111,F$110,FALSE) ->  | I155: =+VLOOKUP($D155,'TC regional (2)'!$V$4:$EK$111,I$110,FALSE) ->  | J155: =+VLOOKUP($D155,'TC regional (2)'!$V$4:$EK$111,J$110,FALSE) ->  | K155: =+VLOOKUP($D155,'TC regional (2)'!$V$4:$EK$111,K$110,FALSE) -> 
A156: 45 | B156: =IFERROR(IF($C$9="Enero",VLOOKUP(A156,'TC regional'!$EN$11:$FA$122,14,FALSE),IF($C$9="Febrero",VLOOKUP(A156,'TC regional'!$EO$11:$FB$122,14,FALSE),IF($C$9="marzo",VLOOKUP(A156,'TC regional'!$EP$11:$FC$122,14,FALSE),IF($C$9="Abril",VLOOKUP(A156,'TC regional'!$EQ$11:$FD$122,14,FALSE),IF($C$9="mayo",VLOOKUP(A156,'TC regional'!$ER$11:$FE$122,14,FALSE),IF($C$9="junio",VLOOKUP(A156,'TC regional'!$ES$11:$FF$122,14,FALSE),IF($C$9="julio",VLOOKUP(A156,'TC regional'!$ET$11:$FG$122,14,FALSE),IF($C$9="agosto",VLOOKUP(A156,'TC regional'!$EU$11:$FH$122,14,FALSE),IF($C$9="septiembre",VLOOKUP(A156,'TC regional'!$EV$11:$FI$122,14,FALSE),IF($C$9="octubre",VLOOKUP(A156,'TC regional'!$EW$11:$FJ$122,14,FALSE),IF($C$9="noviembre",VLOOKUP(A156,'TC regional'!$EX$11:$FK$122,14,FALSE),IF($C$9="diciembre",VLOOKUP(A156,'TC regional'!$EY$11:$FL$122,14,FALSE),"")))))))))))),"") ->  | C156: =+IFERROR(VLOOKUP($D156,'TC regional'!$H$11:$M$118,4,FALSE),"") ->  | E156: =+IFERROR(VLOOKUP(B156,'TC regional'!$W$11:$X$122,2,FALSE),"") ->  | F156: =+VLOOKUP($D156,'TC regional (2)'!$V$4:$EK$111,F$110,FALSE) ->  | I156: =+VLOOKUP($D156,'TC regional (2)'!$V$4:$EK$111,I$110,FALSE) ->  | J156: =+VLOOKUP($D156,'TC regional (2)'!$V$4:$EK$111,J$110,FALSE) ->  | K156: =+VLOOKUP($D156,'TC regional (2)'!$V$4:$EK$111,K$110,FALSE) -> 
A157: 46 | B157: =IFERROR(IF($C$9="Enero",VLOOKUP(A157,'TC regional'!$EN$11:$FA$122,14,FALSE),IF($C$9="Febrero",VLOOKUP(A157,'TC regional'!$EO$11:$FB$122,14,FALSE),IF($C$9="marzo",VLOOKUP(A157,'TC regional'!$EP$11:$FC$122,14,FALSE),IF($C$9="Abril",VLOOKUP(A157,'TC regional'!$EQ$11:$FD$122,14,FALSE),IF($C$9="mayo",VLOOKUP(A157,'TC regional'!$ER$11:$FE$122,14,FALSE),IF($C$9="junio",VLOOKUP(A157,'TC regional'!$ES$11:$FF$122,14,FALSE),IF($C$9="julio",VLOOKUP(A157,'TC regional'!$ET$11:$FG$122,14,FALSE),IF($C$9="agosto",VLOOKUP(A157,'TC regional'!$EU$11:$FH$122,14,FALSE),IF($C$9="septiembre",VLOOKUP(A157,'TC regional'!$EV$11:$FI$122,14,FALSE),IF($C$9="octubre",VLOOKUP(A157,'TC regional'!$EW$11:$FJ$122,14,FALSE),IF($C$9="noviembre",VLOOKUP(A157,'TC regional'!$EX$11:$FK$122,14,FALSE),IF($C$9="diciembre",VLOOKUP(A157,'TC regional'!$EY$11:$FL$122,14,FALSE),"")))))))))))),"") ->  | C157: =+IFERROR(VLOOKUP($D157,'TC regional'!$H$11:$M$118,4,FALSE),"") ->  | E157: =+IFERROR(VLOOKUP(B157,'TC regional'!$W$11:$X$122,2,FALSE),"") ->  | F157: =+VLOOKUP($D157,'TC regional (2)'!$V$4:$EK$111,F$110,FALSE) ->  | I157: =+VLOOKUP($D157,'TC regional (2)'!$V$4:$EK$111,I$110,FALSE) ->  | J157: =+VLOOKUP($D157,'TC regional (2)'!$V$4:$EK$111,J$110,FALSE) ->  | K157: =+VLOOKUP($D157,'TC regional (2)'!$V$4:$EK$111,K$110,FALSE) -> 
A158: 47 | B158: =IFERROR(IF($C$9="Enero",VLOOKUP(A158,'TC regional'!$EN$11:$FA$122,14,FALSE),IF($C$9="Febrero",VLOOKUP(A158,'TC regional'!$EO$11:$FB$122,14,FALSE),IF($C$9="marzo",VLOOKUP(A158,'TC regional'!$EP$11:$FC$122,14,FALSE),IF($C$9="Abril",VLOOKUP(A158,'TC regional'!$EQ$11:$FD$122,14,FALSE),IF($C$9="mayo",VLOOKUP(A158,'TC regional'!$ER$11:$FE$122,14,FALSE),IF($C$9="junio",VLOOKUP(A158,'TC regional'!$ES$11:$FF$122,14,FALSE),IF($C$9="julio",VLOOKUP(A158,'TC regional'!$ET$11:$FG$122,14,FALSE),IF($C$9="agosto",VLOOKUP(A158,'TC regional'!$EU$11:$FH$122,14,FALSE),IF($C$9="septiembre",VLOOKUP(A158,'TC regional'!$EV$11:$FI$122,14,FALSE),IF($C$9="octubre",VLOOKUP(A158,'TC regional'!$EW$11:$FJ$122,14,FALSE),IF($C$9="noviembre",VLOOKUP(A158,'TC regional'!$EX$11:$FK$122,14,FALSE),IF($C$9="diciembre",VLOOKUP(A158,'TC regional'!$EY$11:$FL$122,14,FALSE),"")))))))))))),"") ->  | C158: =+IFERROR(VLOOKUP($D158,'TC regional'!$H$11:$M$118,4,FALSE),"") ->  | E158: =+IFERROR(VLOOKUP(B158,'TC regional'!$W$11:$X$122,2,FALSE),"") ->  | F158: =+VLOOKUP($D158,'TC regional (2)'!$V$4:$EK$111,F$110,FALSE) ->  | I158: =+VLOOKUP($D158,'TC regional (2)'!$V$4:$EK$111,I$110,FALSE) ->  | J158: =+VLOOKUP($D158,'TC regional (2)'!$V$4:$EK$111,J$110,FALSE) ->  | K158: =+VLOOKUP($D158,'TC regional (2)'!$V$4:$EK$111,K$110,FALSE) -> 
A159: 48 | B159: =IFERROR(IF($C$9="Enero",VLOOKUP(A159,'TC regional'!$EN$11:$FA$122,14,FALSE),IF($C$9="Febrero",VLOOKUP(A159,'TC regional'!$EO$11:$FB$122,14,FALSE),IF($C$9="marzo",VLOOKUP(A159,'TC regional'!$EP$11:$FC$122,14,FALSE),IF($C$9="Abril",VLOOKUP(A159,'TC regional'!$EQ$11:$FD$122,14,FALSE),IF($C$9="mayo",VLOOKUP(A159,'TC regional'!$ER$11:$FE$122,14,FALSE),IF($C$9="junio",VLOOKUP(A159,'TC regional'!$ES$11:$FF$122,14,FALSE),IF($C$9="julio",VLOOKUP(A159,'TC regional'!$ET$11:$FG$122,14,FALSE),IF($C$9="agosto",VLOOKUP(A159,'TC regional'!$EU$11:$FH$122,14,FALSE),IF($C$9="septiembre",VLOOKUP(A159,'TC regional'!$EV$11:$FI$122,14,FALSE),IF($C$9="octubre",VLOOKUP(A159,'TC regional'!$EW$11:$FJ$122,14,FALSE),IF($C$9="noviembre",VLOOKUP(A159,'TC regional'!$EX$11:$FK$122,14,FALSE),IF($C$9="diciembre",VLOOKUP(A159,'TC regional'!$EY$11:$FL$122,14,FALSE),"")))))))))))),"") ->  | C159: =+IFERROR(VLOOKUP($D159,'TC regional'!$H$11:$M$118,4,FALSE),"") ->  | E159: =+IFERROR(VLOOKUP(B159,'TC regional'!$W$11:$X$122,2,FALSE),"") ->  | F159: =+VLOOKUP($D159,'TC regional (2)'!$V$4:$EK$111,F$110,FALSE) ->  | I159: =+VLOOKUP($D159,'TC regional (2)'!$V$4:$EK$111,I$110,FALSE) ->  | J159: =+VLOOKUP($D159,'TC regional (2)'!$V$4:$EK$111,J$110,FALSE) ->  | K159: =+VLOOKUP($D159,'TC regional (2)'!$V$4:$EK$111,K$110,FALSE) -> 
A160: 49 | B160: =IFERROR(IF($C$9="Enero",VLOOKUP(A160,'TC regional'!$EN$11:$FA$122,14,FALSE),IF($C$9="Febrero",VLOOKUP(A160,'TC regional'!$EO$11:$FB$122,14,FALSE),IF($C$9="marzo",VLOOKUP(A160,'TC regional'!$EP$11:$FC$122,14,FALSE),IF($C$9="Abril",VLOOKUP(A160,'TC regional'!$EQ$11:$FD$122,14,FALSE),IF($C$9="mayo",VLOOKUP(A160,'TC regional'!$ER$11:$FE$122,14,FALSE),IF($C$9="junio",VLOOKUP(A160,'TC regional'!$ES$11:$FF$122,14,FALSE),IF($C$9="julio",VLOOKUP(A160,'TC regional'!$ET$11:$FG$122,14,FALSE),IF($C$9="agosto",VLOOKUP(A160,'TC regional'!$EU$11:$FH$122,14,FALSE),IF($C$9="septiembre",VLOOKUP(A160,'TC regional'!$EV$11:$FI$122,14,FALSE),IF($C$9="octubre",VLOOKUP(A160,'TC regional'!$EW$11:$FJ$122,14,FALSE),IF($C$9="noviembre",VLOOKUP(A160,'TC regional'!$EX$11:$FK$122,14,FALSE),IF($C$9="diciembre",VLOOKUP(A160,'TC regional'!$EY$11:$FL$122,14,FALSE),"")))))))))))),"") ->  | C160: =+IFERROR(VLOOKUP($D160,'TC regional'!$H$11:$M$118,4,FALSE),"") ->  | E160: =+IFERROR(VLOOKUP(B160,'TC regional'!$W$11:$X$122,2,FALSE),"") ->  | F160: =+VLOOKUP($D160,'TC regional (2)'!$V$4:$EK$111,F$110,FALSE) ->  | I160: =+VLOOKUP($D160,'TC regional (2)'!$V$4:$EK$111,I$110,FALSE) ->  | J160: =+VLOOKUP($D160,'TC regional (2)'!$V$4:$EK$111,J$110,FALSE) ->  | K160: =+VLOOKUP($D160,'TC regional (2)'!$V$4:$EK$111,K$110,FALSE) -> 
A161: 50 | B161: =IFERROR(IF($C$9="Enero",VLOOKUP(A161,'TC regional'!$EN$11:$FA$122,14,FALSE),IF($C$9="Febrero",VLOOKUP(A161,'TC regional'!$EO$11:$FB$122,14,FALSE),IF($C$9="marzo",VLOOKUP(A161,'TC regional'!$EP$11:$FC$122,14,FALSE),IF($C$9="Abril",VLOOKUP(A161,'TC regional'!$EQ$11:$FD$122,14,FALSE),IF($C$9="mayo",VLOOKUP(A161,'TC regional'!$ER$11:$FE$122,14,FALSE),IF($C$9="junio",VLOOKUP(A161,'TC regional'!$ES$11:$FF$122,14,FALSE),IF($C$9="julio",VLOOKUP(A161,'TC regional'!$ET$11:$FG$122,14,FALSE),IF($C$9="agosto",VLOOKUP(A161,'TC regional'!$EU$11:$FH$122,14,FALSE),IF($C$9="septiembre",VLOOKUP(A161,'TC regional'!$EV$11:$FI$122,14,FALSE),IF($C$9="octubre",VLOOKUP(A161,'TC regional'!$EW$11:$FJ$122,14,FALSE),IF($C$9="noviembre",VLOOKUP(A161,'TC regional'!$EX$11:$FK$122,14,FALSE),IF($C$9="diciembre",VLOOKUP(A161,'TC regional'!$EY$11:$FL$122,14,FALSE),"")))))))))))),"") ->  | C161: =+IFERROR(VLOOKUP($D161,'TC regional'!$H$11:$M$118,4,FALSE),"") ->  | E161: =+IFERROR(VLOOKUP(B161,'TC regional'!$W$11:$X$122,2,FALSE),"") ->  | F161: =+VLOOKUP($D161,'TC regional (2)'!$V$4:$EK$111,F$110,FALSE) ->  | I161: =+VLOOKUP($D161,'TC regional (2)'!$V$4:$EK$111,I$110,FALSE) ->  | J161: =+VLOOKUP($D161,'TC regional (2)'!$V$4:$EK$111,J$110,FALSE) ->  | K161: =+VLOOKUP($D161,'TC regional (2)'!$V$4:$EK$111,K$110,FALSE) -> 
A162: 51 | B162: =IFERROR(IF($C$9="Enero",VLOOKUP(A162,'TC regional'!$EN$11:$FA$122,14,FALSE),IF($C$9="Febrero",VLOOKUP(A162,'TC regional'!$EO$11:$FB$122,14,FALSE),IF($C$9="marzo",VLOOKUP(A162,'TC regional'!$EP$11:$FC$122,14,FALSE),IF($C$9="Abril",VLOOKUP(A162,'TC regional'!$EQ$11:$FD$122,14,FALSE),IF($C$9="mayo",VLOOKUP(A162,'TC regional'!$ER$11:$FE$122,14,FALSE),IF($C$9="junio",VLOOKUP(A162,'TC regional'!$ES$11:$FF$122,14,FALSE),IF($C$9="julio",VLOOKUP(A162,'TC regional'!$ET$11:$FG$122,14,FALSE),IF($C$9="agosto",VLOOKUP(A162,'TC regional'!$EU$11:$FH$122,14,FALSE),IF($C$9="septiembre",VLOOKUP(A162,'TC regional'!$EV$11:$FI$122,14,FALSE),IF($C$9="octubre",VLOOKUP(A162,'TC regional'!$EW$11:$FJ$122,14,FALSE),IF($C$9="noviembre",VLOOKUP(A162,'TC regional'!$EX$11:$FK$122,14,FALSE),IF($C$9="diciembre",VLOOKUP(A162,'TC regional'!$EY$11:$FL$122,14,FALSE),"")))))))))))),"") ->  | C162: =+IFERROR(VLOOKUP($D162,'TC regional'!$H$11:$M$118,4,FALSE),"") ->  | E162: =+IFERROR(VLOOKUP(B162,'TC regional'!$W$11:$X$122,2,FALSE),"") ->  | F162: =+VLOOKUP($D162,'TC regional (2)'!$V$4:$EK$111,F$110,FALSE) ->  | I162: =+VLOOKUP($D162,'TC regional (2)'!$V$4:$EK$111,I$110,FALSE) ->  | J162: =+VLOOKUP($D162,'TC regional (2)'!$V$4:$EK$111,J$110,FALSE) ->  | K162: =+VLOOKUP($D162,'TC regional (2)'!$V$4:$EK$111,K$110,FALSE) -> 
A163: 52 | B163: =IFERROR(IF($C$9="Enero",VLOOKUP(A163,'TC regional'!$EN$11:$FA$122,14,FALSE),IF($C$9="Febrero",VLOOKUP(A163,'TC regional'!$EO$11:$FB$122,14,FALSE),IF($C$9="marzo",VLOOKUP(A163,'TC regional'!$EP$11:$FC$122,14,FALSE),IF($C$9="Abril",VLOOKUP(A163,'TC regional'!$EQ$11:$FD$122,14,FALSE),IF($C$9="mayo",VLOOKUP(A163,'TC regional'!$ER$11:$FE$122,14,FALSE),IF($C$9="junio",VLOOKUP(A163,'TC regional'!$ES$11:$FF$122,14,FALSE),IF($C$9="julio",VLOOKUP(A163,'TC regional'!$ET$11:$FG$122,14,FALSE),IF($C$9="agosto",VLOOKUP(A163,'TC regional'!$EU$11:$FH$122,14,FALSE),IF($C$9="septiembre",VLOOKUP(A163,'TC regional'!$EV$11:$FI$122,14,FALSE),IF($C$9="octubre",VLOOKUP(A163,'TC regional'!$EW$11:$FJ$122,14,FALSE),IF($C$9="noviembre",VLOOKUP(A163,'TC regional'!$EX$11:$FK$122,14,FALSE),IF($C$9="diciembre",VLOOKUP(A163,'TC regional'!$EY$11:$FL$122,14,FALSE),"")))))))))))),"") ->  | C163: =+IFERROR(VLOOKUP($D163,'TC regional'!$H$11:$M$118,4,FALSE),"") ->  | E163: =+IFERROR(VLOOKUP(B163,'TC regional'!$W$11:$X$122,2,FALSE),"") ->  | F163: =+VLOOKUP($D163,'TC regional (2)'!$V$4:$EK$111,F$110,FALSE) ->  | I163: =+VLOOKUP($D163,'TC regional (2)'!$V$4:$EK$111,I$110,FALSE) ->  | J163: =+VLOOKUP($D163,'TC regional (2)'!$V$4:$EK$111,J$110,FALSE) ->  | K163: =+VLOOKUP($D163,'TC regional (2)'!$V$4:$EK$111,K$110,FALSE) -> 
A164: 53 | B164: =IFERROR(IF($C$9="Enero",VLOOKUP(A164,'TC regional'!$EN$11:$FA$122,14,FALSE),IF($C$9="Febrero",VLOOKUP(A164,'TC regional'!$EO$11:$FB$122,14,FALSE),IF($C$9="marzo",VLOOKUP(A164,'TC regional'!$EP$11:$FC$122,14,FALSE),IF($C$9="Abril",VLOOKUP(A164,'TC regional'!$EQ$11:$FD$122,14,FALSE),IF($C$9="mayo",VLOOKUP(A164,'TC regional'!$ER$11:$FE$122,14,FALSE),IF($C$9="junio",VLOOKUP(A164,'TC regional'!$ES$11:$FF$122,14,FALSE),IF($C$9="julio",VLOOKUP(A164,'TC regional'!$ET$11:$FG$122,14,FALSE),IF($C$9="agosto",VLOOKUP(A164,'TC regional'!$EU$11:$FH$122,14,FALSE),IF($C$9="septiembre",VLOOKUP(A164,'TC regional'!$EV$11:$FI$122,14,FALSE),IF($C$9="octubre",VLOOKUP(A164,'TC regional'!$EW$11:$FJ$122,14,FALSE),IF($C$9="noviembre",VLOOKUP(A164,'TC regional'!$EX$11:$FK$122,14,FALSE),IF($C$9="diciembre",VLOOKUP(A164,'TC regional'!$EY$11:$FL$122,14,FALSE),"")))))))))))),"") ->  | C164: =+IFERROR(VLOOKUP($D164,'TC regional'!$H$11:$M$118,4,FALSE),"") ->  | E164: =+IFERROR(VLOOKUP(B164,'TC regional'!$W$11:$X$122,2,FALSE),"") ->  | F164: =+VLOOKUP($D164,'TC regional (2)'!$V$4:$EK$111,F$110,FALSE) ->  | I164: =+VLOOKUP($D164,'TC regional (2)'!$V$4:$EK$111,I$110,FALSE) ->  | J164: =+VLOOKUP($D164,'TC regional (2)'!$V$4:$EK$111,J$110,FALSE) ->  | K164: =+VLOOKUP($D164,'TC regional (2)'!$V$4:$EK$111,K$110,FALSE) -> 
A165: 54 | B165: =IFERROR(IF($C$9="Enero",VLOOKUP(A165,'TC regional'!$EN$11:$FA$122,14,FALSE),IF($C$9="Febrero",VLOOKUP(A165,'TC regional'!$EO$11:$FB$122,14,FALSE),IF($C$9="marzo",VLOOKUP(A165,'TC regional'!$EP$11:$FC$122,14,FALSE),IF($C$9="Abril",VLOOKUP(A165,'TC regional'!$EQ$11:$FD$122,14,FALSE),IF($C$9="mayo",VLOOKUP(A165,'TC regional'!$ER$11:$FE$122,14,FALSE),IF($C$9="junio",VLOOKUP(A165,'TC regional'!$ES$11:$FF$122,14,FALSE),IF($C$9="julio",VLOOKUP(A165,'TC regional'!$ET$11:$FG$122,14,FALSE),IF($C$9="agosto",VLOOKUP(A165,'TC regional'!$EU$11:$FH$122,14,FALSE),IF($C$9="septiembre",VLOOKUP(A165,'TC regional'!$EV$11:$FI$122,14,FALSE),IF($C$9="octubre",VLOOKUP(A165,'TC regional'!$EW$11:$FJ$122,14,FALSE),IF($C$9="noviembre",VLOOKUP(A165,'TC regional'!$EX$11:$FK$122,14,FALSE),IF($C$9="diciembre",VLOOKUP(A165,'TC regional'!$EY$11:$FL$122,14,FALSE),"")))))))))))),"") ->  | C165: =+IFERROR(VLOOKUP($D165,'TC regional'!$H$11:$M$118,4,FALSE),"") ->  | E165: =+IFERROR(VLOOKUP(B165,'TC regional'!$W$11:$X$122,2,FALSE),"") ->  | F165: =+VLOOKUP($D165,'TC regional (2)'!$V$4:$EK$111,F$110,FALSE) ->  | I165: =+VLOOKUP($D165,'TC regional (2)'!$V$4:$EK$111,I$110,FALSE) ->  | J165: =+VLOOKUP($D165,'TC regional (2)'!$V$4:$EK$111,J$110,FALSE) ->  | K165: =+VLOOKUP($D165,'TC regional (2)'!$V$4:$EK$111,K$110,FALSE) -> 
A166: 55 | B166: =IFERROR(IF($C$9="Enero",VLOOKUP(A166,'TC regional'!$EN$11:$FA$122,14,FALSE),IF($C$9="Febrero",VLOOKUP(A166,'TC regional'!$EO$11:$FB$122,14,FALSE),IF($C$9="marzo",VLOOKUP(A166,'TC regional'!$EP$11:$FC$122,14,FALSE),IF($C$9="Abril",VLOOKUP(A166,'TC regional'!$EQ$11:$FD$122,14,FALSE),IF($C$9="mayo",VLOOKUP(A166,'TC regional'!$ER$11:$FE$122,14,FALSE),IF($C$9="junio",VLOOKUP(A166,'TC regional'!$ES$11:$FF$122,14,FALSE),IF($C$9="julio",VLOOKUP(A166,'TC regional'!$ET$11:$FG$122,14,FALSE),IF($C$9="agosto",VLOOKUP(A166,'TC regional'!$EU$11:$FH$122,14,FALSE),IF($C$9="septiembre",VLOOKUP(A166,'TC regional'!$EV$11:$FI$122,14,FALSE),IF($C$9="octubre",VLOOKUP(A166,'TC regional'!$EW$11:$FJ$122,14,FALSE),IF($C$9="noviembre",VLOOKUP(A166,'TC regional'!$EX$11:$FK$122,14,FALSE),IF($C$9="diciembre",VLOOKUP(A166,'TC regional'!$EY$11:$FL$122,14,FALSE),"")))))))))))),"") ->  | C166: =+IFERROR(VLOOKUP($D166,'TC regional'!$H$11:$M$118,4,FALSE),"") ->  | E166: =+IFERROR(VLOOKUP(B166,'TC regional'!$W$11:$X$122,2,FALSE),"") ->  | F166: =+VLOOKUP($D166,'TC regional (2)'!$V$4:$EK$111,F$110,FALSE) ->  | I166: =+VLOOKUP($D166,'TC regional (2)'!$V$4:$EK$111,I$110,FALSE) ->  | J166: =+VLOOKUP($D166,'TC regional (2)'!$V$4:$EK$111,J$110,FALSE) ->  | K166: =+VLOOKUP($D166,'TC regional (2)'!$V$4:$EK$111,K$110,FALSE) -> 
A167: 56 | B167: =IFERROR(IF($C$9="Enero",VLOOKUP(A167,'TC regional'!$EN$11:$FA$122,14,FALSE),IF($C$9="Febrero",VLOOKUP(A167,'TC regional'!$EO$11:$FB$122,14,FALSE),IF($C$9="marzo",VLOOKUP(A167,'TC regional'!$EP$11:$FC$122,14,FALSE),IF($C$9="Abril",VLOOKUP(A167,'TC regional'!$EQ$11:$FD$122,14,FALSE),IF($C$9="mayo",VLOOKUP(A167,'TC regional'!$ER$11:$FE$122,14,FALSE),IF($C$9="junio",VLOOKUP(A167,'TC regional'!$ES$11:$FF$122,14,FALSE),IF($C$9="julio",VLOOKUP(A167,'TC regional'!$ET$11:$FG$122,14,FALSE),IF($C$9="agosto",VLOOKUP(A167,'TC regional'!$EU$11:$FH$122,14,FALSE),IF($C$9="septiembre",VLOOKUP(A167,'TC regional'!$EV$11:$FI$122,14,FALSE),IF($C$9="octubre",VLOOKUP(A167,'TC regional'!$EW$11:$FJ$122,14,FALSE),IF($C$9="noviembre",VLOOKUP(A167,'TC regional'!$EX$11:$FK$122,14,FALSE),IF($C$9="diciembre",VLOOKUP(A167,'TC regional'!$EY$11:$FL$122,14,FALSE),"")))))))))))),"") ->  | C167: =+IFERROR(VLOOKUP($D167,'TC regional'!$H$11:$M$118,4,FALSE),"") ->  | E167: =+IFERROR(VLOOKUP(B167,'TC regional'!$W$11:$X$122,2,FALSE),"") ->  | F167: =+VLOOKUP($D167,'TC regional (2)'!$V$4:$EK$111,F$110,FALSE) ->  | I167: =+VLOOKUP($D167,'TC regional (2)'!$V$4:$EK$111,I$110,FALSE) ->  | J167: =+VLOOKUP($D167,'TC regional (2)'!$V$4:$EK$111,J$110,FALSE) ->  | K167: =+VLOOKUP($D167,'TC regional (2)'!$V$4:$EK$111,K$110,FALSE) -> 
A168: 57 | B168: =IFERROR(IF($C$9="Enero",VLOOKUP(A168,'TC regional'!$EN$11:$FA$122,14,FALSE),IF($C$9="Febrero",VLOOKUP(A168,'TC regional'!$EO$11:$FB$122,14,FALSE),IF($C$9="marzo",VLOOKUP(A168,'TC regional'!$EP$11:$FC$122,14,FALSE),IF($C$9="Abril",VLOOKUP(A168,'TC regional'!$EQ$11:$FD$122,14,FALSE),IF($C$9="mayo",VLOOKUP(A168,'TC regional'!$ER$11:$FE$122,14,FALSE),IF($C$9="junio",VLOOKUP(A168,'TC regional'!$ES$11:$FF$122,14,FALSE),IF($C$9="julio",VLOOKUP(A168,'TC regional'!$ET$11:$FG$122,14,FALSE),IF($C$9="agosto",VLOOKUP(A168,'TC regional'!$EU$11:$FH$122,14,FALSE),IF($C$9="septiembre",VLOOKUP(A168,'TC regional'!$EV$11:$FI$122,14,FALSE),IF($C$9="octubre",VLOOKUP(A168,'TC regional'!$EW$11:$FJ$122,14,FALSE),IF($C$9="noviembre",VLOOKUP(A168,'TC regional'!$EX$11:$FK$122,14,FALSE),IF($C$9="diciembre",VLOOKUP(A168,'TC regional'!$EY$11:$FL$122,14,FALSE),"")))))))))))),"") ->  | C168: =+IFERROR(VLOOKUP($D168,'TC regional'!$H$11:$M$118,4,FALSE),"") ->  | E168: =+IFERROR(VLOOKUP(B168,'TC regional'!$W$11:$X$122,2,FALSE),"") ->  | F168: =+VLOOKUP($D168,'TC regional (2)'!$V$4:$EK$111,F$110,FALSE) ->  | I168: =+VLOOKUP($D168,'TC regional (2)'!$V$4:$EK$111,I$110,FALSE) ->  | J168: =+VLOOKUP($D168,'TC regional (2)'!$V$4:$EK$111,J$110,FALSE) ->  | K168: =+VLOOKUP($D168,'TC regional (2)'!$V$4:$EK$111,K$110,FALSE) -> 
F210: a | G210: b | H210: c | I210: d | J210: e
E211: Enero | F211: 27 | G211: 27 | H211: 27 | I211: 27 | J211: 28 | P211: 27 | Q211: 25 | R211: 26 | S211: 28
E212: Febrero | F212: 28 | G212: 28 | H212: 28 | I212: 28 | J212: 29 | P212: =+P211+8 -> 35 | Q212: =+Q211+8 -> 33 | R212: =+R211+8 -> 34 | S212: =+S211+8 -> 36
E213: Marzo | F213: 29 | G213: 29 | H213: 29 | I213: 29 | J213: 30 | P213: =+P212+8 -> 43 | Q213: =+Q212+8 -> 41 | R213: =+R212+8 -> 42 | S213: =+S212+8 -> 44
E214: Abril | F214: 30 | G214: 30 | H214: 30 | I214: 30 | J214: 31 | P214: 51 | Q214: 49 | R214: 50 | S214: 52
E215: Mayo | F215: 31 | G215: 31 | H215: 31 | I215: 31 | J215: 32 | P215: 59 | Q215: 57 | R215: 58 | S215: 60
E216: Junio | F216: 32 | G216: 32 | H216: 32 | I216: 32 | J216: 33 | P216: 67 | Q216: 65 | R216: 66 | S216: 68
E217: Julio | F217: 33 | G217: 33 | H217: 33 | I217: 33 | J217: 34 | P217: 75 | Q217: 73 | R217: 74 | S217: 76
E218: Agosto | F218: 34 | G218: 34 | H218: 34 | I218: 34 | J218: 35 | P218: 83 | Q218: 81 | R218: 82 | S218: 84
E219: Septiembre | F219: 35 | G219: 35 | H219: 35 | I219: 35 | J219: 36 | P219: 91 | Q219: 89 | R219: 90 | S219: 92
E220: Octubre | F220: 36 | G220: 36 | H220: 36 | I220: 36 | J220: 37 | P220: 99 | Q220: 97 | R220: 98 | S220: 100
E221: Noviembre | F221: 37 | G221: 37 | H221: 37 | I221: 37 | J221: 38 | P221: 107 | Q221: 105 | R221: 106 | S221: 108
E222: Diciembre | F222: 38 | G222: 38 | H222: 38 | I222: 38 | J222: 39 | P222: 115 | Q222: 113 | R222: 114 | S222: 116
E225: Enero | F225: 7
E226: Febrero | F226: =+F225+5 -> 12
E227: Marzo | F227: =+F226+5 -> 17
E228: Abril | F228: 22
E229: Mayo | F229: 27
E230: Junio | F230: 32
E231: Julio | F231: 37
E232: Agosto | F232: 42
E233: Septiembre | F233: 47
E234: Octubre | F234: 52
E235: Noviembre | F235: 57
E236: Diciembre | F236: 62

Sheet resumen x macroprocesos
C2: INSTITUTO COLOMBIANO DE BIENESTAR FAMILIAR SEGUIMIENTO METAS ICBF ANÁLISIS DE INDICADORES POR MACROPROCESOS
B3: =+Menu!D16 -> Amazonas
D7: Mes | E7: Diciembre | P7: 27 | Q7: 28 | R7: 29 | S7: 30 | T7: 31 | U7: 32 | V7: 33 | W7: 34 | X7: 35 | Y7: 36 | Z7: 37 | AA7: 38
E8: Seleccione el mes de analisis
P9: En | Q9: Fe | R9: Ma | S9: Ab | T9: Ma | U9: Jn | V9: Jl | W9: Ag | X9: Se | Y9: Oc | Z9: No | AA9: Di
D10: Categoria macroproceso | E10: Misionales | P10: =+IFERROR(VLOOKUP($E$10,'td regional'!$A$9:$AL$12,P7,FALSE),"") -> 0.7373417722 | Q10: =+IFERROR(VLOOKUP($E$10,'td regional'!$A$9:$AL$12,Q7,FALSE),"") -> 0.525862069 | R10: =+IFERROR(VLOOKUP($E$10,'td regional'!$A$9:$AL$12,R7,FALSE),"") -> 0.7941558442 | S10: =+IFERROR(VLOOKUP($E$10,'td regional'!$A$9:$AL$12,S7,FALSE),"") -> 0.7565121413 | T10: =+IFERROR(VLOOKUP($E$10,'td regional'!$A$9:$AL$12,T7,FALSE),"") -> 0.7651214128 | U10: =+IFERROR(VLOOKUP($E$10,'td regional'!$A$9:$AL$12,U7,FALSE),"") -> 0.758185876 | V10: =+IFERROR(VLOOKUP($E$10,'td regional'!$A$9:$AL$12,V7,FALSE),"") -> 0.7987651766 | W10: =+IFERROR(VLOOKUP($E$10,'td regional'!$A$9:$AL$12,W7,FALSE),"") -> 0.7028659033 | X10: =+IFERROR(VLOOKUP($E$10,'td regional'!$A$9:$AL$12,X7,FALSE),"") -> 0.8082334549 | Y10: =+IFERROR(VLOOKUP($E$10,'td regional'!$A$9:$AL$12,Y7,FALSE),"") -> 0.8841136849 | Z10: =+IFERROR(VLOOKUP($E$10,'td regional'!$A$9:$AL$12,Z7,FALSE),"") -> 0.9236788785 | AA10: =+IFERROR(VLOOKUP($E$10,'td regional'!$A$9:$AL$12,AA7,FALSE),"") -> 0.8756826742
E11: Seleccione la categoria
D12: Macroproceso | E12: Gestión para la nutrición | H12: =+E10&E12 -> MisionalesGestión para la nutrición | I12: =+IFERROR(VLOOKUP(H12,Hoja1!$E$2:$E$109,1,FALSE),"no") -> MisionalesGestión para la nutrición | L12: =+VLOOKUP(E12,$J$201:$K$217,2,FALSE) -> MPM4 | M12: =+IFERROR(VLOOKUP(E12,$U$211:$V$215,2,FALSE),"") ->  | N12: 1 | P12: =IFERROR(IF($I$12="no","",VLOOKUP($E$12,'td regional'!$B$18:$AM$34,P7,FALSE)),"") -> 0 | Q12: =IFERROR(IF($I$12="no","",VLOOKUP($E$12,'td regional'!$B$18:$AM$34,Q7,FALSE)),"") -> 0 | R12: =IFERROR(IF($I$12="no","",VLOOKUP($E$12,'td regional'!$B$18:$AM$34,R7,FALSE)),"") -> 0 | S12: =IFERROR(IF($I$12="no","",VLOOKUP($E$12,'td regional'!$B$18:$AM$34,S7,FALSE)),"") -> 0 | T12: =IFERROR(IF($I$12="no","",VLOOKUP($E$12,'td regional'!$B$18:$AM$34,T7,FALSE)),"") -> 0 | U12: =IFERROR(IF($I$12="no","",VLOOKUP($E$12,'td regional'!$B$18:$AM$34,U7,FALSE)),"") -> 0 | V12: =IFERROR(IF($I$12="no","",VLOOKUP($E$12,'td regional'!$B$18:$AM$34,V7,FALSE)),"") -> 0 | W12: =IFERROR(IF($I$12="no","",VLOOKUP($E$12,'td regional'!$B$18:$AM$34,W7,FALSE)),"") -> 0.7181818182 | X12: =IFERROR(IF($I$12="no","",VLOOKUP($E$12,'td regional'!$B$18:$AM$34,X7,FALSE)),"") -> 0.8777777778 | Y12: =IFERROR(IF($I$12="no","",VLOOKUP($E$12,'td regional'!$B$18:$AM$34,Y7,FALSE)),"") -> 0.9 | Z12: =IFERROR(IF($I$12="no","",VLOOKUP($E$12,'td regional'!$B$18:$AM$34,Z7,FALSE)),"") -> 1 | AA12: =IFERROR(IF($I$12="no","",VLOOKUP($E$12,'td regional'!$B$18:$AM$34,AA7,FALSE)),"") -> 0.7027777778
E13: Seleccione el macroproceso
D14: Proceso | E14: Gestión Contratación | H14: =+E10&E12&E14 -> MisionalesGestión para la nutriciónGestión Contratación | I14: =+IFERROR(VLOOKUP(H14,Hoja1!F2:F109,1,FALSE),"no") -> no | L14: =+IF(E14="","NA",IF(I14="no","NA",VLOOKUP(E14,$L$201:$M$215,2,FALSE))) -> NA | N14: 0.01 | P14: =IFERROR(IF($I$14="no","",VLOOKUP($E$14,'td regional'!$C$40:$AN$54,P7,FALSE)),"") ->  | Q14: =IFERROR(IF($I$14="no","",VLOOKUP($E$14,'td regional'!$C$40:$AN$54,Q7,FALSE)),"") ->  | R14: =IFERROR(IF($I$14="no","",VLOOKUP($E$14,'td regional'!$C$40:$AN$54,R7,FALSE)),"") ->  | S14: =IFERROR(IF($I$14="no","",VLOOKUP($E$14,'td regional'!$C$40:$AN$54,S7,FALSE)),"") ->  | T14: =IFERROR(IF($I$14="no","",VLOOKUP($E$14,'td regional'!$C$40:$AN$54,T7,FALSE)),"") ->  | U14: =IFERROR(IF($I$14="no","",VLOOKUP($E$14,'td regional'!$C$40:$AN$54,U7,FALSE)),"") ->  | V14: =IFERROR(IF($I$14="no","",VLOOKUP($E$14,'td regional'!$C$40:$AN$54,V7,FALSE)),"") ->  | W14: =IFERROR(IF($I$14="no","",VLOOKUP($E$14,'td regional'!$C$40:$AN$54,W7,FALSE)),"") ->  | X14: =IFERROR(IF($I$14="no","",VLOOKUP($E$14,'td regional'!$C$40:$AN$54,X7,FALSE)),"") ->  | Y14: =IFERROR(IF($I$14="no","",VLOOKUP($E$14,'td regional'!$C$40:$AN$54,Y7,FALSE)),"") ->  | Z14: =IFERROR(IF($I$14="no","",VLOOKUP($E$14,'td regional'!$C$40:$AN$54,Z7,FALSE)),"") ->  | AA14: =IFERROR(IF($I$14="no","",VLOOKUP($E$14,'td regional'!$C$40:$AN$54,AA7,FALSE)),"") -> 
E15: Seleccione el proceso (si aplica)
G17: =+G223 -> 23 | H17: =+VLOOKUP($E$7,$E$224:$K$235,3,FALSE) -> 113 | I17: =+VLOOKUP($E$7,$E$224:$K$235,4,FALSE) -> 114 | J17: =+VLOOKUP($E$7,$E$224:$K$235,5,FALSE) -> 115 | K17: =+VLOOKUP($E$7,$E$224:$K$235,6,FALSE) -> 116 | M17: =+VLOOKUP($E$7,$E$224:$K$235,7,FALSE) -> 117
D18: Código del Indicador | E18: Nombre del indicador | F18: Plan de gestión | G18: Meta 2013 | H18: Numerador | I18: Denominador | J18: Avances | K18: % de avance
B19: =+$L$12&$L$14&C19 -> MPM4NA1 | C19: 1 | D19: =+IFERROR(IF($L$14="NA",VLOOKUP(B19,'Hoja3 (2)'!$G$3:$I$110,3,FALSE),VLOOKUP(B19,'Hoja3 (2)'!$H$3:$I$110,2,FALSE)),"") -> E-21 | E19: =+IFERROR(VLOOKUP(D19,'TC regional'!$W$11:$X$122,2,FALSE),"") -> Niños y niñas reportados al Sistema de Seguimiento Nutricional - SSN en HI - HCB - CDI (excluyendo FAMI, mayores de 2 años y menores de 5 años) con desnutrición aguda que mejoraron su estado Nutricional. | F19: =+IFERROR(VLOOKUP(D19,'TC regional'!$W$11:$Y$113,3,FALSE),"") -> 1er nivel | G19: =+IFERROR(VLOOKUP($D19,'TC regional (2)'!$V$4:$EK$115,G$17,FALSE),"") -> 80% | H19: =+IFERROR(VLOOKUP($D19,'TC regional (2)'!$V$4:$EK$110,H$17,FALSE),"") -> 6 | I19: =+IFERROR(VLOOKUP($D19,'TC regional (2)'!$V$4:$EK$110,I$17,FALSE),"") -> 8 | J19: =+IFERROR(VLOOKUP($D19,'TC regional (2)'!$V$4:$EK$110,J$17,FALSE),"") -> 75% | K19: =+IFERROR(VLOOKUP($D19,'TC regional (2)'!$V$4:$EK$110,K$17,FALSE),"") -> 94% | M19: =+IFERROR(VLOOKUP($D19,'TC regional (2)'!$V$4:$EK$110,M$17,FALSE),"") -> ADECUADO
B20: =+$L$12&$L$14&C20 -> MPM4NA2 | C20: 2 | D20: =+IFERROR(IF($L$14="NA",VLOOKUP(B20,'Hoja3 (2)'!$G$3:$I$110,3,FALSE),VLOOKUP(B20,'Hoja3 (2)'!$H$3:$I$110,2,FALSE)),"") -> E-23 | E20: =+IFERROR(VLOOKUP(D20,'TC regional'!$W$11:$X$122,2,FALSE),"") -> Niños y niñas que mejoraron su estado Nutricional que se encuentran en la modalidad Recuperación Nutricional con Enfoque Comunitario - RNEC | F20: =+IFERROR(VLOOKUP(D20,'TC regional'!$W$11:$Y$113,3,FALSE),"") -> 1er nivel | G20: =+IFERROR(VLOOKUP($D20,'TC regional (2)'!$V$4:$EK$115,G$17,FALSE),"") -> 80% | H20: =+IFERROR(VLOOKUP($D20,'TC regional (2)'!$V$4:$EK$110,H$17,FALSE),"") -> 28 | I20: =+IFERROR(VLOOKUP($D20,'TC regional (2)'!$V$4:$EK$110,I$17,FALSE),"") -> 48 | J20: =+IFERROR(VLOOKUP($D20,'TC regional (2)'!$V$4:$EK$110,J$17,FALSE),"") -> 58% | K20: =+IFERROR(VLOOKUP($D20,'TC regional (2)'!$V$4:$EK$110,K$17,FALSE),"") -> 73% | M20: =+IFERROR(VLOOKUP($D20,'TC regional (2)'!$V$4:$EK$110,M$17,FALSE),"") -> CRITICO
B21: MPM4NA3 | C21: 3 | D21: =+IFERROR(IF($L$14="NA",VLOOKUP(B21,'Hoja3 (2)'!$G$3:$I$110,3,FALSE),VLOOKUP(B21,'Hoja3 (2)'!$H$3:$I$110,2,FALSE)),"") -> MPM4-01 | E21: =+IFERROR(VLOOKUP(D21,'TC regional'!$W$11:$X$122,2,FALSE),"") -> Niños de 0-2 años reportados al Sistema de Seguimiento Nutricional – SSN pertenecientes al programa FAMI, con desnutrición global que mejoran su estado nutricional. | F21: =+IFERROR(VLOOKUP(D21,'TC regional'!$W$11:$Y$113,3,FALSE),"") -> 3er nivel | G21: =+IFERROR(VLOOKUP($D21,'TC regional (2)'!$V$4:$EK$115,G$17,FALSE),"") -> 78% | H21: =+IFERROR(VLOOKUP($D21,'TC regional (2)'!$V$4:$EK$110,H$17,FALSE),"") -> 15 | I21: =+IFERROR(VLOOKUP($D21,'TC regional (2)'!$V$4:$EK$110,I$17,FALSE),"") -> 22 | J21: =+IFERROR(VLOOKUP($D21,'TC regional (2)'!$V$4:$EK$110,J$17,FALSE),"") -> 68% | K21: =+IFERROR(VLOOKUP($D21,'TC regional (2)'!$V$4:$EK$110,K$17,FALSE),"") -> 87% | M21: =+IFERROR(VLOOKUP($D21,'TC regional (2)'!$V$4:$EK$110,M$17,FALSE),"") -> EN RIESGO
B22: MPM4NA4 | C22: 4 | D22: =+IFERROR(IF($L$14="NA",VLOOKUP(B22,'Hoja3 (2)'!$G$3:$I$110,3,FALSE),VLOOKUP(B22,'Hoja3 (2)'!$H$3:$I$110,2,FALSE)),"") -> MPM4-02 | E22: =+IFERROR(VLOOKUP(D22,'TC regional'!$W$11:$X$122,2,FALSE),"") -> Niños y niñas menores de 5 años atendidos por el programa de recuperación nutricional ambulatoria con Desnutrición aguda o riesgo que mejoran su estado nutricional | F22: =+IFERROR(VLOOKUP(D22,'TC regional'!$W$11:$Y$113,3,FALSE),"") -> 3er nivel | G22: =+IFERROR(VLOOKUP($D22,'TC regional (2)'!$V$4:$EK$115,G$17,FALSE),"") -> 85% | H22: =+IFERROR(VLOOKUP($D22,'TC regional (2)'!$V$4:$EK$110,H$17,FALSE),"") -> 28 | I22: =+IFERROR(VLOOKUP($D22,'TC regional (2)'!$V$4:$EK$110,I$17,FALSE),"") -> 34 | J22: =+IFERROR(VLOOKUP($D22,'TC regional (2)'!$V$4:$EK$110,J$17,FALSE),"") -> 82% | K22: =+IFERROR(VLOOKUP($D22,'TC regional (2)'!$V$4:$EK$110,K$17,FALSE),"") -> 97% | M22: =+IFERROR(VLOOKUP($D22,'TC regional (2)'!$V$4:$EK$110,M$17,FALSE),"") -> ADECUADO
B23: MPM4NA5 | C23: 5 | D23: =+IFERROR(IF($L$14="NA",VLOOKUP(B23,'Hoja3 (2)'!$G$3:$I$110,3,FALSE),VLOOKUP(B23,'Hoja3 (2)'!$H$3:$I$110,2,FALSE)),"") -> MPM4-03 | E23: =+IFERROR(VLOOKUP(D23,'TC regional'!$W$11:$X$122,2,FALSE),"") -> Niños y niñas desplazados reportados al Sistema de Seguimiento Nutricional - SSN en HI - HCB - CDI (excluyendo FAMI, menores de 2 años y mayores de 5 años) con desnutrición aguda que mejoraron su estado Nutricional. | F23: =+IFERROR(VLOOKUP(D23,'TC regional'!$W$11:$Y$113,3,FALSE),"") -> 3er nivel | G23: =+IFERROR(VLOOKUP($D23,'TC regional (2)'!$V$4:$EK$115,G$17,FALSE),"") -> 78% | H23: =+IFERROR(VLOOKUP($D23,'TC regional (2)'!$V$4:$EK$110,H$17,FALSE),"") -> 3 | I23: =+IFERROR(VLOOKUP($D23,'TC regional (2)'!$V$4:$EK$110,I$17,FALSE),"") -> 3 | J23: =+IFERROR(VLOOKUP($D23,'TC regional (2)'!$V$4:$EK$110,J$17,FALSE),"") -> 100% | K23: =+IFERROR(VLOOKUP($D23,'TC regional (2)'!$V$4:$EK$110,K$17,FALSE),"") -> 128% | M23: =+IFERROR(VLOOKUP($D23,'TC regional (2)'!$V$4:$EK$110,M$17,FALSE),"") -> OPTIMO
B24: MPM4NA6 | C24: 6 | D24: =+IFERROR(IF($L$14="NA",VLOOKUP(B24,'Hoja3 (2)'!$G$3:$I$110,3,FALSE),VLOOKUP(B24,'Hoja3 (2)'!$H$3:$I$110,2,FALSE)),"") -> MPM4-04 | E24: =+IFERROR(VLOOKUP(D24,'TC regional'!$W$11:$X$122,2,FALSE),"") -> Niños y Niñas reportados al Sistema de Seguimiento Nutricional –SSN en HI, CDI y HCB (excluyendo FAMI, menores de 2 años) que permanecieron con Obesidad | F24: =+IFERROR(VLOOKUP(D24,'TC regional'!$W$11:$Y$113,3,FALSE),"") -> 3er nivel | G24: =+IFERROR(VLOOKUP($D24,'TC regional (2)'!$V$4:$EK$115,G$17,FALSE),"") -> 50% | H24: =+IFERROR(VLOOKUP($D24,'TC regional (2)'!$V$4:$EK$110,H$17,FALSE),"") -> 9 | I24: =+IFERROR(VLOOKUP($D24,'TC regional (2)'!$V$4:$EK$110,I$17,FALSE),"") -> 36 | J24: =+IFERROR(VLOOKUP($D24,'TC regional (2)'!$V$4:$EK$110,J$17,FALSE),"") -> 25% | K24: =+IFERROR(VLOOKUP($D24,'TC regional (2)'!$V$4:$EK$110,K$17,FALSE),"") -> 50% | M24: =+IFERROR(VLOOKUP($D24,'TC regional (2)'!$V$4:$EK$110,M$17,FALSE),"") -> OPTIMO
B25: MPM4NA7 | C25: 7 | D25: =+IFERROR(IF($L$14="NA",VLOOKUP(B25,'Hoja3 (2)'!$G$3:$I$110,3,FALSE),VLOOKUP(B25,'Hoja3 (2)'!$H$3:$I$110,2,FALSE)),"") -> MPM4-07 | E25: =+IFERROR(VLOOKUP(D25,'TC regional'!$W$11:$X$122,2,FALSE),"") -> Porcentaje de cumplimiento de la actualización de datos de beneficiarios para la Dirección Nutrición en el sistema CUENTAME | F25: =+IFERROR(VLOOKUP(D25,'TC regional'!$W$11:$Y$113,3,FALSE),"") -> 3er nivel | G25: =+IFERROR(VLOOKUP($D25,'TC regional (2)'!$V$4:$EK$115,G$17,FALSE),"") -> 100% | H25: =+IFERROR(VLOOKUP($D25,'TC regional (2)'!$V$4:$EK$110,H$17,FALSE),"") -> 26 | I25: =+IFERROR(VLOOKUP($D25,'TC regional (2)'!$V$4:$EK$110,I$17,FALSE),"") -> 390 | J25: =+IFERROR(VLOOKUP($D25,'TC regional (2)'!$V$4:$EK$110,J$17,FALSE),"") -> 7% | K25: =+IFERROR(VLOOKUP($D25,'TC regional (2)'!$V$4:$EK$110,K$17,FALSE),"") -> 7% | M25: =+IFERROR(VLOOKUP($D25,'TC regional (2)'!$V$4:$EK$110,M$17,FALSE),"") -> NA
B26: MPM4NA8 | C26: 8 | D26: =+IFERROR(IF($L$14="NA",VLOOKUP(B26,'Hoja3 (2)'!$G$3:$I$110,3,FALSE),VLOOKUP(B26,'Hoja3 (2)'!$H$3:$I$110,2,FALSE)),"") ->  | E26: =+IFERROR(VLOOKUP(D26,'TC regional'!$W$11:$X$122,2,FALSE),"") ->  | F26: =+IFERROR(VLOOKUP(D26,'TC regional'!$W$11:$Y$113,3,FALSE),"") ->  | G26: =+IFERROR(VLOOKUP($D26,'TC regional (2)'!$V$4:$EK$115,G$17,FALSE),"") ->  | H26: =+IFERROR(VLOOKUP($D26,'TC regional (2)'!$V$4:$EK$110,H$17,FALSE),"") ->  | I26: =+IFERROR(VLOOKUP($D26,'TC regional (2)'!$V$4:$EK$110,I$17,FALSE),"") ->  | J26: =+IFERROR(VLOOKUP($D26,'TC regional (2)'!$V$4:$EK$110,J$17,FALSE),"") ->  | K26: =+IFERROR(VLOOKUP($D26,'TC regional (2)'!$V$4:$EK$110,K$17,FALSE),"") ->  | M26: =+IFERROR(VLOOKUP($D26,'TC regional (2)'!$V$4:$EK$110,M$17,FALSE),"") -> 
B27: MPM4NA9 | C27: 9 | D27: =+IFERROR(IF($L$14="NA",VLOOKUP(B27,'Hoja3 (2)'!$G$3:$I$110,3,FALSE),VLOOKUP(B27,'Hoja3 (2)'!$H$3:$I$110,2,FALSE)),"") ->  | E27: =+IFERROR(VLOOKUP(D27,'TC regional'!$W$11:$X$122,2,FALSE),"") ->  | F27: =+IFERROR(VLOOKUP(D27,'TC regional'!$W$11:$Y$113,3,FALSE),"") ->  | G27: =+IFERROR(VLOOKUP($D27,'TC regional (2)'!$V$4:$EK$115,G$17,FALSE),"") ->  | H27: =+IFERROR(VLOOKUP($D27,'TC regional (2)'!$V$4:$EK$110,H$17,FALSE),"") ->  | I27: =+IFERROR(VLOOKUP($D27,'TC regional (2)'!$V$4:$EK$110,I$17,FALSE),"") ->  | J27: =+IFERROR(VLOOKUP($D27,'TC regional (2)'!$V$4:$EK$110,J$17,FALSE),"") ->  | K27: =+IFERROR(VLOOKUP($D27,'TC regional (2)'!$V$4:$EK$110,K$17,FALSE),"") ->  | M27: =+IFERROR(VLOOKUP($D27,'TC regional (2)'!$V$4:$EK$110,M$17,FALSE),"") -> 
B28: MPM4NA10 | C28: 10 | D28: =+IFERROR(IF($L$14="NA",VLOOKUP(B28,'Hoja3 (2)'!$G$3:$I$110,3,FALSE),VLOOKUP(B28,'Hoja3 (2)'!$H$3:$I$110,2,FALSE)),"") ->  | E28: =+IFERROR(VLOOKUP(D28,'TC regional'!$W$11:$X$122,2,FALSE),"") ->  | F28: =+IFERROR(VLOOKUP(D28,'TC regional'!$W$11:$Y$113,3,FALSE),"") ->  | G28: =+IFERROR(VLOOKUP($D28,'TC regional (2)'!$V$4:$EK$115,G$17,FALSE),"") ->  | H28: =+IFERROR(VLOOKUP($D28,'TC regional (2)'!$V$4:$EK$110,H$17,FALSE),"") ->  | I28: =+IFERROR(VLOOKUP($D28,'TC regional (2)'!$V$4:$EK$110,I$17,FALSE),"") ->  | J28: =+IFERROR(VLOOKUP($D28,'TC regional (2)'!$V$4:$EK$110,J$17,FALSE),"") ->  | K28: =+IFERROR(VLOOKUP($D28,'TC regional (2)'!$V$4:$EK$110,K$17,FALSE),"") ->  | M28: =+IFERROR(VLOOKUP($D28,'TC regional (2)'!$V$4:$EK$110,M$17,FALSE),"") -> 
B29: MPM4NA11 | C29: 11 | D29: =+IFERROR(IF($L$14="NA",VLOOKUP(B29,'Hoja3 (2)'!$G$3:$I$110,3,FALSE),VLOOKUP(B29,'Hoja3 (2)'!$H$3:$I$110,2,FALSE)),"") ->  | E29: =+IFERROR(VLOOKUP(D29,'TC regional'!$W$11:$X$122,2,FALSE),"") ->  | F29: =+IFERROR(VLOOKUP(D29,'TC regional'!$W$11:$Y$113,3,FALSE),"") ->  | G29: =+IFERROR(VLOOKUP($D29,'TC regional (2)'!$V$4:$EK$115,G$17,FALSE),"") ->  | H29: =+IFERROR(VLOOKUP($D29,'TC regional (2)'!$V$4:$EK$110,H$17,FALSE),"") ->  | I29: =+IFERROR(VLOOKUP($D29,'TC regional (2)'!$V$4:$EK$110,I$17,FALSE),"") ->  | J29: =+IFERROR(VLOOKUP($D29,'TC regional (2)'!$V$4:$EK$110,J$17,FALSE),"") ->  | K29: =+IFERROR(VLOOKUP($D29,'TC regional (2)'!$V$4:$EK$110,K$17,FALSE),"") ->  | M29: =+IFERROR(VLOOKUP($D29,'TC regional (2)'!$V$4:$EK$110,M$17,FALSE),"") -> 
B30: MPM4NA12 | C30: 12 | D30: =+IFERROR(IF($L$14="NA",VLOOKUP(B30,'Hoja3 (2)'!$G$3:$I$110,3,FALSE),VLOOKUP(B30,'Hoja3 (2)'!$H$3:$I$110,2,FALSE)),"") ->  | E30: =+IFERROR(VLOOKUP(D30,'TC regional'!$W$11:$X$122,2,FALSE),"") ->  | F30: =+IFERROR(VLOOKUP(D30,'TC regional'!$W$11:$Y$113,3,FALSE),"") ->  | G30: =+IFERROR(VLOOKUP($D30,'TC regional (2)'!$V$4:$EK$115,G$17,FALSE),"") ->  | H30: =+IFERROR(VLOOKUP($D30,'TC regional (2)'!$V$4:$EK$110,H$17,FALSE),"") ->  | I30: =+IFERROR(VLOOKUP($D30,'TC regional (2)'!$V$4:$EK$110,I$17,FALSE),"") ->  | J30: =+IFERROR(VLOOKUP($D30,'TC regional (2)'!$V$4:$EK$110,J$17,FALSE),"") ->  | K30: =+IFERROR(VLOOKUP($D30,'TC regional (2)'!$V$4:$EK$110,K$17,FALSE),"") ->  | M30: =+IFERROR(VLOOKUP($D30,'TC regional (2)'!$V$4:$EK$110,M$17,FALSE),"") -> 
B31: MPM4NA13 | C31: 13 | D31: =+IFERROR(IF($L$14="NA",VLOOKUP(B31,'Hoja3 (2)'!$G$3:$I$110,3,FALSE),VLOOKUP(B31,'Hoja3 (2)'!$H$3:$I$110,2,FALSE)),"") ->  | E31: =+IFERROR(VLOOKUP(D31,'TC regional'!$W$11:$X$122,2,FALSE),"") ->  | F31: =+IFERROR(VLOOKUP(D31,'TC regional'!$W$11:$Y$113,3,FALSE),"") ->  | G31: =+IFERROR(VLOOKUP($D31,'TC regional (2)'!$V$4:$EK$115,G$17,FALSE),"") ->  | H31: =+IFERROR(VLOOKUP($D31,'TC regional (2)'!$V$4:$EK$110,H$17,FALSE),"") ->  | I31: =+IFERROR(VLOOKUP($D31,'TC regional (2)'!$V$4:$EK$110,I$17,FALSE),"") ->  | J31: =+IFERROR(VLOOKUP($D31,'TC regional (2)'!$V$4:$EK$110,J$17,FALSE),"") ->  | K31: =+IFERROR(VLOOKUP($D31,'TC regional (2)'!$V$4:$EK$110,K$17,FALSE),"") ->  | M31: =+IFERROR(VLOOKUP($D31,'TC regional (2)'!$V$4:$EK$110,M$17,FALSE),"") -> 
B32: MPM4NA14 | C32: 14 | D32: =+IFERROR(IF($L$14="NA",VLOOKUP(B32,'Hoja3 (2)'!$G$3:$I$110,3,FALSE),VLOOKUP(B32,'Hoja3 (2)'!$H$3:$I$110,2,FALSE)),"") ->  | E32: =+IFERROR(VLOOKUP(D32,'TC regional'!$W$11:$X$122,2,FALSE),"") ->  | F32: =+IFERROR(VLOOKUP(D32,'TC regional'!$W$11:$Y$113,3,FALSE),"") ->  | G32: =+IFERROR(VLOOKUP($D32,'TC regional (2)'!$V$4:$EK$115,G$17,FALSE),"") ->  | H32: =+IFERROR(VLOOKUP($D32,'TC regional (2)'!$V$4:$EK$110,H$17,FALSE),"") ->  | I32: =+IFERROR(VLOOKUP($D32,'TC regional (2)'!$V$4:$EK$110,I$17,FALSE),"") ->  | J32: =+IFERROR(VLOOKUP($D32,'TC regional (2)'!$V$4:$EK$110,J$17,FALSE),"") ->  | K32: =+IFERROR(VLOOKUP($D32,'TC regional (2)'!$V$4:$EK$110,K$17,FALSE),"") ->  | M32: =+IFERROR(VLOOKUP($D32,'TC regional (2)'!$V$4:$EK$110,M$17,FALSE),"") -> 
B33: MPM4NA15 | C33: 15 | D33: =+IFERROR(IF($L$14="NA",VLOOKUP(B33,'Hoja3 (2)'!$G$3:$I$110,3,FALSE),VLOOKUP(B33,'Hoja3 (2)'!$H$3:$I$110,2,FALSE)),"") ->  | E33: =+IFERROR(VLOOKUP(D33,'TC regional'!$W$11:$X$122,2,FALSE),"") ->  | F33: =+IFERROR(VLOOKUP(D33,'TC regional'!$W$11:$Y$113,3,FALSE),"") ->  | G33: =+IFERROR(VLOOKUP($D33,'TC regional (2)'!$V$4:$EK$115,G$17,FALSE),"") ->  | H33: =+IFERROR(VLOOKUP($D33,'TC regional (2)'!$V$4:$EK$110,H$17,FALSE),"") ->  | I33: =+IFERROR(VLOOKUP($D33,'TC regional (2)'!$V$4:$EK$110,I$17,FALSE),"") ->  | J33: =+IFERROR(VLOOKUP($D33,'TC regional (2)'!$V$4:$EK$110,J$17,FALSE),"") ->  | K33: =+IFERROR(VLOOKUP($D33,'TC regional (2)'!$V$4:$EK$110,K$17,FALSE),"") ->  | M33: =+IFERROR(VLOOKUP($D33,'TC regional (2)'!$V$4:$EK$110,M$17,FALSE),"") -> 
B34: MPM4NA16 | C34: 16 | D34: =+IFERROR(IF($L$14="NA",VLOOKUP(B34,'Hoja3 (2)'!$G$3:$I$110,3,FALSE),VLOOKUP(B34,'Hoja3 (2)'!$H$3:$I$110,2,FALSE)),"") ->  | E34: =+IFERROR(VLOOKUP(D34,'TC regional'!$W$11:$X$122,2,FALSE),"") ->  | F34: =+IFERROR(VLOOKUP(D34,'TC regional'!$W$11:$Y$113,3,FALSE),"") ->  | G34: =+IFERROR(VLOOKUP($D34,'TC regional (2)'!$V$4:$EK$115,G$17,FALSE),"") ->  | H34: =+IFERROR(VLOOKUP($D34,'TC regional (2)'!$V$4:$EK$110,H$17,FALSE),"") ->  | I34: =+IFERROR(VLOOKUP($D34,'TC regional (2)'!$V$4:$EK$110,I$17,FALSE),"") ->  | J34: =+IFERROR(VLOOKUP($D34,'TC regional (2)'!$V$4:$EK$110,J$17,FALSE),"") ->  | K34: =+IFERROR(VLOOKUP($D34,'TC regional (2)'!$V$4:$EK$110,K$17,FALSE),"") ->  | M34: =+IFERROR(VLOOKUP($D34,'TC regional (2)'!$V$4:$EK$110,M$17,FALSE),"") -> 
B35: MPM4NA17 | C35: 17 | D35: =+IFERROR(IF($L$14="NA",VLOOKUP(B35,'Hoja3 (2)'!$G$3:$I$110,3,FALSE),VLOOKUP(B35,'Hoja3 (2)'!$H$3:$I$110,2,FALSE)),"") ->  | E35: =+IFERROR(VLOOKUP(D35,'TC regional'!$W$11:$X$122,2,FALSE),"") ->  | F35: =+IFERROR(VLOOKUP(D35,'TC regional'!$W$11:$Y$113,3,FALSE),"") ->  | G35: =+IFERROR(VLOOKUP($D35,'TC regional (2)'!$V$4:$EK$115,G$17,FALSE),"") ->  | H35: =+IFERROR(VLOOKUP($D35,'TC regional (2)'!$V$4:$EK$110,H$17,FALSE),"") ->  | I35: =+IFERROR(VLOOKUP($D35,'TC regional (2)'!$V$4:$EK$110,I$17,FALSE),"") ->  | J35: =+IFERROR(VLOOKUP($D35,'TC regional (2)'!$V$4:$EK$110,J$17,FALSE),"") ->  | K35: =+IFERROR(VLOOKUP($D35,'TC regional (2)'!$V$4:$EK$110,K$17,FALSE),"") ->  | M35: =+IFERROR(VLOOKUP($D35,'TC regional (2)'!$V$4:$EK$110,M$17,FALSE),"") -> 
B36: MPM4NA18 | C36: 18 | D36: =+IFERROR(IF($L$14="NA",VLOOKUP(B36,'Hoja3 (2)'!$G$3:$I$110,3,FALSE),VLOOKUP(B36,'Hoja3 (2)'!$H$3:$I$110,2,FALSE)),"") ->  | E36: =+IFERROR(VLOOKUP(D36,'TC regional'!$W$11:$X$122,2,FALSE),"") ->  | F36: =+IFERROR(VLOOKUP(D36,'TC regional'!$W$11:$Y$113,3,FALSE),"") ->  | G36: =+IFERROR(VLOOKUP($D36,'TC regional (2)'!$V$4:$EK$115,G$17,FALSE),"") ->  | H36: =+IFERROR(VLOOKUP($D36,'TC regional (2)'!$V$4:$EK$110,H$17,FALSE),"") ->  | I36: =+IFERROR(VLOOKUP($D36,'TC regional (2)'!$V$4:$EK$110,I$17,FALSE),"") ->  | J36: =+IFERROR(VLOOKUP($D36,'TC regional (2)'!$V$4:$EK$110,J$17,FALSE),"") ->  | K36: =+IFERROR(VLOOKUP($D36,'TC regional (2)'!$V$4:$EK$110,K$17,FALSE),"") ->  | M36: =+IFERROR(VLOOKUP($D36,'TC regional (2)'!$V$4:$EK$110,M$17,FALSE),"") -> 
B37: MPM4NA19 | C37: 19 | D37: =+IFERROR(IF($L$14="NA",VLOOKUP(B37,'Hoja3 (2)'!$G$3:$I$110,3,FALSE),VLOOKUP(B37,'Hoja3 (2)'!$H$3:$I$110,2,FALSE)),"") ->  | E37: =+IFERROR(VLOOKUP(D37,'TC regional'!$W$11:$X$122,2,FALSE),"") ->  | F37: =+IFERROR(VLOOKUP(D37,'TC regional'!$W$11:$Y$113,3,FALSE),"") ->  | G37: =+IFERROR(VLOOKUP($D37,'TC regional (2)'!$V$4:$EK$115,G$17,FALSE),"") ->  | H37: =+IFERROR(VLOOKUP($D37,'TC regional (2)'!$V$4:$EK$110,H$17,FALSE),"") ->  | I37: =+IFERROR(VLOOKUP($D37,'TC regional (2)'!$V$4:$EK$110,I$17,FALSE),"") ->  | J37: =+IFERROR(VLOOKUP($D37,'TC regional (2)'!$V$4:$EK$110,J$17,FALSE),"") ->  | K37: =+IFERROR(VLOOKUP($D37,'TC regional (2)'!$V$4:$EK$110,K$17,FALSE),"") ->  | M37: =+IFERROR(VLOOKUP($D37,'TC regional (2)'!$V$4:$EK$110,M$17,FALSE),"") -> 
B38: MPM4NA20 | C38: 20 | D38: =+IFERROR(IF($L$14="NA",VLOOKUP(B38,'Hoja3 (2)'!$G$3:$I$110,3,FALSE),VLOOKUP(B38,'Hoja3 (2)'!$H$3:$I$110,2,FALSE)),"") ->  | E38: =+IFERROR(VLOOKUP(D38,'TC regional'!$W$11:$X$122,2,FALSE),"") ->  | F38: =+IFERROR(VLOOKUP(D38,'TC regional'!$W$11:$Y$113,3,FALSE),"") ->  | G38: =+IFERROR(VLOOKUP($D38,'TC regional (2)'!$V$4:$EK$115,G$17,FALSE),"") ->  | H38: =+IFERROR(VLOOKUP($D38,'TC regional (2)'!$V$4:$EK$110,H$17,FALSE),"") ->  | I38: =+IFERROR(VLOOKUP($D38,'TC regional (2)'!$V$4:$EK$110,I$17,FALSE),"") ->  | J38: =+IFERROR(VLOOKUP($D38,'TC regional (2)'!$V$4:$EK$110,J$17,FALSE),"") ->  | K38: =+IFERROR(VLOOKUP($D38,'TC regional (2)'!$V$4:$EK$110,K$17,FALSE),"") ->  | M38: =+IFERROR(VLOOKUP($D38,'TC regional (2)'!$V$4:$EK$110,M$17,FALSE),"") -> 
B39: MPM4NA21 | C39: 21 | D39: =+IFERROR(IF($L$14="NA",VLOOKUP(B39,'Hoja3 (2)'!$G$3:$I$110,3,FALSE),VLOOKUP(B39,'Hoja3 (2)'!$H$3:$I$110,2,FALSE)),"") ->  | E39: =+IFERROR(VLOOKUP(D39,'TC regional'!$W$11:$X$122,2,FALSE),"") ->  | F39: =+IFERROR(VLOOKUP(D39,'TC regional'!$W$11:$Y$113,3,FALSE),"") ->  | G39: =+IFERROR(VLOOKUP($D39,'TC regional (2)'!$V$4:$EK$115,G$17,FALSE),"") ->  | H39: =+IFERROR(VLOOKUP($D39,'TC regional (2)'!$V$4:$EK$110,H$17,FALSE),"") ->  | I39: =+IFERROR(VLOOKUP($D39,'TC regional (2)'!$V$4:$EK$110,I$17,FALSE),"") ->  | J39: =+IFERROR(VLOOKUP($D39,'TC regional (2)'!$V$4:$EK$110,J$17,FALSE),"") ->  | K39: =+IFERROR(VLOOKUP($D39,'TC regional (2)'!$V$4:$EK$110,K$17,FALSE),"") ->  | M39: =+IFERROR(VLOOKUP($D39,'TC regional (2)'!$V$4:$EK$110,M$17,FALSE),"") -> 
B40: MPM4NA22 | C40: 22 | D40: =+IFERROR(IF($L$14="NA",VLOOKUP(B40,'Hoja3 (2)'!$G$3:$I$110,3,FALSE),VLOOKUP(B40,'Hoja3 (2)'!$H$3:$I$110,2,FALSE)),"") ->  | E40: =+IFERROR(VLOOKUP(D40,'TC regional'!$W$11:$X$122,2,FALSE),"") ->  | F40: =+IFERROR(VLOOKUP(D40,'TC regional'!$W$11:$Y$113,3,FALSE),"") ->  | G40: =+IFERROR(VLOOKUP($D40,'TC regional (2)'!$V$4:$EK$115,G$17,FALSE),"") ->  | H40: =+IFERROR(VLOOKUP($D40,'TC regional (2)'!$V$4:$EK$110,H$17,FALSE),"") ->  | I40: =+IFERROR(VLOOKUP($D40,'TC regional (2)'!$V$4:$EK$110,I$17,FALSE),"") ->  | J40: =+IFERROR(VLOOKUP($D40,'TC regional (2)'!$V$4:$EK$110,J$17,FALSE),"") ->  | K40: =+IFERROR(VLOOKUP($D40,'TC regional (2)'!$V$4:$EK$110,K$17,FALSE),"") ->  | M40: =+IFERROR(VLOOKUP($D40,'TC regional (2)'!$V$4:$EK$110,M$17,FALSE),"") -> 
B41: MPM4NA23 | C41: 23 | D41: =+IFERROR(IF($L$14="NA",VLOOKUP(B41,'Hoja3 (2)'!$G$3:$I$110,3,FALSE),VLOOKUP(B41,'Hoja3 (2)'!$H$3:$I$110,2,FALSE)),"") ->  | E41: =+IFERROR(VLOOKUP(D41,'TC regional'!$W$11:$X$122,2,FALSE),"") ->  | F41: =+IFERROR(VLOOKUP(D41,'TC regional'!$W$11:$Y$113,3,FALSE),"") ->  | G41: =+IFERROR(VLOOKUP($D41,'TC regional (2)'!$V$4:$EK$115,G$17,FALSE),"") ->  | H41: =+IFERROR(VLOOKUP($D41,'TC regional (2)'!$V$4:$EK$110,H$17,FALSE),"") ->  | I41: =+IFERROR(VLOOKUP($D41,'TC regional (2)'!$V$4:$EK$110,I$17,FALSE),"") ->  | J41: =+IFERROR(VLOOKUP($D41,'TC regional (2)'!$V$4:$EK$110,J$17,FALSE),"") ->  | K41: =+IFERROR(VLOOKUP($D41,'TC regional (2)'!$V$4:$EK$110,K$17,FALSE),"") ->  | M41: =+IFERROR(VLOOKUP($D41,'TC regional (2)'!$V$4:$EK$110,M$17,FALSE),"") -> 
B42: MPM4NA24 | C42: 24 | D42: =+IFERROR(IF($L$14="NA",VLOOKUP(B42,'Hoja3 (2)'!$G$3:$I$110,3,FALSE),VLOOKUP(B42,'Hoja3 (2)'!$H$3:$I$110,2,FALSE)),"") ->  | E42: =+IFERROR(VLOOKUP(D42,'TC regional'!$W$11:$X$122,2,FALSE),"") ->  | F42: =+IFERROR(VLOOKUP(D42,'TC regional'!$W$11:$Y$113,3,FALSE),"") ->  | G42: =+IFERROR(VLOOKUP($D42,'TC regional (2)'!$V$4:$EK$115,G$17,FALSE),"") ->  | H42: =+IFERROR(VLOOKUP($D42,'TC regional (2)'!$V$4:$EK$110,H$17,FALSE),"") ->  | I42: =+IFERROR(VLOOKUP($D42,'TC regional (2)'!$V$4:$EK$110,I$17,FALSE),"") ->  | J42: =+IFERROR(VLOOKUP($D42,'TC regional (2)'!$V$4:$EK$110,J$17,FALSE),"") ->  | K42: =+IFERROR(VLOOKUP($D42,'TC regional (2)'!$V$4:$EK$110,K$17,FALSE),"") ->  | M42: =+IFERROR(VLOOKUP($D42,'TC regional (2)'!$V$4:$EK$110,M$17,FALSE),"") -> 
B43: MPM4NA25 | C43: 25 | D43: =+IFERROR(IF($L$14="NA",VLOOKUP(B43,'Hoja3 (2)'!$G$3:$I$110,3,FALSE),VLOOKUP(B43,'Hoja3 (2)'!$H$3:$I$110,2,FALSE)),"") ->  | E43: =+IFERROR(VLOOKUP(D43,'TC regional'!$W$11:$X$122,2,FALSE),"") ->  | F43: =+IFERROR(VLOOKUP(D43,'TC regional'!$W$11:$Y$113,3,FALSE),"") ->  | G43: =+IFERROR(VLOOKUP($D43,'TC regional (2)'!$V$4:$EK$115,G$17,FALSE),"") ->  | H43: =+IFERROR(VLOOKUP($D43,'TC regional (2)'!$V$4:$EK$110,H$17,FALSE),"") ->  | I43: =+IFERROR(VLOOKUP($D43,'TC regional (2)'!$V$4:$EK$110,I$17,FALSE),"") ->  | J43: =+IFERROR(VLOOKUP($D43,'TC regional (2)'!$V$4:$EK$110,J$17,FALSE),"") ->  | K43: =+IFERROR(VLOOKUP($D43,'TC regional (2)'!$V$4:$EK$110,K$17,FALSE),"") ->  | M43: =+IFERROR(VLOOKUP($D43,'TC regional (2)'!$V$4:$EK$110,M$17,FALSE),"") -> 
B44: MPM4NA26 | C44: 26 | D44: =+IFERROR(IF($L$14="NA",VLOOKUP(B44,'Hoja3 (2)'!$G$3:$I$110,3,FALSE),VLOOKUP(B44,'Hoja3 (2)'!$H$3:$I$110,2,FALSE)),"") ->  | E44: =+IFERROR(VLOOKUP(D44,'TC regional'!$W$11:$X$122,2,FALSE),"") ->  | F44: =+IFERROR(VLOOKUP(D44,'TC regional'!$W$11:$Y$113,3,FALSE),"") ->  | G44: =+IFERROR(VLOOKUP($D44,'TC regional (2)'!$V$4:$EK$115,G$17,FALSE),"") ->  | H44: =+IFERROR(VLOOKUP($D44,'TC regional (2)'!$V$4:$EK$110,H$17,FALSE),"") ->  | I44: =+IFERROR(VLOOKUP($D44,'TC regional (2)'!$V$4:$EK$110,I$17,FALSE),"") ->  | J44: =+IFERROR(VLOOKUP($D44,'TC regional (2)'!$V$4:$EK$110,J$17,FALSE),"") ->  | K44: =+IFERROR(VLOOKUP($D44,'TC regional (2)'!$V$4:$EK$110,K$17,FALSE),"") ->  | M44: =+IFERROR(VLOOKUP($D44,'TC regional (2)'!$V$4:$EK$110,M$17,FALSE),"") -> 
B45: MPM4NA27 | C45: 27 | D45: =+IFERROR(IF($L$14="NA",VLOOKUP(B45,'Hoja3 (2)'!$G$3:$I$110,3,FALSE),VLOOKUP(B45,'Hoja3 (2)'!$H$3:$I$110,2,FALSE)),"") ->  | E45: =+IFERROR(VLOOKUP(D45,'TC regional'!$W$11:$X$122,2,FALSE),"") ->  | F45: =+IFERROR(VLOOKUP(D45,'TC regional'!$W$11:$Y$113,3,FALSE),"") ->  | G45: =+IFERROR(VLOOKUP($D45,'TC regional (2)'!$V$4:$EK$115,G$17,FALSE),"") ->  | H45: =+IFERROR(VLOOKUP($D45,'TC regional (2)'!$V$4:$EK$110,H$17,FALSE),"") ->  | I45: =+IFERROR(VLOOKUP($D45,'TC regional (2)'!$V$4:$EK$110,I$17,FALSE),"") ->  | J45: =+IFERROR(VLOOKUP($D45,'TC regional (2)'!$V$4:$EK$110,J$17,FALSE),"") ->  | K45: =+IFERROR(VLOOKUP($D45,'TC regional (2)'!$V$4:$EK$110,K$17,FALSE),"") ->  | M45: =+IFERROR(VLOOKUP($D45,'TC regional (2)'!$V$4:$EK$110,M$17,FALSE),"") -> 
B46: MPM4NA28 | C46: 28 | D46: =+IFERROR(IF($L$14="NA",VLOOKUP(B46,'Hoja3 (2)'!$G$3:$I$110,3,FALSE),VLOOKUP(B46,'Hoja3 (2)'!$H$3:$I$110,2,FALSE)),"") ->  | E46: =+IFERROR(VLOOKUP(D46,'TC regional'!$W$11:$X$122,2,FALSE),"") ->  | F46: =+IFERROR(VLOOKUP(D46,'TC regional'!$W$11:$Y$113,3,FALSE),"") ->  | G46: =+IFERROR(VLOOKUP($D46,'TC regional (2)'!$V$4:$EK$115,G$17,FALSE),"") ->  | H46: =+IFERROR(VLOOKUP($D46,'TC regional (2)'!$V$4:$EK$110,H$17,FALSE),"") ->  | I46: =+IFERROR(VLOOKUP($D46,'TC regional (2)'!$V$4:$EK$110,I$17,FALSE),"") ->  | J46: =+IFERROR(VLOOKUP($D46,'TC regional (2)'!$V$4:$EK$110,J$17,FALSE),"") ->  | K46: =+IFERROR(VLOOKUP($D46,'TC regional (2)'!$V$4:$EK$110,K$17,FALSE),"") ->  | M46: =+IFERROR(VLOOKUP($D46,'TC regional (2)'!$V$4:$EK$110,M$17,FALSE),"") -> 
B47: MPM4NA29 | C47: 29 | D47: =+IFERROR(IF($L$14="NA",VLOOKUP(B47,'Hoja3 (2)'!$G$3:$I$110,3,FALSE),VLOOKUP(B47,'Hoja3 (2)'!$H$3:$I$110,2,FALSE)),"") ->  | E47: =+IFERROR(VLOOKUP(D47,'TC regional'!$W$11:$X$122,2,FALSE),"") ->  | F47: =+IFERROR(VLOOKUP(D47,'TC regional'!$W$11:$Y$113,3,FALSE),"") ->  | G47: =+IFERROR(VLOOKUP($D47,'TC regional (2)'!$V$4:$EK$115,G$17,FALSE),"") ->  | H47: =+IFERROR(VLOOKUP($D47,'TC regional (2)'!$V$4:$EK$110,H$17,FALSE),"") ->  | I47: =+IFERROR(VLOOKUP($D47,'TC regional (2)'!$V$4:$EK$110,I$17,FALSE),"") ->  | J47: =+IFERROR(VLOOKUP($D47,'TC regional (2)'!$V$4:$EK$110,J$17,FALSE),"") ->  | K47: =+IFERROR(VLOOKUP($D47,'TC regional (2)'!$V$4:$EK$110,K$17,FALSE),"") ->  | M47: =+IFERROR(VLOOKUP($D47,'TC regional (2)'!$V$4:$EK$110,M$17,FALSE),"") -> 
B48: MPM4NA30 | C48: 30 | D48: =+IFERROR(IF($L$14="NA",VLOOKUP(B48,'Hoja3 (2)'!$G$3:$I$110,3,FALSE),VLOOKUP(B48,'Hoja3 (2)'!$H$3:$I$110,2,FALSE)),"") ->  | E48: =+IFERROR(VLOOKUP(D48,'TC regional'!$W$11:$X$122,2,FALSE),"") ->  | F48: =+IFERROR(VLOOKUP(D48,'TC regional'!$W$11:$Y$113,3,FALSE),"") ->  | G48: =+IFERROR(VLOOKUP($D48,'TC regional (2)'!$V$4:$EK$115,G$17,FALSE),"") ->  | H48: =+IFERROR(VLOOKUP($D48,'TC regional (2)'!$V$4:$EK$110,H$17,FALSE),"") ->  | I48: =+IFERROR(VLOOKUP($D48,'TC regional (2)'!$V$4:$EK$110,I$17,FALSE),"") ->  | J48: =+IFERROR(VLOOKUP($D48,'TC regional (2)'!$V$4:$EK$110,J$17,FALSE),"") ->  | K48: =+IFERROR(VLOOKUP($D48,'TC regional (2)'!$V$4:$EK$110,K$17,FALSE),"") ->  | M48: =+IFERROR(VLOOKUP($D48,'TC regional (2)'!$V$4:$EK$110,M$17,FALSE),"") -> 
B49: MPM4NA31 | C49: 31 | D49: =+IFERROR(IF($L$14="NA",VLOOKUP(B49,'Hoja3 (2)'!$G$3:$I$110,3,FALSE),VLOOKUP(B49,'Hoja3 (2)'!$H$3:$I$110,2,FALSE)),"") ->  | E49: =+IFERROR(VLOOKUP(D49,'TC regional'!$W$11:$X$122,2,FALSE),"") ->  | F49: =+IFERROR(VLOOKUP(D49,'TC regional'!$W$11:$Y$113,3,FALSE),"") ->  | G49: =+IFERROR(VLOOKUP($D49,'TC regional (2)'!$V$4:$EK$115,G$17,FALSE),"") ->  | H49: =+IFERROR(VLOOKUP($D49,'TC regional (2)'!$V$4:$EK$110,H$17,FALSE),"") ->  | I49: =+IFERROR(VLOOKUP($D49,'TC regional (2)'!$V$4:$EK$110,I$17,FALSE),"") ->  | J49: =+IFERROR(VLOOKUP($D49,'TC regional (2)'!$V$4:$EK$110,J$17,FALSE),"") ->  | K49: =+IFERROR(VLOOKUP($D49,'TC regional (2)'!$V$4:$EK$110,K$17,FALSE),"") ->  | M49: =+IFERROR(VLOOKUP($D49,'TC regional (2)'!$V$4:$EK$110,M$17,FALSE),"") -> 
B50: MPM4NA32 | C50: 32 | D50: =+IFERROR(IF($L$14="NA",VLOOKUP(B50,'Hoja3 (2)'!$G$3:$I$110,3,FALSE),VLOOKUP(B50,'Hoja3 (2)'!$H$3:$I$110,2,FALSE)),"") ->  | E50: =+IFERROR(VLOOKUP(D50,'TC regional'!$W$11:$X$122,2,FALSE),"") ->  | F50: =+IFERROR(VLOOKUP(D50,'TC regional'!$W$11:$Y$113,3,FALSE),"") ->  | G50: =+IFERROR(VLOOKUP($D50,'TC regional (2)'!$V$4:$EK$115,G$17,FALSE),"") ->  | H50: =+IFERROR(VLOOKUP($D50,'TC regional (2)'!$V$4:$EK$110,H$17,FALSE),"") ->  | I50: =+IFERROR(VLOOKUP($D50,'TC regional (2)'!$V$4:$EK$110,I$17,FALSE),"") ->  | J50: =+IFERROR(VLOOKUP($D50,'TC regional (2)'!$V$4:$EK$110,J$17,FALSE),"") ->  | K50: =+IFERROR(VLOOKUP($D50,'TC regional (2)'!$V$4:$EK$110,K$17,FALSE),"") ->  | M50: =+IFERROR(VLOOKUP($D50,'TC regional (2)'!$V$4:$EK$110,M$17,FALSE),"") -> 
B51: MPM4NA33 | C51: 33 | D51: =+IFERROR(IF($L$14="NA",VLOOKUP(B51,'Hoja3 (2)'!$G$3:$I$110,3,FALSE),VLOOKUP(B51,'Hoja3 (2)'!$H$3:$I$110,2,FALSE)),"") ->  | E51: =+IFERROR(VLOOKUP(D51,'TC regional'!$W$11:$X$122,2,FALSE),"") ->  | F51: =+IFERROR(VLOOKUP(D51,'TC regional'!$W$11:$Y$113,3,FALSE),"") ->  | G51: =+IFERROR(VLOOKUP($D51,'TC regional (2)'!$V$4:$EK$115,G$17,FALSE),"") ->  | H51: =+IFERROR(VLOOKUP($D51,'TC regional (2)'!$V$4:$EK$110,H$17,FALSE),"") ->  | I51: =+IFERROR(VLOOKUP($D51,'TC regional (2)'!$V$4:$EK$110,I$17,FALSE),"") ->  | J51: =+IFERROR(VLOOKUP($D51,'TC regional (2)'!$V$4:$EK$110,J$17,FALSE),"") ->  | K51: =+IFERROR(VLOOKUP($D51,'TC regional (2)'!$V$4:$EK$110,K$17,FALSE),"") ->  | M51: =+IFERROR(VLOOKUP($D51,'TC regional (2)'!$V$4:$EK$110,M$17,FALSE),"") -> 
B52: MPM4NA34 | C52: 34 | D52: =+IFERROR(IF($L$14="NA",VLOOKUP(B52,'Hoja3 (2)'!$G$3:$I$110,3,FALSE),VLOOKUP(B52,'Hoja3 (2)'!$H$3:$I$110,2,FALSE)),"") ->  | E52: =+IFERROR(VLOOKUP(D52,'TC regional'!$W$11:$X$122,2,FALSE),"") ->  | F52: =+IFERROR(VLOOKUP(D52,'TC regional'!$W$11:$Y$113,3,FALSE),"") ->  | G52: =+IFERROR(VLOOKUP($D52,'TC regional (2)'!$V$4:$EK$115,G$17,FALSE),"") ->  | H52: =+IFERROR(VLOOKUP($D52,'TC regional (2)'!$V$4:$EK$110,H$17,FALSE),"") ->  | I52: =+IFERROR(VLOOKUP($D52,'TC regional (2)'!$V$4:$EK$110,I$17,FALSE),"") ->  | J52: =+IFERROR(VLOOKUP($D52,'TC regional (2)'!$V$4:$EK$110,J$17,FALSE),"") ->  | K52: =+IFERROR(VLOOKUP($D52,'TC regional (2)'!$V$4:$EK$110,K$17,FALSE),"") ->  | M52: =+IFERROR(VLOOKUP($D52,'TC regional (2)'!$V$4:$EK$110,M$17,FALSE),"") -> 
B53: MPM4NA35 | C53: 35 | D53: =+IFERROR(IF($L$14="NA",VLOOKUP(B53,'Hoja3 (2)'!$G$3:$I$110,3,FALSE),VLOOKUP(B53,'Hoja3 (2)'!$H$3:$I$110,2,FALSE)),"") ->  | E53: =+IFERROR(VLOOKUP(D53,'TC regional'!$W$11:$X$122,2,FALSE),"") ->  | F53: =+IFERROR(VLOOKUP(D53,'TC regional'!$W$11:$Y$113,3,FALSE),"") ->  | G53: =+IFERROR(VLOOKUP($D53,'TC regional (2)'!$V$4:$EK$115,G$17,FALSE),"") ->  | H53: =+IFERROR(VLOOKUP($D53,'TC regional (2)'!$V$4:$EK$110,H$17,FALSE),"") ->  | I53: =+IFERROR(VLOOKUP($D53,'TC regional (2)'!$V$4:$EK$110,I$17,FALSE),"") ->  | J53: =+IFERROR(VLOOKUP($D53,'TC regional (2)'!$V$4:$EK$110,J$17,FALSE),"") ->  | K53: =+IFERROR(VLOOKUP($D53,'TC regional (2)'!$V$4:$EK$110,K$17,FALSE),"") ->  | M53: =+IFERROR(VLOOKUP($D53,'TC regional (2)'!$V$4:$EK$110,M$17,FALSE),"") -> 
B54: MPM4NA36 | C54: 36 | D54: =+IFERROR(IF($L$14="NA",VLOOKUP(B54,'Hoja3 (2)'!$G$3:$I$110,3,FALSE),VLOOKUP(B54,'Hoja3 (2)'!$H$3:$I$110,2,FALSE)),"") ->  | E54: =+IFERROR(VLOOKUP(D54,'TC regional'!$W$11:$X$122,2,FALSE),"") ->  | F54: =+IFERROR(VLOOKUP(D54,'TC regional'!$W$11:$Y$113,3,FALSE),"") ->  | G54: =+IFERROR(VLOOKUP($D54,'TC regional (2)'!$V$4:$EK$115,G$17,FALSE),"") ->  | H54: =+IFERROR(VLOOKUP($D54,'TC regional (2)'!$V$4:$EK$110,H$17,FALSE),"") ->  | I54: =+IFERROR(VLOOKUP($D54,'TC regional (2)'!$V$4:$EK$110,I$17,FALSE),"") ->  | J54: =+IFERROR(VLOOKUP($D54,'TC regional (2)'!$V$4:$EK$110,J$17,FALSE),"") ->  | K54: =+IFERROR(VLOOKUP($D54,'TC regional (2)'!$V$4:$EK$110,K$17,FALSE),"") ->  | M54: =+IFERROR(VLOOKUP($D54,'TC regional (2)'!$V$4:$EK$110,M$17,FALSE),"") -> 
B55: MPM4NA37 | C55: 37 | D55: =+IFERROR(IF($L$14="NA",VLOOKUP(B55,'Hoja3 (2)'!$G$3:$I$110,3,FALSE),VLOOKUP(B55,'Hoja3 (2)'!$H$3:$I$110,2,FALSE)),"") ->  | E55: =+IFERROR(VLOOKUP(D55,'TC regional'!$W$11:$X$122,2,FALSE),"") ->  | F55: =+IFERROR(VLOOKUP(D55,'TC regional'!$W$11:$Y$113,3,FALSE),"") ->  | G55: =+IFERROR(VLOOKUP($D55,'TC regional (2)'!$V$4:$EK$115,G$17,FALSE),"") ->  | H55: =+IFERROR(VLOOKUP($D55,'TC regional (2)'!$V$4:$EK$110,H$17,FALSE),"") ->  | I55: =+IFERROR(VLOOKUP($D55,'TC regional (2)'!$V$4:$EK$110,I$17,FALSE),"") ->  | J55: =+IFERROR(VLOOKUP($D55,'TC regional (2)'!$V$4:$EK$110,J$17,FALSE),"") ->  | K55: =+IFERROR(VLOOKUP($D55,'TC regional (2)'!$V$4:$EK$110,K$17,FALSE),"") ->  | M55: =+IFERROR(VLOOKUP($D55,'TC regional (2)'!$V$4:$EK$110,M$17,FALSE),"") -> 
B56: MPM4NA38 | C56: 38 | D56: =+IFERROR(IF($L$14="NA",VLOOKUP(B56,'Hoja3 (2)'!$G$3:$I$110,3,FALSE),VLOOKUP(B56,'Hoja3 (2)'!$H$3:$I$110,2,FALSE)),"") ->  | E56: =+IFERROR(VLOOKUP(D56,'TC regional'!$W$11:$X$122,2,FALSE),"") ->  | F56: =+IFERROR(VLOOKUP(D56,'TC regional'!$W$11:$Y$113,3,FALSE),"") ->  | G56: =+IFERROR(VLOOKUP($D56,'TC regional (2)'!$V$4:$EK$115,G$17,FALSE),"") ->  | H56: =+IFERROR(VLOOKUP($D56,'TC regional (2)'!$V$4:$EK$110,H$17,FALSE),"") ->  | I56: =+IFERROR(VLOOKUP($D56,'TC regional (2)'!$V$4:$EK$110,I$17,FALSE),"") ->  | J56: =+IFERROR(VLOOKUP($D56,'TC regional (2)'!$V$4:$EK$110,J$17,FALSE),"") ->  | K56: =+IFERROR(VLOOKUP($D56,'TC regional (2)'!$V$4:$EK$110,K$17,FALSE),"") ->  | M56: =+IFERROR(VLOOKUP($D56,'TC regional (2)'!$V$4:$EK$110,M$17,FALSE),"") -> 
B57: MPM4NA39 | C57: 39 | D57: =+IFERROR(IF($L$14="NA",VLOOKUP(B57,'Hoja3 (2)'!$G$3:$I$110,3,FALSE),VLOOKUP(B57,'Hoja3 (2)'!$H$3:$I$110,2,FALSE)),"") ->  | E57: =+IFERROR(VLOOKUP(D57,'TC regional'!$W$11:$X$122,2,FALSE),"") ->  | F57: =+IFERROR(VLOOKUP(D57,'TC regional'!$W$11:$Y$113,3,FALSE),"") ->  | G57: =+IFERROR(VLOOKUP($D57,'TC regional (2)'!$V$4:$EK$115,G$17,FALSE),"") ->  | H57: =+IFERROR(VLOOKUP($D57,'TC regional (2)'!$V$4:$EK$110,H$17,FALSE),"") ->  | I57: =+IFERROR(VLOOKUP($D57,'TC regional (2)'!$V$4:$EK$110,I$17,FALSE),"") ->  | J57: =+IFERROR(VLOOKUP($D57,'TC regional (2)'!$V$4:$EK$110,J$17,FALSE),"") ->  | K57: =+IFERROR(VLOOKUP($D57,'TC regional (2)'!$V$4:$EK$110,K$17,FALSE),"") ->  | M57: =+IFERROR(VLOOKUP($D57,'TC regional (2)'!$V$4:$EK$110,M$17,FALSE),"") -> 
B58: MPM4NA40 | C58: 40 | D58: =+IFERROR(IF($L$14="NA",VLOOKUP(B58,'Hoja3 (2)'!$G$3:$I$110,3,FALSE),VLOOKUP(B58,'Hoja3 (2)'!$H$3:$I$110,2,FALSE)),"") ->  | E58: =+IFERROR(VLOOKUP(D58,'TC regional'!$W$11:$X$122,2,FALSE),"") ->  | F58: =+IFERROR(VLOOKUP(D58,'TC regional'!$W$11:$Y$113,3,FALSE),"") ->  | G58: =+IFERROR(VLOOKUP($D58,'TC regional (2)'!$V$4:$EK$115,G$17,FALSE),"") ->  | H58: =+IFERROR(VLOOKUP($D58,'TC regional (2)'!$V$4:$EK$110,H$17,FALSE),"") ->  | I58: =+IFERROR(VLOOKUP($D58,'TC regional (2)'!$V$4:$EK$110,I$17,FALSE),"") ->  | J58: =+IFERROR(VLOOKUP($D58,'TC regional (2)'!$V$4:$EK$110,J$17,FALSE),"") ->  | K58: =+IFERROR(VLOOKUP($D58,'TC regional (2)'!$V$4:$EK$110,K$17,FALSE),"") ->  | M58: =+IFERROR(VLOOKUP($D58,'TC regional (2)'!$V$4:$EK$110,M$17,FALSE),"") -> 
B59: MPM4NA41 | C59: 41 | D59: =+IFERROR(IF($L$14="NA",VLOOKUP(B59,'Hoja3 (2)'!$G$3:$I$110,3,FALSE),VLOOKUP(B59,'Hoja3 (2)'!$H$3:$I$110,2,FALSE)),"") ->  | E59: =+IFERROR(VLOOKUP(D59,'TC regional'!$W$11:$X$122,2,FALSE),"") ->  | F59: =+IFERROR(VLOOKUP(D59,'TC regional'!$W$11:$Y$113,3,FALSE),"") ->  | G59: =+IFERROR(VLOOKUP($D59,'TC regional (2)'!$V$4:$EK$115,G$17,FALSE),"") ->  | H59: =+IFERROR(VLOOKUP($D59,'TC regional (2)'!$V$4:$EK$110,H$17,FALSE),"") ->  | I59: =+IFERROR(VLOOKUP($D59,'TC regional (2)'!$V$4:$EK$110,I$17,FALSE),"") ->  | J59: =+IFERROR(VLOOKUP($D59,'TC regional (2)'!$V$4:$EK$110,J$17,FALSE),"") ->  | K59: =+IFERROR(VLOOKUP($D59,'TC regional (2)'!$V$4:$EK$110,K$17,FALSE),"") ->  | M59: =+IFERROR(VLOOKUP($D59,'TC regional (2)'!$V$4:$EK$110,M$17,FALSE),"") -> 
B60: MPM4NA42 | C60: 42 | D60: =+IFERROR(IF($L$14="NA",VLOOKUP(B60,'Hoja3 (2)'!$G$3:$I$110,3,FALSE),VLOOKUP(B60,'Hoja3 (2)'!$H$3:$I$110,2,FALSE)),"") ->  | E60: =+IFERROR(VLOOKUP(D60,'TC regional'!$W$11:$X$122,2,FALSE),"") ->  | F60: =+IFERROR(VLOOKUP(D60,'TC regional'!$W$11:$Y$113,3,FALSE),"") ->  | G60: =+IFERROR(VLOOKUP($D60,'TC regional (2)'!$V$4:$EK$115,G$17,FALSE),"") ->  | H60: =+IFERROR(VLOOKUP($D60,'TC regional (2)'!$V$4:$EK$110,H$17,FALSE),"") ->  | I60: =+IFERROR(VLOOKUP($D60,'TC regional (2)'!$V$4:$EK$110,I$17,FALSE),"") ->  | J60: =+IFERROR(VLOOKUP($D60,'TC regional (2)'!$V$4:$EK$110,J$17,FALSE),"") ->  | K60: =+IFERROR(VLOOKUP($D60,'TC regional (2)'!$V$4:$EK$110,K$17,FALSE),"") ->  | M60: =+IFERROR(VLOOKUP($D60,'TC regional (2)'!$V$4:$EK$110,M$17,FALSE),"") -> 
B61: MPM4NA43 | C61: 43 | D61: =+IFERROR(IF($L$14="NA",VLOOKUP(B61,'Hoja3 (2)'!$G$3:$I$110,3,FALSE),VLOOKUP(B61,'Hoja3 (2)'!$H$3:$I$110,2,FALSE)),"") ->  | E61: =+IFERROR(VLOOKUP(D61,'TC regional'!$W$11:$X$122,2,FALSE),"") ->  | F61: =+IFERROR(VLOOKUP(D61,'TC regional'!$W$11:$Y$113,3,FALSE),"") ->  | G61: =+IFERROR(VLOOKUP($D61,'TC regional (2)'!$V$4:$EK$115,G$17,FALSE),"") ->  | H61: =+IFERROR(VLOOKUP($D61,'TC regional (2)'!$V$4:$EK$110,H$17,FALSE),"") ->  | I61: =+IFERROR(VLOOKUP($D61,'TC regional (2)'!$V$4:$EK$110,I$17,FALSE),"") ->  | J61: =+IFERROR(VLOOKUP($D61,'TC regional (2)'!$V$4:$EK$110,J$17,FALSE),"") ->  | K61: =+IFERROR(VLOOKUP($D61,'TC regional (2)'!$V$4:$EK$110,K$17,FALSE),"") ->  | M61: =+IFERROR(VLOOKUP($D61,'TC regional (2)'!$V$4:$EK$110,M$17,FALSE),"") -> 
B62: MPM4NA44 | C62: 44 | D62: =+IFERROR(IF($L$14="NA",VLOOKUP(B62,'Hoja3 (2)'!$G$3:$I$110,3,FALSE),VLOOKUP(B62,'Hoja3 (2)'!$H$3:$I$110,2,FALSE)),"") ->  | E62: =+IFERROR(VLOOKUP(D62,'TC regional'!$W$11:$X$122,2,FALSE),"") ->  | F62: =+IFERROR(VLOOKUP(D62,'TC regional'!$W$11:$Y$113,3,FALSE),"") ->  | G62: =+IFERROR(VLOOKUP($D62,'TC regional (2)'!$V$4:$EK$115,G$17,FALSE),"") ->  | H62: =+IFERROR(VLOOKUP($D62,'TC regional (2)'!$V$4:$EK$110,H$17,FALSE),"") ->  | I62: =+IFERROR(VLOOKUP($D62,'TC regional (2)'!$V$4:$EK$110,I$17,FALSE),"") ->  | J62: =+IFERROR(VLOOKUP($D62,'TC regional (2)'!$V$4:$EK$110,J$17,FALSE),"") ->  | K62: =+IFERROR(VLOOKUP($D62,'TC regional (2)'!$V$4:$EK$110,K$17,FALSE),"") ->  | M62: =+IFERROR(VLOOKUP($D62,'TC regional (2)'!$V$4:$EK$110,M$17,FALSE),"") -> 
B63: MPM4NA45 | C63: 45 | D63: =+IFERROR(IF($L$14="NA",VLOOKUP(B63,'Hoja3 (2)'!$G$3:$I$110,3,FALSE),VLOOKUP(B63,'Hoja3 (2)'!$H$3:$I$110,2,FALSE)),"") ->  | E63: =+IFERROR(VLOOKUP(D63,'TC regional'!$W$11:$X$122,2,FALSE),"") ->  | F63: =+IFERROR(VLOOKUP(D63,'TC regional'!$W$11:$Y$113,3,FALSE),"") ->  | G63: =+IFERROR(VLOOKUP($D63,'TC regional (2)'!$V$4:$EK$115,G$17,FALSE),"") ->  | H63: =+IFERROR(VLOOKUP($D63,'TC regional (2)'!$V$4:$EK$110,H$17,FALSE),"") ->  | I63: =+IFERROR(VLOOKUP($D63,'TC regional (2)'!$V$4:$EK$110,I$17,FALSE),"") ->  | J63: =+IFERROR(VLOOKUP($D63,'TC regional (2)'!$V$4:$EK$110,J$17,FALSE),"") ->  | K63: =+IFERROR(VLOOKUP($D63,'TC regional (2)'!$V$4:$EK$110,K$17,FALSE),"") ->  | M63: =+IFERROR(VLOOKUP($D63,'TC regional (2)'!$V$4:$EK$110,M$17,FALSE),"") -> 
B64: MPM4NA46 | C64: 46 | D64: =+IFERROR(IF($L$14="NA",VLOOKUP(B64,'Hoja3 (2)'!$G$3:$I$110,3,FALSE),VLOOKUP(B64,'Hoja3 (2)'!$H$3:$I$110,2,FALSE)),"") ->  | E64: =+IFERROR(VLOOKUP(D64,'TC regional'!$W$11:$X$122,2,FALSE),"") ->  | F64: =+IFERROR(VLOOKUP(D64,'TC regional'!$W$11:$Y$113,3,FALSE),"") ->  | G64: =+IFERROR(VLOOKUP($D64,'TC regional (2)'!$V$4:$EK$115,G$17,FALSE),"") ->  | H64: =+IFERROR(VLOOKUP($D64,'TC regional (2)'!$V$4:$EK$110,H$17,FALSE),"") ->  | I64: =+IFERROR(VLOOKUP($D64,'TC regional (2)'!$V$4:$EK$110,I$17,FALSE),"") ->  | J64: =+IFERROR(VLOOKUP($D64,'TC regional (2)'!$V$4:$EK$110,J$17,FALSE),"") ->  | K64: =+IFERROR(VLOOKUP($D64,'TC regional (2)'!$V$4:$EK$110,K$17,FALSE),"") ->  | M64: =+IFERROR(VLOOKUP($D64,'TC regional (2)'!$V$4:$EK$110,M$17,FALSE),"") -> 
B65: MPM4NA47 | C65: 47 | D65: =+IFERROR(IF($L$14="NA",VLOOKUP(B65,'Hoja3 (2)'!$G$3:$I$110,3,FALSE),VLOOKUP(B65,'Hoja3 (2)'!$H$3:$I$110,2,FALSE)),"") ->  | E65: =+IFERROR(VLOOKUP(D65,'TC regional'!$W$11:$X$122,2,FALSE),"") ->  | F65: =+IFERROR(VLOOKUP(D65,'TC regional'!$W$11:$Y$113,3,FALSE),"") ->  | G65: =+IFERROR(VLOOKUP($D65,'TC regional (2)'!$V$4:$EK$115,G$17,FALSE),"") ->  | H65: =+IFERROR(VLOOKUP($D65,'TC regional (2)'!$V$4:$EK$110,H$17,FALSE),"") ->  | I65: =+IFERROR(VLOOKUP($D65,'TC regional (2)'!$V$4:$EK$110,I$17,FALSE),"") ->  | J65: =+IFERROR(VLOOKUP($D65,'TC regional (2)'!$V$4:$EK$110,J$17,FALSE),"") ->  | K65: =+IFERROR(VLOOKUP($D65,'TC regional (2)'!$V$4:$EK$110,K$17,FALSE),"") ->  | M65: =+IFERROR(VLOOKUP($D65,'TC regional (2)'!$V$4:$EK$110,M$17,FALSE),"") -> 
B66: MPM4NA48 | C66: 48 | D66: =+IFERROR(IF($L$14="NA",VLOOKUP(B66,'Hoja3 (2)'!$G$3:$I$110,3,FALSE),VLOOKUP(B66,'Hoja3 (2)'!$H$3:$I$110,2,FALSE)),"") ->  | E66: =+IFERROR(VLOOKUP(D66,'TC regional'!$W$11:$X$122,2,FALSE),"") ->  | F66: =+IFERROR(VLOOKUP(D66,'TC regional'!$W$11:$Y$113,3,FALSE),"") ->  | G66: =+IFERROR(VLOOKUP($D66,'TC regional (2)'!$V$4:$EK$115,G$17,FALSE),"") ->  | H66: =+IFERROR(VLOOKUP($D66,'TC regional (2)'!$V$4:$EK$110,H$17,FALSE),"") ->  | I66: =+IFERROR(VLOOKUP($D66,'TC regional (2)'!$V$4:$EK$110,I$17,FALSE),"") ->  | J66: =+IFERROR(VLOOKUP($D66,'TC regional (2)'!$V$4:$EK$110,J$17,FALSE),"") ->  | K66: =+IFERROR(VLOOKUP($D66,'TC regional (2)'!$V$4:$EK$110,K$17,FALSE),"") ->  | M66: =+IFERROR(VLOOKUP($D66,'TC regional (2)'!$V$4:$EK$110,M$17,FALSE),"") -> 
B201: Misionales | D201: Gestión para la atención de las familias y comunidades | E201: Gestión Adopciones | J201: Gestión para la atención de las familias y comunidades | K201: MPM3 | L201: Gestión Adopciones | M201: MPM5-P2 | P201: macroprocesos | Q201: Misionales | R201: Estratégicos | S201: Apoyo | T201: Evaluación | U201: Gestión para la Protección | V201: Gestión Servicio y Atención | W201: Gestión Soporte | X201: Aseguramiento a Estándares | Y201: Evaluación, Monitoreo y Control de la Gestión
B202: Estratégicos | D202: Gestión para la atención integral a la primera infancia | E202: Gestión Responsabilidad Penal | J202: Gestión para la atención integral a la primera infancia | K202: MPM1 | L202: Gestión Responsabilidad Penal | M202: MPM5-P3 | P202: Misionales | Q202: Gestión para la atención de las familias y comunidades | R202: Coordinación y Ariculación del SNBF | S202: Gestión Comunicaciones | T202: Aseguramiento a Estándares | U202: Gestión Adopciones | V202: Gestión Atención PQR y sugerencias | W202: Gestión Administrativa | X202: Fortalecimiento de organizaciones prestadoras del SPBF | Y202: Evaluación Independiente
B203: Apoyo | D203: Gestión para la nutrición | E203: Gestión Restablecimiento de Derechos | J203: Gestión para la nutrición | K203: MPM4 | L203: Gestión Restablecimiento de Derechos | M203: MPM5-P1 | P203: Estrategicos | Q203: Gestión para la atención integral a la primera infancia | R203: Direccionamiento estrategico | S203: Gestión Cooperación | T203: Evaluación, Monitoreo y Control de la Gestión | U203: Gestión Responsabilidad Penal | V203: Gestión Servicio a Beneficiarios | W203: Gestión Contratación | X203: Verificación Inspección y Control a Instituciones del SPBF | Y203: Evaluación y Monitoreo de la Gestión
B204: Evaluación | D204: Gestión para la promoción y Prevención para la protección integral de las niñez y la adolescencia | E204: Gestión Atención PQR y sugerencias | J204: Gestión para la promoción y Prevención para la protección integral de las niñez y la adolescencia | K204: MPM2 | L204: Gestión Administrativa | M204: MPA1-P5 | P204: Apoyo | Q204: Gestión para la nutrición | R204: Mejoramiento Continuo | S204: Gestión Jurídica | U204: Gestión Restablecimiento de Derechos | W204: Gestión Control Interno Disciplinario
D205: Gestión para la Protección | E205: Gestión Servicio a Beneficiarios | J205: Gestión para la Protección | K205: MPM5 | L205: Gestión Atención PQR y sugerencias | M205: MPA5-02 | P205: Evaluacion | Q205: Gestión para la promoción y Prevención para la protección integral de las niñez y la adolescencia | S205: Gestión Regional | W205: Gestión Financiera
D206: Coordinación y Ariculación del SNBF | E206: Gestión Administrativa | J206: Coordinación y Ariculación del SNBF | K206: MPE3 | L206: Gestión Contratación | M206: MPA1-P4 | Q206: Gestión para la Protección | S206: Gestión Servicio y Atención | W206: Gestión Humana
D207: Direccionamiento estrategico | E207: Gestión Contratación | J207: Direccionamiento estrategico | K207: MPE1 | L207: Gestión Control Interno Disciplinario | M207: MPA1-P3 | S207: Gestión Soporte | W207: Gestión Logistica y Abastecimiento
D208: Mejoramiento Continuo | E208: Gestión Control Interno Disciplinario | J208: Mejoramiento Continuo | K208: MPE2 | L208: Gestión Financiera | M208: MPA1-P2 | S208: Gestión Tecnologica
D209: Gestión Comunicaciones | E209: Gestión Financiera | J209: Gestión Comunicaciones | K209: MPA7 | L209: Gestión Humana | M209: MPA1-P1
D210: Gestión Cooperación | E210: Gestión Humana | J210: Gestión Cooperación | K210: MPA4 | L210: Gestión Logistica y Abastecimiento | M210: MPA1-P6
D211: Gestión Jurídica | E211: Gestión Logistica y Abastecimiento | J211: Gestión Jurídica | K211: MPA2 | L211: Gestión Servicio a Beneficiarios | M211: MPA5-01 | U211: Gestión para la Protección | V211: Proteccion
D212: Gestión Regional | E212: Fortalecimiento de organizaciones prestadoras del SPBF | J212: Gestión Regional | K212: MPA3 | L212: Evaluación Independiente | M212: MPEV1-P2 | U212: Gestión Servicio y Atención | V212: Servicios
D213: Gestión Servicio y Atención | E213: Verificación Inspección y Control a Instituciones del SPBF | J213: Gestión Servicio y Atención | K213: MPA5 | L213: Evaluación y Monitoreo de la Gestión | M213: MPEV1-P1 | U213: Gestión Soporte | V213: Soporte
D214: Gestión Soporte | E214: Evaluación Independiente | J214: Gestión Soporte | K214: MPA1 | L214: Fortalecimiento de organizaciones prestadoras del SPBF | M214: MPEV2-P2 | U214: Aseguramiento a Estándares | V214: Estandares
D215: Gestión Tecnologica | E215: Evaluación y Monitoreo de la Gestión | J215: Gestión Tecnologica | K215: MPA6 | L215: Verificación Inspección y Control a Instituciones del SPBF | M215: MPEV2-P1 | U215: Evaluación, Monitoreo y Control de la Gestión | V215: monitoreo
D216: Aseguramiento a Estándares | J216: Aseguramiento a Estándares | K216: MPEV2
D217: Evaluación, Monitoreo y Control de la Gestión | J217: Evaluación, Monitoreo y Control de la Gestión | K217: MPEV1
G223: 23
E224: Enero | G224: 25 | H224: 26 | I224: 27 | J224: 28 | K224: 29
E225: Febrero | G225: =+G224+8 -> 33 | H225: =+H224+8 -> 34 | I225: =+I224+8 -> 35 | J225: =+J224+8 -> 36 | K225: =+K224+8 -> 37
E226: Marzo | G226: =+G225+8 -> 41 | H226: =+H225+8 -> 42 | I226: =+I225+8 -> 43 | J226: =+J225+8 -> 44 | K226: =+K225+8 -> 45
E227: Abril | G227: 49 | H227: 50 | I227: 51 | J227: 52 | K227: 53
E228: Mayo | G228: 57 | H228: 58 | I228: 59 | J228: 60 | K228: 61
E229: Junio | G229: 65 | H229: 66 | I229: 67 | J229: 68 | K229: 69
E230: Julio | G230: 73 | H230: 74 | I230: 75 | J230: 76 | K230: 77
E231: Agosto | G231: 81 | H231: 82 | I231: 83 | J231: 84 | K231: 85
E232: Septiembre | G232: 89 | H232: 90 | I232: 91 | J232: 92 | K232: 93
E233: Octubre | G233: 97 | H233: 98 | I233: 99 | J233: 100 | K233: 101
E234: Noviembre | G234: 105 | H234: 106 | I234: 107 | J234: 108 | K234: 109
E235: Diciembre | G235: 113 | H235: 114 | I235: 115 | J235: 116 | K235: 117

Sheet plan de gestion integral
C2: INSTITUTO COLOMBIANO DE BIENESTAR FAMILIAR SEGUIMIENTO METAS ICBF PLAN DE GESTIÓN INTEGRAL
C3: =+Menu!D16 -> Amazonas
C7: Mes | D7: Diciembre | P7: =+VLOOKUP(D7,$C$145:$E$156,2,FALSE) -> 38
J8: =+VLOOKUP(D7,$C$130:$I$141,3,FALSE) -> 92 | K8: =+VLOOKUP(D7,$C$130:$I$141,4,FALSE) -> 93 | L8: =+VLOOKUP(D7,$C$130:$I$141,5,FALSE) -> 94 | M8: =+VLOOKUP(D7,$C$130:$I$141,6,FALSE) -> 95 | O8: =+VLOOKUP(D7,$C$130:$I$141,7,FALSE) -> 96
C13: Indicadores 1er y 2do nivel - SISPA
C15: Plan de gestion | D15: Categoría | E15: Código del Indicador | F15: Nombre del indicador | G15: Plan de gestion | H15: Categoría | I15: Meta 2013 inicial | J15: Numerador | K15: Denominador | L15: Avance | M15: % avance | Q15: En | R15: Fe | S15: Ma | T15: Ab | U15: Ma | V15: Jn | W15: Jl | X15: Ag | Y15: Se | Z15: Oc | AA15: No | AB15: Di
C16: =+VLOOKUP($E16,'TC regional'!$N$11:$Q$118,3,FALSE) -> Gestión misional y de gobierno | D16: =+VLOOKUP($E16,'TC regional'!$N$11:$Q$118,4,FALSE) -> Indicadores y metas de Gobierno | E16: E-01 | F16: Número de niños y Niñas con Atención Integral a la Primera Infancia | G16: PG-1 | H16: 1er nivel | I16: =+VLOOKUP($E16,'TC regional'!$AR$11:$EL$118,$D$129,FALSE) -> 3020 | J16: =+VLOOKUP($E16,'TC regional'!$AR$11:$EL$118,J$8,FALSE) -> 2969 | K16: =+VLOOKUP($E16,'TC regional'!$AR$11:$EL$118,K$8,FALSE) -> 3020 | L16: =+VLOOKUP($E16,'TC regional'!$AR$11:$EL$118,L$8,FALSE) -> 2969 | M16: =+VLOOKUP($E16,'TC regional'!$AR$11:$EL$118,M$8,FALSE) -> 0.9831125828 | O16: =+VLOOKUP($E16,'TC regional'!$AR$11:$EL$118,O$8,FALSE) -> ADECUADO | Q16: PG-1 | R16: PGI - estratégicos | S16: =+VLOOKUP(Q16,'td regional'!$A$71:$AL$72,P7,FALSE) -> 0.8532546267 | U16: PGI - estratégicos | V16: 1er nivel | W16: =+VLOOKUP(V16,'td regional'!$B$95:$AM$97,$P$7,FALSE) -> 0.9057106599
C17: =+VLOOKUP($E17,'TC regional'!$N$11:$Q$118,3,FALSE) -> Gestión misional y de gobierno | D17: =+VLOOKUP($E17,'TC regional'!$N$11:$Q$118,4,FALSE) -> Indicadores y metas de Gobierno | E17: E-03 | F17: Numero de niños y niñas atendidos en Hogares Comunitarios de Bienestar -HCB Familiares, Fami, Grupal y en Establecimientos de Reclusión y otras formas de atención. | G17: PG-1 | H17: 1er nivel | I17: =+VLOOKUP($E17,'TC regional'!$AR$11:$EL$118,$D$129,FALSE) -> 12 | J17: =+VLOOKUP($E17,'TC regional'!$AR$11:$EL$118,J$8,FALSE) -> 12 | K17: =+VLOOKUP($E17,'TC regional'!$AR$11:$EL$118,K$8,FALSE) -> 12 | L17: =+VLOOKUP($E17,'TC regional'!$AR$11:$EL$118,L$8,FALSE) -> 12 | M17: =+VLOOKUP($E17,'TC regional'!$AR$11:$EL$118,M$8,FALSE) -> 1 | O17: =+VLOOKUP($E17,'TC regional'!$AR$11:$EL$118,O$8,FALSE) -> OPTIMO | Q17: PG-2 | R17: PGI - funcionales | S17: =+VLOOKUP(Q17,'td regional'!$A$71:$AL$72,P7,FALSE) -> 0.8008473313 | V17: 2do nivel | W17: =+VLOOKUP(V17,'td regional'!$B$95:$AM$97,$P$7,FALSE) -> 0.6922077922
C18: =+VLOOKUP($E18,'TC regional'!$N$11:$Q$118,3,FALSE) -> Gestión misional y de gobierno | D18: =+VLOOKUP($E18,'TC regional'!$N$11:$Q$118,4,FALSE) -> Indicadores y metas de Gobierno | E18: E-04 | F18: Número de nuevos Agentes Educativos vinculados a procesos de formación en el modelo de atención Integral. | G18: PG-1 | H18: 1er nivel | I18: =+VLOOKUP($E18,'TC regional'!$AR$11:$EL$118,$D$129,FALSE) -> 37 | J18: =+VLOOKUP($E18,'TC regional'!$AR$11:$EL$118,J$8,FALSE) -> 45 | K18: =+VLOOKUP($E18,'TC regional'!$AR$11:$EL$118,K$8,FALSE) -> 37 | L18: =+VLOOKUP($E18,'TC regional'!$AR$11:$EL$118,L$8,FALSE) -> 45 | M18: =+VLOOKUP($E18,'TC regional'!$AR$11:$EL$118,M$8,FALSE) -> 1.216216216 | O18: =+VLOOKUP($E18,'TC regional'!$AR$11:$EL$118,O$8,FALSE) -> OPTIMO | U18: PGI - funcionales | V18: 3er nivel | W18: =+VLOOKUP(V18,'td regional'!$B$95:$AM$97,$P$7,FALSE) -> 0.8008473313
C19: =+VLOOKUP($E19,'TC regional'!$N$11:$Q$118,3,FALSE) -> Gestión misional y de gobierno | D19: =+VLOOKUP($E19,'TC regional'!$N$11:$Q$118,4,FALSE) -> Indicadores y metas de Gobierno | E19: E-22 | F19: Número de niños y niñas en primera infancia con valoración y seguimiento nutricional | G19: PG-1 | H19: 1er nivel | I19: =+VLOOKUP($E19,'TC regional'!$AR$11:$EL$118,$D$129,FALSE) -> 3020 | J19: =+VLOOKUP($E19,'TC regional'!$AR$11:$EL$118,J$8,FALSE) -> 2969 | K19: =+VLOOKUP($E19,'TC regional'!$AR$11:$EL$118,K$8,FALSE) -> 3020 | L19: =+VLOOKUP($E19,'TC regional'!$AR$11:$EL$118,L$8,FALSE) -> 2969 | M19: =+VLOOKUP($E19,'TC regional'!$AR$11:$EL$118,M$8,FALSE) -> 0.9831125828 | O19: =+VLOOKUP($E19,'TC regional'!$AR$11:$EL$118,O$8,FALSE) -> ADECUADO
C20: =+VLOOKUP($E20,'TC regional'!$N$11:$Q$118,3,FALSE) -> Gestión misional y de gobierno | D20: =+VLOOKUP($E20,'TC regional'!$N$11:$Q$118,4,FALSE) -> Indicadores y metas de Gobierno | E20: E-05 | F20: Niños, niñas y adolescentes vinculados a programas de prevención (reclutamiento, gestación de adolescentes, uso del tiempo libre y procesos de participación) | G20: PG-1 | H20: 1er nivel | I20: =+VLOOKUP($E20,'TC regional'!$AR$11:$EL$118,$D$129,FALSE) -> 1200 | J20: =+VLOOKUP($E20,'TC regional'!$AR$11:$EL$118,J$8,FALSE) -> 1200 | K20: =+VLOOKUP($E20,'TC regional'!$AR$11:$EL$118,K$8,FALSE) -> 1200 | L20: =+VLOOKUP($E20,'TC regional'!$AR$11:$EL$118,L$8,FALSE) -> 1200 | M20: =+VLOOKUP($E20,'TC regional'!$AR$11:$EL$118,M$8,FALSE) -> 1 | O20: =+VLOOKUP($E20,'TC regional'!$AR$11:$EL$118,O$8,FALSE) -> OPTIMO
C21: =+VLOOKUP($E21,'TC regional'!$N$11:$Q$118,3,FALSE) -> Gestión misional y de gobierno | D21: =+VLOOKUP($E21,'TC regional'!$N$11:$Q$118,4,FALSE) -> Indicadores y metas de Gobierno | E21: E-06 | F21: Niños, niñas y adolescentes atendidos por el Programa de Alimentacion Escolar | G21: PG-1 | H21: 1er nivel | I21: =+VLOOKUP($E21,'TC regional'!$AR$11:$EL$118,$D$129,FALSE) -> 8766 | J21: =+VLOOKUP($E21,'TC regional'!$AR$11:$EL$118,J$8,FALSE) -> 8766 | K21: =+VLOOKUP($E21,'TC regional'!$AR$11:$EL$118,K$8,FALSE) -> 8766 | L21: =+VLOOKUP($E21,'TC regional'!$AR$11:$EL$118,L$8,FALSE) -> 8766 | M21: =+VLOOKUP($E21,'TC regional'!$AR$11:$EL$118,M$8,FALSE) -> 1 | O21: =+VLOOKUP($E21,'TC regional'!$AR$11:$EL$118,O$8,FALSE) -> OPTIMO
C22: =+VLOOKUP($E22,'TC regional'!$N$11:$Q$118,3,FALSE) -> Gestión misional y de gobierno | D22: =+VLOOKUP($E22,'TC regional'!$N$11:$Q$118,4,FALSE) -> Indicadores y metas de Gobierno | E22: E-12 | F22: Familias beneficiadas por el programa "Familias con bienestar" | G22: PG-1 | H22: 1er nivel | I22: =+VLOOKUP($E22,'TC regional'!$AR$11:$EL$118,$D$129,FALSE) -> 700 | J22: =+VLOOKUP($E22,'TC regional'!$AR$11:$EL$118,J$8,FALSE) -> 701 | K22: =+VLOOKUP($E22,'TC regional'!$AR$11:$EL$118,K$8,FALSE) -> 700 | L22: =+VLOOKUP($E22,'TC regional'!$AR$11:$EL$118,L$8,FALSE) -> 701 | M22: =+VLOOKUP($E22,'TC regional'!$AR$11:$EL$118,M$8,FALSE) -> 1.001428571 | O22: =+VLOOKUP($E22,'TC regional'!$AR$11:$EL$118,O$8,FALSE) -> OPTIMO
C23: =+VLOOKUP($E23,'TC regional'!$N$11:$Q$118,3,FALSE) -> Gestión misional y de gobierno | D23: =+VLOOKUP($E23,'TC regional'!$N$11:$Q$118,4,FALSE) -> Indicadores y metas de Gobierno | E23: E-21 | F23: Niños y niñas reportados al Sistema de Seguimiento Nutricional - SSN en HI - HCB - CDI (excluyendo FAMI, menores de 2 años y mayores de 5 años) con desnutrición aguda que mejoraron su estado Nutricional. | G23: PG-1 | H23: 1er nivel | I23: =+VLOOKUP($E23,'TC regional'!$AR$11:$EL$118,$D$129,FALSE) -> 0.8 | J23: =+VLOOKUP($E23,'TC regional'!$AR$11:$EL$118,J$8,FALSE) -> 6 | K23: =+VLOOKUP($E23,'TC regional'!$AR$11:$EL$118,K$8,FALSE) -> 8 | L23: =+VLOOKUP($E23,'TC regional'!$AR$11:$EL$118,L$8,FALSE) -> 0.75 | M23: =+VLOOKUP($E23,'TC regional'!$AR$11:$EL$118,M$8,FALSE) -> 0.9375 | O23: =+VLOOKUP($E23,'TC regional'!$AR$11:$EL$118,O$8,FALSE) -> ADECUADO
C24: =+VLOOKUP($E24,'TC regional'!$N$11:$Q$118,3,FALSE) -> Gestión misional y de gobierno | D24: =+VLOOKUP($E24,'TC regional'!$N$11:$Q$118,4,FALSE) -> Indicadores y metas de Gobierno | E24: E-23 | F24: Niños y niñas que mejoraron su estado Nutricional que se encuentran en la modalidad Recuperación Nutricional con Enfoque Comunitario - RNEC | G24: PG-1 | H24: 1er nivel | I24: =+VLOOKUP($E24,'TC regional'!$AR$11:$EL$118,$D$129,FALSE) -> 0.8 | J24: =+VLOOKUP($E24,'TC regional'!$AR$11:$EL$118,J$8,FALSE) -> 28 | K24: =+VLOOKUP($E24,'TC regional'!$AR$11:$EL$118,K$8,FALSE) -> 48 | L24: =+VLOOKUP($E24,'TC regional'!$AR$11:$EL$118,L$8,FALSE) -> 0.5833333333 | M24: =+VLOOKUP($E24,'TC regional'!$AR$11:$EL$118,M$8,FALSE) -> 0.7291666667 | O24: =+VLOOKUP($E24,'TC regional'!$AR$11:$EL$118,O$8,FALSE) -> CRITICO
C25: =+VLOOKUP($E25,'TC regional'!$N$11:$Q$118,3,FALSE) -> Gestión misional y de gobierno | D25: =+VLOOKUP($E25,'TC regional'!$N$11:$Q$118,4,FALSE) -> Indicadores y metas de Gobierno | E25: E-08 | F25: Porcentaje de niños, niñas, adolescentes y jóvenes vinculados a procesos de formación. | G25: PG-1 | H25: 1er nivel | I25: =+VLOOKUP($E25,'TC regional'!$AR$11:$EL$118,$D$129,FALSE) -> 1 | J25: =+VLOOKUP($E25,'TC regional'!$AR$11:$EL$118,J$8,FALSE) -> 0 | K25: =+VLOOKUP($E25,'TC regional'!$AR$11:$EL$118,K$8,FALSE) -> 0 | L25: =+VLOOKUP($E25,'TC regional'!$AR$11:$EL$118,L$8,FALSE) -> NA | M25: =+VLOOKUP($E25,'TC regional'!$AR$11:$EL$118,M$8,FALSE) ->  | O25: =+VLOOKUP($E25,'TC regional'!$AR$11:$EL$118,O$8,FALSE) -> NA
C26: =+VLOOKUP($E26,'TC regional'!$N$11:$Q$118,3,FALSE) -> Gestión misional y de gobierno | D26: =+VLOOKUP($E26,'TC regional'!$N$11:$Q$118,4,FALSE) -> Indicadores y metas de Gobierno | E26: E-13 | F26: Porcentaje de niños, niñas y adolescentes que reingresan al proceso de restablecimiento de derechos | G26: PG-1 | H26: 1er nivel | I26: =+VLOOKUP($E26,'TC regional'!$AR$11:$EL$118,$D$129,FALSE) -> 0 | J26: =+VLOOKUP($E26,'TC regional'!$AR$11:$EL$118,J$8,FALSE) -> 0 | K26: =+VLOOKUP($E26,'TC regional'!$AR$11:$EL$118,K$8,FALSE) -> 134 | L26: =+VLOOKUP($E26,'TC regional'!$AR$11:$EL$118,L$8,FALSE) -> 0 | M26: =+VLOOKUP($E26,'TC regional'!$AR$11:$EL$118,M$8,FALSE) -> 0 | O26: =+VLOOKUP($E26,'TC regional'!$AR$11:$EL$118,O$8,FALSE) -> OPTIMO
C27: =+VLOOKUP($E27,'TC regional'!$N$11:$Q$118,3,FALSE) -> Gestión misional y de gobierno | D27: =+VLOOKUP($E27,'TC regional'!$N$11:$Q$118,4,FALSE) -> Indicadores y metas de Gobierno | E27: E-14 | F27: Porcentaje de niños, niñas y adolescentes menores de 18 años en protección con auto de apertura de investigación con situación legal definida en 120 días o menos | G27: PG-1 | H27: 1er nivel | I27: =+VLOOKUP($E27,'TC regional'!$AR$11:$EL$118,$D$129,FALSE) -> 1 | J27: =+VLOOKUP($E27,'TC regional'!$AR$11:$EL$118,J$8,FALSE) -> 69 | K27: =+VLOOKUP($E27,'TC regional'!$AR$11:$EL$118,K$8,FALSE) -> 72 | L27: =+VLOOKUP($E27,'TC regional'!$AR$11:$EL$118,L$8,FALSE) -> 0.9583333333 | M27: =+VLOOKUP($E27,'TC regional'!$AR$11:$EL$118,M$8,FALSE) -> 0.9583333333 | O27: =+VLOOKUP($E27,'TC regional'!$AR$11:$EL$118,O$8,FALSE) -> ADECUADO
C28: =+VLOOKUP($E28,'TC regional'!$N$11:$Q$118,3,FALSE) -> Gestión misional y de gobierno | D28: =+VLOOKUP($E28,'TC regional'!$N$11:$Q$118,4,FALSE) -> Indicadores y metas de Gobierno | E28: E-15 | F28: Niños, niñas y adolescentes en situación de adoptabilidad en firme, SIN características especiales presentados a comité de adopciones, con familia asignada | G28: PG-1 | H28: 1er nivel | I28: =+VLOOKUP($E28,'TC regional'!$AR$11:$EL$118,$D$129,FALSE) -> 1 | J28: =+VLOOKUP($E28,'TC regional'!$AR$11:$EL$118,J$8,FALSE) -> 0 | K28: =+VLOOKUP($E28,'TC regional'!$AR$11:$EL$118,K$8,FALSE) -> 0 | L28: =+VLOOKUP($E28,'TC regional'!$AR$11:$EL$118,L$8,FALSE) -> NA | M28: =+VLOOKUP($E28,'TC regional'!$AR$11:$EL$118,M$8,FALSE) ->  | O28: =+VLOOKUP($E28,'TC regional'!$AR$11:$EL$118,O$8,FALSE) -> NA
C29: =+VLOOKUP($E29,'TC regional'!$N$11:$Q$118,3,FALSE) -> Gestión misional y de gobierno | D29: =+VLOOKUP($E29,'TC regional'!$N$11:$Q$118,4,FALSE) -> Indicadores y metas de Gobierno | E29: E-16 | F29: Niños, niñas y adolescentes en situación de adoptabilidad en firme, CON características y necesidades especiales y posibilidad de adopción presentados a comité de adopciones, con familia asignada | G29: PG-1 | H29: 1er nivel | I29: =+VLOOKUP($E29,'TC regional'!$AR$11:$EL$118,$D$129,FALSE) -> 0.36 | J29: =+VLOOKUP($E29,'TC regional'!$AR$11:$EL$118,J$8,FALSE) -> 0 | K29: =+VLOOKUP($E29,'TC regional'!$AR$11:$EL$118,K$8,FALSE) -> 0 | L29: =+VLOOKUP($E29,'TC regional'!$AR$11:$EL$118,L$8,FALSE) -> NA | M29: =+VLOOKUP($E29,'TC regional'!$AR$11:$EL$118,M$8,FALSE) ->  | O29: =+VLOOKUP($E29,'TC regional'!$AR$11:$EL$118,O$8,FALSE) -> NA
C30: =+VLOOKUP($E30,'TC regional'!$N$11:$Q$118,3,FALSE) -> Gestión misional y de gobierno | D30: =+VLOOKUP($E30,'TC regional'!$N$11:$Q$118,4,FALSE) -> Indicadores y metas de Gobierno | E30: E-17 | F30: Niños, niñas y adolescentes que a partir de la fecha de sentencia de adopción en firme, cumplen con el número de informes de seguimientos post adopción en el periodo establecido | G30: PG-1 | H30: 1er nivel | I30: =+VLOOKUP($E30,'TC regional'!$AR$11:$EL$118,$D$129,FALSE) -> 1 | J30: =+VLOOKUP($E30,'TC regional'!$AR$11:$EL$118,J$8,FALSE) -> 6 | K30: =+VLOOKUP($E30,'TC regional'!$AR$11:$EL$118,K$8,FALSE) -> 6 | L30: =+VLOOKUP($E30,'TC regional'!$AR$11:$EL$118,L$8,FALSE) -> 1 | M30: =+VLOOKUP($E30,'TC regional'!$AR$11:$EL$118,M$8,FALSE) -> 1 | O30: =+VLOOKUP($E30,'TC regional'!$AR$11:$EL$118,O$8,FALSE) -> OPTIMO
C31: =+VLOOKUP($E31,'TC regional'!$N$11:$Q$118,3,FALSE) -> Gestión misional y de gobierno | D31: =+VLOOKUP($E31,'TC regional'!$N$11:$Q$118,4,FALSE) -> Indicadores y metas de Gobierno | E31: E-18 | F31: Porcentaje de Niños, niñas y adolescente víctimas del desplazamiento forzado con proceso de restablecimiento de derechos por vulneraciones adicionalesal desplazamiento. | G31: PG-1 | H31: 1er nivel | I31: =+VLOOKUP($E31,'TC regional'!$AR$11:$EL$118,$D$129,FALSE) -> 0 | J31: =+VLOOKUP($E31,'TC regional'!$AR$11:$EL$118,J$8,FALSE) -> 7 | K31: =+VLOOKUP($E31,'TC regional'!$AR$11:$EL$118,K$8,FALSE) -> 161 | L31: =+VLOOKUP($E31,'TC regional'!$AR$11:$EL$118,L$8,FALSE) -> 0.04347826087 | M31: =+VLOOKUP($E31,'TC regional'!$AR$11:$EL$118,M$8,FALSE) -> 0.04347826087 | O31: =+VLOOKUP($E31,'TC regional'!$AR$11:$EL$118,O$8,FALSE) -> ADECUADO
C32: =+VLOOKUP($E32,'TC regional'!$N$11:$Q$118,3,FALSE) -> Gestión financiera | D32: =+VLOOKUP($E32,'TC regional'!$N$11:$Q$118,4,FALSE) -> Programación y Ejecución Presupuestal | E32: MPE1-02 | F32: Eficiencia ejecución presupuestal obligaciones | G32: PG-1 | H32: 1er nivel | I32: =+VLOOKUP($E32,'TC regional'!$AR$11:$EL$118,$D$129,FALSE) -> 1 | J32: =+VLOOKUP($E32,'TC regional'!$AR$11:$EL$118,J$8,FALSE) -> 0.9217455464 | K32: =+VLOOKUP($E32,'TC regional'!$AR$11:$EL$118,K$8,FALSE) -> 0.92 | L32: =+VLOOKUP($E32,'TC regional'!$AR$11:$EL$118,L$8,FALSE) -> 1.001897333 | M32: =+VLOOKUP($E32,'TC regional'!$AR$11:$EL$118,M$8,FALSE) -> 1.001897333 | O32: =+VLOOKUP($E32,'TC regional'!$AR$11:$EL$118,O$8,FALSE) -> OPTIMO
C33: =+VLOOKUP($E33,'TC regional'!$N$11:$Q$118,3,FALSE) -> Transparencia, participación y servicio al ciudadano | D33: =+VLOOKUP($E33,'TC regional'!$N$11:$Q$118,4,FALSE) -> Plan Anticorrupción y de Atención al Ciudadano | E33: MPE2-03 | F33: % de riesgos controlados | G33: PG-1 | H33: 1er nivel | I33: =+VLOOKUP($E33,'TC regional'!$AR$11:$EL$118,$D$129,FALSE) -> 1 | J33: =+VLOOKUP($E33,'TC regional'!$AR$11:$EL$118,J$8,FALSE) -> 0 | K33: =+VLOOKUP($E33,'TC regional'!$AR$11:$EL$118,K$8,FALSE) -> 0 | L33: =+VLOOKUP($E33,'TC regional'!$AR$11:$EL$118,L$8,FALSE) -> NR | M33: =+VLOOKUP($E33,'TC regional'!$AR$11:$EL$118,M$8,FALSE) -> 0 | O33: =+VLOOKUP($E33,'TC regional'!$AR$11:$EL$118,O$8,FALSE) -> CRITICO
C34: =+VLOOKUP($E34,'TC regional'!$N$11:$Q$118,3,FALSE) -> Eficiencia administrativa | D34: =+VLOOKUP($E34,'TC regional'!$N$11:$Q$118,4,FALSE) -> Gestión de la Calidad | E34: MPE2-04 | F34: Porcentaje de avance de la ruta de implementación y mantenimiento del Sistema Integrado de Gestión | G34: PG-1 | H34: 1er nivel | I34: =+VLOOKUP($E34,'TC regional'!$AR$11:$EL$118,$D$129,FALSE) -> 1 | J34: =+VLOOKUP($E34,'TC regional'!$AR$11:$EL$118,J$8,FALSE) -> 0 | K34: =+VLOOKUP($E34,'TC regional'!$AR$11:$EL$118,K$8,FALSE) -> 0 | L34: =+VLOOKUP($E34,'TC regional'!$AR$11:$EL$118,L$8,FALSE) -> 0.7230769231 | M34: =+VLOOKUP($E34,'TC regional'!$AR$11:$EL$118,M$8,FALSE) -> 0.7230769231 | O34: =+VLOOKUP($E34,'TC regional'!$AR$11:$EL$118,O$8,FALSE) -> EN RIESGO
C35: =+VLOOKUP($E35,'TC regional'!$N$11:$Q$118,3,FALSE) -> Gestión misional y de gobierno | D35: =+VLOOKUP($E35,'TC regional'!$N$11:$Q$118,4,FALSE) -> Indicadores y metas de Gobierno | E35: E-29 | F35: Número de municipios con asistencia técnica del ICBF en la formulación de Políticas diferenciales en favor de niños, niñas y adolescentes. | G35: PG-1 | H35: 2do nivel | I35: =+VLOOKUP($E35,'TC regional'!$AR$11:$EL$118,$D$129,FALSE) -> 2 | J35: =+VLOOKUP($E35,'TC regional'!$AR$11:$EL$118,J$8,FALSE) -> 2 | K35: =+VLOOKUP($E35,'TC regional'!$AR$11:$EL$118,K$8,FALSE) -> 2 | L35: =+VLOOKUP($E35,'TC regional'!$AR$11:$EL$118,L$8,FALSE) -> 2 | M35: =+VLOOKUP($E35,'TC regional'!$AR$11:$EL$118,M$8,FALSE) -> 1 | O35: =+VLOOKUP($E35,'TC regional'!$AR$11:$EL$118,O$8,FALSE) -> OPTIMO
C36: =+VLOOKUP($E36,'TC regional'!$N$11:$Q$118,3,FALSE) -> Gestión misional y de gobierno | D36: =+VLOOKUP($E36,'TC regional'!$N$11:$Q$118,4,FALSE) -> Indicadores y metas de Gobierno | E36: E-31 | F36: Número de Municipios con los Consejos Municipales de Política Social monitoreados | G36: PG-1 | H36: 2do nivel | I36: =+VLOOKUP($E36,'TC regional'!$AR$11:$EL$118,$D$129,FALSE) -> 2 | J36: =+VLOOKUP($E36,'TC regional'!$AR$11:$EL$118,J$8,FALSE) -> 2 | K36: =+VLOOKUP($E36,'TC regional'!$AR$11:$EL$118,K$8,FALSE) -> 2 | L36: =+VLOOKUP($E36,'TC regional'!$AR$11:$EL$118,L$8,FALSE) -> 2 | M36: =+VLOOKUP($E36,'TC regional'!$AR$11:$EL$118,M$8,FALSE) -> 1 | O36: =+VLOOKUP($E36,'TC regional'!$AR$11:$EL$118,O$8,FALSE) -> OPTIMO
C37: =+VLOOKUP($E37,'TC regional'!$N$11:$Q$118,3,FALSE) -> Gestión financiera | D37: =+VLOOKUP($E37,'TC regional'!$N$11:$Q$118,4,FALSE) -> Programa Anual Mensualizado de Caja – PAC | E37: MPA1-P2-03 | F37: Ejecución de PAC | G37: PG-1 | H37: 2do nivel | I37: =+VLOOKUP($E37,'TC regional'!$AR$11:$EL$118,$D$129,FALSE) -> 1 | J37: =+VLOOKUP($E37,'TC regional'!$AR$11:$EL$118,J$8,FALSE) -> 11661.47268 | K37: =+VLOOKUP($E37,'TC regional'!$AR$11:$EL$118,K$8,FALSE) -> 12056.83695 | L37: =+VLOOKUP($E37,'TC regional'!$AR$11:$EL$118,L$8,FALSE) -> 0.9672082927 | M37: =+VLOOKUP($E37,'TC regional'!$AR$11:$EL$118,M$8,FALSE) -> 0.9672082927 | O37: =+VLOOKUP($E37,'TC regional'!$AR$11:$EL$118,O$8,FALSE) -> EN RIESGO
C38: =+VLOOKUP($E38,'TC regional'!$N$11:$Q$118,3,FALSE) -> Otras directrices gestión regional | D38: =+VLOOKUP($E38,'TC regional'!$N$11:$Q$118,4,FALSE) -> Soporte Institucional | E38: MPA1-P4-02 | F38: Liquidación de Contratos | G38: PG-1 | H38: 2do nivel | I38: =+VLOOKUP($E38,'TC regional'!$AR$11:$EL$118,$D$129,FALSE) -> 1 | J38: =+VLOOKUP($E38,'TC regional'!$AR$11:$EL$118,J$8,FALSE) -> 1 | K38: =+VLOOKUP($E38,'TC regional'!$AR$11:$EL$118,K$8,FALSE) -> 22 | L38: =+VLOOKUP($E38,'TC regional'!$AR$11:$EL$118,L$8,FALSE) -> 0.04545454545 | M38: =+VLOOKUP($E38,'TC regional'!$AR$11:$EL$118,M$8,FALSE) -> 0.04545454545 | O38: =+VLOOKUP($E38,'TC regional'!$AR$11:$EL$118,O$8,FALSE) -> CRITICO
C39: =+VLOOKUP($E39,'TC regional'!$N$11:$Q$118,3,FALSE) -> Eficiencia administrativa | D39: =+VLOOKUP($E39,'TC regional'!$N$11:$Q$118,4,FALSE) -> Gestión Documental | E39: MPA1-P5-07 | F39: Organización de Archivos de Gestión | G39: PG-1 | H39: 2do nivel | I39: =+VLOOKUP($E39,'TC regional'!$AR$11:$EL$118,$D$129,FALSE) -> 1 | J39: =+VLOOKUP($E39,'TC regional'!$AR$11:$EL$118,J$8,FALSE) -> 48.28 | K39: =+VLOOKUP($E39,'TC regional'!$AR$11:$EL$118,K$8,FALSE) -> 73.38 | L39: =+VLOOKUP($E39,'TC regional'!$AR$11:$EL$118,L$8,FALSE) -> 0.6579449441 | M39: =+VLOOKUP($E39,'TC regional'!$AR$11:$EL$118,M$8,FALSE) -> 0.6579449441 | O39: =+VLOOKUP($E39,'TC regional'!$AR$11:$EL$118,O$8,FALSE) -> CRITICO
C40: =+VLOOKUP($E40,'TC regional'!$N$11:$Q$118,3,FALSE) -> Gestión del talento humano | D40: =+VLOOKUP($E40,'TC regional'!$N$11:$Q$118,4,FALSE) -> Bienestar e Incentivos | E40: MPA1-P1-02 | F40: Cupos del programa de bienestar social ejecutados | G40: PG-1 | H40: 2do nivel | I40: =+VLOOKUP($E40,'TC regional'!$AR$11:$EL$118,$D$129,FALSE) -> 0.9 | J40: =+VLOOKUP($E40,'TC regional'!$AR$11:$EL$118,J$8,FALSE) -> 598 | K40: =+VLOOKUP($E40,'TC regional'!$AR$11:$EL$118,K$8,FALSE) -> 612 | L40: =+VLOOKUP($E40,'TC regional'!$AR$11:$EL$118,L$8,FALSE) -> 0.977124183 | M40: =+VLOOKUP($E40,'TC regional'!$AR$11:$EL$118,M$8,FALSE) -> 1.085693537 | O40: =+VLOOKUP($E40,'TC regional'!$AR$11:$EL$118,O$8,FALSE) -> OPTIMO
C41: =+VLOOKUP($E41,'TC regional'!$N$11:$Q$118,3,FALSE) -> Gestión del talento humano | D41: =+VLOOKUP($E41,'TC regional'!$N$11:$Q$118,4,FALSE) -> Capacitación | E41: MPA1-P1-03 | F41: Cupos de capacitación ejecutados | G41: PG-1 | H41: 2do nivel | I41: =+VLOOKUP($E41,'TC regional'!$AR$11:$EL$118,$D$129,FALSE) -> 0.9 | J41: =+VLOOKUP($E41,'TC regional'!$AR$11:$EL$118,J$8,FALSE) -> 211 | K41: =+VLOOKUP($E41,'TC regional'!$AR$11:$EL$118,K$8,FALSE) -> 217 | L41: =+VLOOKUP($E41,'TC regional'!$AR$11:$EL$118,L$8,FALSE) -> 0.9723502304 | M41: =+VLOOKUP($E41,'TC regional'!$AR$11:$EL$118,M$8,FALSE) -> 1.080389145 | O41: =+VLOOKUP($E41,'TC regional'!$AR$11:$EL$118,O$8,FALSE) -> OPTIMO
C42: =+VLOOKUP($E42,'TC regional'!$N$11:$Q$118,3,FALSE) -> Transparencia, participación y servicio al ciudadano | D42: =+VLOOKUP($E42,'TC regional'!$N$11:$Q$118,4,FALSE) -> Servicio al Ciudadano | E42: E-40 | F42: Quejas y reclamos solucionados | G42: PG-1 | H42: 2do nivel | I42: =+VLOOKUP($E42,'TC regional'!$AR$11:$EL$118,$D$129,FALSE) -> 1 | J42: =+VLOOKUP($E42,'TC regional'!$AR$11:$EL$118,J$8,FALSE) -> 0 | K42: =+VLOOKUP($E42,'TC regional'!$AR$11:$EL$118,K$8,FALSE) -> 0 | L42: =+VLOOKUP($E42,'TC regional'!$AR$11:$EL$118,L$8,FALSE) -> NA | M42: =+VLOOKUP($E42,'TC regional'!$AR$11:$EL$118,M$8,FALSE) ->  | O42: =+VLOOKUP($E42,'TC regional'!$AR$11:$EL$118,O$8,FALSE) -> NA
C43: =+VLOOKUP($E43,'TC regional'!$N$11:$Q$118,3,FALSE) -> Transparencia, participación y servicio al ciudadano | D43: =+VLOOKUP($E43,'TC regional'!$N$11:$Q$118,4,FALSE) -> Rendición de Cuentas | E43: MPEV1-P1-05 | F43: Mesas públicas y eventos de rendición de cuentas realizadas | G43: PG-1 | H43: 2do nivel | I43: =+VLOOKUP($E43,'TC regional'!$AR$11:$EL$118,$D$129,FALSE) -> 1 | J43: =+VLOOKUP($E43,'TC regional'!$AR$11:$EL$118,J$8,FALSE) -> 9 | K43: =+VLOOKUP($E43,'TC regional'!$AR$11:$EL$118,K$8,FALSE) -> 9 | L43: =+VLOOKUP($E43,'TC regional'!$AR$11:$EL$118,L$8,FALSE) -> 1 | M43: =+VLOOKUP($E43,'TC regional'!$AR$11:$EL$118,M$8,FALSE) -> 1 | O43: =+VLOOKUP($E43,'TC regional'!$AR$11:$EL$118,O$8,FALSE) -> OPTIMO
C44: =+VLOOKUP($E44,'TC regional'!$N$11:$Q$118,3,FALSE) -> Otras directrices gestión regional | D44: =+VLOOKUP($E44,'TC regional'!$N$11:$Q$118,4,FALSE) -> Soporte Institucional | E44: MPEV1-P2-05 | F44: % de Procesos y Regionales con Seguimiento a Plan de Mejoramiento | G44: PG-1 | H44: 2do nivel | I44: =+VLOOKUP($E44,'TC regional'!$AR$11:$EL$118,$D$129,FALSE) -> 1 | J44: =+VLOOKUP($E44,'TC regional'!$AR$11:$EL$118,J$8,FALSE) -> 0 | K44: =+VLOOKUP($E44,'TC regional'!$AR$11:$EL$118,K$8,FALSE) -> 0 | L44: =+VLOOKUP($E44,'TC regional'!$AR$11:$EL$118,L$8,FALSE) -> 0.7154254372 | M44: =+VLOOKUP($E44,'TC regional'!$AR$11:$EL$118,M$8,FALSE) -> 0.7154254372 | O44: =+VLOOKUP($E44,'TC regional'!$AR$11:$EL$118,O$8,FALSE) -> ADECUADO
C46: Indicadores 3 nivel - incluidos en SISPA como un total
C48: Linea de politica | D48: Categoría | E48: Código del Indicador | F48: Nombre del indicador | G48: Plan de gestion | H48: Categoría | I48: Meta 2013 inicial | J48: Numerador | K48: Denominador | L48: Avance | M48: % avance | O48: rango
C49: =+VLOOKUP($E49,'TC regional'!$N$11:$Q$118,3,FALSE) -> NA | D49: =+VLOOKUP($E49,'TC regional'!$N$11:$Q$118,4,FALSE) -> NA | E49: MPM1-01 | F49: Cupos transitados a esquemas de atención integral | G49: PG-2 | H49: 3er nivel | I49: =+VLOOKUP($E49,'TC regional'!$AR$11:$EL$118,$D$129,FALSE) -> 288 | J49: =+VLOOKUP($E49,'TC regional'!$AR$11:$EL$118,J$8,FALSE) -> 288 | K49: =+VLOOKUP($E49,'TC regional'!$AR$11:$EL$118,K$8,FALSE) -> 288 | L49: =+VLOOKUP($E49,'TC regional'!$AR$11:$EL$118,L$8,FALSE) -> 288 | M49: =+VLOOKUP($E49,'TC regional'!$AR$11:$EL$118,M$8,FALSE) -> 1 | O49: =+VLOOKUP($E49,'TC regional'!$AR$11:$EL$118,O$8,FALSE) -> OPTIMO
C50: =+VLOOKUP($E50,'TC regional'!$N$11:$Q$118,3,FALSE) -> NA | D50: =+VLOOKUP($E50,'TC regional'!$N$11:$Q$118,4,FALSE) -> NA | E50: MPM1-02 | F50: Numero de niños y niñas entre 6 meses a 4 años 11 meses de edad beneficiados con el Programa - DIA- | G50: PG-2 | H50: 3er nivel | I50: =+VLOOKUP($E50,'TC regional'!$AR$11:$EL$118,$D$129,FALSE) -> 2330 | J50: =+VLOOKUP($E50,'TC regional'!$AR$11:$EL$118,J$8,FALSE) -> 2330 | K50: =+VLOOKUP($E50,'TC regional'!$AR$11:$EL$118,K$8,FALSE) -> 2330 | L50: =+VLOOKUP($E50,'TC regional'!$AR$11:$EL$118,L$8,FALSE) -> 2330 | M50: =+VLOOKUP($E50,'TC regional'!$AR$11:$EL$118,M$8,FALSE) -> 1 | O50: =+VLOOKUP($E50,'TC regional'!$AR$11:$EL$118,O$8,FALSE) -> OPTIMO
C51: =+VLOOKUP($E51,'TC regional'!$N$11:$Q$118,3,FALSE) -> NA | D51: =+VLOOKUP($E51,'TC regional'!$N$11:$Q$118,4,FALSE) -> NA | E51: MPM1-03 | F51: Unidades de atención beneficiarias de la implementación de la Estrategia Fiesta de la Lectura. | G51: PG-2 | H51: 3er nivel | I51: =+VLOOKUP($E51,'TC regional'!$AR$11:$EL$118,$D$129,FALSE) -> 15 | J51: =+VLOOKUP($E51,'TC regional'!$AR$11:$EL$118,J$8,FALSE) -> 15 | K51: =+VLOOKUP($E51,'TC regional'!$AR$11:$EL$118,K$8,FALSE) -> 15 | L51: =+VLOOKUP($E51,'TC regional'!$AR$11:$EL$118,L$8,FALSE) -> 15 | M51: =+VLOOKUP($E51,'TC regional'!$AR$11:$EL$118,M$8,FALSE) -> 1 | O51: =+VLOOKUP($E51,'TC regional'!$AR$11:$EL$118,O$8,FALSE) -> OPTIMO
C52: =+VLOOKUP($E52,'TC regional'!$N$11:$Q$118,3,FALSE) -> NA | D52: =+VLOOKUP($E52,'TC regional'!$N$11:$Q$118,4,FALSE) -> NA | E52: MPM1-04 | F52: Niños y niñas atendidos integralmente cuyos padres o cuidadores han asistido a jornadas de sensibilización | G52: PG-2 | H52: 3er nivel | I52: =+VLOOKUP($E52,'TC regional'!$AR$11:$EL$118,$D$129,FALSE) -> 2969 | J52: =+VLOOKUP($E52,'TC regional'!$AR$11:$EL$118,J$8,FALSE) -> 2601 | K52: =+VLOOKUP($E52,'TC regional'!$AR$11:$EL$118,K$8,FALSE) -> 2969 | L52: =+VLOOKUP($E52,'TC regional'!$AR$11:$EL$118,L$8,FALSE) -> 2601 | M52: =+VLOOKUP($E52,'TC regional'!$AR$11:$EL$118,M$8,FALSE) -> 0.8760525429 | O52: =+VLOOKUP($E52,'TC regional'!$AR$11:$EL$118,O$8,FALSE) -> NA
C53: =+VLOOKUP($E53,'TC regional'!$N$11:$Q$118,3,FALSE) -> NA | D53: =+VLOOKUP($E53,'TC regional'!$N$11:$Q$118,4,FALSE) -> NA | E53: MPM1-05 | F53: Niños y niñas de la Red Unidos con Atencion Integral a la Primera Infancia (AIPI) | G53: PG-2 | H53: 3er nivel | I53: =+VLOOKUP($E53,'TC regional'!$AR$11:$EL$118,$D$129,FALSE) -> 109 | J53: =+VLOOKUP($E53,'TC regional'!$AR$11:$EL$118,J$8,FALSE) -> 45 | K53: =+VLOOKUP($E53,'TC regional'!$AR$11:$EL$118,K$8,FALSE) -> 109 | L53: =+VLOOKUP($E53,'TC regional'!$AR$11:$EL$118,L$8,FALSE) -> 45 | M53: =+VLOOKUP($E53,'TC regional'!$AR$11:$EL$118,M$8,FALSE) -> 0.4128440367 | O53: =+VLOOKUP($E53,'TC regional'!$AR$11:$EL$118,O$8,FALSE) -> NA
C54: =+VLOOKUP($E54,'TC regional'!$N$11:$Q$118,3,FALSE) -> NA | D54: =+VLOOKUP($E54,'TC regional'!$N$11:$Q$118,4,FALSE) -> NA | E54: MPM1-06 | F54: Niños y niñas de la Red Unidos atendidos en modalidades HCB familiares, FAMI, grupales, DIA y otras formas de atención. | G54: PG-2 | H54: 3er nivel | I54: =+VLOOKUP($E54,'TC regional'!$AR$11:$EL$118,$D$129,FALSE) ->  | J54: =+VLOOKUP($E54,'TC regional'!$AR$11:$EL$118,J$8,FALSE) -> 30 | K54: =+VLOOKUP($E54,'TC regional'!$AR$11:$EL$118,K$8,FALSE) -> 88 | L54: =+VLOOKUP($E54,'TC regional'!$AR$11:$EL$118,L$8,FALSE) -> 30 | M54: =+VLOOKUP($E54,'TC regional'!$AR$11:$EL$118,M$8,FALSE) ->  | O54: =+VLOOKUP($E54,'TC regional'!$AR$11:$EL$118,O$8,FALSE) -> NA
C55: =+VLOOKUP($E55,'TC regional'!$N$11:$Q$118,3,FALSE) -> NA | D55: =+VLOOKUP($E55,'TC regional'!$N$11:$Q$118,4,FALSE) -> NA | E55: MPM1-07 | F55: Número de niños y niñas víctimas de conflicto armado atendidos en las difentes modalidades de atención a la primera infancia. | G55: PG-2 | H55: 3er nivel | I55: =+VLOOKUP($E55,'TC regional'!$AR$11:$EL$118,$D$129,FALSE) -> 50 | J55: =+VLOOKUP($E55,'TC regional'!$AR$11:$EL$118,J$8,FALSE) -> 39 | K55: =+VLOOKUP($E55,'TC regional'!$AR$11:$EL$118,K$8,FALSE) -> 50 | L55: =+VLOOKUP($E55,'TC regional'!$AR$11:$EL$118,L$8,FALSE) -> 39 | M55: =+VLOOKUP($E55,'TC regional'!$AR$11:$EL$118,M$8,FALSE) -> 0.78 | O55: =+VLOOKUP($E55,'TC regional'!$AR$11:$EL$118,O$8,FALSE) -> EN RIESGO
C56: =+VLOOKUP($E56,'TC regional'!$N$11:$Q$118,3,FALSE) -> NA | D56: =+VLOOKUP($E56,'TC regional'!$N$11:$Q$118,4,FALSE) -> NA | E56: MPM1-08 | F56: Agentes Educativos formados con la Estrategia Fiesta de la Lectura | G56: PG-2 | H56: 3er nivel | I56: =+VLOOKUP($E56,'TC regional'!$AR$11:$EL$118,$D$129,FALSE) -> 1 | J56: =+VLOOKUP($E56,'TC regional'!$AR$11:$EL$118,J$8,FALSE) -> 98 | K56: =+VLOOKUP($E56,'TC regional'!$AR$11:$EL$118,K$8,FALSE) -> 91 | L56: =+VLOOKUP($E56,'TC regional'!$AR$11:$EL$118,L$8,FALSE) -> 1.076923077 | M56: =+VLOOKUP($E56,'TC regional'!$AR$11:$EL$118,M$8,FALSE) -> 1.076923077 | O56: =+VLOOKUP($E56,'TC regional'!$AR$11:$EL$118,O$8,FALSE) -> OPTIMO
C57: =+VLOOKUP($E57,'TC regional'!$N$11:$Q$118,3,FALSE) -> NA | D57: =+VLOOKUP($E57,'TC regional'!$N$11:$Q$118,4,FALSE) -> NA | E57: MPM1-09 | F57: Madres transitadas a esquemas de atención integral | G57: PG-2 | H57: 3er nivel | I57: =+VLOOKUP($E57,'TC regional'!$AR$11:$EL$118,$D$129,FALSE) -> 24 | J57: =+VLOOKUP($E57,'TC regional'!$AR$11:$EL$118,J$8,FALSE) -> 24 | K57: =+VLOOKUP($E57,'TC regional'!$AR$11:$EL$118,K$8,FALSE) -> 24 | L57: =+VLOOKUP($E57,'TC regional'!$AR$11:$EL$118,L$8,FALSE) -> 24 | M57: =+VLOOKUP($E57,'TC regional'!$AR$11:$EL$118,M$8,FALSE) -> 1 | O57: =+VLOOKUP($E57,'TC regional'!$AR$11:$EL$118,O$8,FALSE) -> OPTIMO
C58: =+VLOOKUP($E58,'TC regional'!$N$11:$Q$118,3,FALSE) -> NA | D58: =+VLOOKUP($E58,'TC regional'!$N$11:$Q$118,4,FALSE) -> NA | E58: MPM1-10 | F58: Porcentaje de cumplimiento de la actualización de datos de unidades de Servicio y beneficiarios para la Dirección de Primera Infancia | G58: PG-2 | H58: 3er nivel | I58: =+VLOOKUP($E58,'TC regional'!$AR$11:$EL$118,$D$129,FALSE) -> 1 | J58: =+VLOOKUP($E58,'TC regional'!$AR$11:$EL$118,J$8,FALSE) -> 2855 | K58: =+VLOOKUP($E58,'TC regional'!$AR$11:$EL$118,K$8,FALSE) -> 2981 | L58: =+VLOOKUP($E58,'TC regional'!$AR$11:$EL$118,L$8,FALSE) -> 0.9577323046 | M58: =+VLOOKUP($E58,'TC regional'!$AR$11:$EL$118,M$8,FALSE) -> 0.9577323046 | O58: =+VLOOKUP($E58,'TC regional'!$AR$11:$EL$118,O$8,FALSE) -> ADECUADO
C59: =+VLOOKUP($E59,'TC regional'!$N$11:$Q$118,3,FALSE) -> NA | D59: =+VLOOKUP($E59,'TC regional'!$N$11:$Q$118,4,FALSE) -> NA | E59: MPM2-01 | F59: Niños, niñas y adolescentes en situación de desplazamiento atendidos por el Programa de Alimentacion Escolar | G59: PG-2 | H59: 3er nivel | I59: =+VLOOKUP($E59,'TC regional'!$AR$11:$EL$118,$D$129,FALSE) -> 231 | J59: =+VLOOKUP($E59,'TC regional'!$AR$11:$EL$118,J$8,FALSE) -> 0 | K59: =+VLOOKUP($E59,'TC regional'!$AR$11:$EL$118,K$8,FALSE) -> 231 | L59: =+VLOOKUP($E59,'TC regional'!$AR$11:$EL$118,L$8,FALSE) -> 0 | M59: =+VLOOKUP($E59,'TC regional'!$AR$11:$EL$118,M$8,FALSE) -> 0 | O59: =+VLOOKUP($E59,'TC regional'!$AR$11:$EL$118,O$8,FALSE) -> CRITICO
C60: =+VLOOKUP($E60,'TC regional'!$N$11:$Q$118,3,FALSE) -> NA | D60: =+VLOOKUP($E60,'TC regional'!$N$11:$Q$118,4,FALSE) -> NA | E60: MPM2-02 | F60: Días promedio de atención del Programa de Alimentación Escolar | G60: PG-2 | H60: 3er nivel | I60: =+VLOOKUP($E60,'TC regional'!$AR$11:$EL$118,$D$129,FALSE) -> 176 | J60: =+VLOOKUP($E60,'TC regional'!$AR$11:$EL$118,J$8,FALSE) -> 169 | K60: =+VLOOKUP($E60,'TC regional'!$AR$11:$EL$118,K$8,FALSE) -> 176 | L60: =+VLOOKUP($E60,'TC regional'!$AR$11:$EL$118,L$8,FALSE) -> 169 | M60: =+VLOOKUP($E60,'TC regional'!$AR$11:$EL$118,M$8,FALSE) -> 0.9602272727 | O60: =+VLOOKUP($E60,'TC regional'!$AR$11:$EL$118,O$8,FALSE) -> EN RIESGO
C61: =+VLOOKUP($E61,'TC regional'!$N$11:$Q$118,3,FALSE) -> NA | D61: =+VLOOKUP($E61,'TC regional'!$N$11:$Q$118,4,FALSE) -> NA | E61: MPM2-03 | F61: Encuentros vivenciales realizados por el Programa de Promoción y Prevención para la Protección Integral de los niños, niñas y adolescentes "Generaciones con Bienestar" | G61: PG-2 | H61: 3er nivel | I61: =+VLOOKUP($E61,'TC regional'!$AR$11:$EL$118,$D$129,FALSE) -> 2880 | J61: =+VLOOKUP($E61,'TC regional'!$AR$11:$EL$118,J$8,FALSE) -> 2120 | K61: =+VLOOKUP($E61,'TC regional'!$AR$11:$EL$118,K$8,FALSE) -> 2880 | L61: =+VLOOKUP($E61,'TC regional'!$AR$11:$EL$118,L$8,FALSE) -> 2120 | M61: =+VLOOKUP($E61,'TC regional'!$AR$11:$EL$118,M$8,FALSE) -> 0.7361111111 | O61: =+VLOOKUP($E61,'TC regional'!$AR$11:$EL$118,O$8,FALSE) -> EN RIESGO
C62: =+VLOOKUP($E62,'TC regional'!$N$11:$Q$118,3,FALSE) -> NA | D62: =+VLOOKUP($E62,'TC regional'!$N$11:$Q$118,4,FALSE) -> NA | E62: MPM2-04 | F62: Porcentaje de cumplimiento de la actualización de datos de unidades de Servicio y beneficiarios para la Dirección de Niñez y Adolescencia | G62: PG-2 | H62: 3er nivel | I62: =+VLOOKUP($E62,'TC regional'!$AR$11:$EL$118,$D$129,FALSE) -> 1 | J62: =+VLOOKUP($E62,'TC regional'!$AR$11:$EL$118,J$8,FALSE) -> 9340 | K62: =+VLOOKUP($E62,'TC regional'!$AR$11:$EL$118,K$8,FALSE) -> 9966 | L62: =+VLOOKUP($E62,'TC regional'!$AR$11:$EL$118,L$8,FALSE) -> 0.9371864339 | M62: =+VLOOKUP($E62,'TC regional'!$AR$11:$EL$118,M$8,FALSE) -> 0.9371864339 | O62: =+VLOOKUP($E62,'TC regional'!$AR$11:$EL$118,O$8,FALSE) -> ADECUADO
C63: =+VLOOKUP($E63,'TC regional'!$N$11:$Q$118,3,FALSE) -> NA | D63: =+VLOOKUP($E63,'TC regional'!$N$11:$Q$118,4,FALSE) -> NA | E63: MPM3-01 | F63: Familias de Red Unidos beneficiadas por el programa "Familias con bienestar" | G63: PG-2 | H63: 3er nivel | I63: =+VLOOKUP($E63,'TC regional'!$AR$11:$EL$118,$D$129,FALSE) -> 130 | J63: =+VLOOKUP($E63,'TC regional'!$AR$11:$EL$118,J$8,FALSE) -> 398 | K63: =+VLOOKUP($E63,'TC regional'!$AR$11:$EL$118,K$8,FALSE) -> 130 | L63: =+VLOOKUP($E63,'TC regional'!$AR$11:$EL$118,L$8,FALSE) -> 398 | M63: =+VLOOKUP($E63,'TC regional'!$AR$11:$EL$118,M$8,FALSE) -> 3.061538462 | O63: =+VLOOKUP($E63,'TC regional'!$AR$11:$EL$118,O$8,FALSE) -> OPTIMO
C64: =+VLOOKUP($E64,'TC regional'!$N$11:$Q$118,3,FALSE) -> NA | D64: =+VLOOKUP($E64,'TC regional'!$N$11:$Q$118,4,FALSE) -> NA | E64: MPM3-02 | F64: Familias Victimas, PARD, Vulnerables beneficiadas por el programa "Familias con bienestar" | G64: PG-2 | H64: 3er nivel | I64: =+VLOOKUP($E64,'TC regional'!$AR$11:$EL$118,$D$129,FALSE) -> 570 | J64: =+VLOOKUP($E64,'TC regional'!$AR$11:$EL$118,J$8,FALSE) -> 303 | K64: =+VLOOKUP($E64,'TC regional'!$AR$11:$EL$118,K$8,FALSE) -> 570 | L64: =+VLOOKUP($E64,'TC regional'!$AR$11:$EL$118,L$8,FALSE) -> 303 | M64: =+VLOOKUP($E64,'TC regional'!$AR$11:$EL$118,M$8,FALSE) -> 0.5315789474 | O64: =+VLOOKUP($E64,'TC regional'!$AR$11:$EL$118,O$8,FALSE) -> NA
C65: =+VLOOKUP($E65,'TC regional'!$N$11:$Q$118,3,FALSE) -> NA | D65: =+VLOOKUP($E65,'TC regional'!$N$11:$Q$118,4,FALSE) -> NA | E65: MPM3-03 | F65: Familias indígenas atendidas por el proyecto fortalecimiento a familias de grupos étnicos | G65: PG-2 | H65: 3er nivel | I65: =+VLOOKUP($E65,'TC regional'!$AR$11:$EL$118,$D$129,FALSE) -> 1 | J65: =+VLOOKUP($E65,'TC regional'!$AR$11:$EL$118,J$8,FALSE) -> 40 | K65: =+VLOOKUP($E65,'TC regional'!$AR$11:$EL$118,K$8,FALSE) -> 40 | L65: =+VLOOKUP($E65,'TC regional'!$AR$11:$EL$118,L$8,FALSE) -> 1 | M65: =+VLOOKUP($E65,'TC regional'!$AR$11:$EL$118,M$8,FALSE) -> 1 | O65: =+VLOOKUP($E65,'TC regional'!$AR$11:$EL$118,O$8,FALSE) -> OPTIMO
C66: =+VLOOKUP($E66,'TC regional'!$N$11:$Q$118,3,FALSE) -> NA | D66: =+VLOOKUP($E66,'TC regional'!$N$11:$Q$118,4,FALSE) -> NA | E66: MPM3-04 | F66: Familias de comunidades negras atendidas por el proyecto fortalecimiento a familias de grupos etnicos | G66: PG-2 | H66: 3er nivel | I66: =+VLOOKUP($E66,'TC regional'!$AR$11:$EL$118,$D$129,FALSE) -> 1 | J66: =+VLOOKUP($E66,'TC regional'!$AR$11:$EL$118,J$8,FALSE) -> 0 | K66: =+VLOOKUP($E66,'TC regional'!$AR$11:$EL$118,K$8,FALSE) -> 0 | L66: =+VLOOKUP($E66,'TC regional'!$AR$11:$EL$118,L$8,FALSE) -> NA | M66: =+VLOOKUP($E66,'TC regional'!$AR$11:$EL$118,M$8,FALSE) ->  | O66: =+VLOOKUP($E66,'TC regional'!$AR$11:$EL$118,O$8,FALSE) -> NA
C67: =+VLOOKUP($E67,'TC regional'!$N$11:$Q$118,3,FALSE) -> NA | D67: =+VLOOKUP($E67,'TC regional'!$N$11:$Q$118,4,FALSE) -> NA | E67: MPM3-05 | F67: Familias raizales atendidas por el proyecto fortalecimiento a familias de grupos etnicos | G67: PG-2 | H67: 3er nivel | I67: =+VLOOKUP($E67,'TC regional'!$AR$11:$EL$118,$D$129,FALSE) -> 1 | J67: =+VLOOKUP($E67,'TC regional'!$AR$11:$EL$118,J$8,FALSE) -> 0 | K67: =+VLOOKUP($E67,'TC regional'!$AR$11:$EL$118,K$8,FALSE) -> 0 | L67: =+VLOOKUP($E67,'TC regional'!$AR$11:$EL$118,L$8,FALSE) -> NA | M67: =+VLOOKUP($E67,'TC regional'!$AR$11:$EL$118,M$8,FALSE) ->  | O67: =+VLOOKUP($E67,'TC regional'!$AR$11:$EL$118,O$8,FALSE) -> NA
C68: =+VLOOKUP($E68,'TC regional'!$N$11:$Q$118,3,FALSE) -> NA | D68: =+VLOOKUP($E68,'TC regional'!$N$11:$Q$118,4,FALSE) -> NA | E68: MPM3-06 | F68: Familias Rrom atendidas por el proyecto fortalecimiento a familias de grupos étnicos | G68: PG-2 | H68: 3er nivel | I68: =+VLOOKUP($E68,'TC regional'!$AR$11:$EL$118,$D$129,FALSE) -> 1 | J68: =+VLOOKUP($E68,'TC regional'!$AR$11:$EL$118,J$8,FALSE) -> 0 | K68: =+VLOOKUP($E68,'TC regional'!$AR$11:$EL$118,K$8,FALSE) -> 0 | L68: =+VLOOKUP($E68,'TC regional'!$AR$11:$EL$118,L$8,FALSE) -> NA | M68: =+VLOOKUP($E68,'TC regional'!$AR$11:$EL$118,M$8,FALSE) ->  | O68: =+VLOOKUP($E68,'TC regional'!$AR$11:$EL$118,O$8,FALSE) -> NA
C69: =+VLOOKUP($E69,'TC regional'!$N$11:$Q$118,3,FALSE) -> NA | D69: =+VLOOKUP($E69,'TC regional'!$N$11:$Q$118,4,FALSE) -> NA | E69: MPM3-07 | F69: Familias palenqueras atendidas por el proyecto fortalecimiento a familias de grupos étnicos | G69: PG-2 | H69: 3er nivel | I69: =+VLOOKUP($E69,'TC regional'!$AR$11:$EL$118,$D$129,FALSE) -> 1 | J69: =+VLOOKUP($E69,'TC regional'!$AR$11:$EL$118,J$8,FALSE) -> 0 | K69: =+VLOOKUP($E69,'TC regional'!$AR$11:$EL$118,K$8,FALSE) -> 0 | L69: =+VLOOKUP($E69,'TC regional'!$AR$11:$EL$118,L$8,FALSE) -> NA | M69: =+VLOOKUP($E69,'TC regional'!$AR$11:$EL$118,M$8,FALSE) ->  | O69: =+VLOOKUP($E69,'TC regional'!$AR$11:$EL$118,O$8,FALSE) -> NA
C70: =+VLOOKUP($E70,'TC regional'!$N$11:$Q$118,3,FALSE) -> NA | D70: =+VLOOKUP($E70,'TC regional'!$N$11:$Q$118,4,FALSE) -> NA | E70: MPM3-09 | F70: Porcentaje de cumplimiento de la actualización de datos de unidades de Servicio y beneficiarios para la Dirección de Familia y Comunidades | G70: PG-2 | H70: 3er nivel | I70: =+VLOOKUP($E70,'TC regional'!$AR$11:$EL$118,$D$129,FALSE) -> 1 | J70: =+VLOOKUP($E70,'TC regional'!$AR$11:$EL$118,J$8,FALSE) -> 557 | K70: =+VLOOKUP($E70,'TC regional'!$AR$11:$EL$118,K$8,FALSE) -> 741 | L70: =+VLOOKUP($E70,'TC regional'!$AR$11:$EL$118,L$8,FALSE) -> 0.7516869096 | M70: =+VLOOKUP($E70,'TC regional'!$AR$11:$EL$118,M$8,FALSE) -> 0.7516869096 | O70: =+VLOOKUP($E70,'TC regional'!$AR$11:$EL$118,O$8,FALSE) -> CRITICO
C71: =+VLOOKUP($E71,'TC regional'!$N$11:$Q$118,3,FALSE) -> NA | D71: =+VLOOKUP($E71,'TC regional'!$N$11:$Q$118,4,FALSE) -> NA | E71: MPM4-01 | F71: Niños de 0-2 años reportados al Sistema de Seguimiento Nutricional – SSN pertenecientes al programa FAMI, con desnutrición global que mejoran su estado nutricional. | G71: PG-2 | H71: 3er nivel | I71: =+VLOOKUP($E71,'TC regional'!$AR$11:$EL$118,$D$129,FALSE) -> 0.78 | J71: =+VLOOKUP($E71,'TC regional'!$AR$11:$EL$118,J$8,FALSE) -> 15 | K71: =+VLOOKUP($E71,'TC regional'!$AR$11:$EL$118,K$8,FALSE) -> 22 | L71: =+VLOOKUP($E71,'TC regional'!$AR$11:$EL$118,L$8,FALSE) -> 0.6818181818 | M71: =+VLOOKUP($E71,'TC regional'!$AR$11:$EL$118,M$8,FALSE) -> 0.8741258741 | O71: =+VLOOKUP($E71,'TC regional'!$AR$11:$EL$118,O$8,FALSE) -> EN RIESGO
C72: =+VLOOKUP($E72,'TC regional'!$N$11:$Q$118,3,FALSE) -> NA | D72: =+VLOOKUP($E72,'TC regional'!$N$11:$Q$118,4,FALSE) -> NA | E72: MPM4-02 | F72: Niños y niñas menores de 5 años atendidos por el programa de recuperación nutricional ambulatoria con Desnutrición aguda o riesgo que mejoran su estado nutricional | G72: PG-2 | H72: 3er nivel | I72: =+VLOOKUP($E72,'TC regional'!$AR$11:$EL$118,$D$129,FALSE) -> 0.85 | J72: =+VLOOKUP($E72,'TC regional'!$AR$11:$EL$118,J$8,FALSE) -> 28 | K72: =+VLOOKUP($E72,'TC regional'!$AR$11:$EL$118,K$8,FALSE) -> 34 | L72: =+VLOOKUP($E72,'TC regional'!$AR$11:$EL$118,L$8,FALSE) -> 0.8235294118 | M72: =+VLOOKUP($E72,'TC regional'!$AR$11:$EL$118,M$8,FALSE) -> 0.9688581315 | O72: =+VLOOKUP($E72,'TC regional'!$AR$11:$EL$118,O$8,FALSE) -> ADECUADO
C73: =+VLOOKUP($E73,'TC regional'!$N$11:$Q$118,3,FALSE) -> NA | D73: =+VLOOKUP($E73,'TC regional'!$N$11:$Q$118,4,FALSE) -> NA | E73: MPM4-03 | F73: Niños y niñas desplazados reportados al Sistema de Seguimiento Nutricional - SSN en HI - HCB - CDI (excluyendo FAMI, menores de 2 años y mayores de 5 años) con desnutrición aguda que mejoraron su estado Nutricional. | G73: PG-2 | H73: 3er nivel | I73: =+VLOOKUP($E73,'TC regional'!$AR$11:$EL$118,$D$129,FALSE) -> 0.78 | J73: =+VLOOKUP($E73,'TC regional'!$AR$11:$EL$118,J$8,FALSE) -> 3 | K73: =+VLOOKUP($E73,'TC regional'!$AR$11:$EL$118,K$8,FALSE) -> 3 | L73: =+VLOOKUP($E73,'TC regional'!$AR$11:$EL$118,L$8,FALSE) -> 1 | M73: =+VLOOKUP($E73,'TC regional'!$AR$11:$EL$118,M$8,FALSE) -> 1.282051282 | O73: =+VLOOKUP($E73,'TC regional'!$AR$11:$EL$118,O$8,FALSE) -> OPTIMO
C74: =+VLOOKUP($E74,'TC regional'!$N$11:$Q$118,3,FALSE) -> NA | D74: =+VLOOKUP($E74,'TC regional'!$N$11:$Q$118,4,FALSE) -> NA | E74: MPM4-04 | F74: Niños y Niñas reportados al Sistema de Seguimiento Nutricional –SSN en HI, CDI y HCB (excluyendo FAMI, menores de 2 años) que permanecieron con Obesidad | G74: PG-2 | H74: 3er nivel | I74: =+VLOOKUP($E74,'TC regional'!$AR$11:$EL$118,$D$129,FALSE) -> 0.5 | J74: =+VLOOKUP($E74,'TC regional'!$AR$11:$EL$118,J$8,FALSE) -> 9 | K74: =+VLOOKUP($E74,'TC regional'!$AR$11:$EL$118,K$8,FALSE) -> 36 | L74: =+VLOOKUP($E74,'TC regional'!$AR$11:$EL$118,L$8,FALSE) -> 0.25 | M74: =+VLOOKUP($E74,'TC regional'!$AR$11:$EL$118,M$8,FALSE) -> 0.5 | O74: =+VLOOKUP($E74,'TC regional'!$AR$11:$EL$118,O$8,FALSE) -> OPTIMO
C75: =+VLOOKUP($E75,'TC regional'!$N$11:$Q$118,3,FALSE) -> NA | D75: =+VLOOKUP($E75,'TC regional'!$N$11:$Q$118,4,FALSE) -> NA | E75: MPM4-07 | F75: Porcentaje de cumplimiento de la actualización de datos de unidades de Servicio y beneficiarios para la Dirección Nutrición | G75: PG-2 | H75: 3er nivel | I75: =+VLOOKUP($E75,'TC regional'!$AR$11:$EL$118,$D$129,FALSE) -> 1 | J75: =+VLOOKUP($E75,'TC regional'!$AR$11:$EL$118,J$8,FALSE) -> 26 | K75: =+VLOOKUP($E75,'TC regional'!$AR$11:$EL$118,K$8,FALSE) -> 390 | L75: =+VLOOKUP($E75,'TC regional'!$AR$11:$EL$118,L$8,FALSE) -> 0.06666666667 | M75: =+VLOOKUP($E75,'TC regional'!$AR$11:$EL$118,M$8,FALSE) -> 0.06666666667 | O75: =+VLOOKUP($E75,'TC regional'!$AR$11:$EL$118,O$8,FALSE) -> NA
C76: =+VLOOKUP($E76,'TC regional'!$N$11:$Q$118,3,FALSE) -> NA | D76: =+VLOOKUP($E76,'TC regional'!$N$11:$Q$118,4,FALSE) -> NA | E76: MPM5-P1-01 | F76: Porcentaje de niños, niñas y adolescentes en PARD ubicados en la modalidad del hogar sustituto con permanencia mayor a 12 meses | G76: PG-2 | H76: 3er nivel | I76: =+VLOOKUP($E76,'TC regional'!$AR$11:$EL$118,$D$129,FALSE) -> 0 | J76: =+VLOOKUP($E76,'TC regional'!$AR$11:$EL$118,J$8,FALSE) -> 0 | K76: =+VLOOKUP($E76,'TC regional'!$AR$11:$EL$118,K$8,FALSE) -> 3 | L76: =+VLOOKUP($E76,'TC regional'!$AR$11:$EL$118,L$8,FALSE) -> 0 | M76: =+VLOOKUP($E76,'TC regional'!$AR$11:$EL$118,M$8,FALSE) -> 0 | O76: =+VLOOKUP($E76,'TC regional'!$AR$11:$EL$118,O$8,FALSE) -> OPTIMO
C77: =+VLOOKUP($E77,'TC regional'!$N$11:$Q$118,3,FALSE) -> NA | D77: =+VLOOKUP($E77,'TC regional'!$N$11:$Q$118,4,FALSE) -> NA | E77: MPM5-P1-02 | F77: Porcentaje Niños, niñas y adolescentes ubicados en la modalidad medio Institucional Internado con más de doce meses de permanencia. | G77: PG-2 | H77: 3er nivel | I77: =+VLOOKUP($E77,'TC regional'!$AR$11:$EL$118,$D$129,FALSE) -> 0 | J77: =+VLOOKUP($E77,'TC regional'!$AR$11:$EL$118,J$8,FALSE) -> 0 | K77: =+VLOOKUP($E77,'TC regional'!$AR$11:$EL$118,K$8,FALSE) -> 0 | L77: =+VLOOKUP($E77,'TC regional'!$AR$11:$EL$118,L$8,FALSE) -> NA | M77: =+VLOOKUP($E77,'TC regional'!$AR$11:$EL$118,M$8,FALSE) ->  | O77: =+VLOOKUP($E77,'TC regional'!$AR$11:$EL$118,O$8,FALSE) -> NA
C78: =+VLOOKUP($E78,'TC regional'!$N$11:$Q$118,3,FALSE) -> NA | D78: =+VLOOKUP($E78,'TC regional'!$N$11:$Q$118,4,FALSE) -> NA | E78: MPM5-P1-03 | F78: Porcentaje de Niño, niñas o adolescentes con auto de apertura de investigación que llevan entre 121 y 180 días sin situación legal definida | G78: PG-2 | H78: 3er nivel | I78: =+VLOOKUP($E78,'TC regional'!$AR$11:$EL$118,$D$129,FALSE) -> 0 | J78: =+VLOOKUP($E78,'TC regional'!$AR$11:$EL$118,J$8,FALSE) -> 0 | K78: =+VLOOKUP($E78,'TC regional'!$AR$11:$EL$118,K$8,FALSE) -> 26 | L78: =+VLOOKUP($E78,'TC regional'!$AR$11:$EL$118,L$8,FALSE) -> 0 | M78: =+VLOOKUP($E78,'TC regional'!$AR$11:$EL$118,M$8,FALSE) -> 0 | O78: =+VLOOKUP($E78,'TC regional'!$AR$11:$EL$118,O$8,FALSE) -> OPTIMO
C79: =+VLOOKUP($E79,'TC regional'!$N$11:$Q$118,3,FALSE) -> NA | D79: =+VLOOKUP($E79,'TC regional'!$N$11:$Q$118,4,FALSE) -> NA | E79: MPM5-P1-04 | F79: Porcentaje Niños, niñas y adolescentes con auto de apertura de investigación que llevan más de 180 días sin situación legal definida | G79: PG-2 | H79: 3er nivel | I79: =+VLOOKUP($E79,'TC regional'!$AR$11:$EL$118,$D$129,FALSE) -> 0 | J79: =+VLOOKUP($E79,'TC regional'!$AR$11:$EL$118,J$8,FALSE) -> 0 | K79: =+VLOOKUP($E79,'TC regional'!$AR$11:$EL$118,K$8,FALSE) -> 26 | L79: =+VLOOKUP($E79,'TC regional'!$AR$11:$EL$118,L$8,FALSE) -> 0 | M79: =+VLOOKUP($E79,'TC regional'!$AR$11:$EL$118,M$8,FALSE) -> 0 | O79: =+VLOOKUP($E79,'TC regional'!$AR$11:$EL$118,O$8,FALSE) -> OPTIMO
C80: =+VLOOKUP($E80,'TC regional'!$N$11:$Q$118,3,FALSE) -> NA | D80: =+VLOOKUP($E80,'TC regional'!$N$11:$Q$118,4,FALSE) -> NA | E80: MPM5-P1-05 | F80: Porcentaje de niños y niñas menores de 6 años con situación legal definida en menos de 6 meses | G80: PG-2 | H80: 3er nivel | I80: =+VLOOKUP($E80,'TC regional'!$AR$11:$EL$118,$D$129,FALSE) -> 1 | J80: =+VLOOKUP($E80,'TC regional'!$AR$11:$EL$118,J$8,FALSE) -> 71 | K80: =+VLOOKUP($E80,'TC regional'!$AR$11:$EL$118,K$8,FALSE) -> 71 | L80: =+VLOOKUP($E80,'TC regional'!$AR$11:$EL$118,L$8,FALSE) -> 1 | M80: =+VLOOKUP($E80,'TC regional'!$AR$11:$EL$118,M$8,FALSE) -> 1 | O80: =+VLOOKUP($E80,'TC regional'!$AR$11:$EL$118,O$8,FALSE) -> OPTIMO
C81: =+VLOOKUP($E81,'TC regional'!$N$11:$Q$118,3,FALSE) -> NA | D81: =+VLOOKUP($E81,'TC regional'!$N$11:$Q$118,4,FALSE) -> NA | E81: MPM5-P1-06 | F81: Porcentaje niños, niñas menores de 6 años que reingresan al proceso de restablecimiento de derechos | G81: PG-2 | H81: 3er nivel | I81: =+VLOOKUP($E81,'TC regional'!$AR$11:$EL$118,$D$129,FALSE) -> 0 | J81: =+VLOOKUP($E81,'TC regional'!$AR$11:$EL$118,J$8,FALSE) -> 0 | K81: =+VLOOKUP($E81,'TC regional'!$AR$11:$EL$118,K$8,FALSE) -> 60 | L81: =+VLOOKUP($E81,'TC regional'!$AR$11:$EL$118,L$8,FALSE) -> 0 | M81: =+VLOOKUP($E81,'TC regional'!$AR$11:$EL$118,M$8,FALSE) -> 0 | O81: =+VLOOKUP($E81,'TC regional'!$AR$11:$EL$118,O$8,FALSE) -> OPTIMO
C82: =+VLOOKUP($E82,'TC regional'!$N$11:$Q$118,3,FALSE) -> NA | D82: =+VLOOKUP($E82,'TC regional'!$N$11:$Q$118,4,FALSE) -> NA | E82: MPM5-P2-01 | F82: Niños y niñas menores de 6 años en situación de adoptabilidad en firme, SIN características y necesidades especiales presentados a comité de adopciones, con familia asignada | G82: PG-2 | H82: 3er nivel | I82: =+VLOOKUP($E82,'TC regional'!$AR$11:$EL$118,$D$129,FALSE) -> 1 | J82: =+VLOOKUP($E82,'TC regional'!$AR$11:$EL$118,J$8,FALSE) -> 0 | K82: =+VLOOKUP($E82,'TC regional'!$AR$11:$EL$118,K$8,FALSE) -> 0 | L82: =+VLOOKUP($E82,'TC regional'!$AR$11:$EL$118,L$8,FALSE) -> NA | M82: =+VLOOKUP($E82,'TC regional'!$AR$11:$EL$118,M$8,FALSE) ->  | O82: =+VLOOKUP($E82,'TC regional'!$AR$11:$EL$118,O$8,FALSE) -> NA
C83: =+VLOOKUP($E83,'TC regional'!$N$11:$Q$118,3,FALSE) -> NA | D83: =+VLOOKUP($E83,'TC regional'!$N$11:$Q$118,4,FALSE) -> NA | E83: MPM5-P2-02 | F83: Niños y niñas menores de 6 años en situación de adoptabilidad en firme, CON características y necesidades especiales y posibilidad de adopción presentados a comité de adopciones, con familia asignada | G83: PG-2 | H83: 3er nivel | I83: =+VLOOKUP($E83,'TC regional'!$AR$11:$EL$118,$D$129,FALSE) -> 0.36 | J83: =+VLOOKUP($E83,'TC regional'!$AR$11:$EL$118,J$8,FALSE) -> 0 | K83: =+VLOOKUP($E83,'TC regional'!$AR$11:$EL$118,K$8,FALSE) -> 0 | L83: =+VLOOKUP($E83,'TC regional'!$AR$11:$EL$118,L$8,FALSE) -> NA | M83: =+VLOOKUP($E83,'TC regional'!$AR$11:$EL$118,M$8,FALSE) ->  | O83: =+VLOOKUP($E83,'TC regional'!$AR$11:$EL$118,O$8,FALSE) -> NA
C84: =+VLOOKUP($E84,'TC regional'!$N$11:$Q$118,3,FALSE) -> NA | D84: =+VLOOKUP($E84,'TC regional'!$N$11:$Q$118,4,FALSE) -> NA | E84: MPM5-P3-03 | F84: Reiteración del delito en el Sistema de Responsabilidad Penal para Adolescentes. | G84: PG-2 | H84: 3er nivel | I84: =+VLOOKUP($E84,'TC regional'!$AR$11:$EL$118,$D$129,FALSE) -> 0 | J84: =+VLOOKUP($E84,'TC regional'!$AR$11:$EL$118,J$8,FALSE) -> 3 | K84: =+VLOOKUP($E84,'TC regional'!$AR$11:$EL$118,K$8,FALSE) -> 30 | L84: =+VLOOKUP($E84,'TC regional'!$AR$11:$EL$118,L$8,FALSE) -> 0.1 | M84: =+VLOOKUP($E84,'TC regional'!$AR$11:$EL$118,M$8,FALSE) -> 0.1 | O84: =+VLOOKUP($E84,'TC regional'!$AR$11:$EL$118,O$8,FALSE) -> ADECUADO
C85: =+VLOOKUP($E85,'TC regional'!$N$11:$Q$118,3,FALSE) -> NA | D85: =+VLOOKUP($E85,'TC regional'!$N$11:$Q$118,4,FALSE) -> NA | E85: MPE1-01 | F85: Eficiencia ejecución presupuestal compromisos | G85: PG-2 | H85: 3er nivel | I85: =+VLOOKUP($E85,'TC regional'!$AR$11:$EL$118,$D$129,FALSE) -> 1 | J85: =+VLOOKUP($E85,'TC regional'!$AR$11:$EL$118,J$8,FALSE) -> 0.9317985418 | K85: =+VLOOKUP($E85,'TC regional'!$AR$11:$EL$118,K$8,FALSE) -> 0.98 | L85: =+VLOOKUP($E85,'TC regional'!$AR$11:$EL$118,L$8,FALSE) -> 0.9508148385 | M85: =+VLOOKUP($E85,'TC regional'!$AR$11:$EL$118,M$8,FALSE) -> 0.9508148385 | O85: =+VLOOKUP($E85,'TC regional'!$AR$11:$EL$118,O$8,FALSE) -> EN RIESGO
C86: =+VLOOKUP($E86,'TC regional'!$N$11:$Q$118,3,FALSE) -> NA | D86: =+VLOOKUP($E86,'TC regional'!$N$11:$Q$118,4,FALSE) -> NA | E86: MPE1-05 | F86: Ejecución de metas sociales | G86: PG-2 | H86: 3er nivel | I86: =+VLOOKUP($E86,'TC regional'!$AR$11:$EL$118,$D$129,FALSE) -> 1 | J86: =+VLOOKUP($E86,'TC regional'!$AR$11:$EL$118,J$8,FALSE) -> 19506 | K86: =+VLOOKUP($E86,'TC regional'!$AR$11:$EL$118,K$8,FALSE) -> 19147 | L86: =+VLOOKUP($E86,'TC regional'!$AR$11:$EL$118,L$8,FALSE) -> 1.018749674 | M86: =+VLOOKUP($E86,'TC regional'!$AR$11:$EL$118,M$8,FALSE) -> 1.018749674 | O86: =+VLOOKUP($E86,'TC regional'!$AR$11:$EL$118,O$8,FALSE) -> OPTIMO
C87: =+VLOOKUP($E87,'TC regional'!$N$11:$Q$118,3,FALSE) -> NA | D87: =+VLOOKUP($E87,'TC regional'!$N$11:$Q$118,4,FALSE) -> NA | E87: MPE1-07 | F87: Beneficiarios Focalizados | G87: PG-2 | H87: 3er nivel | I87: =+VLOOKUP($E87,'TC regional'!$AR$11:$EL$118,$D$129,FALSE) -> 1 | J87: =+VLOOKUP($E87,'TC regional'!$AR$11:$EL$118,J$8,FALSE) -> 603 | K87: =+VLOOKUP($E87,'TC regional'!$AR$11:$EL$118,K$8,FALSE) -> 1680 | L87: =+VLOOKUP($E87,'TC regional'!$AR$11:$EL$118,L$8,FALSE) -> 0.3589285714 | M87: =+VLOOKUP($E87,'TC regional'!$AR$11:$EL$118,M$8,FALSE) -> 0.3589285714 | O87: =+VLOOKUP($E87,'TC regional'!$AR$11:$EL$118,O$8,FALSE) -> CRITICO
C88: =+VLOOKUP($E88,'TC regional'!$N$11:$Q$118,3,FALSE) -> NA | D88: =+VLOOKUP($E88,'TC regional'!$N$11:$Q$118,4,FALSE) -> NA | E88: MPE2-01 | F88: % de Acciones correctivas y preventivas eficaces | G88: PG-2 | H88: 3er nivel | I88: =+VLOOKUP($E88,'TC regional'!$AR$11:$EL$118,$D$129,FALSE) -> 0.75 | J88: =+VLOOKUP($E88,'TC regional'!$AR$11:$EL$118,J$8,FALSE) -> 0 | K88: =+VLOOKUP($E88,'TC regional'!$AR$11:$EL$118,K$8,FALSE) -> 8 | L88: =+VLOOKUP($E88,'TC regional'!$AR$11:$EL$118,L$8,FALSE) -> 0 | M88: =+VLOOKUP($E88,'TC regional'!$AR$11:$EL$118,M$8,FALSE) -> 0 | O88: =+VLOOKUP($E88,'TC regional'!$AR$11:$EL$118,O$8,FALSE) -> CRITICO
C89: =+VLOOKUP($E89,'TC regional'!$N$11:$Q$118,3,FALSE) -> NA | D89: =+VLOOKUP($E89,'TC regional'!$N$11:$Q$118,4,FALSE) -> NA | E89: MPE2-02 | F89: Agentes educativos (madres comunitarias, maestras jardineras, operadores) sensibilizados en Mejores Prácticas Ambientales del ICBF | G89: PG-2 | H89: 3er nivel | I89: =+VLOOKUP($E89,'TC regional'!$AR$11:$EL$118,$D$129,FALSE) -> 0.1 | J89: =+VLOOKUP($E89,'TC regional'!$AR$11:$EL$118,J$8,FALSE) -> 17 | K89: =+VLOOKUP($E89,'TC regional'!$AR$11:$EL$118,K$8,FALSE) -> 162 | L89: =+VLOOKUP($E89,'TC regional'!$AR$11:$EL$118,L$8,FALSE) -> 0.1049382716 | M89: =+VLOOKUP($E89,'TC regional'!$AR$11:$EL$118,M$8,FALSE) -> 1.049382716 | O89: =+VLOOKUP($E89,'TC regional'!$AR$11:$EL$118,O$8,FALSE) -> OPTIMO
C90: =+VLOOKUP($E90,'TC regional'!$N$11:$Q$118,3,FALSE) -> Gestión financiera | D90: =+VLOOKUP($E90,'TC regional'!$N$11:$Q$118,4,FALSE) -> Plan Anual de Adquisiciones (PAA) | E90: MPA1-P6-06 | F90: Porcentaje de los recursos contratados, reportados en plan compras y contratación | G90: PG-2 | H90: 3er nivel | I90: =+VLOOKUP($E90,'TC regional'!$AR$11:$EL$118,$D$129,FALSE) -> 1 | J90: =+VLOOKUP($E90,'TC regional'!$AR$11:$EL$118,J$8,FALSE) -> 11230980807 | K90: =+VLOOKUP($E90,'TC regional'!$AR$11:$EL$118,K$8,FALSE) -> 11266785989 | L90: =+VLOOKUP($E90,'TC regional'!$AR$11:$EL$118,L$8,FALSE) -> 0.9968220589 | M90: =+VLOOKUP($E90,'TC regional'!$AR$11:$EL$118,M$8,FALSE) -> 0.9968220589 | O90: =+VLOOKUP($E90,'TC regional'!$AR$11:$EL$118,O$8,FALSE) -> OPTIMO
C91: =+VLOOKUP($E91,'TC regional'!$N$11:$Q$118,3,FALSE) -> NA | D91: =+VLOOKUP($E91,'TC regional'!$N$11:$Q$118,4,FALSE) -> NA | E91: MPA1-P1-01 | F91: Porcentaje colaboradores participantes en actividades SYSO | G91: PG-2 | H91: 3er nivel | I91: =+VLOOKUP($E91,'TC regional'!$AR$11:$EL$118,$D$129,FALSE) -> 0.5 | J91: =+VLOOKUP($E91,'TC regional'!$AR$11:$EL$118,J$8,FALSE) -> 107 | K91: =+VLOOKUP($E91,'TC regional'!$AR$11:$EL$118,K$8,FALSE) -> 129 | L91: =+VLOOKUP($E91,'TC regional'!$AR$11:$EL$118,L$8,FALSE) -> 0.8294573643 | M91: =+VLOOKUP($E91,'TC regional'!$AR$11:$EL$118,M$8,FALSE) -> 1.658914729 | O91: =+VLOOKUP($E91,'TC regional'!$AR$11:$EL$118,O$8,FALSE) -> OPTIMO
C92: =+VLOOKUP($E92,'TC regional'!$N$11:$Q$118,3,FALSE) -> NA | D92: =+VLOOKUP($E92,'TC regional'!$N$11:$Q$118,4,FALSE) -> NA | E92: MPA1-P1-04 | F92: Colaboradores capacitados en el Eje de SYSO | G92: PG-2 | H92: 3er nivel | I92: =+VLOOKUP($E92,'TC regional'!$AR$11:$EL$118,$D$129,FALSE) -> 0.09 | J92: =+VLOOKUP($E92,'TC regional'!$AR$11:$EL$118,J$8,FALSE) -> 0 | K92: =+VLOOKUP($E92,'TC regional'!$AR$11:$EL$118,K$8,FALSE) -> 63 | L92: =+VLOOKUP($E92,'TC regional'!$AR$11:$EL$118,L$8,FALSE) -> 0 | M92: =+VLOOKUP($E92,'TC regional'!$AR$11:$EL$118,M$8,FALSE) -> 0 | O92: =+VLOOKUP($E92,'TC regional'!$AR$11:$EL$118,O$8,FALSE) -> NA
C93: =+VLOOKUP($E93,'TC regional'!$N$11:$Q$118,3,FALSE) -> NA | D93: =+VLOOKUP($E93,'TC regional'!$N$11:$Q$118,4,FALSE) -> NA | E93: MPA1-P1-05 | F93: Colaboradores capacitados en el Eje de Seguridad de la Información | G93: PG-2 | H93: 3er nivel | I93: =+VLOOKUP($E93,'TC regional'!$AR$11:$EL$118,$D$129,FALSE) -> 0.034 | J93: =+VLOOKUP($E93,'TC regional'!$AR$11:$EL$118,J$8,FALSE) -> 27 | K93: =+VLOOKUP($E93,'TC regional'!$AR$11:$EL$118,K$8,FALSE) -> 63 | L93: =+VLOOKUP($E93,'TC regional'!$AR$11:$EL$118,L$8,FALSE) -> 0.4285714286 | M93: =+VLOOKUP($E93,'TC regional'!$AR$11:$EL$118,M$8,FALSE) -> 12.60504202 | O93: =+VLOOKUP($E93,'TC regional'!$AR$11:$EL$118,O$8,FALSE) -> OPTIMO
C94: =+VLOOKUP($E94,'TC regional'!$N$11:$Q$118,3,FALSE) -> NA | D94: =+VLOOKUP($E94,'TC regional'!$N$11:$Q$118,4,FALSE) -> NA | E94: MPA1-P1-06 | F94: Colaboradores capacitados en el Sistema Integral de Gestión (SIGE) | G94: PG-2 | H94: 3er nivel | I94: =+VLOOKUP($E94,'TC regional'!$AR$11:$EL$118,$D$129,FALSE) -> 0.056 | J94: =+VLOOKUP($E94,'TC regional'!$AR$11:$EL$118,J$8,FALSE) -> 1 | K94: =+VLOOKUP($E94,'TC regional'!$AR$11:$EL$118,K$8,FALSE) -> 63 | L94: =+VLOOKUP($E94,'TC regional'!$AR$11:$EL$118,L$8,FALSE) -> 0.01587301587 | M94: =+VLOOKUP($E94,'TC regional'!$AR$11:$EL$118,M$8,FALSE) -> 0.283446712 | O94: =+VLOOKUP($E94,'TC regional'!$AR$11:$EL$118,O$8,FALSE) -> ADECUADO
C95: =+VLOOKUP($E95,'TC regional'!$N$11:$Q$118,3,FALSE) -> NA | D95: =+VLOOKUP($E95,'TC regional'!$N$11:$Q$118,4,FALSE) -> NA | E95: MPA1-P1-07 | F95: Colaboradores capacitados en el Eje Ambiental | G95: PG-2 | H95: 3er nivel | I95: =+VLOOKUP($E95,'TC regional'!$AR$11:$EL$118,$D$129,FALSE) -> 0.068 | J95: =+VLOOKUP($E95,'TC regional'!$AR$11:$EL$118,J$8,FALSE) -> 32 | K95: =+VLOOKUP($E95,'TC regional'!$AR$11:$EL$118,K$8,FALSE) -> 63 | L95: =+VLOOKUP($E95,'TC regional'!$AR$11:$EL$118,L$8,FALSE) -> 0.5079365079 | M95: =+VLOOKUP($E95,'TC regional'!$AR$11:$EL$118,M$8,FALSE) -> 7.469654528 | O95: =+VLOOKUP($E95,'TC regional'!$AR$11:$EL$118,O$8,FALSE) -> OPTIMO
C96: =+VLOOKUP($E96,'TC regional'!$N$11:$Q$118,3,FALSE) -> NA | D96: =+VLOOKUP($E96,'TC regional'!$N$11:$Q$118,4,FALSE) -> NA | E96: MPA1-P1-08 | F96: Colaboradores capacitados en el de Calidad | G96: PG-2 | H96: 3er nivel | I96: =+VLOOKUP($E96,'TC regional'!$AR$11:$EL$118,$D$129,FALSE) -> 0.068 | J96: =+VLOOKUP($E96,'TC regional'!$AR$11:$EL$118,J$8,FALSE) -> 0 | K96: =+VLOOKUP($E96,'TC regional'!$AR$11:$EL$118,K$8,FALSE) -> 63 | L96: =+VLOOKUP($E96,'TC regional'!$AR$11:$EL$118,L$8,FALSE) -> 0 | M96: =+VLOOKUP($E96,'TC regional'!$AR$11:$EL$118,M$8,FALSE) -> 0 | O96: =+VLOOKUP($E96,'TC regional'!$AR$11:$EL$118,O$8,FALSE) -> NA
C97: =+VLOOKUP($E97,'TC regional'!$N$11:$Q$118,3,FALSE) -> NA | D97: =+VLOOKUP($E97,'TC regional'!$N$11:$Q$118,4,FALSE) -> NA | E97: MPA1-P1-09 | F97: Eficacia de la Capacitación | G97: PG-2 | H97: 3er nivel | I97: =+VLOOKUP($E97,'TC regional'!$AR$11:$EL$118,$D$129,FALSE) -> 0.8 | J97: =+VLOOKUP($E97,'TC regional'!$AR$11:$EL$118,J$8,FALSE) -> 0 | K97: =+VLOOKUP($E97,'TC regional'!$AR$11:$EL$118,K$8,FALSE) -> 0 | L97: =+VLOOKUP($E97,'TC regional'!$AR$11:$EL$118,L$8,FALSE) -> 0.8879272487 | M97: =+VLOOKUP($E97,'TC regional'!$AR$11:$EL$118,M$8,FALSE) -> 1.109909061 | O97: =+VLOOKUP($E97,'TC regional'!$AR$11:$EL$118,O$8,FALSE) -> OPTIMO
C98: =+VLOOKUP($E98,'TC regional'!$N$11:$Q$118,3,FALSE) -> NA | D98: =+VLOOKUP($E98,'TC regional'!$N$11:$Q$118,4,FALSE) -> NA | E98: MPA1-P1-10 | F98: Frecuencia de accidentes de trabajo | G98: PG-2 | H98: 3er nivel | I98: =+VLOOKUP($E98,'TC regional'!$AR$11:$EL$118,$D$129,FALSE) -> 1 | J98: =+VLOOKUP($E98,'TC regional'!$AR$11:$EL$118,J$8,FALSE) -> 0 | K98: =+VLOOKUP($E98,'TC regional'!$AR$11:$EL$118,K$8,FALSE) -> 0 | L98: =+VLOOKUP($E98,'TC regional'!$AR$11:$EL$118,L$8,FALSE) -> NA | M98: =+VLOOKUP($E98,'TC regional'!$AR$11:$EL$118,M$8,FALSE) ->  | O98: =+VLOOKUP($E98,'TC regional'!$AR$11:$EL$118,O$8,FALSE) -> NA
C99: =+VLOOKUP($E99,'TC regional'!$N$11:$Q$118,3,FALSE) ->  | D99: =+VLOOKUP($E99,'TC regional'!$N$11:$Q$118,4,FALSE) ->  | E99: MPA1-P1-11 | F99: Frecuencia de ausentismo | G99: PG-2 | H99: 3er nivel | I99: =+VLOOKUP($E99,'TC regional'!$AR$11:$EL$118,$D$129,FALSE) ->  | J99: =+VLOOKUP($E99,'TC regional'!$AR$11:$EL$118,J$8,FALSE) ->  | K99: =+VLOOKUP($E99,'TC regional'!$AR$11:$EL$118,K$8,FALSE) ->  | L99: =+VLOOKUP($E99,'TC regional'!$AR$11:$EL$118,L$8,FALSE) ->  | M99: =+VLOOKUP($E99,'TC regional'!$AR$11:$EL$118,M$8,FALSE) ->  | O99: =+VLOOKUP($E99,'TC regional'!$AR$11:$EL$118,O$8,FALSE) -> 
C100: =+VLOOKUP($E100,'TC regional'!$N$11:$Q$118,3,FALSE) -> NA | D100: =+VLOOKUP($E100,'TC regional'!$N$11:$Q$118,4,FALSE) -> NA | E100: MPA1-P2-01 | F100: Rezago Presupuestal | G100: PG-2 | H100: 3er nivel | I100: =+VLOOKUP($E100,'TC regional'!$AR$11:$EL$118,$D$129,FALSE) -> 1 | J100: =+VLOOKUP($E100,'TC regional'!$AR$11:$EL$118,J$8,FALSE) -> 404.685796 | K100: =+VLOOKUP($E100,'TC regional'!$AR$11:$EL$118,K$8,FALSE) -> 419.487789 | L100: =+VLOOKUP($E100,'TC regional'!$AR$11:$EL$118,L$8,FALSE) -> 0.9647141266 | M100: =+VLOOKUP($E100,'TC regional'!$AR$11:$EL$118,M$8,FALSE) -> 0.9647141266 | O100: =+VLOOKUP($E100,'TC regional'!$AR$11:$EL$118,O$8,FALSE) -> CRITICO
C101: =+VLOOKUP($E101,'TC regional'!$N$11:$Q$118,3,FALSE) -> NA | D101: =+VLOOKUP($E101,'TC regional'!$N$11:$Q$118,4,FALSE) -> NA | E101: MPA1-P2-02 | F101: Ejecucion Presupuestal | G101: PG-2 | H101: 3er nivel | I101: =+VLOOKUP($E101,'TC regional'!$AR$11:$EL$118,$D$129,FALSE) -> 1 | J101: =+VLOOKUP($E101,'TC regional'!$AR$11:$EL$118,J$8,FALSE) -> 12276.05213 | K101: =+VLOOKUP($E101,'TC regional'!$AR$11:$EL$118,K$8,FALSE) -> 13174.57753 | L101: =+VLOOKUP($E101,'TC regional'!$AR$11:$EL$118,L$8,FALSE) -> 0.9317985418 | M101: =+VLOOKUP($E101,'TC regional'!$AR$11:$EL$118,M$8,FALSE) -> 0.9317985418 | O101: =+VLOOKUP($E101,'TC regional'!$AR$11:$EL$118,O$8,FALSE) -> EN RIESGO
C102: =+VLOOKUP($E102,'TC regional'!$N$11:$Q$118,3,FALSE) -> NA | D102: =+VLOOKUP($E102,'TC regional'!$N$11:$Q$118,4,FALSE) -> NA | E102: MPA1-P4-03 | F102: Solicitud de liquidación de Contratos | G102: PG-2 | H102: 3er nivel | I102: =+VLOOKUP($E102,'TC regional'!$AR$11:$EL$118,$D$129,FALSE) -> 1 | J102: =+VLOOKUP($E102,'TC regional'!$AR$11:$EL$118,J$8,FALSE) -> 1 | K102: =+VLOOKUP($E102,'TC regional'!$AR$11:$EL$118,K$8,FALSE) -> 13 | L102: =+VLOOKUP($E102,'TC regional'!$AR$11:$EL$118,L$8,FALSE) -> 0.07692307692 | M102: =+VLOOKUP($E102,'TC regional'!$AR$11:$EL$118,M$8,FALSE) -> 0.07692307692 | O102: =+VLOOKUP($E102,'TC regional'!$AR$11:$EL$118,O$8,FALSE) -> CRITICO
C103: =+VLOOKUP($E103,'TC regional'!$N$11:$Q$118,3,FALSE) -> NA | D103: =+VLOOKUP($E103,'TC regional'!$N$11:$Q$118,4,FALSE) -> NA | E103: MPA1-P5-01 | F103: Nivel de cumplimiento estándar de consumo de agua | G103: PG-2 | H103: 3er nivel | I103: =+VLOOKUP($E103,'TC regional'!$AR$11:$EL$118,$D$129,FALSE) -> 1 | J103: =+VLOOKUP($E103,'TC regional'!$AR$11:$EL$118,J$8,FALSE) -> 0 | K103: =+VLOOKUP($E103,'TC regional'!$AR$11:$EL$118,K$8,FALSE) -> 0 | L103: =+VLOOKUP($E103,'TC regional'!$AR$11:$EL$118,L$8,FALSE) -> NA | M103: =+VLOOKUP($E103,'TC regional'!$AR$11:$EL$118,M$8,FALSE) ->  | O103: =+VLOOKUP($E103,'TC regional'!$AR$11:$EL$118,O$8,FALSE) -> NA
C104: =+VLOOKUP($E104,'TC regional'!$N$11:$Q$118,3,FALSE) -> NA | D104: =+VLOOKUP($E104,'TC regional'!$N$11:$Q$118,4,FALSE) -> NA | E104: MPA1-P5-02 | F104: Nivel de cumplimiento estándar de consumo del recurso energético. | G104: PG-2 | H104: 3er nivel | I104: =+VLOOKUP($E104,'TC regional'!$AR$11:$EL$118,$D$129,FALSE) -> 1 | J104: =+VLOOKUP($E104,'TC regional'!$AR$11:$EL$118,J$8,FALSE) -> 22454 | K104: =+VLOOKUP($E104,'TC regional'!$AR$11:$EL$118,K$8,FALSE) -> 22334.5 | L104: =+VLOOKUP($E104,'TC regional'!$AR$11:$EL$118,L$8,FALSE) -> 1.005350467 | M104: =+VLOOKUP($E104,'TC regional'!$AR$11:$EL$118,M$8,FALSE) -> 1.005350467 | O104: =+VLOOKUP($E104,'TC regional'!$AR$11:$EL$118,O$8,FALSE) -> EN RIESGO
C105: =+VLOOKUP($E105,'TC regional'!$N$11:$Q$118,3,FALSE) -> NA | D105: =+VLOOKUP($E105,'TC regional'!$N$11:$Q$118,4,FALSE) -> NA | E105: MPA1-P5-09 | F105: Ejecución presupuestal de gestión ambiental | G105: PG-2 | H105: 3er nivel | I105: =+VLOOKUP($E105,'TC regional'!$AR$11:$EL$118,$D$129,FALSE) -> 1 | J105: =+VLOOKUP($E105,'TC regional'!$AR$11:$EL$118,J$8,FALSE) -> 11082219 | K105: =+VLOOKUP($E105,'TC regional'!$AR$11:$EL$118,K$8,FALSE) -> 12000000 | L105: =+VLOOKUP($E105,'TC regional'!$AR$11:$EL$118,L$8,FALSE) -> 0.92351825 | M105: =+VLOOKUP($E105,'TC regional'!$AR$11:$EL$118,M$8,FALSE) -> 0.92351825 | O105: =+VLOOKUP($E105,'TC regional'!$AR$11:$EL$118,O$8,FALSE) -> ADECUADO
C106: =+VLOOKUP($E106,'TC regional'!$N$11:$Q$118,3,FALSE) -> NA | D106: =+VLOOKUP($E106,'TC regional'!$N$11:$Q$118,4,FALSE) -> NA | E106: MPA1-P5-10 | F106: Ejecución de Planes de Gestion Ambiental | G106: PG-2 | H106: 3er nivel | I106: =+VLOOKUP($E106,'TC regional'!$AR$11:$EL$118,$D$129,FALSE) -> 1 | J106: =+VLOOKUP($E106,'TC regional'!$AR$11:$EL$118,J$8,FALSE) -> 24 | K106: =+VLOOKUP($E106,'TC regional'!$AR$11:$EL$118,K$8,FALSE) -> 24 | L106: =+VLOOKUP($E106,'TC regional'!$AR$11:$EL$118,L$8,FALSE) -> 1 | M106: =+VLOOKUP($E106,'TC regional'!$AR$11:$EL$118,M$8,FALSE) -> 1 | O106: =+VLOOKUP($E106,'TC regional'!$AR$11:$EL$118,O$8,FALSE) -> OPTIMO
C107: =+VLOOKUP($E107,'TC regional'!$N$11:$Q$118,3,FALSE) -> NA | D107: =+VLOOKUP($E107,'TC regional'!$N$11:$Q$118,4,FALSE) -> NA | E107: MPA1-P6-05 | F107: Porcentaje de los recursos contratados por el ICBF | G107: PG-2 | H107: 3er nivel | I107: =+VLOOKUP($E107,'TC regional'!$AR$11:$EL$118,$D$129,FALSE) -> 1 | J107: =+VLOOKUP($E107,'TC regional'!$AR$11:$EL$118,J$8,FALSE) -> 11266785989 | K107: =+VLOOKUP($E107,'TC regional'!$AR$11:$EL$118,K$8,FALSE) -> 1.127009241e+10 | L107: =+VLOOKUP($E107,'TC regional'!$AR$11:$EL$118,L$8,FALSE) -> 0.9997066198 | M107: =+VLOOKUP($E107,'TC regional'!$AR$11:$EL$118,M$8,FALSE) -> 0.9997066198 | O107: =+VLOOKUP($E107,'TC regional'!$AR$11:$EL$118,O$8,FALSE) -> OPTIMO
C108: =+VLOOKUP($E108,'TC regional'!$N$11:$Q$118,3,FALSE) -> NA | D108: =+VLOOKUP($E108,'TC regional'!$N$11:$Q$118,4,FALSE) -> NA | E108: MPA1-P6-07 | F108: Porcentaje de los recursos ejecutados por el ICBF | G108: PG-2 | H108: 3er nivel | I108: =+VLOOKUP($E108,'TC regional'!$AR$11:$EL$118,$D$129,FALSE) -> 1 | J108: =+VLOOKUP($E108,'TC regional'!$AR$11:$EL$118,J$8,FALSE) -> 1.109104634e+10 | K108: =+VLOOKUP($E108,'TC regional'!$AR$11:$EL$118,K$8,FALSE) -> 11230980807 | L108: =+VLOOKUP($E108,'TC regional'!$AR$11:$EL$118,L$8,FALSE) -> 0.9875403163 | M108: =+VLOOKUP($E108,'TC regional'!$AR$11:$EL$118,M$8,FALSE) -> 0.9875403163 | O108: =+VLOOKUP($E108,'TC regional'!$AR$11:$EL$118,O$8,FALSE) -> ADECUADO
C109: =+VLOOKUP($E109,'TC regional'!$N$11:$Q$118,3,FALSE) -> NA | D109: =+VLOOKUP($E109,'TC regional'!$N$11:$Q$118,4,FALSE) -> NA | E109: MPA2-01 | F109: Oportunidad en la expedición del auto de avocación por el funcionario ejecutor. | G109: PG-2 | H109: 3er nivel | I109: =+VLOOKUP($E109,'TC regional'!$AR$11:$EL$118,$D$129,FALSE) -> 1 | J109: =+VLOOKUP($E109,'TC regional'!$AR$11:$EL$118,J$8,FALSE) -> 0 | K109: =+VLOOKUP($E109,'TC regional'!$AR$11:$EL$118,K$8,FALSE) -> 0 | L109: =+VLOOKUP($E109,'TC regional'!$AR$11:$EL$118,L$8,FALSE) -> NA | M109: =+VLOOKUP($E109,'TC regional'!$AR$11:$EL$118,M$8,FALSE) ->  | O109: =+VLOOKUP($E109,'TC regional'!$AR$11:$EL$118,O$8,FALSE) -> NA
C110: =+VLOOKUP($E110,'TC regional'!$N$11:$Q$118,3,FALSE) -> NA | D110: =+VLOOKUP($E110,'TC regional'!$N$11:$Q$118,4,FALSE) -> NA | E110: MPA2-02 | F110: Oportunidad en la Notificación del mandamiento de pago | G110: PG-2 | H110: 3er nivel | I110: =+VLOOKUP($E110,'TC regional'!$AR$11:$EL$118,$D$129,FALSE) -> 1 | J110: =+VLOOKUP($E110,'TC regional'!$AR$11:$EL$118,J$8,FALSE) -> 0 | K110: =+VLOOKUP($E110,'TC regional'!$AR$11:$EL$118,K$8,FALSE) -> 0 | L110: =+VLOOKUP($E110,'TC regional'!$AR$11:$EL$118,L$8,FALSE) -> NA | M110: =+VLOOKUP($E110,'TC regional'!$AR$11:$EL$118,M$8,FALSE) ->  | O110: =+VLOOKUP($E110,'TC regional'!$AR$11:$EL$118,O$8,FALSE) -> NA
C111: =+VLOOKUP($E111,'TC regional'!$N$11:$Q$118,3,FALSE) -> NA | D111: =+VLOOKUP($E111,'TC regional'!$N$11:$Q$118,4,FALSE) -> NA | E111: MPA2-04 | F111: Oportunidad en la expedición de la Resolución que reconoce o niega la calidad de Denunciante. | G111: PG-2 | H111: 3er nivel | I111: =+VLOOKUP($E111,'TC regional'!$AR$11:$EL$118,$D$129,FALSE) -> 1 | J111: =+VLOOKUP($E111,'TC regional'!$AR$11:$EL$118,J$8,FALSE) -> 0 | K111: =+VLOOKUP($E111,'TC regional'!$AR$11:$EL$118,K$8,FALSE) -> 0 | L111: =+VLOOKUP($E111,'TC regional'!$AR$11:$EL$118,L$8,FALSE) -> NA | M111: =+VLOOKUP($E111,'TC regional'!$AR$11:$EL$118,M$8,FALSE) ->  | O111: =+VLOOKUP($E111,'TC regional'!$AR$11:$EL$118,O$8,FALSE) -> NA
C112: =+VLOOKUP($E112,'TC regional'!$N$11:$Q$118,3,FALSE) -> NA | D112: =+VLOOKUP($E112,'TC regional'!$N$11:$Q$118,4,FALSE) -> NA | E112: MPA2-05 | F112: Oportunidad en la presentación de los créditos a favor del ICBF en los Procesos Concursales de insolvencia empresarial en Ley 1116 de 2006. | G112: PG-2 | H112: 3er nivel | I112: =+VLOOKUP($E112,'TC regional'!$AR$11:$EL$118,$D$129,FALSE) -> 1 | J112: =+VLOOKUP($E112,'TC regional'!$AR$11:$EL$118,J$8,FALSE) -> 0 | K112: =+VLOOKUP($E112,'TC regional'!$AR$11:$EL$118,K$8,FALSE) -> 0 | L112: =+VLOOKUP($E112,'TC regional'!$AR$11:$EL$118,L$8,FALSE) -> NA | M112: =+VLOOKUP($E112,'TC regional'!$AR$11:$EL$118,M$8,FALSE) ->  | O112: =+VLOOKUP($E112,'TC regional'!$AR$11:$EL$118,O$8,FALSE) -> NA
C113: =+VLOOKUP($E113,'TC regional'!$N$11:$Q$118,3,FALSE) -> NA | D113: =+VLOOKUP($E113,'TC regional'!$N$11:$Q$118,4,FALSE) -> NA | E113: MPA2-06 | F113: Oportunidad en la resolución de Recursos en Sede Administrativa. | G113: PG-2 | H113: 3er nivel | I113: =+VLOOKUP($E113,'TC regional'!$AR$11:$EL$118,$D$129,FALSE) -> 1 | J113: =+VLOOKUP($E113,'TC regional'!$AR$11:$EL$118,J$8,FALSE) -> 0 | K113: =+VLOOKUP($E113,'TC regional'!$AR$11:$EL$118,K$8,FALSE) -> 0 | L113: =+VLOOKUP($E113,'TC regional'!$AR$11:$EL$118,L$8,FALSE) -> NA | M113: =+VLOOKUP($E113,'TC regional'!$AR$11:$EL$118,M$8,FALSE) ->  | O113: =+VLOOKUP($E113,'TC regional'!$AR$11:$EL$118,O$8,FALSE) -> NA
C114: =+VLOOKUP($E114,'TC regional'!$N$11:$Q$118,3,FALSE) -> NA | D114: =+VLOOKUP($E114,'TC regional'!$N$11:$Q$118,4,FALSE) -> NA | E114: MPA2-07 | F114: Cumplimiento del registro de procesos en el Software SIJA u otro | G114: PG-2 | H114: 3er nivel | I114: =+VLOOKUP($E114,'TC regional'!$AR$11:$EL$118,$D$129,FALSE) -> 1 | J114: =+VLOOKUP($E114,'TC regional'!$AR$11:$EL$118,J$8,FALSE) -> NA | K114: =+VLOOKUP($E114,'TC regional'!$AR$11:$EL$118,K$8,FALSE) -> NA | L114: =+VLOOKUP($E114,'TC regional'!$AR$11:$EL$118,L$8,FALSE) -> NA | M114: =+VLOOKUP($E114,'TC regional'!$AR$11:$EL$118,M$8,FALSE) ->  | O114: =+VLOOKUP($E114,'TC regional'!$AR$11:$EL$118,O$8,FALSE) -> NA
C115: =+VLOOKUP($E115,'TC regional'!$N$11:$Q$118,3,FALSE) -> NA | D115: =+VLOOKUP($E115,'TC regional'!$N$11:$Q$118,4,FALSE) -> NA | E115: MPA2-08 | F115: Oportunidad en la contestación de demandas de los Procesos Judiciales | G115: PG-2 | H115: 3er nivel | I115: =+VLOOKUP($E115,'TC regional'!$AR$11:$EL$118,$D$129,FALSE) -> 1 | J115: =+VLOOKUP($E115,'TC regional'!$AR$11:$EL$118,J$8,FALSE) -> 0 | K115: =+VLOOKUP($E115,'TC regional'!$AR$11:$EL$118,K$8,FALSE) -> 0 | L115: =+VLOOKUP($E115,'TC regional'!$AR$11:$EL$118,L$8,FALSE) -> NA | M115: =+VLOOKUP($E115,'TC regional'!$AR$11:$EL$118,M$8,FALSE) ->  | O115: =+VLOOKUP($E115,'TC regional'!$AR$11:$EL$118,O$8,FALSE) -> NA
C116: =+VLOOKUP($E116,'TC regional'!$N$11:$Q$118,3,FALSE) -> NA | D116: =+VLOOKUP($E116,'TC regional'!$N$11:$Q$118,4,FALSE) -> NA | E116: MPA5-02-01 | F116: Oportunidad en la constatación de Denuncias PRD. | G116: PG-2 | H116: 3er nivel | I116: =+VLOOKUP($E116,'TC regional'!$AR$11:$EL$118,$D$129,FALSE) -> 1 | J116: =+VLOOKUP($E116,'TC regional'!$AR$11:$EL$118,J$8,FALSE) -> 8 | K116: =+VLOOKUP($E116,'TC regional'!$AR$11:$EL$118,K$8,FALSE) -> 10 | L116: =+VLOOKUP($E116,'TC regional'!$AR$11:$EL$118,L$8,FALSE) -> 0.8 | M116: =+VLOOKUP($E116,'TC regional'!$AR$11:$EL$118,M$8,FALSE) -> 0.8 | O116: =+VLOOKUP($E116,'TC regional'!$AR$11:$EL$118,O$8,FALSE) -> EN RIESGO
C117: =+VLOOKUP($E117,'TC regional'!$N$11:$Q$118,3,FALSE) -> NA | D117: =+VLOOKUP($E117,'TC regional'!$N$11:$Q$118,4,FALSE) -> NA | E117: MPA5-02-02 | F117: Oportunidad en la atención de peticiones de Asuntos Conciliables | G117: PG-2 | H117: 3er nivel | I117: =+VLOOKUP($E117,'TC regional'!$AR$11:$EL$118,$D$129,FALSE) -> 1 | J117: =+VLOOKUP($E117,'TC regional'!$AR$11:$EL$118,J$8,FALSE) -> 13 | K117: =+VLOOKUP($E117,'TC regional'!$AR$11:$EL$118,K$8,FALSE) -> 14 | L117: =+VLOOKUP($E117,'TC regional'!$AR$11:$EL$118,L$8,FALSE) -> 0.9285714286 | M117: =+VLOOKUP($E117,'TC regional'!$AR$11:$EL$118,M$8,FALSE) -> 0.9285714286 | O117: =+VLOOKUP($E117,'TC regional'!$AR$11:$EL$118,O$8,FALSE) -> ADECUADO
C118: =+VLOOKUP($E118,'TC regional'!$N$11:$Q$118,3,FALSE) -> NA | D118: =+VLOOKUP($E118,'TC regional'!$N$11:$Q$118,4,FALSE) -> NA | E118: MPA5-02-03 | F118: Porcentaje de constatación de Denuncias PRD (Acumuldo) | G118: PG-2 | H118: 3er nivel | I118: =+VLOOKUP($E118,'TC regional'!$AR$11:$EL$118,$D$129,FALSE) -> 1 | J118: =+VLOOKUP($E118,'TC regional'!$AR$11:$EL$118,J$8,FALSE) -> 490 | K118: =+VLOOKUP($E118,'TC regional'!$AR$11:$EL$118,K$8,FALSE) -> 490 | L118: =+VLOOKUP($E118,'TC regional'!$AR$11:$EL$118,L$8,FALSE) -> 1 | M118: =+VLOOKUP($E118,'TC regional'!$AR$11:$EL$118,M$8,FALSE) -> 1 | O118: =+VLOOKUP($E118,'TC regional'!$AR$11:$EL$118,O$8,FALSE) -> OPTIMO
C119: =+VLOOKUP($E119,'TC regional'!$N$11:$Q$118,3,FALSE) -> NA | D119: =+VLOOKUP($E119,'TC regional'!$N$11:$Q$118,4,FALSE) -> NA | E119: MPA5-02-04 | F119: Quejas y reclamos cerrados | G119: PG-2 | H119: 3er nivel | I119: =+VLOOKUP($E119,'TC regional'!$AR$11:$EL$118,$D$129,FALSE) -> 1 | J119: =+VLOOKUP($E119,'TC regional'!$AR$11:$EL$118,J$8,FALSE) -> 27 | K119: =+VLOOKUP($E119,'TC regional'!$AR$11:$EL$118,K$8,FALSE) -> 27 | L119: =+VLOOKUP($E119,'TC regional'!$AR$11:$EL$118,L$8,FALSE) -> 1 | M119: =+VLOOKUP($E119,'TC regional'!$AR$11:$EL$118,M$8,FALSE) -> 1 | O119: =+VLOOKUP($E119,'TC regional'!$AR$11:$EL$118,O$8,FALSE) -> OPTIMO
C120: =+VLOOKUP($E120,'TC regional'!$N$11:$Q$118,3,FALSE) -> NA | D120: =+VLOOKUP($E120,'TC regional'!$N$11:$Q$118,4,FALSE) -> NA | E120: MPA6-01 | F120: Aplicación de las Herramientas Informáticas en el ICBF | G120: PG-2 | H120: 3er nivel | I120: =+VLOOKUP($E120,'TC regional'!$AR$11:$EL$118,$D$129,FALSE) -> 0.8 | J120: =+VLOOKUP($E120,'TC regional'!$AR$11:$EL$118,J$8,FALSE) -> 733.5 | K120: =+VLOOKUP($E120,'TC regional'!$AR$11:$EL$118,K$8,FALSE) -> 900 | L120: =+VLOOKUP($E120,'TC regional'!$AR$11:$EL$118,L$8,FALSE) -> 0.82 | M120: =+VLOOKUP($E120,'TC regional'!$AR$11:$EL$118,M$8,FALSE) -> 1.025 | O120: =+VLOOKUP($E120,'TC regional'!$AR$11:$EL$118,O$8,FALSE) -> OPTIMO
C121: =+VLOOKUP($E121,'TC regional'!$N$11:$Q$118,3,FALSE) -> NA | D121: =+VLOOKUP($E121,'TC regional'!$N$11:$Q$118,4,FALSE) -> NA | E121: MPA6-03 | F121: Número de Incidentes de seguridad atendidos oportunamente | G121: PG-2 | H121: 3er nivel | I121: =+VLOOKUP($E121,'TC regional'!$AR$11:$EL$118,$D$129,FALSE) -> 1 | J121: =+VLOOKUP($E121,'TC regional'!$AR$11:$EL$118,J$8,FALSE) -> 0 | K121: =+VLOOKUP($E121,'TC regional'!$AR$11:$EL$118,K$8,FALSE) -> 0 | L121: =+VLOOKUP($E121,'TC regional'!$AR$11:$EL$118,L$8,FALSE) -> NA | M121: =+VLOOKUP($E121,'TC regional'!$AR$11:$EL$118,M$8,FALSE) ->  | O121: =+VLOOKUP($E121,'TC regional'!$AR$11:$EL$118,O$8,FALSE) -> NA
C122: =+VLOOKUP($E122,'TC regional'!$N$11:$Q$118,3,FALSE) -> NA | D122: =+VLOOKUP($E122,'TC regional'!$N$11:$Q$118,4,FALSE) -> NA | E122: MPEV1-P2-03 | F122: % NC por proceso con cierre efectivo | G122: PG-2 | H122: 3er nivel | I122: =+VLOOKUP($E122,'TC regional'!$AR$11:$EL$118,$D$129,FALSE) -> 1 | J122: =+VLOOKUP($E122,'TC regional'!$AR$11:$EL$118,J$8,FALSE) -> 0 | K122: =+VLOOKUP($E122,'TC regional'!$AR$11:$EL$118,K$8,FALSE) -> 0 | L122: =+VLOOKUP($E122,'TC regional'!$AR$11:$EL$118,L$8,FALSE) -> 0 | M122: =+VLOOKUP($E122,'TC regional'!$AR$11:$EL$118,M$8,FALSE) -> 0 | O122: =+VLOOKUP($E122,'TC regional'!$AR$11:$EL$118,O$8,FALSE) -> NA
C123: =+VLOOKUP($E123,'TC regional'!$N$11:$Q$118,3,FALSE) -> NA | D123: =+VLOOKUP($E123,'TC regional'!$N$11:$Q$118,4,FALSE) -> NA | E123: MPEV2-P1-01 | F123: Cumplimiento de los estándares de calidad para las modalidades contempaldas en la Guia de Verificacion de estandares. | G123: PG-2 | H123: 3er nivel | I123: =+VLOOKUP($E123,'TC regional'!$AR$11:$EL$118,$D$129,FALSE) -> 1 | J123: =+VLOOKUP($E123,'TC regional'!$AR$11:$EL$118,J$8,FALSE) -> 0 | K123: =+VLOOKUP($E123,'TC regional'!$AR$11:$EL$118,K$8,FALSE) -> 0 | L123: =+VLOOKUP($E123,'TC regional'!$AR$11:$EL$118,L$8,FALSE) -> 0.9157406753 | M123: =+VLOOKUP($E123,'TC regional'!$AR$11:$EL$118,M$8,FALSE) -> 0.9157406753 | O123: =+VLOOKUP($E123,'TC regional'!$AR$11:$EL$118,O$8,FALSE) -> ADECUADO
C124: =+VLOOKUP($E124,'TC regional'!$N$11:$Q$118,3,FALSE) -> NA | D124: =+VLOOKUP($E124,'TC regional'!$N$11:$Q$118,4,FALSE) -> NA | E124: MPEV2-P1-02 | F124: Acciones Ejecutadas frente a los resultados de estandares por debajo del 60%. | G124: PG-2 | H124: 3er nivel | I124: =+VLOOKUP($E124,'TC regional'!$AR$11:$EL$118,$D$129,FALSE) -> 1 | J124: =+VLOOKUP($E124,'TC regional'!$AR$11:$EL$118,J$8,FALSE) -> 4 | K124: =+VLOOKUP($E124,'TC regional'!$AR$11:$EL$118,K$8,FALSE) -> 6 | L124: =+VLOOKUP($E124,'TC regional'!$AR$11:$EL$118,L$8,FALSE) -> 0.6666666667 | M124: =+VLOOKUP($E124,'TC regional'!$AR$11:$EL$118,M$8,FALSE) -> 0.6666666667 | O124: =+VLOOKUP($E124,'TC regional'!$AR$11:$EL$118,O$8,FALSE) -> EN RIESGO
C125: =+VLOOKUP($E125,'TC regional'!$N$11:$Q$118,3,FALSE) -> NA | D125: =+VLOOKUP($E125,'TC regional'!$N$11:$Q$118,4,FALSE) -> NA | E125: MPEV2-P1-03 | F125: Acciones Formuladas frente a los resultados de estandares por debajo del 60%. | G125: PG-2 | H125: 3er nivel | I125: =+VLOOKUP($E125,'TC regional'!$AR$11:$EL$118,$D$129,FALSE) -> 1 | J125: =+VLOOKUP($E125,'TC regional'!$AR$11:$EL$118,J$8,FALSE) -> 5 | K125: =+VLOOKUP($E125,'TC regional'!$AR$11:$EL$118,K$8,FALSE) -> 7 | L125: =+VLOOKUP($E125,'TC regional'!$AR$11:$EL$118,L$8,FALSE) -> 0.7142857143 | M125: =+VLOOKUP($E125,'TC regional'!$AR$11:$EL$118,M$8,FALSE) -> 0.7142857143 | O125: =+VLOOKUP($E125,'TC regional'!$AR$11:$EL$118,O$8,FALSE) -> EN RIESGO
C126: =+VLOOKUP($E126,'TC regional'!$N$11:$Q$118,3,FALSE) -> NA | D126: =+VLOOKUP($E126,'TC regional'!$N$11:$Q$118,4,FALSE) -> NA | E126: MPEV2-P1-04 | F126: Cierre de situaciones de reporte inmediato | G126: PG-2 | H126: 3er nivel | I126: =+VLOOKUP($E126,'TC regional'!$AR$11:$EL$118,$D$129,FALSE) -> 1 | J126: =+VLOOKUP($E126,'TC regional'!$AR$11:$EL$118,J$8,FALSE) -> 5 | K126: =+VLOOKUP($E126,'TC regional'!$AR$11:$EL$118,K$8,FALSE) -> 5 | L126: =+VLOOKUP($E126,'TC regional'!$AR$11:$EL$118,L$8,FALSE) -> 1 | M126: =+VLOOKUP($E126,'TC regional'!$AR$11:$EL$118,M$8,FALSE) -> 1 | O126: =+VLOOKUP($E126,'TC regional'!$AR$11:$EL$118,O$8,FALSE) -> OPTIMO
C127: =+VLOOKUP($E127,'TC regional'!$N$11:$Q$118,3,FALSE) -> NA | D127: =+VLOOKUP($E127,'TC regional'!$N$11:$Q$118,4,FALSE) -> NA | E127: MPEV2-P1-05 | F127: Modalidades con licencia de funcionamiento vigente durante la ejecución del contrato con el ICBF. | G127: PG-2 | H127: 3er nivel | I127: =+VLOOKUP($E127,'TC regional'!$AR$11:$EL$118,$D$129,FALSE) -> 1 | J127: =+VLOOKUP($E127,'TC regional'!$AR$11:$EL$118,J$8,FALSE) -> 18 | K127: =+VLOOKUP($E127,'TC regional'!$AR$11:$EL$118,K$8,FALSE) -> 18 | L127: =+VLOOKUP($E127,'TC regional'!$AR$11:$EL$118,L$8,FALSE) -> 1 | M127: =+VLOOKUP($E127,'TC regional'!$AR$11:$EL$118,M$8,FALSE) -> 1 | O127: =+VLOOKUP($E127,'TC regional'!$AR$11:$EL$118,O$8,FALSE) -> OPTIMO
D129: 2
C130: Enero | E130: 4 | F130: 5 | G130: 6 | H130: 7 | I130: 8
C131: Febrero | E131: =+E130+8 -> 12 | F131: =+F130+8 -> 13 | G131: =+G130+8 -> 14 | H131: =+H130+8 -> 15 | I131: =+I130+8 -> 16
C132: Marzo | E132: =+E131+8 -> 20 | F132: 21 | G132: 22 | H132: 23 | I132: 24
C133: Abril | E133: 28 | F133: 29 | G133: 30 | H133: 31 | I133: 32
C134: Mayo | E134: 36 | F134: 37 | G134: 38 | H134: 39 | I134: 40
C135: Junio | E135: 44 | F135: 45 | G135: 46 | H135: 47 | I135: 48
C136: Julio | E136: 52 | F136: 53 | G136: 54 | H136: 55 | I136: 56
C137: Agosto | E137: 60 | F137: 61 | G137: 62 | H137: 63 | I137: 64
C138: Septiembre | E138: 68 | F138: 69 | G138: 70 | H138: 71 | I138: 72
C139: Octubre | E139: 76 | F139: 77 | G139: 78 | H139: 79 | I139: 80
C140: Noviembre | E140: 84 | F140: 85 | G140: 86 | H140: 87 | I140: 88
C141: Diciembre | E141: 92 | F141: 93 | G141: 94 | H141: 95 | I141: 96
C145: Enero | D145: 27 | E145: 28
C146: Febrero | D146: 28 | E146: 29
C147: Marzo | D147: 29 | E147: 30
C148: Abril | D148: 30 | E148: 31
C149: Mayo | D149: 31 | E149: 32
C150: Junio | D150: 32 | E150: 33
C151: Julio | D151: 33 | E151: 34
C152: Agosto | D152: 34 | E152: 35
C153: Septiembre | D153: 35 | E153: 36
C154: Octubre | D154: 36 | E154: 37
C155: Noviembre | D155: 37 | E155: 38
C156: Diciembre | D156: 38 | E156: 39

Sheet hoja de analisis
C2: INSTITUTO COLOMBIANO DE BIENESTAR FAMILIAR SEGUIMIENTO METAS ICBF HOJA DE ANALISIS
C3: =+Menu!D16 -> Amazonas
C7: Mes | D7: =+Menu!G12 -> Diciembre
H8: =+VLOOKUP(D7,$C$123:$I$134,3,FALSE) -> 92 | I8: =+VLOOKUP(D7,$C$123:$I$134,4,FALSE) -> 93 | J8: =+VLOOKUP(D7,$C$123:$I$134,5,FALSE) -> 94 | K8: =+VLOOKUP(D7,$C$123:$I$134,6,FALSE) -> 95 | M8: =+VLOOKUP(D7,$C$123:$I$134,7,FALSE) -> 96 | S8: =+VLOOKUP(R10,$C$123:$I$134,7,FALSE) -> 88
C9: Macroproceso | D9: Proceso | E9: Código del Indicador | F9: Nombre del indicador | G9: Meta 2013 inicial | H9: Numerador | I9: Denominador | J9: Avance | K9: % avance | M9: rango | O9: =+"Analisis mes "&D7 -> Analisis mes Diciembre | Q9: Analisis anteriores
Q10: Mes | R10: Noviembre
Q11: =+C3&R10 -> AmazonasNoviembre
C12: Gestión para la atención integral a la primera infancia | D12: NA | E12: E-01 | F12: Número de niños y Niñas con Atención Integral a la Primera Infancia | G12: =+VLOOKUP($E12,'TC regional'!$AR$11:$EL$118,$D$122,FALSE) -> 3020 | H12: =+VLOOKUP($E12,'TC regional'!$AR$11:$EL$118,H$8,FALSE) -> 2969 | I12: =+VLOOKUP($E12,'TC regional'!$AR$11:$EL$118,I$8,FALSE) -> 3020 | J12: =+VLOOKUP($E12,'TC regional'!$AR$11:$EL$118,J$8,FALSE) -> 2969 | K12: =+VLOOKUP($E12,'TC regional'!$AR$11:$EL$118,K$8,FALSE) -> 0.9831125828 | M12: =+VLOOKUP($E12,'TC regional'!$AR$11:$EL$118,M$8,FALSE) -> ADECUADO | O12: Análisis realizado en SISPA | P12: 2 | Q12: =+HLOOKUP($Q$11,analisis!$C$3:$HY$111,P12,FALSE) -> para el mes de noviembre ya se cuenta con el mes de contratación y ejecución de los contratos de las unidades de servicio programados en el proceso de migración y ampliación de la estrategia en atención integral. | S12: =+VLOOKUP($E12,'TC regional'!$AR$11:$EL$118,S$8,FALSE) -> ADECUADO
C13: Gestión para la atención integral a la primera infancia | D13: NA | E13: E-03 | F13: Numero de niños y niñas atendidos en Hogares Comunitarios de Bienestar -HCB Familiares, Fami, Grupal y en Establecimientos de Reclusión y otras formas de atención. | G13: =+VLOOKUP($E13,'TC regional'!$AR$11:$EL$118,$D$122,FALSE) -> 12 | H13: =+VLOOKUP($E13,'TC regional'!$AR$11:$EL$118,H$8,FALSE) -> 12 | I13: =+VLOOKUP($E13,'TC regional'!$AR$11:$EL$118,I$8,FALSE) -> 12 | J13: =+VLOOKUP($E13,'TC regional'!$AR$11:$EL$118,J$8,FALSE) -> 12 | K13: =+VLOOKUP($E13,'TC regional'!$AR$11:$EL$118,K$8,FALSE) -> 1 | M13: =+VLOOKUP($E13,'TC regional'!$AR$11:$EL$118,M$8,FALSE) -> OPTIMO | O13: Análisis realizado en SISPA | P13: 3 | Q13: =+HLOOKUP($Q$11,analisis!$C$3:$HY$111,P13,FALSE) -> para el mes de noviembre únicamente se cuenta con una unidad de servicio ubicado en el corregimiento de la chorrera con un cupos de 12 ni&ntilde;os todos pertenecientes a la etnia uitoto, razón por la cual se cumple al 100% con el proceso de focalización, debido a la ubicación territorial no se realiza vista para el mes de noviembre, ya que esta esta programada para el mes de enero del 2014 | S13: =+VLOOKUP($E13,'TC regional'!$AR$11:$EL$118,S$8,FALSE) -> OPTIMO
C14: Gestión para la atención integral a la primera infancia | D14: NA | E14: E-04 | F14: Número de nuevos Agentes Educativos vinculados a procesos de formación en el modelo de atención Integral. | G14: =+VLOOKUP($E14,'TC regional'!$AR$11:$EL$118,$D$122,FALSE) -> 37 | H14: =+VLOOKUP($E14,'TC regional'!$AR$11:$EL$118,H$8,FALSE) -> 45 | I14: =+VLOOKUP($E14,'TC regional'!$AR$11:$EL$118,I$8,FALSE) -> 37 | J14: =+VLOOKUP($E14,'TC regional'!$AR$11:$EL$118,J$8,FALSE) -> 45 | K14: =+VLOOKUP($E14,'TC regional'!$AR$11:$EL$118,K$8,FALSE) -> 1.216216216 | M14: =+VLOOKUP($E14,'TC regional'!$AR$11:$EL$118,M$8,FALSE) -> OPTIMO | O14: Análisis realizado en SISPA | P14: 4 | Q14: =+HLOOKUP($Q$11,analisis!$C$3:$HY$111,P14,FALSE) -> para el mes de noviembre todas las agentes educativas que están vinculadas desde el proceso del transito se encuentran participando ya sea del proceso de formación del técnico en atención integral o culminación del estudios básicos para el inicio del técnico. | S14: =+VLOOKUP($E14,'TC regional'!$AR$11:$EL$118,S$8,FALSE) -> OPTIMO
C15: Gestión para la atención integral a la primera infancia | D15: NA | E15: E-22 | F15: Número de niños y niñas en primera infancia con valoración y seguimiento nutricional | G15: =+VLOOKUP($E15,'TC regional'!$AR$11:$EL$118,$D$122,FALSE) -> 3020 | H15: =+VLOOKUP($E15,'TC regional'!$AR$11:$EL$118,H$8,FALSE) -> 2969 | I15: =+VLOOKUP($E15,'TC regional'!$AR$11:$EL$118,I$8,FALSE) -> 3020 | J15: =+VLOOKUP($E15,'TC regional'!$AR$11:$EL$118,J$8,FALSE) -> 2969 | K15: =+VLOOKUP($E15,'TC regional'!$AR$11:$EL$118,K$8,FALSE) -> 0.9831125828 | M15: =+VLOOKUP($E15,'TC regional'!$AR$11:$EL$118,M$8,FALSE) -> ADECUADO | O15: Análisis realizado en SISPA | P15: 5 | Q15: =+HLOOKUP($Q$11,analisis!$C$3:$HY$111,P15,FALSE) -> En aras de lograr la atención integral de alta calidad de la primera infancia se brindó información a los operadores de cómo va el proceso de sistema de seguimiento nutricional sus indicadores y la importancia del sistema. | S15: =+VLOOKUP($E15,'TC regional'!$AR$11:$EL$118,S$8,FALSE) -> ADECUADO
C16: Gestión para la atención integral a la primera infancia | D16: NA | E16: MPM1-01 | F16: Cupos transitados a esquemas de atención integral | G16: =+VLOOKUP($E16,'TC regional'!$AR$11:$EL$118,$D$122,FALSE) -> 288 | H16: =+VLOOKUP($E16,'TC regional'!$AR$11:$EL$118,H$8,FALSE) -> 288 | I16: =+VLOOKUP($E16,'TC regional'!$AR$11:$EL$118,I$8,FALSE) -> 288 | J16: =+VLOOKUP($E16,'TC regional'!$AR$11:$EL$118,J$8,FALSE) -> 288 | K16: =+VLOOKUP($E16,'TC regional'!$AR$11:$EL$118,K$8,FALSE) -> 1 | M16: =+VLOOKUP($E16,'TC regional'!$AR$11:$EL$118,M$8,FALSE) -> OPTIMO | P16: 6 | Q16: =+HLOOKUP($Q$11,analisis!$C$3:$HY$111,P16,FALSE) -> se hizo el transito efectivo de los cupos de los niños y niñas al esquema de atención integral cumpliendo con la meta para para lo ejecutado de la vigencia 2013 | S16: =+VLOOKUP($E16,'TC regional'!$AR$11:$EL$118,S$8,FALSE) -> OPTIMO
C17: Gestión para la atención integral a la primera infancia | D17: NA | E17: MPM1-02 | F17: Numero de niños y niñas entre 6 meses a 4 años 11 meses de edad beneficiados con el Programa - DIA- | G17: =+VLOOKUP($E17,'TC regional'!$AR$11:$EL$118,$D$122,FALSE) -> 2330 | H17: =+VLOOKUP($E17,'TC regional'!$AR$11:$EL$118,H$8,FALSE) -> 2330 | I17: =+VLOOKUP($E17,'TC regional'!$AR$11:$EL$118,I$8,FALSE) -> 2330 | J17: =+VLOOKUP($E17,'TC regional'!$AR$11:$EL$118,J$8,FALSE) -> 2330 | K17: =+VLOOKUP($E17,'TC regional'!$AR$11:$EL$118,K$8,FALSE) -> 1 | M17: =+VLOOKUP($E17,'TC regional'!$AR$11:$EL$118,M$8,FALSE) -> OPTIMO | P17: 7 | Q17: =+HLOOKUP($Q$11,analisis!$C$3:$HY$111,P17,FALSE) -> SIN REPORTE | S17: =+VLOOKUP($E17,'TC regional'!$AR$11:$EL$118,S$8,FALSE) -> OPTIMO
C18: Gestión para la atención integral a la primera infancia | D18: NA | E18: MPM1-03 | F18: Unidades de atención beneficiarias de la implementación de la Estrategia Fiesta de la Lectura. | G18: =+VLOOKUP($E18,'TC regional'!$AR$11:$EL$118,$D$122,FALSE) -> 15 | H18: =+VLOOKUP($E18,'TC regional'!$AR$11:$EL$118,H$8,FALSE) -> 15 | I18: =+VLOOKUP($E18,'TC regional'!$AR$11:$EL$118,I$8,FALSE) -> 15 | J18: =+VLOOKUP($E18,'TC regional'!$AR$11:$EL$118,J$8,FALSE) -> 15 | K18: =+VLOOKUP($E18,'TC regional'!$AR$11:$EL$118,K$8,FALSE) -> 1 | M18: =+VLOOKUP($E18,'TC regional'!$AR$11:$EL$118,M$8,FALSE) -> OPTIMO | P18: 8 | Q18: =+HLOOKUP($Q$11,analisis!$C$3:$HY$111,P18,FALSE) -> Se logró la meta para la estrategia fiesta de la lectura para lo ejecutado de la de la vigencia 2013 | S18: =+VLOOKUP($E18,'TC regional'!$AR$11:$EL$118,S$8,FALSE) -> OPTIMO
C19: Gestión para la atención integral a la primera infancia | D19: NA | E19: MPM1-04 | F19: Niños y niñas atendidos integralmente cuyos padres o cuidadores han asistido a jornadas de sensibilización | G19: =+VLOOKUP($E19,'TC regional'!$AR$11:$EL$118,$D$122,FALSE) -> 2969 | H19: =+VLOOKUP($E19,'TC regional'!$AR$11:$EL$118,H$8,FALSE) -> 2601 | I19: =+VLOOKUP($E19,'TC regional'!$AR$11:$EL$118,I$8,FALSE) -> 2969 | J19: =+VLOOKUP($E19,'TC regional'!$AR$11:$EL$118,J$8,FALSE) -> 2601 | K19: =+VLOOKUP($E19,'TC regional'!$AR$11:$EL$118,K$8,FALSE) -> 0.8760525429 | M19: =+VLOOKUP($E19,'TC regional'!$AR$11:$EL$118,M$8,FALSE) -> NA | P19: 9 | Q19: =+HLOOKUP($Q$11,analisis!$C$3:$HY$111,P19,FALSE) -> NO APLICA | S19: =+VLOOKUP($E19,'TC regional'!$AR$11:$EL$118,S$8,FALSE) -> NA
C20: Gestión para la atención integral a la primera infancia | D20: NA | E20: MPM1-05 | F20: Niños y niñas de la Red Unidos con Atencion Integral a la Primera Infancia (AIPI) | G20: =+VLOOKUP($E20,'TC regional'!$AR$11:$EL$118,$D$122,FALSE) -> 109 | H20: =+VLOOKUP($E20,'TC regional'!$AR$11:$EL$118,H$8,FALSE) -> 45 | I20: =+VLOOKUP($E20,'TC regional'!$AR$11:$EL$118,I$8,FALSE) -> 109 | J20: =+VLOOKUP($E20,'TC regional'!$AR$11:$EL$118,J$8,FALSE) -> 45 | K20: =+VLOOKUP($E20,'TC regional'!$AR$11:$EL$118,K$8,FALSE) -> 0.4128440367 | M20: =+VLOOKUP($E20,'TC regional'!$AR$11:$EL$118,M$8,FALSE) -> NA | P20: 10 | Q20: =+HLOOKUP($Q$11,analisis!$C$3:$HY$111,P20,FALSE) -> NO APLICA | S20: =+VLOOKUP($E20,'TC regional'!$AR$11:$EL$118,S$8,FALSE) -> NA
C21: Gestión para la atención integral a la primera infancia | D21: NA | E21: MPM1-06 | F21: Niños y niñas de la Red Unidos atendidos en modalidades HCB familiares, FAMI, grupales, DIA y otras formas de atención. | G21: =+VLOOKUP($E21,'TC regional'!$AR$11:$EL$118,$D$122,FALSE) ->  | H21: =+VLOOKUP($E21,'TC regional'!$AR$11:$EL$118,H$8,FALSE) -> 30 | I21: =+VLOOKUP($E21,'TC regional'!$AR$11:$EL$118,I$8,FALSE) -> 88 | J21: =+VLOOKUP($E21,'TC regional'!$AR$11:$EL$118,J$8,FALSE) -> 30 | K21: =+VLOOKUP($E21,'TC regional'!$AR$11:$EL$118,K$8,FALSE) ->  | M21: =+VLOOKUP($E21,'TC regional'!$AR$11:$EL$118,M$8,FALSE) -> NA | P21: 11 | Q21: =+HLOOKUP($Q$11,analisis!$C$3:$HY$111,P21,FALSE) -> NO APLICA | S21: =+VLOOKUP($E21,'TC regional'!$AR$11:$EL$118,S$8,FALSE) -> NA
C22: Gestión para la atención integral a la primera infancia | D22: NA | E22: MPM1-07 | F22: Número de niños y niñas víctimas de conflicto armado atendidos en las difentes modalidades de atención a la primera infancia. | G22: =+VLOOKUP($E22,'TC regional'!$AR$11:$EL$118,$D$122,FALSE) -> 50 | H22: =+VLOOKUP($E22,'TC regional'!$AR$11:$EL$118,H$8,FALSE) -> 39 | I22: =+VLOOKUP($E22,'TC regional'!$AR$11:$EL$118,I$8,FALSE) -> 50 | J22: =+VLOOKUP($E22,'TC regional'!$AR$11:$EL$118,J$8,FALSE) -> 39 | K22: =+VLOOKUP($E22,'TC regional'!$AR$11:$EL$118,K$8,FALSE) -> 0.78 | M22: =+VLOOKUP($E22,'TC regional'!$AR$11:$EL$118,M$8,FALSE) -> EN RIESGO | P22: 12 | Q22: =+HLOOKUP($Q$11,analisis!$C$3:$HY$111,P22,FALSE) -> Se han realizado reuniones interinstitucionales para fortalecer este proceso sin embargo el departamento no cuenta con un número significativo de población desplazada para dar respuesta a este indicador ya que la mayoría de los niños niñas y familias atendidas mediante esta estrategia son de la región, adicionalmente aun no se cuenta con el acceso al palicativo Vivanto | S22: =+VLOOKUP($E22,'TC regional'!$AR$11:$EL$118,S$8,FALSE) -> EN RIESGO
C23: Gestión para la atención integral a la primera infancia | D23: NA | E23: MPM1-08 | F23: Porcentaje de cumplimiento de la actualización de datos de unidades de Servicio para la Dirección de Primera Infancia en el Sistema CUENTAME | G23: =+VLOOKUP($E23,'TC regional'!$AR$11:$EL$118,$D$122,FALSE) -> 1 | H23: =+VLOOKUP($E23,'TC regional'!$AR$11:$EL$118,H$8,FALSE) -> 98 | I23: =+VLOOKUP($E23,'TC regional'!$AR$11:$EL$118,I$8,FALSE) -> 91 | J23: =+VLOOKUP($E23,'TC regional'!$AR$11:$EL$118,J$8,FALSE) -> 1.076923077 | K23: =+VLOOKUP($E23,'TC regional'!$AR$11:$EL$118,K$8,FALSE) -> 1.076923077 | M23: =+VLOOKUP($E23,'TC regional'!$AR$11:$EL$118,M$8,FALSE) -> OPTIMO | P23: 13 | Q23: =+HLOOKUP($Q$11,analisis!$C$3:$HY$111,P23,FALSE) -> se reporto las unidades de servicio de manera satisfactoria en el aplicativo CUENTAME | S23: =+VLOOKUP($E23,'TC regional'!$AR$11:$EL$118,S$8,FALSE) -> OPTIMO
C24: Gestión para la atención integral a la primera infancia | D24: NA | E24: MPM1-09 | F24: Madres transitadas a esquemas de atención integral | G24: =+VLOOKUP($E24,'TC regional'!$AR$11:$EL$118,$D$122,FALSE) -> 24 | H24: =+VLOOKUP($E24,'TC regional'!$AR$11:$EL$118,H$8,FALSE) -> 24 | I24: =+VLOOKUP($E24,'TC regional'!$AR$11:$EL$118,I$8,FALSE) -> 24 | J24: =+VLOOKUP($E24,'TC regional'!$AR$11:$EL$118,J$8,FALSE) -> 24 | K24: =+VLOOKUP($E24,'TC regional'!$AR$11:$EL$118,K$8,FALSE) -> 1 | M24: =+VLOOKUP($E24,'TC regional'!$AR$11:$EL$118,M$8,FALSE) -> OPTIMO | P24: 14 | Q24: =+HLOOKUP($Q$11,analisis!$C$3:$HY$111,P24,FALSE) -> Se dio cumplimiento del tránsito efectivo de madres al esquema de atención integral | S24: =+VLOOKUP($E24,'TC regional'!$AR$11:$EL$118,S$8,FALSE) -> OPTIMO
C25: Gestión para la atención integral a la primera infancia | D25: NA | E25: MPM1-10 | F25: Porcentaje de cumplimiento de la actualización de datos de Beneficiarios para la Dirección de Primera Infancia en el Sistema CUENTAME | G25: =+VLOOKUP($E25,'TC regional'!$AR$11:$EL$118,$D$122,FALSE) -> 1 | H25: =+VLOOKUP($E25,'TC regional'!$AR$11:$EL$118,H$8,FALSE) -> 2855 | I25: =+VLOOKUP($E25,'TC regional'!$AR$11:$EL$118,I$8,FALSE) -> 2981 | J25: =+VLOOKUP($E25,'TC regional'!$AR$11:$EL$118,J$8,FALSE) -> 0.9577323046 | K25: =+VLOOKUP($E25,'TC regional'!$AR$11:$EL$118,K$8,FALSE) -> 0.9577323046 | M25: =+VLOOKUP($E25,'TC regional'!$AR$11:$EL$118,M$8,FALSE) -> ADECUADO | P25: 15 | Q25: =+HLOOKUP($Q$11,analisis!$C$3:$HY$111,P25,FALSE) -> No fue posible actualizar los datos de los beneficiarios en el aplicativo cuéntame, dado a que la operación inicio en septiembre y para la fecha el nuevo socio estratégico no había reportado la información. | S25: =+VLOOKUP($E25,'TC regional'!$AR$11:$EL$118,S$8,FALSE) -> OPTIMO
C26: Gestión para la promoción y Prevención para la protección integral de las niñez y la adolescencia | D26: NA | E26: E-05 | F26: Niños, niñas y adolescentes vinculados a programas de prevención (reclutamiento, gestación de adolescentes, uso del tiempo libre y procesos de participación) | G26: =+VLOOKUP($E26,'TC regional'!$AR$11:$EL$118,$D$122,FALSE) -> 1200 | H26: =+VLOOKUP($E26,'TC regional'!$AR$11:$EL$118,H$8,FALSE) -> 1200 | I26: =+VLOOKUP($E26,'TC regional'!$AR$11:$EL$118,I$8,FALSE) -> 1200 | J26: =+VLOOKUP($E26,'TC regional'!$AR$11:$EL$118,J$8,FALSE) -> 1200 | K26: =+VLOOKUP($E26,'TC regional'!$AR$11:$EL$118,K$8,FALSE) -> 1 | M26: =+VLOOKUP($E26,'TC regional'!$AR$11:$EL$118,M$8,FALSE) -> OPTIMO | O26: Análisis realizado en SISPA | P26: 16 | Q26: =+HLOOKUP($Q$11,analisis!$C$3:$HY$111,P26,FALSE) -> Se realizó Comité Técnico Operativo del programa Generaciones con Bienestar, se realizó asesoría y asistencia técnica al operador con respecto a la ejecución del programa, Se envió informe de hallazgos a la supervisora del contrato 070 de 2013 correspondiente al programa Generaciones con Bienestar el día 8 de Noviembre del a&ntilde;o en curso. Se proyectó estudio previo para el programa Generaciones con Bienestar vigencias futuras 2014 y se envió para revisión por medio electrónico el día 8 de Noviembre del a&ntilde;o en curso. Se visitaron algunas unidades de servicio. Se están desarrollando los procedimientos y actividades de asesoría y asistencia técnica referentes al programa Generaciones con Bienestar, realizando el respectivo acompa&ntilde;amiento al operador CORPORACIÓN SAN CARLOS. | S26: =+VLOOKUP($E26,'TC regional'!$AR$11:$EL$118,S$8,FALSE) -> OPTIMO
C27: Gestión para la promoción y Prevención para la protección integral de las niñez y la adolescencia | D27: NA | E27: E-06 | F27: Niños, niñas y adolescentes atendidos por el Programa de Alimentacion Escolar | G27: =+VLOOKUP($E27,'TC regional'!$AR$11:$EL$118,$D$122,FALSE) -> 8766 | H27: =+VLOOKUP($E27,'TC regional'!$AR$11:$EL$118,H$8,FALSE) -> 8766 | I27: =+VLOOKUP($E27,'TC regional'!$AR$11:$EL$118,I$8,FALSE) -> 8766 | J27: =+VLOOKUP($E27,'TC regional'!$AR$11:$EL$118,J$8,FALSE) -> 8766 | K27: =+VLOOKUP($E27,'TC regional'!$AR$11:$EL$118,K$8,FALSE) -> 1 | M27: =+VLOOKUP($E27,'TC regional'!$AR$11:$EL$118,M$8,FALSE) -> OPTIMO | O27: Análisis realizado en SISPA | P27: 17 | Q27: =+HLOOKUP($Q$11,analisis!$C$3:$HY$111,P27,FALSE) -> Se inició la ejecución de los cupos aprobados de ampliación tanto en la victoria como en el municipio de Puerto Nari&ntilde;o y el corregimiento de la Victoria. La prestación del servicio en los corregimientos puerto alegría y el encanto tuvieron dificultades que permitieran el cumplimiento de los días programados contractualmente, situación que fue informada a la supervisión del contrato y ordenador del gasto, además de a la interventoría, en estos momentos la oficina jurídica está adelantando el proceso para establecer sanciones al operador ante la falla de la prestación del servicio. En el municipio de Leticia y puerto Nari&ntilde;o, así como en los corregimientos Miriti Paraná, Tarapacá, puerto Arica, se terminó la prestación del servicio el 15 de noviembre de 2013. | S27: =+VLOOKUP($E27,'TC regional'!$AR$11:$EL$118,S$8,FALSE) -> OPTIMO
C28: Gestión para la promoción y Prevención para la protección integral de las niñez y la adolescencia | D28: NA | E28: MPM2-01 | F28: Niños, niñas y adolescentes en situación de desplazamiento atendidos por el Programa de Alimentacion Escolar | G28: =+VLOOKUP($E28,'TC regional'!$AR$11:$EL$118,$D$122,FALSE) -> 231 | H28: =+VLOOKUP($E28,'TC regional'!$AR$11:$EL$118,H$8,FALSE) -> 0 | I28: =+VLOOKUP($E28,'TC regional'!$AR$11:$EL$118,I$8,FALSE) -> 231 | J28: =+VLOOKUP($E28,'TC regional'!$AR$11:$EL$118,J$8,FALSE) -> 0 | K28: =+VLOOKUP($E28,'TC regional'!$AR$11:$EL$118,K$8,FALSE) -> 0 | M28: =+VLOOKUP($E28,'TC regional'!$AR$11:$EL$118,M$8,FALSE) -> CRITICO | P28: 18 | Q28: =+HLOOKUP($Q$11,analisis!$C$3:$HY$111,P28,FALSE) -> se ha realizado la observacion en varias oportunidades que este numero en el contrato no hace relacion a cupos, sino a los numeros que del total de los cupos asignados a esta unidad de servicio tienen el reconocimiento de cuotas de participación, y ante la eventualidad de que en esta unidad no se presentan beneficiarios en situacion de desplazamiento no se esta haciendo uso de este recurso, pero si se esta atendiendo la totalidad de los cupos programados, por tal motivo se ha solicitado en varias ocaciones que se ajuste este indicador para que no siga afectando a la Regional. | S28: =+VLOOKUP($E28,'TC regional'!$AR$11:$EL$118,S$8,FALSE) -> CRITICO
C29: Gestión para la promoción y Prevención para la protección integral de las niñez y la adolescencia | D29: NA | E29: MPM2-02 | F29: Días promedio de atención del Programa de Alimentación Escolar | G29: =+VLOOKUP($E29,'TC regional'!$AR$11:$EL$118,$D$122,FALSE) -> 176 | H29: =+VLOOKUP($E29,'TC regional'!$AR$11:$EL$118,H$8,FALSE) -> 169 | I29: =+VLOOKUP($E29,'TC regional'!$AR$11:$EL$118,I$8,FALSE) -> 176 | J29: =+VLOOKUP($E29,'TC regional'!$AR$11:$EL$118,J$8,FALSE) -> 169 | K29: =+VLOOKUP($E29,'TC regional'!$AR$11:$EL$118,K$8,FALSE) -> 0.9602272727 | M29: =+VLOOKUP($E29,'TC regional'!$AR$11:$EL$118,M$8,FALSE) -> EN RIESGO | P29: 19 | Q29: =+HLOOKUP($Q$11,analisis!$C$3:$HY$111,P29,FALSE) -> La atencion del programa se ha realizado según la programacion de los dias estipulados en el calendario escolar, por tal motivo de los 139 dias iniciales que se habian programado se ejecutaron al 100% y los de la adicion del mes de octubre tambien se ejecutaron totalmente, por lo que se solicita se realiza una correccion a los dias de la meta ya qeu revisando se nos deberia estar evaluando con corte al mes de octubre, sobre unos dias de atencion de 169 dias, y estariamos al 100% de cumplimiento. | S29: =+VLOOKUP($E29,'TC regional'!$AR$11:$EL$118,S$8,FALSE) -> EN RIESGO
C30: Gestión para la promoción y Prevención para la protección integral de las niñez y la adolescencia | D30: NA | E30: MPM2-03 | F30: Encuentros vivenciales realizados por el Programa de Promoción y Prevención para la Protección Integral de los niños, niñas y adolescentes "Generaciones con Bienestar" | G30: =+VLOOKUP($E30,'TC regional'!$AR$11:$EL$118,$D$122,FALSE) -> 2880 | H30: =+VLOOKUP($E30,'TC regional'!$AR$11:$EL$118,H$8,FALSE) -> 2120 | I30: =+VLOOKUP($E30,'TC regional'!$AR$11:$EL$118,I$8,FALSE) -> 2880 | J30: =+VLOOKUP($E30,'TC regional'!$AR$11:$EL$118,J$8,FALSE) -> 2120 | K30: =+VLOOKUP($E30,'TC regional'!$AR$11:$EL$118,K$8,FALSE) -> 0.7361111111 | M30: =+VLOOKUP($E30,'TC regional'!$AR$11:$EL$118,M$8,FALSE) -> EN RIESGO | P30: 20 | Q30: =+HLOOKUP($Q$11,analisis!$C$3:$HY$111,P30,FALSE) -> Este indicador corresponde al numero de encuentros vivienciales realizados hasta el mes de Noviembre en el marco de la ejecución del programa Generaciones con Bienestar. | S30: =+VLOOKUP($E30,'TC regional'!$AR$11:$EL$118,S$8,FALSE) -> OPTIMO
C31: Gestión para la promoción y Prevención para la protección integral de las niñez y la adolescencia | D31: NA | E31: MPM2-04 | F31: Porcentaje de cumplimiento de la actualización de datos de unidades de Servicio y beneficiarios para la Dirección de Niñez y Adolescencia | G31: =+VLOOKUP($E31,'TC regional'!$AR$11:$EL$118,$D$122,FALSE) -> 1 | H31: =+VLOOKUP($E31,'TC regional'!$AR$11:$EL$118,H$8,FALSE) -> 9340 | I31: =+VLOOKUP($E31,'TC regional'!$AR$11:$EL$118,I$8,FALSE) -> 9966 | J31: =+VLOOKUP($E31,'TC regional'!$AR$11:$EL$118,J$8,FALSE) -> 0.9371864339 | K31: =+VLOOKUP($E31,'TC regional'!$AR$11:$EL$118,K$8,FALSE) -> 0.9371864339 | M31: =+VLOOKUP($E31,'TC regional'!$AR$11:$EL$118,M$8,FALSE) -> ADECUADO | P31: 21 | Q31: =+HLOOKUP($Q$11,analisis!$C$3:$HY$111,P31,FALSE) -> Se realizó la actualización de las unidades de servicio en el aplicativo | S31: =+VLOOKUP($E31,'TC regional'!$AR$11:$EL$118,S$8,FALSE) -> OPTIMO
C32: Gestión para la atención de las familias y comunidades | D32: NA | E32: E-12 | F32: Familias beneficiadas por el programa "Familias con bienestar" | G32: =+VLOOKUP($E32,'TC regional'!$AR$11:$EL$118,$D$122,FALSE) -> 700 | H32: =+VLOOKUP($E32,'TC regional'!$AR$11:$EL$118,H$8,FALSE) -> 701 | I32: =+VLOOKUP($E32,'TC regional'!$AR$11:$EL$118,I$8,FALSE) -> 700 | J32: =+VLOOKUP($E32,'TC regional'!$AR$11:$EL$118,J$8,FALSE) -> 701 | K32: =+VLOOKUP($E32,'TC regional'!$AR$11:$EL$118,K$8,FALSE) -> 1.001428571 | M32: =+VLOOKUP($E32,'TC regional'!$AR$11:$EL$118,M$8,FALSE) -> OPTIMO | O32: Análisis realizado en SISPA | P32: 22 | Q32: =+HLOOKUP($Q$11,analisis!$C$3:$HY$111,P32,FALSE) -> Se están desarrollando los procedimientos y actividades de asesoría y asistencia técnica referentes al programa Familias con Bienestar, realizando el respectivo acompa&ntilde;amiento al operador CAFAMAZ. | S32: =+VLOOKUP($E32,'TC regional'!$AR$11:$EL$118,S$8,FALSE) -> OPTIMO
C33: Gestión para la atención de las familias y comunidades | D33: NA | E33: MPM3-01 | F33: Familias de Red Unidos beneficiadas por el programa "Familias con bienestar" | G33: =+VLOOKUP($E33,'TC regional'!$AR$11:$EL$118,$D$122,FALSE) -> 130 | H33: =+VLOOKUP($E33,'TC regional'!$AR$11:$EL$118,H$8,FALSE) -> 398 | I33: =+VLOOKUP($E33,'TC regional'!$AR$11:$EL$118,I$8,FALSE) -> 130 | J33: =+VLOOKUP($E33,'TC regional'!$AR$11:$EL$118,J$8,FALSE) -> 398 | K33: =+VLOOKUP($E33,'TC regional'!$AR$11:$EL$118,K$8,FALSE) -> 3.061538462 | M33: =+VLOOKUP($E33,'TC regional'!$AR$11:$EL$118,M$8,FALSE) -> OPTIMO | P33: 23 | Q33: =+HLOOKUP($Q$11,analisis!$C$3:$HY$111,P33,FALSE) -> El porcentaje de familias de Red Unidos atendidas en el programa Familias con Bienestar corresponde a 88% debido a la no vinculación de dichas familias al programa | S33: =+VLOOKUP($E33,'TC regional'!$AR$11:$EL$118,S$8,FALSE) -> EN RIESGO
C34: Gestión para la atención de las familias y comunidades | D34: NA | E34: MPM3-02 | F34: Familias Victimas, PARD, Vulnerables beneficiadas por el programa "Familias con bienestar" | G34: =+VLOOKUP($E34,'TC regional'!$AR$11:$EL$118,$D$122,FALSE) -> 570 | H34: =+VLOOKUP($E34,'TC regional'!$AR$11:$EL$118,H$8,FALSE) -> 303 | I34: =+VLOOKUP($E34,'TC regional'!$AR$11:$EL$118,I$8,FALSE) -> 570 | J34: =+VLOOKUP($E34,'TC regional'!$AR$11:$EL$118,J$8,FALSE) -> 303 | K34: =+VLOOKUP($E34,'TC regional'!$AR$11:$EL$118,K$8,FALSE) -> 0.5315789474 | M34: =+VLOOKUP($E34,'TC regional'!$AR$11:$EL$118,M$8,FALSE) -> NA | P34: 24 | Q34: =+HLOOKUP($Q$11,analisis!$C$3:$HY$111,P34,FALSE) -> El porcentaje de familias víctimas y PARD superó el 100% para la atención del programa Familias con Bienestar | S34: =+VLOOKUP($E34,'TC regional'!$AR$11:$EL$118,S$8,FALSE) -> OPTIMO
C35: Gestión para la atención de las familias y comunidades | D35: NA | E35: MPM3-03 | F35: Familias indígenas atendidas por el proyecto fortalecimiento a familias de grupos étnicos | G35: =+VLOOKUP($E35,'TC regional'!$AR$11:$EL$118,$D$122,FALSE) -> 1 | H35: =+VLOOKUP($E35,'TC regional'!$AR$11:$EL$118,H$8,FALSE) -> 40 | I35: =+VLOOKUP($E35,'TC regional'!$AR$11:$EL$118,I$8,FALSE) -> 40 | J35: =+VLOOKUP($E35,'TC regional'!$AR$11:$EL$118,J$8,FALSE) -> 1 | K35: =+VLOOKUP($E35,'TC regional'!$AR$11:$EL$118,K$8,FALSE) -> 1 | M35: =+VLOOKUP($E35,'TC regional'!$AR$11:$EL$118,M$8,FALSE) -> OPTIMO | P35: 25 | Q35: =+HLOOKUP($Q$11,analisis!$C$3:$HY$111,P35,FALSE) -> Se atendió el 100% de las familias programadas para el supbroyecto de grupos étnicos. | S35: =+VLOOKUP($E35,'TC regional'!$AR$11:$EL$118,S$8,FALSE) -> OPTIMO
C36: Gestión para la atención de las familias y comunidades | D36: NA | E36: MPM3-04 | F36: Familias de comunidades negras atendidas por el proyecto fortalecimiento a familias de grupos etnicos | G36: =+VLOOKUP($E36,'TC regional'!$AR$11:$EL$118,$D$122,FALSE) -> 1 | H36: =+VLOOKUP($E36,'TC regional'!$AR$11:$EL$118,H$8,FALSE) -> 0 | I36: =+VLOOKUP($E36,'TC regional'!$AR$11:$EL$118,I$8,FALSE) -> 0 | J36: =+VLOOKUP($E36,'TC regional'!$AR$11:$EL$118,J$8,FALSE) -> NA | K36: =+VLOOKUP($E36,'TC regional'!$AR$11:$EL$118,K$8,FALSE) ->  | M36: =+VLOOKUP($E36,'TC regional'!$AR$11:$EL$118,M$8,FALSE) -> NA | P36: 26 | Q36: =+HLOOKUP($Q$11,analisis!$C$3:$HY$111,P36,FALSE) -> NO APLICA | S36: =+VLOOKUP($E36,'TC regional'!$AR$11:$EL$118,S$8,FALSE) -> NA
C37: Gestión para la atención de las familias y comunidades | D37: NA | E37: MPM3-05 | F37: Familias raizales atendidas por el proyecto fortalecimiento a familias de grupos etnicos | G37: =+VLOOKUP($E37,'TC regional'!$AR$11:$EL$118,$D$122,FALSE) -> 1 | H37: =+VLOOKUP($E37,'TC regional'!$AR$11:$EL$118,H$8,FALSE) -> 0 | I37: =+VLOOKUP($E37,'TC regional'!$AR$11:$EL$118,I$8,FALSE) -> 0 | J37: =+VLOOKUP($E37,'TC regional'!$AR$11:$EL$118,J$8,FALSE) -> NA | K37: =+VLOOKUP($E37,'TC regional'!$AR$11:$EL$118,K$8,FALSE) ->  | M37: =+VLOOKUP($E37,'TC regional'!$AR$11:$EL$118,M$8,FALSE) -> NA | P37: 27 | Q37: =+HLOOKUP($Q$11,analisis!$C$3:$HY$111,P37,FALSE) -> NO APLICA | S37: =+VLOOKUP($E37,'TC regional'!$AR$11:$EL$118,S$8,FALSE) -> NA
C38: Gestión para la atención de las familias y comunidades | D38: NA | E38: MPM3-06 | F38: Familias Rrom atendidas por el proyecto fortalecimiento a familias de grupos étnicos | G38: =+VLOOKUP($E38,'TC regional'!$AR$11:$EL$118,$D$122,FALSE) -> 1 | H38: =+VLOOKUP($E38,'TC regional'!$AR$11:$EL$118,H$8,FALSE) -> 0 | I38: =+VLOOKUP($E38,'TC regional'!$AR$11:$EL$118,I$8,FALSE) -> 0 | J38: =+VLOOKUP($E38,'TC regional'!$AR$11:$EL$118,J$8,FALSE) -> NA | K38: =+VLOOKUP($E38,'TC regional'!$AR$11:$EL$118,K$8,FALSE) ->  | M38: =+VLOOKUP($E38,'TC regional'!$AR$11:$EL$118,M$8,FALSE) -> NA | P38: 28 | Q38: =+HLOOKUP($Q$11,analisis!$C$3:$HY$111,P38,FALSE) -> NO APLICA | S38: =+VLOOKUP($E38,'TC regional'!$AR$11:$EL$118,S$8,FALSE) -> NA
C39: Gestión para la atención de las familias y comunidades | D39: NA | E39: MPM3-07 | F39: Familias palenqueras atendidas por el proyecto fortalecimiento a familias de grupos étnicos | G39: =+VLOOKUP($E39,'TC regional'!$AR$11:$EL$118,$D$122,FALSE) -> 1 | H39: =+VLOOKUP($E39,'TC regional'!$AR$11:$EL$118,H$8,FALSE) -> 0 | I39: =+VLOOKUP($E39,'TC regional'!$AR$11:$EL$118,I$8,FALSE) -> 0 | J39: =+VLOOKUP($E39,'TC regional'!$AR$11:$EL$118,J$8,FALSE) -> NA | K39: =+VLOOKUP($E39,'TC regional'!$AR$11:$EL$118,K$8,FALSE) ->  | M39: =+VLOOKUP($E39,'TC regional'!$AR$11:$EL$118,M$8,FALSE) -> NA | P39: 29 | Q39: =+HLOOKUP($Q$11,analisis!$C$3:$HY$111,P39,FALSE) -> NO APLICA | S39: =+VLOOKUP($E39,'TC regional'!$AR$11:$EL$118,S$8,FALSE) -> NA
C40: Gestión para la atención de las familias y comunidades | D40: NA | E40: MPM3-09 | F40: Porcentaje de cumplimiento de la actualización de datos de unidades de Servicio y beneficiarios para la Dirección de Familia y Comunidades | G40: =+VLOOKUP($E40,'TC regional'!$AR$11:$EL$118,$D$122,FALSE) -> 1 | H40: =+VLOOKUP($E40,'TC regional'!$AR$11:$EL$118,H$8,FALSE) -> 557 | I40: =+VLOOKUP($E40,'TC regional'!$AR$11:$EL$118,I$8,FALSE) -> 741 | J40: =+VLOOKUP($E40,'TC regional'!$AR$11:$EL$118,J$8,FALSE) -> 0.7516869096 | K40: =+VLOOKUP($E40,'TC regional'!$AR$11:$EL$118,K$8,FALSE) -> 0.7516869096 | M40: =+VLOOKUP($E40,'TC regional'!$AR$11:$EL$118,M$8,FALSE) -> CRITICO | P40: 30 | Q40: =+HLOOKUP($Q$11,analisis!$C$3:$HY$111,P40,FALSE) -> El operador no realizó la respectiva actualización de las unidades de servicio en el aplicativo rub cuéntame | S40: =+VLOOKUP($E40,'TC regional'!$AR$11:$EL$118,S$8,FALSE) -> ADECUADO
C41: Gestión para la nutrición | D41: NA | E41: E-21 | F41: Niños y niñas reportados al Sistema de Seguimiento Nutricional - SSN en HI - HCB - CDI (excluyendo FAMI, mayores de 2 años y menores de 5 años) con desnutrición aguda que mejoraron su estado Nutricional. | G41: =+VLOOKUP($E41,'TC regional'!$AR$11:$EL$118,$D$122,FALSE) -> 0.8 | H41: =+VLOOKUP($E41,'TC regional'!$AR$11:$EL$118,H$8,FALSE) -> 6 | I41: =+VLOOKUP($E41,'TC regional'!$AR$11:$EL$118,I$8,FALSE) -> 8 | J41: =+VLOOKUP($E41,'TC regional'!$AR$11:$EL$118,J$8,FALSE) -> 0.75 | K41: =+VLOOKUP($E41,'TC regional'!$AR$11:$EL$118,K$8,FALSE) -> 0.9375 | M41: =+VLOOKUP($E41,'TC regional'!$AR$11:$EL$118,M$8,FALSE) -> ADECUADO | O41: Análisis realizado en SISPA | P41: 31 | Q41: =+HLOOKUP($Q$11,analisis!$C$3:$HY$111,P41,FALSE) -> NR | S41: =+VLOOKUP($E41,'TC regional'!$AR$11:$EL$118,S$8,FALSE) -> OPTIMO
C42: Gestión para la nutrición | D42: NA | E42: E-23 | F42: Niños y niñas que mejoraron su estado Nutricional que se encuentran en la modalidad Recuperación Nutricional con Enfoque Comunitario - RNEC | G42: =+VLOOKUP($E42,'TC regional'!$AR$11:$EL$118,$D$122,FALSE) -> 0.8 | H42: =+VLOOKUP($E42,'TC regional'!$AR$11:$EL$118,H$8,FALSE) -> 28 | I42: =+VLOOKUP($E42,'TC regional'!$AR$11:$EL$118,I$8,FALSE) -> 48 | J42: =+VLOOKUP($E42,'TC regional'!$AR$11:$EL$118,J$8,FALSE) -> 0.5833333333 | K42: =+VLOOKUP($E42,'TC regional'!$AR$11:$EL$118,K$8,FALSE) -> 0.7291666667 | M42: =+VLOOKUP($E42,'TC regional'!$AR$11:$EL$118,M$8,FALSE) -> CRITICO | O42: Análisis realizado en SISPA | P42: 32 | Q42: =+HLOOKUP($Q$11,analisis!$C$3:$HY$111,P42,FALSE) -> 1. el operador selva corazón socio estratégico realizo la atención de los 120 ni&ntilde;os que ingresaron a la modalidad de recuperación nutricional con enfoque comunitario los cuales se encuentran distribuidos por comunidad así: tpisca 15 beneficiarios, san juan de atacuari 12 beneficiarios, san juan del soco 15 beneficiarios, villa Andrea 16 beneficiarios, kilómetro 18 17 beneficiarios, barrio nuevo 21 beneficiarios y la comunidad de pupu&ntilde;a (en las 4 malocas) 24 beneficiarios.2. Se reportó a la dirección de nutrición de la sede nacional los formatos correspondientes de la modalidad del mes de noviembre. 3. la cobertura del mes se cumplió en un 100% las actividades programadas en un 100% y todo esto fue evidenciado a través del anexo # 5 enviado a la sede nacional por medio de correo electrónico. 4. el día 13 de noviembre se realizó la socialización de los indicadores de recuperación nutricional con enfoque comunitario con el operador fundación selva corazón. | S42: =+VLOOKUP($E42,'TC regional'!$AR$11:$EL$118,S$8,FALSE) -> NA
C43: Gestión para la nutrición | D43: NA | E43: MPM4-01 | F43: Niños de 0-2 años reportados al Sistema de Seguimiento Nutricional – SSN pertenecientes al programa FAMI, con desnutrición global que mejoran su estado nutricional. | G43: =+VLOOKUP($E43,'TC regional'!$AR$11:$EL$118,$D$122,FALSE) -> 0.78 | H43: =+VLOOKUP($E43,'TC regional'!$AR$11:$EL$118,H$8,FALSE) -> 15 | I43: =+VLOOKUP($E43,'TC regional'!$AR$11:$EL$118,I$8,FALSE) -> 22 | J43: =+VLOOKUP($E43,'TC regional'!$AR$11:$EL$118,J$8,FALSE) -> 0.6818181818 | K43: =+VLOOKUP($E43,'TC regional'!$AR$11:$EL$118,K$8,FALSE) -> 0.8741258741 | M43: =+VLOOKUP($E43,'TC regional'!$AR$11:$EL$118,M$8,FALSE) -> EN RIESGO | P43: 33 | Q43: =+HLOOKUP($Q$11,analisis!$C$3:$HY$111,P43,FALSE) -> De acuerdo al ingreso de nuevos beneficiarios se viene realizando los procesos de intervención de acuerdo a la guia de malnutrición y el plan de intetrvención para la regional Amazonas | S43: =+VLOOKUP($E43,'TC regional'!$AR$11:$EL$118,S$8,FALSE) -> OPTIMO
C44: Gestión para la nutrición | D44: NA | E44: MPM4-02 | F44: Niños y niñas menores de 5 años atendidos por el programa de recuperación nutricional ambulatoria con Desnutrición aguda o riesgo que mejoran su estado nutricional | G44: =+VLOOKUP($E44,'TC regional'!$AR$11:$EL$118,$D$122,FALSE) -> 0.85 | H44: =+VLOOKUP($E44,'TC regional'!$AR$11:$EL$118,H$8,FALSE) -> 28 | I44: =+VLOOKUP($E44,'TC regional'!$AR$11:$EL$118,I$8,FALSE) -> 34 | J44: =+VLOOKUP($E44,'TC regional'!$AR$11:$EL$118,J$8,FALSE) -> 0.8235294118 | K44: =+VLOOKUP($E44,'TC regional'!$AR$11:$EL$118,K$8,FALSE) -> 0.9688581315 | M44: =+VLOOKUP($E44,'TC regional'!$AR$11:$EL$118,M$8,FALSE) -> ADECUADO | P44: 34 | Q44: =+HLOOKUP($Q$11,analisis!$C$3:$HY$111,P44,FALSE) -> se viene ejecutando la modalidad RNA para la intervención satisfactoria de los 53 cupos asignados a la regional Amazonas | S44: =+VLOOKUP($E44,'TC regional'!$AR$11:$EL$118,S$8,FALSE) -> OPTIMO
C45: Gestión para la nutrición | D45: NA | E45: MPM4-03 | F45: Niños y niñas desplazados reportados al Sistema de Seguimiento Nutricional - SSN en HI - HCB - CDI (excluyendo FAMI, menores de 2 años y mayores de 5 años) con desnutrición aguda que mejoraron su estado Nutricional. | G45: =+VLOOKUP($E45,'TC regional'!$AR$11:$EL$118,$D$122,FALSE) -> 0.78 | H45: =+VLOOKUP($E45,'TC regional'!$AR$11:$EL$118,H$8,FALSE) -> 3 | I45: =+VLOOKUP($E45,'TC regional'!$AR$11:$EL$118,I$8,FALSE) -> 3 | J45: =+VLOOKUP($E45,'TC regional'!$AR$11:$EL$118,J$8,FALSE) -> 1 | K45: =+VLOOKUP($E45,'TC regional'!$AR$11:$EL$118,K$8,FALSE) -> 1.282051282 | M45: =+VLOOKUP($E45,'TC regional'!$AR$11:$EL$118,M$8,FALSE) -> OPTIMO | P45: 35 | Q45: =+HLOOKUP($Q$11,analisis!$C$3:$HY$111,P45,FALSE) -> NO APLICA | S45: =+VLOOKUP($E45,'TC regional'!$AR$11:$EL$118,S$8,FALSE) -> NA
C46: Gestión para la nutrición | D46: NA | E46: MPM4-04 | F46: Niños y Niñas reportados al Sistema de Seguimiento Nutricional –SSN en HI, CDI y HCB (excluyendo FAMI, menores de 2 años) que permanecieron con Obesidad | G46: =+VLOOKUP($E46,'TC regional'!$AR$11:$EL$118,$D$122,FALSE) -> 0.5 | H46: =+VLOOKUP($E46,'TC regional'!$AR$11:$EL$118,H$8,FALSE) -> 9 | I46: =+VLOOKUP($E46,'TC regional'!$AR$11:$EL$118,I$8,FALSE) -> 36 | J46: =+VLOOKUP($E46,'TC regional'!$AR$11:$EL$118,J$8,FALSE) -> 0.25 | K46: =+VLOOKUP($E46,'TC regional'!$AR$11:$EL$118,K$8,FALSE) -> 0.5 | M46: =+VLOOKUP($E46,'TC regional'!$AR$11:$EL$118,M$8,FALSE) -> OPTIMO | P46: 36 | Q46: =+HLOOKUP($Q$11,analisis!$C$3:$HY$111,P46,FALSE) -> De acuerdo al ingreso de nuevos beneficiarios se viene realizando los procesos de intervención de acuerdo a la guia de malnutrición y el plan de intetrvención para la regional Amazonas | S46: =+VLOOKUP($E46,'TC regional'!$AR$11:$EL$118,S$8,FALSE) -> OPTIMO
C47: Gestión para la nutrición | D47: NA | E47: MPM4-07 | F47: Porcentaje de cumplimiento de la actualización de datos de unidades de Servicio y beneficiarios para la Dirección Nutrición | G47: =+VLOOKUP($E47,'TC regional'!$AR$11:$EL$118,$D$122,FALSE) -> 1 | H47: =+VLOOKUP($E47,'TC regional'!$AR$11:$EL$118,H$8,FALSE) -> 26 | I47: =+VLOOKUP($E47,'TC regional'!$AR$11:$EL$118,I$8,FALSE) -> 390 | J47: =+VLOOKUP($E47,'TC regional'!$AR$11:$EL$118,J$8,FALSE) -> 0.06666666667 | K47: =+VLOOKUP($E47,'TC regional'!$AR$11:$EL$118,K$8,FALSE) -> 0.06666666667 | M47: =+VLOOKUP($E47,'TC regional'!$AR$11:$EL$118,M$8,FALSE) -> NA | P47: 37 | Q47: =+HLOOKUP($Q$11,analisis!$C$3:$HY$111,P47,FALSE) -> NO APLICA | S47: =+VLOOKUP($E47,'TC regional'!$AR$11:$EL$118,S$8,FALSE) -> NA
C48: Gestión para la Protección | D48: Gestión Restablecimiento de Derechos | E48: E-08 | F48: Porcentaje de niños, niñas, adolescentes y jóvenes vinculados a procesos de formación. | G48: =+VLOOKUP($E48,'TC regional'!$AR$11:$EL$118,$D$122,FALSE) -> 1 | H48: =+VLOOKUP($E48,'TC regional'!$AR$11:$EL$118,H$8,FALSE) -> 0 | I48: =+VLOOKUP($E48,'TC regional'!$AR$11:$EL$118,I$8,FALSE) -> 0 | J48: =+VLOOKUP($E48,'TC regional'!$AR$11:$EL$118,J$8,FALSE) -> NA | K48: =+VLOOKUP($E48,'TC regional'!$AR$11:$EL$118,K$8,FALSE) ->  | M48: =+VLOOKUP($E48,'TC regional'!$AR$11:$EL$118,M$8,FALSE) -> NA | O48: Análisis realizado en SISPA | P48: 38 | Q48: =+HLOOKUP($Q$11,analisis!$C$3:$HY$111,P48,FALSE) -> De las actividades realizadas y su vinculación, se concluye: a) pacticipación activida de los ni&ntilde;os, las ni&ntilde;as y los adolescentes, b) participación activa de las madres y hogares sustitutos. | S48: =+VLOOKUP($E48,'TC regional'!$AR$11:$EL$118,S$8,FALSE) -> NA
C49: Gestión para la Protección | D49: Gestión Restablecimiento de Derechos | E49: E-13 | F49: Porcentaje de niños, niñas y adolescentes que reingresan al proceso de restablecimiento de derechos | G49: =+VLOOKUP($E49,'TC regional'!$AR$11:$EL$118,$D$122,FALSE) -> 0 | H49: =+VLOOKUP($E49,'TC regional'!$AR$11:$EL$118,H$8,FALSE) -> 0 | I49: =+VLOOKUP($E49,'TC regional'!$AR$11:$EL$118,I$8,FALSE) -> 134 | J49: =+VLOOKUP($E49,'TC regional'!$AR$11:$EL$118,J$8,FALSE) -> 0 | K49: =+VLOOKUP($E49,'TC regional'!$AR$11:$EL$118,K$8,FALSE) -> 0 | M49: =+VLOOKUP($E49,'TC regional'!$AR$11:$EL$118,M$8,FALSE) -> OPTIMO | O49: Análisis realizado en SISPA | P49: 39 | Q49: =+HLOOKUP($Q$11,analisis!$C$3:$HY$111,P49,FALSE) -> No hubo reingresos durante el mes de noviembre. | S49: =+VLOOKUP($E49,'TC regional'!$AR$11:$EL$118,S$8,FALSE) -> OPTIMO
C50: Gestión para la Protección | D50: Gestión Restablecimiento de Derechos | E50: E-14 | F50: Porcentaje de niños, niñas y adolescentes menores de 18 años en protección con auto de apertura de investigación con situación legal definida en 120 días o menos | G50: =+VLOOKUP($E50,'TC regional'!$AR$11:$EL$118,$D$122,FALSE) -> 1 | H50: =+VLOOKUP($E50,'TC regional'!$AR$11:$EL$118,H$8,FALSE) -> 69 | I50: =+VLOOKUP($E50,'TC regional'!$AR$11:$EL$118,I$8,FALSE) -> 72 | J50: =+VLOOKUP($E50,'TC regional'!$AR$11:$EL$118,J$8,FALSE) -> 0.9583333333 | K50: =+VLOOKUP($E50,'TC regional'!$AR$11:$EL$118,K$8,FALSE) -> 0.9583333333 | M50: =+VLOOKUP($E50,'TC regional'!$AR$11:$EL$118,M$8,FALSE) -> ADECUADO | O50: Análisis realizado en SISPA | P50: 40 | Q50: =+HLOOKUP($Q$11,analisis!$C$3:$HY$111,P50,FALSE) -> Se evidencia que del seguimiento y trabajo articulado que realiza la defensora de familia con el equipo interdisciplinario no se presentan perdida de competencia o situación que haya llevado a la definición jurídica fuera del término de 120 días. Así mismo, se esta garantizando a la fecha el debido proceso en los PARD donde se encuentre siendo atendido un NNA indígena. sin embargo, se analiza que se hace necesario adelantar acciones tendientes al fortalecimiento de las autoridades indígenas (curacas y gobernadores) para resolución de conflictos y el avocar conocimiento del proceso de restablecimiento de derechos. | S50: =+VLOOKUP($E50,'TC regional'!$AR$11:$EL$118,S$8,FALSE) -> ADECUADO
C51: Gestión para la Protección | D51: Gestión Adopciones | E51: E-15 | F51: Niños, niñas y adolescentes en situación de adoptabilidad en firme, SIN características especiales presentados a comité de adopciones, con familia asignada | G51: =+VLOOKUP($E51,'TC regional'!$AR$11:$EL$118,$D$122,FALSE) -> 1 | H51: =+VLOOKUP($E51,'TC regional'!$AR$11:$EL$118,H$8,FALSE) -> 0 | I51: =+VLOOKUP($E51,'TC regional'!$AR$11:$EL$118,I$8,FALSE) -> 0 | J51: =+VLOOKUP($E51,'TC regional'!$AR$11:$EL$118,J$8,FALSE) -> NA | K51: =+VLOOKUP($E51,'TC regional'!$AR$11:$EL$118,K$8,FALSE) ->  | M51: =+VLOOKUP($E51,'TC regional'!$AR$11:$EL$118,M$8,FALSE) -> NA | O51: Análisis realizado en SISPA | P51: 41 | Q51: =+HLOOKUP($Q$11,analisis!$C$3:$HY$111,P51,FALSE) -> EN EL MES DE NOVIEMBRE DE 2013 NO FUERON PRESENTADOS AL COMITÉ DE ADOPCIONES NI&Ntilde;OS SIN CARACTERISTICAS ESPECIALES DECLARADOS EN ADOPTABILIDAD. | S51: =+VLOOKUP($E51,'TC regional'!$AR$11:$EL$118,S$8,FALSE) -> NA
C52: Gestión para la Protección | D52: Gestión Adopciones | E52: E-16 | F52: Niños, niñas y adolescentes en situación de adoptabilidad en firme, CON características y necesidades especiales y posibilidad de adopción presentados a comité de adopciones, con familia asignada | G52: =+VLOOKUP($E52,'TC regional'!$AR$11:$EL$118,$D$122,FALSE) -> 0.36 | H52: =+VLOOKUP($E52,'TC regional'!$AR$11:$EL$118,H$8,FALSE) -> 0 | I52: =+VLOOKUP($E52,'TC regional'!$AR$11:$EL$118,I$8,FALSE) -> 0 | J52: =+VLOOKUP($E52,'TC regional'!$AR$11:$EL$118,J$8,FALSE) -> NA | K52: =+VLOOKUP($E52,'TC regional'!$AR$11:$EL$118,K$8,FALSE) ->  | M52: =+VLOOKUP($E52,'TC regional'!$AR$11:$EL$118,M$8,FALSE) -> NA | O52: Análisis realizado en SISPA | P52: 42 | Q52: =+HLOOKUP($Q$11,analisis!$C$3:$HY$111,P52,FALSE) -> EN EL MES DE NOVIEMBRE DE 2013 NO FUERON PRESENTADOS AL COMITÉ DE ADOPCIONES NI&Ntilde;OS CON CARACTERISTICAS ESPECIALES DECLARADOS EN ADOPTABILIDAD. | S52: =+VLOOKUP($E52,'TC regional'!$AR$11:$EL$118,S$8,FALSE) -> NA
C53: Gestión para la Protección | D53: Gestión Adopciones | E53: E-17 | F53: Niños, niñas y adolescentes que a partir de la fecha de sentencia de adopción en firme, cumplen con el número de informes de seguimientos post adopción en el periodo establecido | G53: =+VLOOKUP($E53,'TC regional'!$AR$11:$EL$118,$D$122,FALSE) -> 1 | H53: =+VLOOKUP($E53,'TC regional'!$AR$11:$EL$118,H$8,FALSE) -> 6 | I53: =+VLOOKUP($E53,'TC regional'!$AR$11:$EL$118,I$8,FALSE) -> 6 | J53: =+VLOOKUP($E53,'TC regional'!$AR$11:$EL$118,J$8,FALSE) -> 1 | K53: =+VLOOKUP($E53,'TC regional'!$AR$11:$EL$118,K$8,FALSE) -> 1 | M53: =+VLOOKUP($E53,'TC regional'!$AR$11:$EL$118,M$8,FALSE) -> OPTIMO | O53: Análisis realizado en SISPA | P53: 43 | Q53: =+HLOOKUP($Q$11,analisis!$C$3:$HY$111,P53,FALSE) -> SE ENCUENTRAN REGISTRADAS LAS SENTENCIAS JUDICIALES EN FIRME. EL INDICADOR DE 6 CASOS PARA SEGUIMIENTO POST-AD. A CORTE DE NOVIEMBRE ESTA EN 100% | S53: =+VLOOKUP($E53,'TC regional'!$AR$11:$EL$118,S$8,FALSE) -> OPTIMO
C54: Gestión para la Protección | D54: Gestión Restablecimiento de Derechos | E54: E-18 | F54: Porcentaje de Niños, niñas y adolescente víctimas del desplazamiento forzado con proceso de restablecimiento de derechos por vulneraciones adicionales al desplazamiento. | G54: =+VLOOKUP($E54,'TC regional'!$AR$11:$EL$118,$D$122,FALSE) -> 0 | H54: =+VLOOKUP($E54,'TC regional'!$AR$11:$EL$118,H$8,FALSE) -> 7 | I54: =+VLOOKUP($E54,'TC regional'!$AR$11:$EL$118,I$8,FALSE) -> 161 | J54: =+VLOOKUP($E54,'TC regional'!$AR$11:$EL$118,J$8,FALSE) -> 0.04347826087 | K54: =+VLOOKUP($E54,'TC regional'!$AR$11:$EL$118,K$8,FALSE) -> 0.04347826087 | M54: =+VLOOKUP($E54,'TC regional'!$AR$11:$EL$118,M$8,FALSE) -> ADECUADO | O54: Análisis realizado en SISPA | P54: 44 | Q54: =+HLOOKUP($Q$11,analisis!$C$3:$HY$111,P54,FALSE) -> NR | S54: =+VLOOKUP($E54,'TC regional'!$AR$11:$EL$118,S$8,FALSE) -> ADECUADO
C55: Gestión para la Protección | D55: Gestión Restablecimiento de Derechos | E55: MPM5-P1-01 | F55: Porcentaje de niños, niñas y adolescentes en PARD ubicados en la modalidad del hogar sustituto con permanencia mayor a 12 meses | G55: =+VLOOKUP($E55,'TC regional'!$AR$11:$EL$118,$D$122,FALSE) -> 0 | H55: =+VLOOKUP($E55,'TC regional'!$AR$11:$EL$118,H$8,FALSE) -> 0 | I55: =+VLOOKUP($E55,'TC regional'!$AR$11:$EL$118,I$8,FALSE) -> 3 | J55: =+VLOOKUP($E55,'TC regional'!$AR$11:$EL$118,J$8,FALSE) -> 0 | K55: =+VLOOKUP($E55,'TC regional'!$AR$11:$EL$118,K$8,FALSE) -> 0 | M55: =+VLOOKUP($E55,'TC regional'!$AR$11:$EL$118,M$8,FALSE) -> OPTIMO | P55: 45 | Q55: =+HLOOKUP($Q$11,analisis!$C$3:$HY$111,P55,FALSE) -> Revisado el indicador se observa que en el denominador se encuentran reportados 5 niños, actualmente se encuentran ubicados en hogar sustituto con permanencia mayor a 12 meses 9 niños, niñas y adolescentes declarados en adopción y 5 en situación de vulneración por condiciones de salud (orden médica y tratamiento de la misma naturaleza) | S55: =+VLOOKUP($E55,'TC regional'!$AR$11:$EL$118,S$8,FALSE) -> OPTIMO
C56: Gestión para la Protección | D56: Gestión Restablecimiento de Derechos | E56: MPM5-P1-02 | F56: Porcentaje Niños, niñas y adolescentes ubicados en la modalidad medio Institucional Internado con más de doce meses de permanencia. | G56: =+VLOOKUP($E56,'TC regional'!$AR$11:$EL$118,$D$122,FALSE) -> 0 | H56: =+VLOOKUP($E56,'TC regional'!$AR$11:$EL$118,H$8,FALSE) -> 0 | I56: =+VLOOKUP($E56,'TC regional'!$AR$11:$EL$118,I$8,FALSE) -> 0 | J56: =+VLOOKUP($E56,'TC regional'!$AR$11:$EL$118,J$8,FALSE) -> NA | K56: =+VLOOKUP($E56,'TC regional'!$AR$11:$EL$118,K$8,FALSE) ->  | M56: =+VLOOKUP($E56,'TC regional'!$AR$11:$EL$118,M$8,FALSE) -> NA | P56: 46 | Q56: =+HLOOKUP($Q$11,analisis!$C$3:$HY$111,P56,FALSE) -> NO APLICA | S56: =+VLOOKUP($E56,'TC regional'!$AR$11:$EL$118,S$8,FALSE) -> NA
C57: Gestión para la Protección | D57: Gestión Restablecimiento de Derechos | E57: MPM5-P1-03 | F57: Porcentaje de Niño, niñas o adolescentes con auto de apertura de investigación que llevan entre 121 y 180 días sin situación legal definida | G57: =+VLOOKUP($E57,'TC regional'!$AR$11:$EL$118,$D$122,FALSE) -> 0 | H57: =+VLOOKUP($E57,'TC regional'!$AR$11:$EL$118,H$8,FALSE) -> 0 | I57: =+VLOOKUP($E57,'TC regional'!$AR$11:$EL$118,I$8,FALSE) -> 26 | J57: =+VLOOKUP($E57,'TC regional'!$AR$11:$EL$118,J$8,FALSE) -> 0 | K57: =+VLOOKUP($E57,'TC regional'!$AR$11:$EL$118,K$8,FALSE) -> 0 | M57: =+VLOOKUP($E57,'TC regional'!$AR$11:$EL$118,M$8,FALSE) -> OPTIMO | P57: 47 | Q57: =+HLOOKUP($Q$11,analisis!$C$3:$HY$111,P57,FALSE) -> El resultado de este indicador se bebe a que la defensora de familia no ingreso las actuaciones administrativas en el SIM, no obstante el proceso administrativo de restablecimiento de derechos se llevó a cabo en el tiempo establecido. Como lo evidencia los soportes de la historia de atención de la niña. | S57: =+VLOOKUP($E57,'TC regional'!$AR$11:$EL$118,S$8,FALSE) -> EN RIESGO
C58: Gestión para la Protección | D58: Gestión Restablecimiento de Derechos | E58: MPM5-P1-04 | F58: Porcentaje Niños, niñas y adolescentes con auto de apertura de investigación que llevan más de 180 días sin situación legal definida | G58: =+VLOOKUP($E58,'TC regional'!$AR$11:$EL$118,$D$122,FALSE) -> 0 | H58: =+VLOOKUP($E58,'TC regional'!$AR$11:$EL$118,H$8,FALSE) -> 0 | I58: =+VLOOKUP($E58,'TC regional'!$AR$11:$EL$118,I$8,FALSE) -> 26 | J58: =+VLOOKUP($E58,'TC regional'!$AR$11:$EL$118,J$8,FALSE) -> 0 | K58: =+VLOOKUP($E58,'TC regional'!$AR$11:$EL$118,K$8,FALSE) -> 0 | M58: =+VLOOKUP($E58,'TC regional'!$AR$11:$EL$118,M$8,FALSE) -> OPTIMO | P58: 48 | Q58: =+HLOOKUP($Q$11,analisis!$C$3:$HY$111,P58,FALSE) -> El resultado de este indicador se bebe a que en el mes de noviembre ingreso un niño que ya contaba con un proceso administrativo de restablecimiento de derechos, el cual fue cerrado en el SIM sin que antes se ingresaran las actuaciones pertinentes del proceso por parte de la autoridad administrativa, al ingresar niño por otro motivo de vulneración de derechos se activó el proceso anterior alterando de esta manera el indicador. Por lo anterior se solicitó a la autoridad administrativa (defensora de familia) ingresar las actuaciones pertinentes en el SIM. Y continuar con el nuevo PARD que inicio el niño. | S58: =+VLOOKUP($E58,'TC regional'!$AR$11:$EL$118,S$8,FALSE) -> EN RIESGO
C59: Gestión para la Protección | D59: Gestión Restablecimiento de Derechos | E59: MPM5-P1-05 | F59: Porcentaje de niños y niñas menores de 6 años con situación legal definida en menos de 6 meses | G59: =+VLOOKUP($E59,'TC regional'!$AR$11:$EL$118,$D$122,FALSE) -> 1 | H59: =+VLOOKUP($E59,'TC regional'!$AR$11:$EL$118,H$8,FALSE) -> 71 | I59: =+VLOOKUP($E59,'TC regional'!$AR$11:$EL$118,I$8,FALSE) -> 71 | J59: =+VLOOKUP($E59,'TC regional'!$AR$11:$EL$118,J$8,FALSE) -> 1 | K59: =+VLOOKUP($E59,'TC regional'!$AR$11:$EL$118,K$8,FALSE) -> 1 | M59: =+VLOOKUP($E59,'TC regional'!$AR$11:$EL$118,M$8,FALSE) -> OPTIMO | P59: 49 | Q59: =+HLOOKUP($Q$11,analisis!$C$3:$HY$111,P59,FALSE) -> El resultado positivo del indicador es producto del ingreso de las actuaciones en tiempo en el sim, así mismo, por el control implementado por las defensorías de familias a través de las reuniones con sus equipos interdisciplinarios | S59: =+VLOOKUP($E59,'TC regional'!$AR$11:$EL$118,S$8,FALSE) -> OPTIMO
C60: Gestión para la Protección | D60: Gestión Restablecimiento de Derechos | E60: MPM5-P1-06 | F60: Porcentaje niños, niñas menores de 6 años que reingresan al proceso de restablecimiento de derechos | G60: =+VLOOKUP($E60,'TC regional'!$AR$11:$EL$118,$D$122,FALSE) -> 0 | H60: =+VLOOKUP($E60,'TC regional'!$AR$11:$EL$118,H$8,FALSE) -> 0 | I60: =+VLOOKUP($E60,'TC regional'!$AR$11:$EL$118,I$8,FALSE) -> 60 | J60: =+VLOOKUP($E60,'TC regional'!$AR$11:$EL$118,J$8,FALSE) -> 0 | K60: =+VLOOKUP($E60,'TC regional'!$AR$11:$EL$118,K$8,FALSE) -> 0 | M60: =+VLOOKUP($E60,'TC regional'!$AR$11:$EL$118,M$8,FALSE) -> OPTIMO | P60: 50 | Q60: =+HLOOKUP($Q$11,analisis!$C$3:$HY$111,P60,FALSE) -> la fecha las medidas adoptadas por la autoridad administrativa han sido suficientes para evitar el reingreso de los NNA al PARD. 2) Se ha fortalecido el proceso de formación de las autoridades administrativas especialmente en lo que tiene que ver con población indigena. 3) Que de acuerdo a los motivos de ingreso se han adelantado las actuaciones correspondientes de acuerdo a la ruta de atención del PARD, sin embargo cabe resaltar las actividades de prevención que desarrolla el equipo EMPI en la Regional, las que han permitido especialmente evitar el ingreso por peores formas de trabajo infantil, así mismo identificar casos de abuso sexual infantil y matoneo. | S60: =+VLOOKUP($E60,'TC regional'!$AR$11:$EL$118,S$8,FALSE) -> OPTIMO
C61: Gestión para la Protección | D61: Gestión Adopciones | E61: MPM5-P2-01 | F61: Niños y niñas menores de 6 años en situación de adoptabilidad en firme, SIN características y necesidades especiales presentados a comité de adopciones, con familia asignada | G61: =+VLOOKUP($E61,'TC regional'!$AR$11:$EL$118,$D$122,FALSE) -> 1 | H61: =+VLOOKUP($E61,'TC regional'!$AR$11:$EL$118,H$8,FALSE) -> 0 | I61: =+VLOOKUP($E61,'TC regional'!$AR$11:$EL$118,I$8,FALSE) -> 0 | J61: =+VLOOKUP($E61,'TC regional'!$AR$11:$EL$118,J$8,FALSE) -> NA | K61: =+VLOOKUP($E61,'TC regional'!$AR$11:$EL$118,K$8,FALSE) ->  | M61: =+VLOOKUP($E61,'TC regional'!$AR$11:$EL$118,M$8,FALSE) -> NA | P61: 51 | Q61: =+HLOOKUP($Q$11,analisis!$C$3:$HY$111,P61,FALSE) -> NO APLICA | S61: =+VLOOKUP($E61,'TC regional'!$AR$11:$EL$118,S$8,FALSE) -> NA
C62: Gestión para la Protección | D62: Gestión Adopciones | E62: MPM5-P2-02 | F62: Niños y niñas menores de 6 años en situación de adoptabilidad en firme, CON características y necesidades especiales y posibilidad de adopción presentados a comité de adopciones, con familia asignada | G62: =+VLOOKUP($E62,'TC regional'!$AR$11:$EL$118,$D$122,FALSE) -> 0.36 | H62: =+VLOOKUP($E62,'TC regional'!$AR$11:$EL$118,H$8,FALSE) -> 0 | I62: =+VLOOKUP($E62,'TC regional'!$AR$11:$EL$118,I$8,FALSE) -> 0 | J62: =+VLOOKUP($E62,'TC regional'!$AR$11:$EL$118,J$8,FALSE) -> NA | K62: =+VLOOKUP($E62,'TC regional'!$AR$11:$EL$118,K$8,FALSE) ->  | M62: =+VLOOKUP($E62,'TC regional'!$AR$11:$EL$118,M$8,FALSE) -> NA | P62: 52 | Q62: =+HLOOKUP($Q$11,analisis!$C$3:$HY$111,P62,FALSE) -> NO APLICA | S62: =+VLOOKUP($E62,'TC regional'!$AR$11:$EL$118,S$8,FALSE) -> NA
C63: Gestión para la Protección | D63: Gestión Responsabilidad Penal | E63: MPM5-P3-03 | F63: Reiteración del delito en el Sistema de Responsabilidad Penal para Adolescentes. | G63: =+VLOOKUP($E63,'TC regional'!$AR$11:$EL$118,$D$122,FALSE) -> 0 | H63: =+VLOOKUP($E63,'TC regional'!$AR$11:$EL$118,H$8,FALSE) -> 3 | I63: =+VLOOKUP($E63,'TC regional'!$AR$11:$EL$118,I$8,FALSE) -> 30 | J63: =+VLOOKUP($E63,'TC regional'!$AR$11:$EL$118,J$8,FALSE) -> 0.1 | K63: =+VLOOKUP($E63,'TC regional'!$AR$11:$EL$118,K$8,FALSE) -> 0.1 | M63: =+VLOOKUP($E63,'TC regional'!$AR$11:$EL$118,M$8,FALSE) -> ADECUADO | P63: 53 | Q63: =+HLOOKUP($Q$11,analisis!$C$3:$HY$111,P63,FALSE) -> SIN REPORTE | S63: =+VLOOKUP($E63,'TC regional'!$AR$11:$EL$118,S$8,FALSE) -> ADECUADO
C64: Direccionamiento estrategico | D64: NA | E64: MPE1-01 | F64: Eficiencia ejecución presupuestal compromisos | G64: =+VLOOKUP($E64,'TC regional'!$AR$11:$EL$118,$D$122,FALSE) -> 1 | H64: =+VLOOKUP($E64,'TC regional'!$AR$11:$EL$118,H$8,FALSE) -> 0.9317985418 | I64: =+VLOOKUP($E64,'TC regional'!$AR$11:$EL$118,I$8,FALSE) -> 0.98 | J64: =+VLOOKUP($E64,'TC regional'!$AR$11:$EL$118,J$8,FALSE) -> 0.9508148385 | K64: =+VLOOKUP($E64,'TC regional'!$AR$11:$EL$118,K$8,FALSE) -> 0.9508148385 | M64: =+VLOOKUP($E64,'TC regional'!$AR$11:$EL$118,M$8,FALSE) -> EN RIESGO | P64: 54 | Q64: =+HLOOKUP($Q$11,analisis!$C$3:$HY$111,P64,FALSE) -> El proceso de legalización de cuenta por parte de algunos operadores permitió la eficiencia en la ejecución de los compromisos presupuestales | S64: =+VLOOKUP($E64,'TC regional'!$AR$11:$EL$118,S$8,FALSE) -> OPTIMO
C65: Direccionamiento estrategico | D65: NA | E65: MPE1-02 | F65: Eficiencia ejecución presupuestal obligaciones | G65: =+VLOOKUP($E65,'TC regional'!$AR$11:$EL$118,$D$122,FALSE) -> 1 | H65: =+VLOOKUP($E65,'TC regional'!$AR$11:$EL$118,H$8,FALSE) -> 0.9217455464 | I65: =+VLOOKUP($E65,'TC regional'!$AR$11:$EL$118,I$8,FALSE) -> 0.92 | J65: =+VLOOKUP($E65,'TC regional'!$AR$11:$EL$118,J$8,FALSE) -> 1.001897333 | K65: =+VLOOKUP($E65,'TC regional'!$AR$11:$EL$118,K$8,FALSE) -> 1.001897333 | M65: =+VLOOKUP($E65,'TC regional'!$AR$11:$EL$118,M$8,FALSE) -> OPTIMO | O65: Análisis realizado en SISPA | P65: 55 | Q65: =+HLOOKUP($Q$11,analisis!$C$3:$HY$111,P65,FALSE) -> Los procesos de legalización de cuenta por parte de algunos operadores facilitó la eficiencia en la< ejecución presupuestal | S65: =+VLOOKUP($E65,'TC regional'!$AR$11:$EL$118,S$8,FALSE) -> OPTIMO
C66: Direccionamiento estrategico | D66: NA | E66: MPE1-05 | F66: Ejecución de metas sociales | G66: =+VLOOKUP($E66,'TC regional'!$AR$11:$EL$118,$D$122,FALSE) -> 1 | H66: =+VLOOKUP($E66,'TC regional'!$AR$11:$EL$118,H$8,FALSE) -> 19506 | I66: =+VLOOKUP($E66,'TC regional'!$AR$11:$EL$118,I$8,FALSE) -> 19147 | J66: =+VLOOKUP($E66,'TC regional'!$AR$11:$EL$118,J$8,FALSE) -> 1.018749674 | K66: =+VLOOKUP($E66,'TC regional'!$AR$11:$EL$118,K$8,FALSE) -> 1.018749674 | M66: =+VLOOKUP($E66,'TC regional'!$AR$11:$EL$118,M$8,FALSE) -> OPTIMO | P66: 56 | Q66: =+HLOOKUP($Q$11,analisis!$C$3:$HY$111,P66,FALSE) -> se procederá a realizar la aplicación de la modificación solicitada mediante el sim para que esta se refleje en el indicador | S66: =+VLOOKUP($E66,'TC regional'!$AR$11:$EL$118,S$8,FALSE) -> OPTIMO
